Workbook

Sheet 3A
B5: STATISTIQUES AUTOMATISEES
E7: HONNEURS | H7: SANS HONNEURS
B8: Genre | C8: Effectifs | D8: Redoublement | E8: TH | F8: Encouragement | G8: Félicitations | H8: Avertissement | I8: Blâme | J8: Moyen
B9: Filles | C9: =COUNTIF(H16:H121,"F") -> 1 | D9: =COUNTIFS(H16:H121,"F",I16:I121,"OUI") -> 0 | E9: =COUNTIFS(H16:H121,"F",EU16:EU121,"Tableau d'honneur") -> 0 | F9: =COUNTIFS(H16:H121,"F",EU16:EU121,"Encouragement") -> 1 | G9: =COUNTIFS(H16:H121,"F",EU16:EU121,"Félicitations") -> 0 | H9: =COUNTIFS(H16:H121,"F",EU16:EU121,"Avertissement") -> 0 | I9: =COUNTIFS(H16:H121,"F",EU16:EU121,"Blâme") -> 0 | J9: =COUNTIFS(H16:H121,"F",EU16:EU121,"Moyen") -> 0
B10: Garçons | C10: =COUNTIF(H16:H121,"M") -> 3 | D10: =COUNTIFS(H16:H121,"M",I16:I121,"OUI") -> 2 | E10: =COUNTIFS(H16:H121,"M",EU16:EU121,"Tableau d'honneur") -> 0 | F10: =COUNTIFS(H16:H121,"M",EU16:EU121,"Encouragement") -> 0 | G10: =COUNTIFS(H16:H121,"M",EU16:EU121,"Félicitations") -> 0 | H10: =COUNTIFS(H16:H121,"M",EU16:EU121,"Avertissement") -> 0 | I10: =COUNTIFS(H16:H121,"M",EU16:EU121,"Blâme") -> 0 | J10: =COUNTIFS(H16:H121,"M",EU16:EU121,"Moyen") -> 3
B11: Total | C11: =IFERROR(SUM(C9:C10),"---") -> 4 | D11: 2 | E11: 0 | F11: 1 | G11: 0 | H11: 0 | I11: 0 | J11: 3
B13: INFORMATIONS SUR LES ELEVES
Q14: 2 | Y14: 1 | AG14: 1 | AO14: 1 | AW14: 2 | BE14: 2 | BM14: 2 | BU14: 1 | CC14: 3 | CK14: 2 | CS14: 2 | DA14: 2 | DI14: 1 | FA14: 2 | FI14: 1 | FQ14: 1 | FY14: 1 | GG14: 2 | GO14: 2 | GW14: 2 | HE14: 1 | HM14: 3 | HU14: 2 | IC14: 2 | IK14: 2 | IS14: 1
A15: Nro | B15: CODE | C15: Prénom | D15: Nom | E15: Date de naissance | F15: Lieu de naissance | G15: Age | H15: Sexe | I15: Classes reprises | K15: Abs. | L15: Ret. | M15: D1 | N15: D2 | O15: MD | P15: COMP | Q15: MOY | R15: Coef | S15: Points | T15: RM | U15: D1 | V15: D2 | W15: MD | X15: COMP | Y15: MOY | Z15: Coef | AA15: Points | AB15: RM | AC15: D1 | AD15: D2 | AE15: MD | AF15: COMP | AG15: M.S | AH15: Coef | AI15: Points | AJ15: RM | AK15: D1 | AL15: D2 | AM15: MD | AN15: COMP | AO15: M.S | AP15: Coef | AQ15: Points | AR15: RM | AS15: D1 | AT15: D2 | AU15: MD | AV15: COMP | AW15: M.S | AX15: Coef | AY15: Points | AZ15: RM | BA15: D1 | BB15: D2 | BC15: MD | BD15: COMP | BE15: MOY | BF15: Coef | BG15: Points | BH15: RM | BI15: D1 | BJ15: D2 | BK15: MD | BL15: COMP | BM15: MOY | BN15: Coef | BO15: Points | BP15: RM | BQ15: D1 | BR15: D2 | BS15: MD | BT15: COMP | BU15: MOY | BV15: Coef | BW15: Points | BX15: RM | BY15: D1 | BZ15: D2 | CA15: MD | CB15: COMP | CC15: MOY | CD15: Coef | CE15: Points | CF15: RM | CG15: D1 | CH15: D2 | CI15: MD | CJ15: COMP | CK15: MOY | CL15: Coef | CM15: Points | CN15: RM | CO15: D1 | CP15: D2 | CQ15: MD | CR15: COMP | CS15: MOY | CT15: Coef | CU15: Points | CV15: RM | CW15: D1 | CX15: D2 | CY15: MD | CZ15: COMP | DA15: MOY | DB15: Coef | DC15: Points | DD15: RM | DE15: D1 | DF15: D2 | DG15: MD | DH15: COMP | DI15: M.S | DJ15: Coef | DK15: Points | DL15: RM | DM15: CF | DN15: TSQ | DO15: ORTH | DP15: Rec | DQ15: ANG | DR15: ESP | DS15: HG | DT15: EC | DU15: Math | DV15: SVT | DW15: PC | DX15: EPS | DY15: Info | DZ15: CF | EA15: TSQ | EB15: ORTH | EC15: REC | ED15: ANG | EE15: ESP | EF15: HG | EG15: EC | EH15: MATH | EI15: SVT | EJ15: PC | EK15: EPS | EL15: INFO | EM15: TC | EN15: Total | EO15: Moy1 | EP15: RS | EQ15: MP | ER15: CAE | ET15: Remarques | EU15: Honneurs | EV15: Décisions | EW15: D1 | EX15: D2 | EY15: MD | EZ15: COMP | FA15: MOY | FB15: Coef | FC15: Points | FD15: RM | FE15: D1 | FF15: D2 | FG15: MD | FH15: COMP | FI15: MOY | FJ15: Coef | FK15: Points | FL15: RM | FM15: D1 | FN15: D2 | FO15: MD | FP15: COMP | FQ15: M.S | FR15: Coef | FS15: Points | FT15: RM | FU15: D1 | FV15: D2 | FW15: MD | FX15: COMP | FY15: M.S | FZ15: Coef | GA15: Points | GB15: RM | GC15: D1 | GD15: D2 | GE15: MD | GF15: COMP | GG15: M.S | GH15: Coef | GI15: Points | GJ15: RM | GK15: D1 | GL15: D2 | GM15: MD | GN15: COMP | GO15: MOY | GP15: Coef | GQ15: Points | GR15: RM | GS15: D1 | GT15: D2 | GU15: MD | GV15: COMP | GW15: MOY | GX15: Coef | GY15: Points | GZ15: RM | HA15: D1 | HB15: D2 | HC15: MD | HD15: COMP | HE15: MOY | HF15: Coef | HG15: Points | HH15: RM | HI15: D1 | HJ15: D2 | HK15: MD | HL15: COMP | HM15: MOY | HN15: Coef | HO15: Points | HP15: RM | HQ15: D1 | HR15: D2 | HS15: MD | HT15: COMP | HU15: MOY | HV15: Coef | HW15: Points | HX15: RM | HY15: D1 | HZ15: D2 | IA15: MD | IB15: COMP | IC15: MOY | ID15: Coef | IE15: Points | IF15: RM | IG15: D1 | IH15: D2 | II15: MD | IJ15: COMP | IK15: MOY | IL15: Coef | IM15: Points | IN15: RM | IO15: D1 | IP15: D2 | IQ15: MD | IR15: COMP | IS15: M.S | IT15: Coef | IU15: Points | IV15: RM | IW15: CF | IX15: TSQ | IY15: ORTH | IZ15: Rec | JA15: ANG | JB15: ESP | JC15: HG | JD15: EC | JE15: Math | JF15: SVT | JG15: PC | JH15: EPS | JI15: Info | JJ15: CF | JK15: TSQ | JL15: ORTH | JM15: REC | JN15: ANG | JO15: ESP | JP15: HG | JQ15: EC | JR15: MATH | JS15: SVT | JT15: PC | JU15: EPS | JV15: INFO | JW15: TC | JX15: Total | JY15: Moy1 | JZ15: Moy2 | KA15: RS2 | KB15: Moy an | KC15: Rang an | KD15: MP | KE15: CAE | KG15: Ramarque | KH15: Honneurs | KI15: Décisions
A16: 1 | B16: MABA3A | C16: Makhmoud | D16: BABOU | E16: 2003-11-07 | F16: MBOUSNAKH | G16: =DATEDIF(E16,TODAY(),"Y") -> 15 | H16: M | I16: NON | K16: 3H | M16: 9 | N16: 11 | O16: =IFERROR(AVERAGE(M16:N16),"-") -> 10 | P16: 12 | Q16: =IFERROR(AVERAGE(O16:P16),"-") -> 11 | R16: 2 | S16: =IFERROR(Q16*2,"-") -> 22 | T16: =IFERROR(RANK(Q16,$Q$16:$Q$121,0),"-") -> 2 | U16: 15 | V16: 14 | W16: =IFERROR(AVERAGE(U16:V16),"-") -> 14.5 | X16: 12 | Y16: =IFERROR(AVERAGE(W16:X16),"-") -> 13.25 | Z16: 1 | AA16: =IFERROR(Y16*1,"-") -> 13.25 | AB16: =IFERROR(RANK(Y16,$Y$16:$Y$121,0),"-") -> 2 | AC16: 14 | AD16: 11 | AE16: =IFERROR(AVERAGE(AC16:AD16),"-") -> 12.5 | AF16: 16 | AG16: =IFERROR(AVERAGE(AE16:AF16),"-") -> 14.25 | AH16: 1 | AI16: =IFERROR(AG16*1,"-") -> 14.25 | AJ16: =IFERROR(RANK(AG16,$AG$16:$AG$121,0),"-") -> 1 | AM16: =IFERROR(AVERAGE(AK16:AL16),"-") -> - | AO16: =IFERROR(AVERAGE(AM16:AN16),"-") -> - | AQ16: =+IFERROR(AO16*AP16,"-") -> - | AR16: =IFERROR(RANK(AO16,$AO$16:$AO$121,0),"-") -> - | AS16: 8 | AT16: 9 | AU16: =IFERROR(AVERAGE(AS16:AT16),"-") -> 8.5 | AV16: 10 | AW16: =IFERROR(AVERAGE(AU16:AV16),"-") -> 9.25 | AX16: 2 | AY16: =IFERROR(AW16*AX16,"-") -> 18.5 | AZ16: =IFERROR(RANK(AW16,$AW$16:$AW$121,0),"-") -> 2 | BA16: 11 | BB16: 16 | BC16: =IFERROR(AVERAGE(BA16:BB16),"-") -> 13.5 | BD16: 12 | BE16: =IFERROR(AVERAGE(BC16:BD16),"-") -> 12.75 | BF16: 2 | BG16: =IFERROR(BE16*BF16,"-") -> 25.5 | BH16: =IFERROR(RANK(BE16,$BE$16:$BE$121,0),"-") -> 2 | BI16: 8 | BJ16: 8 | BK16: =IFERROR(AVERAGE(BI16:BJ16),"-") -> 8 | BL16: 9 | BM16: =IFERROR(AVERAGE(BK16:BL16),"-") -> 8.5 | BN16: 2 | BO16: =IFERROR(BM16*BN16,"-") -> 17 | BP16: =IFERROR(RANK(BM16,$BM$16:$BM$121,0),"-") -> 3 | BQ16: 9 | BR16: 9 | BS16: =IFERROR(AVERAGE(BQ16:BR16),"-") -> 9 | BT16: 10 | BU16: =IFERROR(AVERAGE(BS16:BT16),"-") -> 9.5 | BV16: 1 | BW16: =IFERROR(BU16*BV16,"-") -> 9.5 | BX16: =IFERROR(RANK(BU16,$BU$16:$BU$121,0),"-") -> 3 | BY16: 15 | BZ16: 14 | CA16: =IFERROR(AVERAGE(BY16:BZ16),"-") -> 14.5 | CB16: 12 | CC16: =IFERROR(AVERAGE(CA16:CB16),"-") -> 13.25 | CD16: 3 | CE16: =IFERROR(CC16*CD16,"-") -> 39.75 | CF16: =IFERROR(RANK(CC16,CC16:CC121,0),"-") -> 2 | CG16: 16 | CH16: 15 | CI16: =IFERROR(AVERAGE(CG16:CH16),"-") -> 15.5 | CJ16: 14 | CK16: =IFERROR(AVERAGE(CI16:CJ16),"-") -> 14.75 | CL16: 2 | CM16: =IFERROR(CK16*CL16,"-") -> 29.5 | CN16: =IFERROR(RANK(CK16,$CK$16:$CK$121,0),"-") -> 1 | CO16: 11 | CP16: 13 | CQ16: =IFERROR(AVERAGE(CO16:CP16),"-") -> 12 | CR16: 14 | CS16: =IFERROR(AVERAGE(CQ16:CR16),"-") -> 13 | CT16: 2 | CU16: =IFERROR(CS16*CT16,"-") -> 26 | CV16: =IFERROR(RANK(CS16,$CS$16:$CS$121,0),"-") -> 1 | CW16: 8 | CX16: 8 | CY16: =IFERROR(AVERAGE(CW16:CX16),"-") -> 8 | CZ16: 7 | DA16: =IFERROR(AVERAGE(CY16:CZ16),"-") -> 7.5 | DB16: 2 | DC16: =IFERROR(DA16*DB16,"-") -> 15 | DD16: =IFERROR(RANK(DA16,$DA$16:$DA$121,0),"-") -> 3 | DE16: 12 | DF16: 15 | DG16: =IFERROR(AVERAGE(DE16:DF16),"-") -> 13.5 | DH16: 11 | DI16: =IFERROR(AVERAGE(DG16:DH16),"-") -> 12.25 | DK16: =IFERROR(DI16*DJ16,"-") -> 0 | DL16: =IFERROR(RANK(DI16,$DI$16:$DI$121,0),"-") -> 2 | DM16: =IFERROR(S16,"-") -> 22 | DN16: =IFERROR(AA16,"-") -> 13.25 | DO16: =IFERROR(AI16,"-") -> 14.25 | DP16: =IFERROR(AQ16,"-") -> - | DQ16: =IFERROR(AY16,"-") -> 18.5 | DR16: =IFERROR(BG16,"-") -> 25.5 | DS16: =IFERROR(BO16,"-") -> 17 | DT16: =IFERROR(BW16,"-") -> 9.5 | DU16: =IFERROR(CE16,"-") -> 39.75 | DV16: =IFERROR(CM16,"-") -> 29.5 | DW16: =IFERROR(CU16,"-") -> 26 | DX16: =IFERROR(DC16,"-") -> 15 | DY16: =IFERROR(DK16,"-") -> 0 | DZ16: =IFERROR(R16,"-") -> 2 | EA16: =IFERROR(Z16,"-") -> 1 | EB16: =IFERROR(AH16,"-") -> 1 | EC16: =IFERROR(AP16,"-") -> 0 | ED16: =IFERROR(AX16,"-") -> 2 | EE16: =IFERROR(BF16,"-") -> 2 | EF16: =IFERROR(BN16,"-") -> 2 | EG16: =IFERROR(BV16,"-") -> 1 | EH16: =IFERROR(CD16,"-") -> 3 | EI16: =IFERROR(CL16,"-") -> 2 | EJ16: =IFERROR(CT16,"-") -> 2 | EK16: =IFERROR(DB16,"-") -> 2 | EL16: =IFERROR(DJ16,"-") -> 0 | EM16: 20 | EN16: =IFERROR(SUM(DM16:DY16),"-") -> 230.25 | EO16: =IFERROR(ROUND(EN16/EM16,2),"-") -> 11.51 | EP16: =IFERROR(RANK(EO16,$EO$16:$EO$121,0),"-") -> 2 | EQ16: 10 | ES16: OUI | ET16: =IF(EO16>=12,"Satisfaisant doit continuer",IF((EO16>=EQ16)*(EO16<12),"Peut mieux faire",IF(AND(EO16<EQ16,G16<16),"Insuffisant. Risque de redoubler",IF(AND(EO16<EQ16,G16>=16,I16="NON"),"Insuffisant. Risque de redoubler",IF(AND(EO16<EQ16,G16<16,I16="OUI"),"Insuffisant. Risque de redoubler",IF(AND(EO16<EQ16,G16>=16,I16="OUI"),"Insuffisant. Risque l'exclusion",IF(AND(EO16<=5,G16>=16),"Très insuffisant. Risque l'exclusion"))))))) -> Peut mieux faire | EU16: =IF(EO16>=14,"Félicitations",IF((EO16>=13)*(EO16<14),"Encouragement",IF((EO16>=12)*(EO16<13),"Tableau d'honneur",IF((EO16>=9.5)*(EO16<12),"Moyen",IF((EO16>=7)*(EO16<9.5),"Avertissement",IF((EO16>=0)*(EO16<7),"Blâme")))))) -> Moyen | EY16: =IFERROR(AVERAGE(EW16:EX16),"-") -> - | FA16: =IFERROR(AVERAGE(EY16:EZ16),"-") -> - | FB16: 2 | FC16: =IFERROR(FA16*2,"-") -> - | FD16: =IFERROR(RANK(FA16,$Q$16:$Q$65,0),"-") -> - | FG16: =IFERROR(AVERAGE(FE16:FF16),"-") -> - | FI16: =IFERROR(AVERAGE(FG16:FH16),"-") -> - | FJ16: 1 | FK16: =IFERROR(FI16*1,"-") -> - | FL16: =IFERROR(RANK(FI16,$Y$16:$Y$65,0),"-") -> - | FO16: =IFERROR(AVERAGE(FM16:FN16),"-") -> - | FQ16: =IFERROR(AVERAGE(FO16:FP16),"-") -> - | FR16: 1 | FS16: =IFERROR(FQ16*1,"-") -> - | FT16: =IFERROR(RANK(FQ16,$AG$16:$AG$65,0),"-") -> - | FW16: =IFERROR(AVERAGE(FU16:FV16),"-") -> - | FY16: =IFERROR(AVERAGE(FW16:FX16),"-") -> - | GA16: =+IFERROR(FY16*FZ16,"-") -> - | GB16: =IFERROR(RANK(FY16,$AO$16:$AO$65,0),"-") -> - | GE16: =IFERROR(AVERAGE(GC16:GD16),"-") -> - | GG16: =IFERROR(AVERAGE(GE16:GF16),"-") -> - | GH16: 2 | GI16: =IFERROR(GG16*GH16,"-") -> - | GJ16: =IFERROR(RANK(GG16,$AW$16:$AW$65,0),"-") -> - | GM16: =IFERROR(AVERAGE(GK16:GL16),"-") -> - | GO16: =IFERROR(AVERAGE(GM16:GN16),"-") -> - | GP16: 2 | GQ16: =IFERROR(GO16*GP16,"-") -> - | GR16: =IFERROR(RANK(GO16,$BE$16:$BE$65,0),"-") -> - | GU16: =IFERROR(AVERAGE(GS16:GT16),"-") -> - | GW16: =IFERROR(AVERAGE(GU16:GV16),"-") -> - | GX16: 2 | GY16: =IFERROR(GW16*GX16,"-") -> - | GZ16: =IFERROR(RANK(GW16,$BM$16:$BM$65,0),"-") -> - | HC16: =IFERROR(AVERAGE(HA16:HB16),"-") -> - | HE16: =IFERROR(AVERAGE(HC16:HD16),"-") -> - | HF16: 1 | HG16: =IFERROR(HE16*HF16,"-") -> - | HH16: =IFERROR(RANK(HE16,$BU$16:$BU$65,0),"-") -> - | HK16: =IFERROR(AVERAGE(HI16:HJ16),"-") -> - | HM16: =IFERROR(AVERAGE(HK16:HL16),"-") -> - | HN16: 3 | HO16: =IFERROR(HM16*HN16,"-") -> - | HP16: =IFERROR(RANK(HM16,HM16:HM65,0),"-") -> - | HS16: =IFERROR(AVERAGE(HQ16:HR16),"-") -> - | HU16: =IFERROR(AVERAGE(HS16:HT16),"-") -> - | HV16: 2 | HW16: =IFERROR(HU16*HV16,"-") -> - | HX16: =IFERROR(RANK(HU16,$CK$16:$CK$65,0),"-") -> - | IA16: =IFERROR(AVERAGE(HY16:HZ16),"-") -> - | IC16: =IFERROR(AVERAGE(IA16:IB16),"-") -> - | ID16: 2 | IE16: =IFERROR(IC16*ID16,"-") -> - | IF16: =IFERROR(RANK(IC16,$CS$16:$CS$65,0),"-") -> - | II16: =IFERROR(AVERAGE(IG16:IH16),"-") -> - | IK16: =IFERROR(AVERAGE(II16:IJ16),"-") -> - | IL16: 2 | IM16: =IFERROR(IK16*IL16,"-") -> - | IN16: =IFERROR(RANK(IK16,$DA$16:$DA$65,0),"-") -> - | IQ16: =IFERROR(AVERAGE(IO16:IP16),"-") -> - | IS16: =IFERROR(AVERAGE(IQ16:IR16),"-") -> - | IU16: =IFERROR(IS16*IT16,"-") -> - | IV16: =IFERROR(RANK(IS16,$DI$16:$DI$65,0),"-") -> - | IW16: =IFERROR(FC16,"-") -> - | IX16: =IFERROR(FK16,"-") -> - | IY16: =IFERROR(FS16,"-") -> - | IZ16: =IFERROR(GA16,"-") -> - | JA16: =IFERROR(GI16,"-") -> - | JB16: =IFERROR(GQ16,"-") -> - | JC16: =IFERROR(GY16,"-") -> - | JD16: =IFERROR(HG16,"-") -> - | JE16: =IFERROR(HO16,"-") -> - | JF16: =IFERROR(HW16,"-") -> - | JG16: =IFERROR(IE16,"-") -> - | JH16: =IFERROR(IM16,"-") -> - | JI16: =IFERROR(IU16,"-") -> - | JJ16: =IFERROR(FB16,"-") -> 2 | JK16: =IFERROR(FJ16,"-") -> 1 | JL16: =IFERROR(FR16,"-") -> 1 | JM16: =IFERROR(FZ16,"-") -> 0 | JN16: =IFERROR(GH16,"-") -> 2 | JO16: =IFERROR(GP16,"-") -> 2 | JP16: =IFERROR(GX16,"-") -> 2 | JQ16: =IFERROR(HF16,"-") -> 1 | JR16: =IFERROR(HN16,"-") -> 3 | JS16: =IFERROR(HV16,"-") -> 2 | JT16: =IFERROR(ID16,"-") -> 2 | JU16: =IFERROR(IL16,"-") -> 2 | JV16: =IFERROR(IT16,"-") -> 0 | JW16: =IFERROR(SUM(JJ16:JV16),"-") -> 20 | JX16: =IFERROR(SUM(IW16:JI16),"-") -> 0 | JY16: =EO16 -> 11.51 | JZ16: =IFERROR(ROUND(JX16/JW16,2),"-") -> 0 | KA16: =IFERROR(RANK(JZ16,$EP$16:$EP$65,0),"-") -> - | KB16: =IFERROR(ROUND((JY16+JZ16)/2,2),"---") -> 5.76 | KF16: OUI | KG16: =IF(KB16>=12,"Satisfaisant doit continuer",IF((KB16>=KD16)*(KB16<12),"Peut mieux faire",IF(AND(KB16<KD16,ET16<16),"Insuffisant. Risque de redoubler",IF(AND(KB16<KD16,ET16>=16,EV16="NON"),"Insuffisant. Risque de redoubler",IF(AND(KB16<KD16,ET16<16,EV16="OUI"),"Insuffisant. Risque de redoubler",IF(AND(KB16<KD16,ET16>=16,EV16="OUI"),"Insuffisant. Risque l'exclusion",IF(AND(KB16<=5,ET16>=16),"Très insuffisant. Risque l'exclusion"))))))) -> Peut mieux faire | KH16: =IF(JZ16>=14,"Félicitations",IF((JZ16>=13)*(JZ16<14),"Encouragement",IF((JZ16>=12)*(JZ16<13),"Tableau d'honneur",IF((JZ16>=9.5)*(JZ16<12),"Moyen",IF((JZ16>=7)*(JZ16<9.5),"Avertissement",IF((JZ16>=0)*(JZ16<7),"Blâme")))))) -> Blâme
A17: 2 | B17: SOCI3A | C17: Soda | D17: CISSE | E17: 2003-03-07 | F17: THIES | G17: 16 | H17: F | I17: NON | M17: 16 | N17: 15 | O17: 15.5 | P17: 13 | Q17: 14.25 | R17: 2 | S17: 28.5 | T17: 1 | U17: 13 | V17: 13 | W17: 13 | X17: 15 | Y17: 14 | Z17: 1 | AA17: 14 | AB17: 1 | AC17: 11 | AD17: 10 | AE17: 10.5 | AF17: 14 | AG17: 12.25 | AH17: 1 | AI17: 12.25 | AJ17: 3 | AM17: - | AO17: - | AQ17: - | AR17: - | AS17: 15 | AT17: 16 | AU17: 15.5 | AV17: 18 | AW17: 16.75 | AX17: 2 | AY17: 33.5 | AZ17: 1 | BA17: 14 | BB17: 13 | BC17: 13.5 | BD17: 16 | BE17: 14.75 | BF17: 2 | BG17: 29.5 | BH17: 1 | BI17: 11 | BJ17: 15 | BK17: 13 | BL17: 14 | BM17: 13.5 | BN17: 2 | BO17: 27 | BP17: 2 | BQ17: 10 | BR17: 8 | BS17: 9 | BT17: 11 | BU17: 10 | BV17: 1 | BW17: 10 | BX17: 2 | BY17: 16 | BZ17: 17 | CA17: 16.5 | CB17: 15 | CC17: 15.75 | CD17: 3 | CE17: 47.25 | CF17: =IFERROR(RANK(CC17,CC17:CC121,0),"-") -> 1 | CG17: 13 | CH17: 11 | CI17: 12 | CJ17: 10 | CK17: 11 | CL17: 2 | CM17: 22 | CN17: 2 | CO17: 12 | CP17: 14 | CQ17: 13 | CR17: 11 | CS17: 12 | CT17: 2 | CU17: 24 | CV17: 2 | CW17: 8 | CX17: 8 | CY17: 8 | CZ17: 7 | DA17: 7.5 | DB17: 2 | DC17: 15 | DD17: 3 | DE17: 18 | DF17: 17 | DG17: 17.5 | DH17: 15 | DI17: 16.25 | DK17: 0 | DL17: 1 | DM17: 28.5 | DN17: 14 | DO17: 12.25 | DP17: - | DQ17: 33.5 | DR17: 29.5 | DS17: 27 | DT17: 10 | DU17: 47.25 | DV17: 22 | DW17: 24 | DX17: 15 | DY17: 0 | DZ17: 2 | EA17: 1 | EB17: 1 | EC17: 0 | ED17: 2 | EE17: 2 | EF17: 2 | EG17: 1 | EH17: 3 | EI17: 2 | EJ17: 2 | EK17: 2 | EL17: 0 | EM17: 20 | EN17: 263 | EO17: 13.15 | EP17: 1 | EQ17: 10 | ES17: OUI | ET17: Satisfaisant doit continuer | EU17: Encouragement | EY17: - | FA17: - | FB17: 2 | FC17: - | FD17: - | FG17: - | FI17: - | FJ17: 1 | FK17: - | FL17: - | FO17: - | FQ17: - | FR17: 1 | FS17: - | FT17: - | FW17: - | FY17: - | GA17: - | GB17: - | GE17: - | GG17: - | GH17: 2 | GI17: - | GJ17: - | GM17: - | GO17: - | GP17: 2 | GQ17: - | GR17: - | GU17: - | GW17: - | GX17: 2 | GY17: - | GZ17: - | HC17: - | HE17: - | HF17: 1 | HG17: - | HH17: - | HK17: - | HM17: - | HN17: 3 | HO17: - | HP17: - | HS17: - | HU17: - | HV17: 2 | HW17: - | HX17: - | IA17: - | IC17: - | ID17: 2 | IE17: - | IF17: - | II17: - | IK17: - | IL17: 2 | IM17: - | IN17: - | IQ17: - | IS17: - | IU17: - | IV17: - | IW17: - | IX17: - | IY17: - | IZ17: - | JA17: - | JB17: - | JC17: - | JD17: - | JE17: - | JF17: - | JG17: - | JH17: - | JI17: - | JJ17: 2 | JK17: 1 | JL17: 1 | JM17: 0 | JN17: 2 | JO17: 2 | JP17: 2 | JQ17: 1 | JR17: 3 | JS17: 2 | JT17: 2 | JU17: 2 | JV17: 0 | JW17: 20 | JX17: 0 | JY17: 13.15 | JZ17: 0 | KA17: - | KB17: 6.58 | KF17: OUI | KG17: Peut mieux faire | KH17: Blâme
A18: 3 | B18: LADI3A | C18: Lamarana | D18: DIALLO | E18: 2001-05-09 | F18: THIES | G18: 18 | H18: M | I18: OUI | J18: 4eme | L18: 5H | M18: 9 | N18: 12 | O18: 10.5 | P18: 11 | Q18: 10.75 | R18: 2 | S18: 21.5 | T18: 3 | U18: 14 | V18: 11 | W18: 12.5 | X18: 11 | Y18: 11.75 | Z18: 1 | AA18: 11.75 | AB18: 3 | AC18: 15 | AD18: 13 | AE18: 14 | AF18: 14 | AG18: 14 | AH18: 1 | AI18: 14 | AJ18: 2 | AM18: - | AO18: - | AQ18: - | AR18: - | AS18: 8 | AT18: 9 | AU18: 8.5 | AV18: 8 | AW18: 8.25 | AX18: 2 | AY18: 16.5 | AZ18: 4 | BA18: 12 | BB18: 12 | BC18: 12 | BD18: 12 | BE18: 12 | BF18: 2 | BG18: 24 | BH18: 3 | BI18: 14 | BJ18: 16 | BK18: 15 | BL18: 15 | BM18: 15 | BN18: 2 | BO18: 30 | BP18: 1 | BQ18: 15 | BR18: 14 | BS18: 14.5 | BT18: 17 | BU18: 15.75 | BV18: 1 | BW18: 15.75 | BX18: 1 | BY18: 8 | BZ18: 7 | CA18: 7.5 | CB18: 10 | CC18: 8.75 | CD18: 3 | CE18: 26.25 | CF18: 2 | CG18: 11 | CH18: 11 | CI18: 11 | CJ18: 11 | CK18: 11 | CL18: 2 | CM18: 22 | CN18: 2 | CO18: 11 | CP18: 10 | CQ18: 10.5 | CR18: 9 | CS18: 9.75 | CT18: 2 | CU18: 19.5 | CV18: 3 | CW18: 12 | CX18: 13 | CY18: 12.5 | CZ18: 12 | DA18: 12.25 | DB18: 2 | DC18: 24.5 | DD18: 2 | DE18: 8 | DF18: 7 | DG18: 7.5 | DH18: 6 | DI18: 6.75 | DK18: 0 | DL18: 4 | DM18: 21.5 | DN18: 11.75 | DO18: 14 | DP18: - | DQ18: 16.5 | DR18: 24 | DS18: 30 | DT18: 15.75 | DU18: 26.25 | DV18: 22 | DW18: 19.5 | DX18: 24.5 | DY18: 0 | DZ18: 2 | EA18: 1 | EB18: 1 | EC18: 0 | ED18: 2 | EE18: 2 | EF18: 2 | EG18: 1 | EH18: 3 | EI18: 2 | EJ18: 2 | EK18: 2 | EL18: 0 | EM18: 20 | EN18: 225.75 | EO18: 11.29 | EP18: 3 | EQ18: 10 | ES18: OUI | ET18: Peut mieux faire | EU18: Moyen | EW18: 8 | EX18: 10 | EY18: 9 | EZ18: 11 | FA18: 10 | FB18: 2 | FC18: 20 | FD18: - | FE18: 11 | FF18: 10 | FG18: 10.5 | FH18: 9 | FI18: 9.75 | FJ18: 1 | FK18: 9.75 | FL18: - | FM18: 7 | FN18: 8 | FO18: 7.5 | FP18: 10 | FQ18: 8.75 | FR18: 1 | FS18: 8.75 | FT18: - | FW18: - | FY18: - | GA18: - | GB18: - | GC18: 12 | GD18: 15 | GE18: 13.5 | GF18: 10 | GG18: 11.75 | GH18: 2 | GI18: 23.5 | GJ18: - | GK18: 10 | GL18: 11 | GM18: 10.5 | GN18: 9 | GO18: 9.75 | GP18: 2 | GQ18: 19.5 | GR18: - | GS18: 9 | GT18: 8 | GU18: 8.5 | GV18: 10 | GW18: 9.25 | GX18: 2 | GY18: 18.5 | GZ18: - | HA18: 12 | HB18: 15 | HC18: 13.5 | HD18: 13 | HE18: 13.25 | HF18: 1 | HG18: 13.25 | HH18: - | HI18: 13 | HJ18: 14 | HK18: 13.5 | HL18: 15 | HM18: 14.25 | HN18: 3 | HO18: 42.75 | HP18: 1 | HQ18: 10 | HR18: 8 | HS18: 9 | HT18: 12 | HU18: 10.5 | HV18: 2 | HW18: 21 | HX18: - | HY18: 10 | HZ18: 10 | IA18: 10 | IB18: 10 | IC18: 10 | ID18: 2 | IE18: 20 | IF18: - | IG18: 15 | IH18: 15 | II18: 15 | IJ18: 13 | IK18: 14 | IL18: 2 | IM18: 28 | IN18: - | IO18: 12 | IP18: 15 | IQ18: 13.5 | IR18: 11 | IS18: 12.25 | IU18: 0 | IV18: 2 | IW18: 20 | IX18: 9.75 | IY18: 8.75 | IZ18: - | JA18: 23.5 | JB18: 19.5 | JC18: 18.5 | JD18: 13.25 | JE18: 42.75 | JF18: 21 | JG18: 20 | JH18: 28 | JI18: 0 | JJ18: 2 | JK18: 1 | JL18: 1 | JM18: 0 | JN18: 2 | JO18: 2 | JP18: 2 | JQ18: 1 | JR18: 3 | JS18: 2 | JT18: 2 | JU18: 2 | JV18: 0 | JW18: 20 | JX18: 225 | JY18: 11.29 | JZ18: 11.25 | KA18: - | KB18: 11.27 | KF18: OUI | KG18: Peut mieux faire | KH18: Moyen
A19: 4 | B19: YASE3A | C19: Yacoub | D19: SEYDI | E19: 2002-07-05 | F19: TASSETTE | G19: 17 | H19: M | I19: OUI | J19: 6eme | M19: 6 | N19: 10 | O19: 8 | P19: 9 | Q19: 8.5 | R19: 2 | S19: 17 | T19: 4 | U19: 10 | V19: 8 | W19: 9 | X19: 9 | Y19: 9 | Z19: 1 | AA19: 9 | AB19: 4 | AC19: 5 | AD19: 7 | AE19: 6 | AF19: 9 | AG19: 7.5 | AH19: 1 | AI19: 7.5 | AJ19: 4 | AM19: - | AO19: - | AQ19: - | AR19: - | AS19: 9 | AT19: 8 | AU19: 8.5 | AV19: 10 | AW19: 9.25 | AX19: 2 | AY19: 18.5 | AZ19: 2 | BA19: 12 | BB19: 10 | BC19: 11 | BD19: 11 | BE19: 11 | BF19: 2 | BG19: 22 | BH19: 4 | BI19: 9 | BJ19: 9 | BK19: 9 | BL19: 7 | BM19: 8 | BN19: 2 | BO19: 16 | BP19: 4 | BQ19: 10 | BR19: 10 | BS19: 10 | BT19: 9 | BU19: 9.5 | BV19: 1 | BW19: 9.5 | BX19: 3 | BY19: 11 | BZ19: 12 | CA19: 11.5 | CB19: 10 | CC19: 10.75 | CD19: 3 | CE19: 32.25 | CF19: 1 | CG19: 10 | CH19: 10 | CI19: 10 | CJ19: 12 | CK19: 11 | CL19: 2 | CM19: 22 | CN19: 2 | CO19: 8 | CP19: 7 | CQ19: 7.5 | CR19: 6 | CS19: 6.75 | CT19: 2 | CU19: 13.5 | CV19: 4 | CW19: 16 | CX19: 17 | CY19: 16.5 | CZ19: 18 | DA19: 17.25 | DB19: 2 | DC19: 34.5 | DD19: 1 | DE19: 10 | DF19: 12 | DG19: 11 | DH19: 11 | DI19: 11 | DK19: 0 | DL19: 3 | DM19: 17 | DN19: 9 | DO19: 7.5 | DP19: - | DQ19: 18.5 | DR19: 22 | DS19: 16 | DT19: 9.5 | DU19: 32.25 | DV19: 22 | DW19: 13.5 | DX19: 34.5 | DY19: 0 | DZ19: 2 | EA19: 1 | EB19: 1 | EC19: 0 | ED19: 2 | EE19: 2 | EF19: 2 | EG19: 1 | EH19: 3 | EI19: 2 | EJ19: 2 | EK19: 2 | EL19: 0 | EM19: 20 | EN19: 201.75 | EO19: 10.09 | EP19: 4 | EQ19: 10 | ES19: OUI | ET19: Peut mieux faire | EU19: Moyen | EY19: - | FA19: - | FB19: 2 | FC19: - | FD19: - | FG19: - | FI19: - | FJ19: 1 | FK19: - | FL19: - | FO19: - | FQ19: - | FR19: 1 | FS19: - | FT19: - | FW19: - | FY19: - | GA19: - | GB19: - | GE19: - | GG19: - | GH19: 2 | GI19: - | GJ19: - | GM19: - | GO19: - | GP19: 2 | GQ19: - | GR19: - | GU19: - | GW19: - | GX19: 2 | GY19: - | GZ19: - | HC19: - | HE19: - | HF19: 1 | HG19: - | HH19: - | HK19: - | HM19: - | HN19: 3 | HO19: - | HP19: - | HS19: - | HU19: - | HV19: 2 | HW19: - | HX19: - | IA19: - | IC19: - | ID19: 2 | IE19: - | IF19: - | II19: - | IK19: - | IL19: 2 | IM19: - | IN19: - | IQ19: - | IS19: - | IU19: - | IV19: - | IW19: - | IX19: - | IY19: - | IZ19: - | JA19: - | JB19: - | JC19: - | JD19: - | JE19: - | JF19: - | JG19: - | JH19: - | JI19: - | JJ19: 2 | JK19: 1 | JL19: 1 | JM19: 0 | JN19: 2 | JO19: 2 | JP19: 2 | JQ19: 1 | JR19: 3 | JS19: 2 | JT19: 2 | JU19: 2 | JV19: 0 | JW19: 20 | JX19: 0 | JY19: 10.09 | JZ19: 0 | KA19: - | KB19: 5.05 | KF19: OUI | KG19: Peut mieux faire | KH19: Blâme
G20: 119 | O20: - | Q20: - | R20: 2 | S20: - | T20: - | W20: - | Y20: - | Z20: 1 | AA20: - | AB20: - | AE20: - | AG20: - | AH20: 1 | AI20: - | AJ20: - | AM20: - | AO20: - | AQ20: - | AR20: - | AU20: - | AW20: - | AX20: 2 | AY20: - | AZ20: - | BC20: - | BE20: - | BF20: 2 | BG20: - | BH20: - | BK20: - | BM20: - | BN20: 2 | BO20: - | BP20: - | BS20: - | BU20: - | BV20: 1 | BW20: - | BX20: - | CA20: - | CC20: - | CD20: 3 | CE20: - | CF20: - | CI20: - | CK20: - | CL20: 2 | CM20: - | CN20: - | CQ20: - | CS20: - | CT20: 2 | CU20: - | CV20: - | CY20: - | DA20: - | DB20: 2 | DC20: - | DD20: - | DG20: - | DI20: - | DK20: - | DL20: - | DM20: - | DN20: - | DO20: - | DP20: - | DQ20: - | DR20: - | DS20: - | DT20: - | DU20: - | DV20: - | DW20: - | DX20: - | DY20: - | DZ20: 2 | EA20: 1 | EB20: 1 | EC20: 0 | ED20: 2 | EE20: 2 | EF20: 2 | EG20: 1 | EH20: 3 | EI20: 2 | EJ20: 2 | EK20: 2 | EL20: 0 | EM20: 20 | EN20: 0 | EO20: 0 | EP20: 5 | EQ20: 10 | ES20: OUI | ET20: Très insuffisant. Risque l'exclusion | EU20: Blâme | EY20: - | FA20: - | FB20: 2 | FC20: - | FD20: - | FG20: - | FI20: - | FJ20: 1 | FK20: - | FL20: - | FO20: - | FQ20: - | FR20: 1 | FS20: - | FT20: - | FW20: - | FY20: - | GA20: - | GB20: - | GE20: - | GG20: - | GH20: 2 | GI20: - | GJ20: - | GM20: - | GO20: - | GP20: 2 | GQ20: - | GR20: - | GU20: - | GW20: - | GX20: 2 | GY20: - | GZ20: - | HC20: - | HE20: - | HF20: 1 | HG20: - | HH20: - | HK20: - | HM20: - | HN20: 3 | HO20: - | HP20: - | HS20: - | HU20: - | HV20: 2 | HW20: - | HX20: - | IA20: - | IC20: - | ID20: 2 | IE20: - | IF20: - | II20: - | IK20: - | IL20: 2 | IM20: - | IN20: - | IQ20: - | IS20: - | IU20: - | IV20: - | IW20: - | IX20: - | IY20: - | IZ20: - | JA20: - | JB20: - | JC20: - | JD20: - | JE20: - | JF20: - | JG20: - | JH20: - | JI20: - | JJ20: 2 | JK20: 1 | JL20: 1 | JM20: 0 | JN20: 2 | JO20: 2 | JP20: 2 | JQ20: 1 | JR20: 3 | JS20: 2 | JT20: 2 | JU20: 2 | JV20: 0 | JW20: 20 | JX20: 0 | JY20: 0 | JZ20: 0 | KA20: - | KB20: 0 | KF20: OUI | KG20: Peut mieux faire | KH20: Blâme
G21: 119 | O21: - | Q21: - | R21: 2 | S21: - | T21: - | W21: - | Y21: - | Z21: 1 | AA21: - | AB21: - | AE21: - | AG21: - | AH21: 1 | AI21: - | AJ21: - | AM21: - | AO21: - | AQ21: - | AR21: - | AU21: - | AW21: - | AX21: 2 | AY21: - | AZ21: - | BC21: - | BE21: - | BF21: 2 | BG21: - | BH21: - | BK21: - | BM21: - | BN21: 2 | BO21: - | BP21: - | BS21: - | BU21: - | BV21: 1 | BW21: - | BX21: - | CA21: - | CC21: - | CD21: 3 | CE21: - | CF21: - | CI21: - | CK21: - | CL21: 2 | CM21: - | CN21: - | CQ21: - | CS21: - | CT21: 2 | CU21: - | CV21: - | CY21: - | DA21: - | DB21: 2 | DC21: - | DD21: - | DG21: - | DI21: - | DK21: - | DL21: - | DM21: - | DN21: - | DO21: - | DP21: - | DQ21: - | DR21: - | DS21: - | DT21: - | DU21: - | DV21: - | DW21: - | DX21: - | DY21: - | DZ21: 2 | EA21: 1 | EB21: 1 | EC21: 0 | ED21: 2 | EE21: 2 | EF21: 2 | EG21: 1 | EH21: 3 | EI21: 2 | EJ21: 2 | EK21: 2 | EL21: 0 | EM21: 20 | EN21: 0 | EO21: 0 | EP21: 5 | EQ21: 10 | ES21: OUI | ET21: Très insuffisant. Risque l'exclusion | EU21: Blâme | EY21: - | FA21: - | FB21: 2 | FC21: - | FD21: - | FG21: - | FI21: - | FJ21: 1 | FK21: - | FL21: - | FO21: - | FQ21: - | FR21: 1 | FS21: - | FT21: - | FW21: - | FY21: - | GA21: - | GB21: - | GE21: - | GG21: - | GH21: 2 | GI21: - | GJ21: - | GM21: - | GO21: - | GP21: 2 | GQ21: - | GR21: - | GU21: - | GW21: - | GX21: 2 | GY21: - | GZ21: - | HC21: - | HE21: - | HF21: 1 | HG21: - | HH21: - | HK21: - | HM21: - | HN21: 3 | HO21: - | HP21: - | HS21: - | HU21: - | HV21: 2 | HW21: - | HX21: - | IA21: - | IC21: - | ID21: 2 | IE21: - | IF21: - | II21: - | IK21: - | IL21: 2 | IM21: - | IN21: - | IQ21: - | IS21: - | IU21: - | IV21: - | IW21: - | IX21: - | IY21: - | IZ21: - | JA21: - | JB21: - | JC21: - | JD21: - | JE21: - | JF21: - | JG21: - | JH21: - | JI21: - | JJ21: 2 | JK21: 1 | JL21: 1 | JM21: 0 | JN21: 2 | JO21: 2 | JP21: 2 | JQ21: 1 | JR21: 3 | JS21: 2 | JT21: 2 | JU21: 2 | JV21: 0 | JW21: 20 | JX21: 0 | JY21: 0 | JZ21: 0 | KA21: - | KB21: 0 | KF21: OUI | KG21: Peut mieux faire | KH21: Blâme
G22: 119 | O22: - | Q22: - | R22: 2 | S22: - | T22: - | W22: - | Y22: - | Z22: 1 | AA22: - | AB22: - | AE22: - | AG22: - | AH22: 1 | AI22: - | AJ22: - | AM22: - | AO22: - | AQ22: - | AR22: - | AU22: - | AW22: - | AX22: 2 | AY22: - | AZ22: - | BC22: - | BE22: - | BF22: 2 | BG22: - | BH22: - | BK22: - | BM22: - | BN22: 2 | BO22: - | BP22: - | BS22: - | BU22: - | BV22: 1 | BW22: - | BX22: - | CA22: - | CC22: - | CD22: 3 | CE22: - | CF22: - | CI22: - | CK22: - | CL22: 2 | CM22: - | CN22: - | CQ22: - | CS22: - | CT22: 2 | CU22: - | CV22: - | CY22: - | DA22: - | DB22: 2 | DC22: - | DD22: - | DG22: - | DI22: - | DK22: - | DL22: - | DM22: - | DN22: - | DO22: - | DP22: - | DQ22: - | DR22: - | DS22: - | DT22: - | DU22: - | DV22: - | DW22: - | DX22: - | DY22: - | DZ22: 2 | EA22: 1 | EB22: 1 | EC22: 0 | ED22: 2 | EE22: 2 | EF22: 2 | EG22: 1 | EH22: 3 | EI22: 2 | EJ22: 2 | EK22: 2 | EL22: 0 | EM22: 20 | EN22: 0 | EO22: 0 | EP22: 5 | EQ22: 10 | ES22: OUI | ET22: Très insuffisant. Risque l'exclusion | EU22: Blâme | EY22: - | FA22: - | FB22: 2 | FC22: - | FD22: - | FG22: - | FI22: - | FJ22: 1 | FK22: - | FL22: - | FO22: - | FQ22: - | FR22: 1 | FS22: - | FT22: - | FW22: - | FY22: - | GA22: - | GB22: - | GE22: - | GG22: - | GH22: 2 | GI22: - | GJ22: - | GM22: - | GO22: - | GP22: 2 | GQ22: - | GR22: - | GU22: - | GW22: - | GX22: 2 | GY22: - | GZ22: - | HC22: - | HE22: - | HF22: 1 | HG22: - | HH22: - | HK22: - | HM22: - | HN22: 3 | HO22: - | HP22: - | HS22: - | HU22: - | HV22: 2 | HW22: - | HX22: - | IA22: - | IC22: - | ID22: 2 | IE22: - | IF22: - | II22: - | IK22: - | IL22: 2 | IM22: - | IN22: - | IQ22: - | IS22: - | IU22: - | IV22: - | IW22: - | IX22: - | IY22: - | IZ22: - | JA22: - | JB22: - | JC22: - | JD22: - | JE22: - | JF22: - | JG22: - | JH22: - | JI22: - | JJ22: 2 | JK22: 1 | JL22: 1 | JM22: 0 | JN22: 2 | JO22: 2 | JP22: 2 | JQ22: 1 | JR22: 3 | JS22: 2 | JT22: 2 | JU22: 2 | JV22: 0 | JW22: 20 | JX22: 0 | JY22: 0 | JZ22: 0 | KA22: - | KB22: 0 | KF22: OUI | KG22: Peut mieux faire | KH22: Blâme
G23: 119 | O23: - | Q23: - | R23: 2 | S23: - | T23: - | W23: - | Y23: - | Z23: 1 | AA23: - | AB23: - | AE23: - | AG23: - | AH23: 1 | AI23: - | AJ23: - | AM23: - | AO23: - | AQ23: - | AR23: - | AU23: - | AW23: - | AX23: 2 | AY23: - | AZ23: - | BC23: - | BE23: - | BF23: 2 | BG23: - | BH23: - | BK23: - | BM23: - | BN23: 2 | BO23: - | BP23: - | BS23: - | BU23: - | BV23: 1 | BW23: - | BX23: - | CA23: - | CC23: - | CD23: 3 | CE23: - | CF23: - | CI23: - | CK23: - | CL23: 2 | CM23: - | CN23: - | CQ23: - | CS23: - | CT23: 2 | CU23: - | CV23: - | CY23: - | DA23: - | DB23: 2 | DC23: - | DD23: - | DG23: - | DI23: - | DK23: - | DL23: - | DM23: - | DN23: - | DO23: - | DP23: - | DQ23: - | DR23: - | DS23: - | DT23: - | DU23: - | DV23: - | DW23: - | DX23: - | DY23: - | DZ23: 2 | EA23: 1 | EB23: 1 | EC23: 0 | ED23: 2 | EE23: 2 | EF23: 2 | EG23: 1 | EH23: 3 | EI23: 2 | EJ23: 2 | EK23: 2 | EL23: 0 | EM23: 20 | EN23: 0 | EO23: 0 | EP23: 5 | EQ23: 10 | ES23: OUI | ET23: Très insuffisant. Risque l'exclusion | EU23: Blâme | EY23: - | FA23: - | FB23: 2 | FC23: - | FD23: - | FG23: - | FI23: - | FJ23: 1 | FK23: - | FL23: - | FO23: - | FQ23: - | FR23: 1 | FS23: - | FT23: - | FW23: - | FY23: - | GA23: - | GB23: - | GE23: - | GG23: - | GH23: 2 | GI23: - | GJ23: - | GM23: - | GO23: - | GP23: 2 | GQ23: - | GR23: - | GU23: - | GW23: - | GX23: 2 | GY23: - | GZ23: - | HC23: - | HE23: - | HF23: 1 | HG23: - | HH23: - | HK23: - | HM23: - | HN23: 3 | HO23: - | HP23: - | HS23: - | HU23: - | HV23: 2 | HW23: - | HX23: - | IA23: - | IC23: - | ID23: 2 | IE23: - | IF23: - | II23: - | IK23: - | IL23: 2 | IM23: - | IN23: - | IQ23: - | IS23: - | IU23: - | IV23: - | IW23: - | IX23: - | IY23: - | IZ23: - | JA23: - | JB23: - | JC23: - | JD23: - | JE23: - | JF23: - | JG23: - | JH23: - | JI23: - | JJ23: 2 | JK23: 1 | JL23: 1 | JM23: 0 | JN23: 2 | JO23: 2 | JP23: 2 | JQ23: 1 | JR23: 3 | JS23: 2 | JT23: 2 | JU23: 2 | JV23: 0 | JW23: 20 | JX23: 0 | JY23: 0 | JZ23: 0 | KA23: - | KB23: 0 | KF23: OUI | KG23: Peut mieux faire | KH23: Blâme
G24: 119 | O24: - | Q24: - | R24: 2 | S24: - | T24: - | W24: - | Y24: - | Z24: 1 | AA24: - | AB24: - | AE24: - | AG24: - | AH24: 1 | AI24: - | AJ24: - | AM24: - | AO24: - | AQ24: - | AR24: - | AU24: - | AW24: - | AX24: 2 | AY24: - | AZ24: - | BC24: - | BE24: - | BF24: 2 | BG24: - | BH24: - | BK24: - | BM24: - | BN24: 2 | BO24: - | BP24: - | BS24: - | BU24: - | BV24: 1 | BW24: - | BX24: - | CA24: - | CC24: - | CD24: 3 | CE24: - | CF24: - | CI24: - | CK24: - | CL24: 2 | CM24: - | CN24: - | CQ24: - | CS24: - | CT24: 2 | CU24: - | CV24: - | CY24: - | DA24: - | DB24: 2 | DC24: - | DD24: - | DG24: - | DI24: - | DK24: - | DL24: - | DM24: - | DN24: - | DO24: - | DP24: - | DQ24: - | DR24: - | DS24: - | DT24: - | DU24: - | DV24: - | DW24: - | DX24: - | DY24: - | DZ24: 2 | EA24: 1 | EB24: 1 | EC24: 0 | ED24: 2 | EE24: 2 | EF24: 2 | EG24: 1 | EH24: 3 | EI24: 2 | EJ24: 2 | EK24: 2 | EL24: 0 | EM24: 20 | EN24: 0 | EO24: 0 | EP24: 5 | EQ24: 10 | ES24: OUI | ET24: Très insuffisant. Risque l'exclusion | EU24: Blâme | EY24: - | FA24: - | FB24: 2 | FC24: - | FD24: - | FG24: - | FI24: - | FJ24: 1 | FK24: - | FL24: - | FO24: - | FQ24: - | FR24: 1 | FS24: - | FT24: - | FW24: - | FY24: - | GA24: - | GB24: - | GE24: - | GG24: - | GH24: 2 | GI24: - | GJ24: - | GM24: - | GO24: - | GP24: 2 | GQ24: - | GR24: - | GU24: - | GW24: - | GX24: 2 | GY24: - | GZ24: - | HC24: - | HE24: - | HF24: 1 | HG24: - | HH24: - | HK24: - | HM24: - | HN24: 3 | HO24: - | HP24: - | HS24: - | HU24: - | HV24: 2 | HW24: - | HX24: - | IA24: - | IC24: - | ID24: 2 | IE24: - | IF24: - | II24: - | IK24: - | IL24: 2 | IM24: - | IN24: - | IQ24: - | IS24: - | IU24: - | IV24: - | IW24: - | IX24: - | IY24: - | IZ24: - | JA24: - | JB24: - | JC24: - | JD24: - | JE24: - | JF24: - | JG24: - | JH24: - | JI24: - | JJ24: 2 | JK24: 1 | JL24: 1 | JM24: 0 | JN24: 2 | JO24: 2 | JP24: 2 | JQ24: 1 | JR24: 3 | JS24: 2 | JT24: 2 | JU24: 2 | JV24: 0 | JW24: 20 | JX24: 0 | JY24: 0 | JZ24: 0 | KA24: - | KB24: 0 | KF24: OUI | KG24: Peut mieux faire | KH24: Blâme
G25: 119 | O25: - | Q25: - | R25: 2 | S25: - | T25: - | W25: - | Y25: - | Z25: 1 | AA25: - | AB25: - | AE25: - | AG25: - | AH25: 1 | AI25: - | AJ25: - | AM25: - | AO25: - | AQ25: - | AR25: - | AU25: - | AW25: - | AX25: 2 | AY25: - | AZ25: - | BC25: - | BE25: - | BF25: 2 | BG25: - | BH25: - | BK25: - | BM25: - | BN25: 2 | BO25: - | BP25: - | BS25: - | BU25: - | BV25: 1 | BW25: - | BX25: - | CA25: - | CC25: - | CD25: 3 | CE25: - | CF25: - | CI25: - | CK25: - | CL25: 2 | CM25: - | CN25: - | CQ25: - | CS25: - | CT25: 2 | CU25: - | CV25: - | CY25: - | DA25: - | DB25: 2 | DC25: - | DD25: - | DG25: - | DI25: - | DK25: - | DL25: - | DM25: - | DN25: - | DO25: - | DP25: - | DQ25: - | DR25: - | DS25: - | DT25: - | DU25: - | DV25: - | DW25: - | DX25: - | DY25: - | DZ25: 2 | EA25: 1 | EB25: 1 | EC25: 0 | ED25: 2 | EE25: 2 | EF25: 2 | EG25: 1 | EH25: 3 | EI25: 2 | EJ25: 2 | EK25: 2 | EL25: 0 | EM25: 20 | EN25: 0 | EO25: 0 | EP25: 5 | EQ25: 10 | ES25: OUI | ET25: Très insuffisant. Risque l'exclusion | EU25: Blâme | EY25: - | FA25: - | FB25: 2 | FC25: - | FD25: - | FG25: - | FI25: - | FJ25: 1 | FK25: - | FL25: - | FO25: - | FQ25: - | FR25: 1 | FS25: - | FT25: - | FW25: - | FY25: - | GA25: - | GB25: - | GE25: - | GG25: - | GH25: 2 | GI25: - | GJ25: - | GM25: - | GO25: - | GP25: 2 | GQ25: - | GR25: - | GU25: - | GW25: - | GX25: 2 | GY25: - | GZ25: - | HC25: - | HE25: - | HF25: 1 | HG25: - | HH25: - | HK25: - | HM25: - | HN25: 3 | HO25: - | HP25: - | HS25: - | HU25: - | HV25: 2 | HW25: - | HX25: - | IA25: - | IC25: - | ID25: 2 | IE25: - | IF25: - | II25: - | IK25: - | IL25: 2 | IM25: - | IN25: - | IQ25: - | IS25: - | IU25: - | IV25: - | IW25: - | IX25: - | IY25: - | IZ25: - | JA25: - | JB25: - | JC25: - | JD25: - | JE25: - | JF25: - | JG25: - | JH25: - | JI25: - | JJ25: 2 | JK25: 1 | JL25: 1 | JM25: 0 | JN25: 2 | JO25: 2 | JP25: 2 | JQ25: 1 | JR25: 3 | JS25: 2 | JT25: 2 | JU25: 2 | JV25: 0 | JW25: 20 | JX25: 0 | JY25: 0 | JZ25: 0 | KA25: - | KB25: 0 | KF25: OUI | KG25: Peut mieux faire | KH25: Blâme
G26: 119 | O26: - | Q26: - | R26: 2 | S26: - | T26: - | W26: - | Y26: - | Z26: 1 | AA26: - | AB26: - | AE26: - | AG26: - | AH26: 1 | AI26: - | AJ26: - | AM26: - | AO26: - | AQ26: - | AR26: - | AU26: - | AW26: - | AX26: 2 | AY26: - | AZ26: - | BC26: - | BE26: - | BF26: 2 | BG26: - | BH26: - | BK26: - | BM26: - | BN26: 2 | BO26: - | BP26: - | BS26: - | BU26: - | BV26: 1 | BW26: - | BX26: - | CA26: - | CC26: - | CD26: 3 | CE26: - | CF26: - | CI26: - | CK26: - | CL26: 2 | CM26: - | CN26: - | CQ26: - | CS26: - | CT26: 2 | CU26: - | CV26: - | CY26: - | DA26: - | DB26: 2 | DC26: - | DD26: - | DG26: - | DI26: - | DK26: - | DL26: - | DM26: - | DN26: - | DO26: - | DP26: - | DQ26: - | DR26: - | DS26: - | DT26: - | DU26: - | DV26: - | DW26: - | DX26: - | DY26: - | DZ26: 2 | EA26: 1 | EB26: 1 | EC26: 0 | ED26: 2 | EE26: 2 | EF26: 2 | EG26: 1 | EH26: 3 | EI26: 2 | EJ26: 2 | EK26: 2 | EL26: 0 | EM26: 20 | EN26: 0 | EO26: 0 | EP26: 5 | EQ26: 10 | ES26: OUI | ET26: Très insuffisant. Risque l'exclusion | EU26: Blâme | EY26: - | FA26: - | FB26: 2 | FC26: - | FD26: - | FG26: - | FI26: - | FJ26: 1 | FK26: - | FL26: - | FO26: - | FQ26: - | FR26: 1 | FS26: - | FT26: - | FW26: - | FY26: - | GA26: - | GB26: - | GE26: - | GG26: - | GH26: 2 | GI26: - | GJ26: - | GM26: - | GO26: - | GP26: 2 | GQ26: - | GR26: - | GU26: - | GW26: - | GX26: 2 | GY26: - | GZ26: - | HC26: - | HE26: - | HF26: 1 | HG26: - | HH26: - | HK26: - | HM26: - | HN26: 3 | HO26: - | HP26: - | HS26: - | HU26: - | HV26: 2 | HW26: - | HX26: - | IA26: - | IC26: - | ID26: 2 | IE26: - | IF26: - | II26: - | IK26: - | IL26: 2 | IM26: - | IN26: - | IQ26: - | IS26: - | IU26: - | IV26: - | IW26: - | IX26: - | IY26: - | IZ26: - | JA26: - | JB26: - | JC26: - | JD26: - | JE26: - | JF26: - | JG26: - | JH26: - | JI26: - | JJ26: 2 | JK26: 1 | JL26: 1 | JM26: 0 | JN26: 2 | JO26: 2 | JP26: 2 | JQ26: 1 | JR26: 3 | JS26: 2 | JT26: 2 | JU26: 2 | JV26: 0 | JW26: 20 | JX26: 0 | JY26: 0 | JZ26: 0 | KA26: - | KB26: 0 | KF26: OUI | KG26: Peut mieux faire | KH26: Blâme
G27: 119 | O27: - | Q27: - | R27: 2 | S27: - | T27: - | W27: - | Y27: - | Z27: 1 | AA27: - | AB27: - | AE27: - | AG27: - | AH27: 1 | AI27: - | AJ27: - | AM27: - | AO27: - | AQ27: - | AR27: - | AU27: - | AW27: - | AX27: 2 | AY27: - | AZ27: - | BC27: - | BE27: - | BF27: 2 | BG27: - | BH27: - | BK27: - | BM27: - | BN27: 2 | BO27: - | BP27: - | BS27: - | BU27: - | BV27: 1 | BW27: - | BX27: - | CA27: - | CC27: - | CD27: 3 | CE27: - | CF27: - | CI27: - | CK27: - | CL27: 2 | CM27: - | CN27: - | CQ27: - | CS27: - | CT27: 2 | CU27: - | CV27: - | CY27: - | DA27: - | DB27: 2 | DC27: - | DD27: - | DG27: - | DI27: - | DK27: - | DL27: - | DM27: - | DN27: - | DO27: - | DP27: - | DQ27: - | DR27: - | DS27: - | DT27: - | DU27: - | DV27: - | DW27: - | DX27: - | DY27: - | DZ27: 2 | EA27: 1 | EB27: 1 | EC27: 0 | ED27: 2 | EE27: 2 | EF27: 2 | EG27: 1 | EH27: 3 | EI27: 2 | EJ27: 2 | EK27: 2 | EL27: 0 | EM27: 20 | EN27: 0 | EO27: 0 | EP27: 5 | EQ27: 10 | ES27: OUI | ET27: Très insuffisant. Risque l'exclusion | EU27: Blâme | EY27: - | FA27: - | FB27: 2 | FC27: - | FD27: - | FG27: - | FI27: - | FJ27: 1 | FK27: - | FL27: - | FO27: - | FQ27: - | FR27: 1 | FS27: - | FT27: - | FW27: - | FY27: - | GA27: - | GB27: - | GE27: - | GG27: - | GH27: 2 | GI27: - | GJ27: - | GM27: - | GO27: - | GP27: 2 | GQ27: - | GR27: - | GU27: - | GW27: - | GX27: 2 | GY27: - | GZ27: - | HC27: - | HE27: - | HF27: 1 | HG27: - | HH27: - | HK27: - | HM27: - | HN27: 3 | HO27: - | HP27: - | HS27: - | HU27: - | HV27: 2 | HW27: - | HX27: - | IA27: - | IC27: - | ID27: 2 | IE27: - | IF27: - | II27: - | IK27: - | IL27: 2 | IM27: - | IN27: - | IQ27: - | IS27: - | IU27: - | IV27: - | IW27: - | IX27: - | IY27: - | IZ27: - | JA27: - | JB27: - | JC27: - | JD27: - | JE27: - | JF27: - | JG27: - | JH27: - | JI27: - | JJ27: 2 | JK27: 1 | JL27: 1 | JM27: 0 | JN27: 2 | JO27: 2 | JP27: 2 | JQ27: 1 | JR27: 3 | JS27: 2 | JT27: 2 | JU27: 2 | JV27: 0 | JW27: 20 | JX27: 0 | JY27: 0 | JZ27: 0 | KA27: - | KB27: 0 | KF27: OUI | KG27: Peut mieux faire | KH27: Blâme
G28: 119 | O28: - | Q28: - | R28: 2 | S28: - | T28: - | W28: - | Y28: - | Z28: 1 | AA28: - | AB28: - | AE28: - | AG28: - | AH28: 1 | AI28: - | AJ28: - | AM28: - | AO28: - | AQ28: - | AR28: - | AU28: - | AW28: - | AX28: 2 | AY28: - | AZ28: - | BC28: - | BE28: - | BF28: 2 | BG28: - | BH28: - | BK28: - | BM28: - | BN28: 2 | BO28: - | BP28: - | BS28: - | BU28: - | BV28: 1 | BW28: - | BX28: - | CA28: - | CC28: - | CD28: 3 | CE28: - | CF28: - | CI28: - | CK28: - | CL28: 2 | CM28: - | CN28: - | CQ28: - | CS28: - | CT28: 2 | CU28: - | CV28: - | CY28: - | DA28: - | DB28: 2 | DC28: - | DD28: - | DG28: - | DI28: - | DK28: - | DL28: - | DM28: - | DN28: - | DO28: - | DP28: - | DQ28: - | DR28: - | DS28: - | DT28: - | DU28: - | DV28: - | DW28: - | DX28: - | DY28: - | DZ28: 2 | EA28: 1 | EB28: 1 | EC28: 0 | ED28: 2 | EE28: 2 | EF28: 2 | EG28: 1 | EH28: 3 | EI28: 2 | EJ28: 2 | EK28: 2 | EL28: 0 | EM28: 20 | EN28: 0 | EO28: 0 | EP28: 5 | EQ28: 10 | ES28: OUI | ET28: Très insuffisant. Risque l'exclusion | EU28: Blâme | EY28: - | FA28: - | FB28: 2 | FC28: - | FD28: - | FG28: - | FI28: - | FJ28: 1 | FK28: - | FL28: - | FO28: - | FQ28: - | FR28: 1 | FS28: - | FT28: - | FW28: - | FY28: - | GA28: - | GB28: - | GE28: - | GG28: - | GH28: 2 | GI28: - | GJ28: - | GM28: - | GO28: - | GP28: 2 | GQ28: - | GR28: - | GU28: - | GW28: - | GX28: 2 | GY28: - | GZ28: - | HC28: - | HE28: - | HF28: 1 | HG28: - | HH28: - | HK28: - | HM28: - | HN28: 3 | HO28: - | HP28: - | HS28: - | HU28: - | HV28: 2 | HW28: - | HX28: - | IA28: - | IC28: - | ID28: 2 | IE28: - | IF28: - | II28: - | IK28: - | IL28: 2 | IM28: - | IN28: - | IQ28: - | IS28: - | IU28: - | IV28: - | IW28: - | IX28: - | IY28: - | IZ28: - | JA28: - | JB28: - | JC28: - | JD28: - | JE28: - | JF28: - | JG28: - | JH28: - | JI28: - | JJ28: 2 | JK28: 1 | JL28: 1 | JM28: 0 | JN28: 2 | JO28: 2 | JP28: 2 | JQ28: 1 | JR28: 3 | JS28: 2 | JT28: 2 | JU28: 2 | JV28: 0 | JW28: 20 | JX28: 0 | JY28: 0 | JZ28: 0 | KA28: - | KB28: 0 | KF28: OUI | KG28: Peut mieux faire | KH28: Blâme
G29: 119 | O29: - | Q29: - | R29: 2 | S29: - | T29: - | W29: - | Y29: - | Z29: 1 | AA29: - | AB29: - | AE29: - | AG29: - | AH29: 1 | AI29: - | AJ29: - | AM29: - | AO29: - | AQ29: - | AR29: - | AU29: - | AW29: - | AX29: 2 | AY29: - | AZ29: - | BC29: - | BE29: - | BF29: 2 | BG29: - | BH29: - | BK29: - | BM29: - | BN29: 2 | BO29: - | BP29: - | BS29: - | BU29: - | BV29: 1 | BW29: - | BX29: - | CA29: - | CC29: - | CD29: 3 | CE29: - | CF29: - | CI29: - | CK29: - | CL29: 2 | CM29: - | CN29: - | CQ29: - | CS29: - | CT29: 2 | CU29: - | CV29: - | CY29: - | DA29: - | DB29: 2 | DC29: - | DD29: - | DG29: - | DI29: - | DK29: - | DL29: - | DM29: - | DN29: - | DO29: - | DP29: - | DQ29: - | DR29: - | DS29: - | DT29: - | DU29: - | DV29: - | DW29: - | DX29: - | DY29: - | DZ29: 2 | EA29: 1 | EB29: 1 | EC29: 0 | ED29: 2 | EE29: 2 | EF29: 2 | EG29: 1 | EH29: 3 | EI29: 2 | EJ29: 2 | EK29: 2 | EL29: 0 | EM29: 20 | EN29: 0 | EO29: 0 | EP29: 5 | EQ29: 10 | ES29: OUI | ET29: Très insuffisant. Risque l'exclusion | EU29: Blâme | EY29: - | FA29: - | FB29: 2 | FC29: - | FD29: - | FG29: - | FI29: - | FJ29: 1 | FK29: - | FL29: - | FO29: - | FQ29: - | FR29: 1 | FS29: - | FT29: - | FW29: - | FY29: - | GA29: - | GB29: - | GE29: - | GG29: - | GH29: 2 | GI29: - | GJ29: - | GM29: - | GO29: - | GP29: 2 | GQ29: - | GR29: - | GU29: - | GW29: - | GX29: 2 | GY29: - | GZ29: - | HC29: - | HE29: - | HF29: 1 | HG29: - | HH29: - | HK29: - | HM29: - | HN29: 3 | HO29: - | HP29: - | HS29: - | HU29: - | HV29: 2 | HW29: - | HX29: - | IA29: - | IC29: - | ID29: 2 | IE29: - | IF29: - | II29: - | IK29: - | IL29: 2 | IM29: - | IN29: - | IQ29: - | IS29: - | IU29: - | IV29: - | IW29: - | IX29: - | IY29: - | IZ29: - | JA29: - | JB29: - | JC29: - | JD29: - | JE29: - | JF29: - | JG29: - | JH29: - | JI29: - | JJ29: 2 | JK29: 1 | JL29: 1 | JM29: 0 | JN29: 2 | JO29: 2 | JP29: 2 | JQ29: 1 | JR29: 3 | JS29: 2 | JT29: 2 | JU29: 2 | JV29: 0 | JW29: 20 | JX29: 0 | JY29: 0 | JZ29: 0 | KA29: - | KB29: 0 | KF29: OUI | KG29: Peut mieux faire | KH29: Blâme
G30: 119 | O30: - | Q30: - | R30: 2 | S30: - | T30: - | W30: - | Y30: - | Z30: 1 | AA30: - | AB30: - | AE30: - | AG30: - | AH30: 1 | AI30: - | AJ30: - | AM30: - | AO30: - | AQ30: - | AR30: - | AU30: - | AW30: - | AX30: 2 | AY30: - | AZ30: - | BC30: - | BE30: - | BF30: 2 | BG30: - | BH30: - | BK30: - | BM30: - | BN30: 2 | BO30: - | BP30: - | BS30: - | BU30: - | BV30: 1 | BW30: - | BX30: - | CA30: - | CC30: - | CD30: 3 | CE30: - | CF30: - | CI30: - | CK30: - | CL30: 2 | CM30: - | CN30: - | CQ30: - | CS30: - | CT30: 2 | CU30: - | CV30: - | CY30: - | DA30: - | DB30: 2 | DC30: - | DD30: - | DG30: - | DI30: - | DK30: - | DL30: - | DM30: - | DN30: - | DO30: - | DP30: - | DQ30: - | DR30: - | DS30: - | DT30: - | DU30: - | DV30: - | DW30: - | DX30: - | DY30: - | DZ30: 2 | EA30: 1 | EB30: 1 | EC30: 0 | ED30: 2 | EE30: 2 | EF30: 2 | EG30: 1 | EH30: 3 | EI30: 2 | EJ30: 2 | EK30: 2 | EL30: 0 | EM30: 20 | EN30: 0 | EO30: 0 | EP30: 5 | EQ30: 10 | ES30: OUI | ET30: Très insuffisant. Risque l'exclusion | EU30: Blâme | EY30: - | FA30: - | FB30: 2 | FC30: - | FD30: - | FG30: - | FI30: - | FJ30: 1 | FK30: - | FL30: - | FO30: - | FQ30: - | FR30: 1 | FS30: - | FT30: - | FW30: - | FY30: - | GA30: - | GB30: - | GE30: - | GG30: - | GH30: 2 | GI30: - | GJ30: - | GM30: - | GO30: - | GP30: 2 | GQ30: - | GR30: - | GU30: - | GW30: - | GX30: 2 | GY30: - | GZ30: - | HC30: - | HE30: - | HF30: 1 | HG30: - | HH30: - | HK30: - | HM30: - | HN30: 3 | HO30: - | HP30: - | HS30: - | HU30: - | HV30: 2 | HW30: - | HX30: - | IA30: - | IC30: - | ID30: 2 | IE30: - | IF30: - | II30: - | IK30: - | IL30: 2 | IM30: - | IN30: - | IQ30: - | IS30: - | IU30: - | IV30: - | IW30: - | IX30: - | IY30: - | IZ30: - | JA30: - | JB30: - | JC30: - | JD30: - | JE30: - | JF30: - | JG30: - | JH30: - | JI30: - | JJ30: 2 | JK30: 1 | JL30: 1 | JM30: 0 | JN30: 2 | JO30: 2 | JP30: 2 | JQ30: 1 | JR30: 3 | JS30: 2 | JT30: 2 | JU30: 2 | JV30: 0 | JW30: 20 | JX30: 0 | JY30: 0 | JZ30: 0 | KA30: - | KB30: 0 | KF30: OUI | KG30: Peut mieux faire | KH30: Blâme
G31: 119 | O31: - | Q31: - | R31: 2 | S31: - | T31: - | W31: - | Y31: - | Z31: 1 | AA31: - | AB31: - | AE31: - | AG31: - | AH31: 1 | AI31: - | AJ31: - | AM31: - | AO31: - | AQ31: - | AR31: - | AU31: - | AW31: - | AX31: 2 | AY31: - | AZ31: - | BC31: - | BE31: - | BF31: 2 | BG31: - | BH31: - | BK31: - | BM31: - | BN31: 2 | BO31: - | BP31: - | BS31: - | BU31: - | BV31: 1 | BW31: - | BX31: - | CA31: - | CC31: - | CD31: 3 | CE31: - | CF31: - | CI31: - | CK31: - | CL31: 2 | CM31: - | CN31: - | CQ31: - | CS31: - | CT31: 2 | CU31: - | CV31: - | CY31: - | DA31: - | DB31: 2 | DC31: - | DD31: - | DG31: - | DI31: - | DK31: - | DL31: - | DM31: - | DN31: - | DO31: - | DP31: - | DQ31: - | DR31: - | DS31: - | DT31: - | DU31: - | DV31: - | DW31: - | DX31: - | DY31: - | DZ31: 2 | EA31: 1 | EB31: 1 | EC31: 0 | ED31: 2 | EE31: 2 | EF31: 2 | EG31: 1 | EH31: 3 | EI31: 2 | EJ31: 2 | EK31: 2 | EL31: 0 | EM31: 20 | EN31: 0 | EO31: 0 | EP31: 5 | EQ31: 10 | ES31: OUI | ET31: Très insuffisant. Risque l'exclusion | EU31: Blâme | EY31: - | FA31: - | FB31: 2 | FC31: - | FD31: - | FG31: - | FI31: - | FJ31: 1 | FK31: - | FL31: - | FO31: - | FQ31: - | FR31: 1 | FS31: - | FT31: - | FW31: - | FY31: - | GA31: - | GB31: - | GE31: - | GG31: - | GH31: 2 | GI31: - | GJ31: - | GM31: - | GO31: - | GP31: 2 | GQ31: - | GR31: - | GU31: - | GW31: - | GX31: 2 | GY31: - | GZ31: - | HC31: - | HE31: - | HF31: 1 | HG31: - | HH31: - | HK31: - | HM31: - | HN31: 3 | HO31: - | HP31: - | HS31: - | HU31: - | HV31: 2 | HW31: - | HX31: - | IA31: - | IC31: - | ID31: 2 | IE31: - | IF31: - | II31: - | IK31: - | IL31: 2 | IM31: - | IN31: - | IQ31: - | IS31: - | IU31: - | IV31: - | IW31: - | IX31: - | IY31: - | IZ31: - | JA31: - | JB31: - | JC31: - | JD31: - | JE31: - | JF31: - | JG31: - | JH31: - | JI31: - | JJ31: 2 | JK31: 1 | JL31: 1 | JM31: 0 | JN31: 2 | JO31: 2 | JP31: 2 | JQ31: 1 | JR31: 3 | JS31: 2 | JT31: 2 | JU31: 2 | JV31: 0 | JW31: 20 | JX31: 0 | JY31: 0 | JZ31: 0 | KA31: - | KB31: 0 | KF31: OUI | KG31: Peut mieux faire | KH31: Blâme
G32: 119 | O32: - | Q32: - | R32: 2 | S32: - | T32: - | W32: - | Y32: - | Z32: 1 | AA32: - | AB32: - | AE32: - | AG32: - | AH32: 1 | AI32: - | AJ32: - | AM32: - | AO32: - | AQ32: - | AR32: - | AU32: - | AW32: - | AX32: 2 | AY32: - | AZ32: - | BC32: - | BE32: - | BF32: 2 | BG32: - | BH32: - | BK32: - | BM32: - | BN32: 2 | BO32: - | BP32: - | BS32: - | BU32: - | BV32: 1 | BW32: - | BX32: - | CA32: - | CC32: - | CD32: 3 | CE32: - | CF32: - | CI32: - | CK32: - | CL32: 2 | CM32: - | CN32: - | CQ32: - | CS32: - | CT32: 2 | CU32: - | CV32: - | CY32: - | DA32: - | DB32: 2 | DC32: - | DD32: - | DG32: - | DI32: - | DK32: - | DL32: - | DM32: - | DN32: - | DO32: - | DP32: - | DQ32: - | DR32: - | DS32: - | DT32: - | DU32: - | DV32: - | DW32: - | DX32: - | DY32: - | DZ32: 2 | EA32: 1 | EB32: 1 | EC32: 0 | ED32: 2 | EE32: 2 | EF32: 2 | EG32: 1 | EH32: 3 | EI32: 2 | EJ32: 2 | EK32: 2 | EL32: 0 | EM32: 20 | EN32: 0 | EO32: 0 | EP32: 5 | EQ32: 10 | ES32: OUI | ET32: Très insuffisant. Risque l'exclusion | EU32: Blâme | EY32: - | FA32: - | FB32: 2 | FC32: - | FD32: - | FG32: - | FI32: - | FJ32: 1 | FK32: - | FL32: - | FO32: - | FQ32: - | FR32: 1 | FS32: - | FT32: - | FW32: - | FY32: - | GA32: - | GB32: - | GE32: - | GG32: - | GH32: 2 | GI32: - | GJ32: - | GM32: - | GO32: - | GP32: 2 | GQ32: - | GR32: - | GU32: - | GW32: - | GX32: 2 | GY32: - | GZ32: - | HC32: - | HE32: - | HF32: 1 | HG32: - | HH32: - | HK32: - | HM32: - | HN32: 3 | HO32: - | HP32: - | HS32: - | HU32: - | HV32: 2 | HW32: - | HX32: - | IA32: - | IC32: - | ID32: 2 | IE32: - | IF32: - | II32: - | IK32: - | IL32: 2 | IM32: - | IN32: - | IQ32: - | IS32: - | IU32: - | IV32: - | IW32: - | IX32: - | IY32: - | IZ32: - | JA32: - | JB32: - | JC32: - | JD32: - | JE32: - | JF32: - | JG32: - | JH32: - | JI32: - | JJ32: 2 | JK32: 1 | JL32: 1 | JM32: 0 | JN32: 2 | JO32: 2 | JP32: 2 | JQ32: 1 | JR32: 3 | JS32: 2 | JT32: 2 | JU32: 2 | JV32: 0 | JW32: 20 | JX32: 0 | JY32: 0 | JZ32: 0 | KA32: - | KB32: 0 | KF32: OUI | KG32: Peut mieux faire | KH32: Blâme
G33: 119 | O33: - | Q33: - | R33: 2 | S33: - | T33: - | W33: - | Y33: - | Z33: 1 | AA33: - | AB33: - | AE33: - | AG33: - | AH33: 1 | AI33: - | AJ33: - | AM33: - | AO33: - | AQ33: - | AR33: - | AU33: - | AW33: - | AX33: 2 | AY33: - | AZ33: - | BC33: - | BE33: - | BF33: 2 | BG33: - | BH33: - | BK33: - | BM33: - | BN33: 2 | BO33: - | BP33: - | BS33: - | BU33: - | BV33: 1 | BW33: - | BX33: - | CA33: - | CC33: - | CD33: 3 | CE33: - | CF33: - | CI33: - | CK33: - | CL33: 2 | CM33: - | CN33: - | CQ33: - | CS33: - | CT33: 2 | CU33: - | CV33: - | CY33: - | DA33: - | DB33: 2 | DC33: - | DD33: - | DG33: - | DI33: - | DK33: - | DL33: - | DM33: - | DN33: - | DO33: - | DP33: - | DQ33: - | DR33: - | DS33: - | DT33: - | DU33: - | DV33: - | DW33: - | DX33: - | DY33: - | DZ33: 2 | EA33: 1 | EB33: 1 | EC33: 0 | ED33: 2 | EE33: 2 | EF33: 2 | EG33: 1 | EH33: 3 | EI33: 2 | EJ33: 2 | EK33: 2 | EL33: 0 | EM33: 20 | EN33: 0 | EO33: 0 | EP33: 5 | EQ33: 10 | ES33: OUI | ET33: Très insuffisant. Risque l'exclusion | EU33: Blâme | EY33: - | FA33: - | FB33: 2 | FC33: - | FD33: - | FG33: - | FI33: - | FJ33: 1 | FK33: - | FL33: - | FO33: - | FQ33: - | FR33: 1 | FS33: - | FT33: - | FW33: - | FY33: - | GA33: - | GB33: - | GE33: - | GG33: - | GH33: 2 | GI33: - | GJ33: - | GM33: - | GO33: - | GP33: 2 | GQ33: - | GR33: - | GU33: - | GW33: - | GX33: 2 | GY33: - | GZ33: - | HC33: - | HE33: - | HF33: 1 | HG33: - | HH33: - | HK33: - | HM33: - | HN33: 3 | HO33: - | HP33: - | HS33: - | HU33: - | HV33: 2 | HW33: - | HX33: - | IA33: - | IC33: - | ID33: 2 | IE33: - | IF33: - | II33: - | IK33: - | IL33: 2 | IM33: - | IN33: - | IQ33: - | IS33: - | IU33: - | IV33: - | IW33: - | IX33: - | IY33: - | IZ33: - | JA33: - | JB33: - | JC33: - | JD33: - | JE33: - | JF33: - | JG33: - | JH33: - | JI33: - | JJ33: 2 | JK33: 1 | JL33: 1 | JM33: 0 | JN33: 2 | JO33: 2 | JP33: 2 | JQ33: 1 | JR33: 3 | JS33: 2 | JT33: 2 | JU33: 2 | JV33: 0 | JW33: 20 | JX33: 0 | JY33: 0 | JZ33: 0 | KA33: - | KB33: 0 | KF33: OUI | KG33: Peut mieux faire | KH33: Blâme
G34: 119 | O34: - | Q34: - | R34: 2 | S34: - | T34: - | W34: - | Y34: - | Z34: 1 | AA34: - | AB34: - | AE34: - | AG34: - | AH34: 1 | AI34: - | AJ34: - | AM34: - | AO34: - | AQ34: - | AR34: - | AU34: - | AW34: - | AX34: 2 | AY34: - | AZ34: - | BC34: - | BE34: - | BF34: 2 | BG34: - | BH34: - | BK34: - | BM34: - | BN34: 2 | BO34: - | BP34: - | BS34: - | BU34: - | BV34: 1 | BW34: - | BX34: - | CA34: - | CC34: - | CD34: 3 | CE34: - | CF34: - | CI34: - | CK34: - | CL34: 2 | CM34: - | CN34: - | CQ34: - | CS34: - | CT34: 2 | CU34: - | CV34: - | CY34: - | DA34: - | DB34: 2 | DC34: - | DD34: - | DG34: - | DI34: - | DK34: - | DL34: - | DM34: - | DN34: - | DO34: - | DP34: - | DQ34: - | DR34: - | DS34: - | DT34: - | DU34: - | DV34: - | DW34: - | DX34: - | DY34: - | DZ34: 2 | EA34: 1 | EB34: 1 | EC34: 0 | ED34: 2 | EE34: 2 | EF34: 2 | EG34: 1 | EH34: 3 | EI34: 2 | EJ34: 2 | EK34: 2 | EL34: 0 | EM34: 20 | EN34: 0 | EO34: 0 | EP34: 5 | EQ34: 10 | ES34: OUI | ET34: Très insuffisant. Risque l'exclusion | EU34: Blâme | EY34: - | FA34: - | FB34: 2 | FC34: - | FD34: - | FG34: - | FI34: - | FJ34: 1 | FK34: - | FL34: - | FO34: - | FQ34: - | FR34: 1 | FS34: - | FT34: - | FW34: - | FY34: - | GA34: - | GB34: - | GE34: - | GG34: - | GH34: 2 | GI34: - | GJ34: - | GM34: - | GO34: - | GP34: 2 | GQ34: - | GR34: - | GU34: - | GW34: - | GX34: 2 | GY34: - | GZ34: - | HC34: - | HE34: - | HF34: 1 | HG34: - | HH34: - | HK34: - | HM34: - | HN34: 3 | HO34: - | HP34: - | HS34: - | HU34: - | HV34: 2 | HW34: - | HX34: - | IA34: - | IC34: - | ID34: 2 | IE34: - | IF34: - | II34: - | IK34: - | IL34: 2 | IM34: - | IN34: - | IQ34: - | IS34: - | IU34: - | IV34: - | IW34: - | IX34: - | IY34: - | IZ34: - | JA34: - | JB34: - | JC34: - | JD34: - | JE34: - | JF34: - | JG34: - | JH34: - | JI34: - | JJ34: 2 | JK34: 1 | JL34: 1 | JM34: 0 | JN34: 2 | JO34: 2 | JP34: 2 | JQ34: 1 | JR34: 3 | JS34: 2 | JT34: 2 | JU34: 2 | JV34: 0 | JW34: 20 | JX34: 0 | JY34: 0 | JZ34: 0 | KA34: - | KB34: 0 | KF34: OUI | KG34: Peut mieux faire | KH34: Blâme
G35: 119 | O35: - | Q35: - | R35: 2 | S35: - | T35: - | W35: - | Y35: - | Z35: 1 | AA35: - | AB35: - | AE35: - | AG35: - | AH35: 1 | AI35: - | AJ35: - | AM35: - | AO35: - | AQ35: - | AR35: - | AU35: - | AW35: - | AX35: 2 | AY35: - | AZ35: - | BC35: - | BE35: - | BF35: 2 | BG35: - | BH35: - | BK35: - | BM35: - | BN35: 2 | BO35: - | BP35: - | BS35: - | BU35: - | BV35: 1 | BW35: - | BX35: - | CA35: - | CC35: - | CD35: 3 | CE35: - | CF35: - | CI35: - | CK35: - | CL35: 2 | CM35: - | CN35: - | CQ35: - | CS35: - | CT35: 2 | CU35: - | CV35: - | CY35: - | DA35: - | DB35: 2 | DC35: - | DD35: - | DG35: - | DI35: - | DK35: - | DL35: - | DM35: - | DN35: - | DO35: - | DP35: - | DQ35: - | DR35: - | DS35: - | DT35: - | DU35: - | DV35: - | DW35: - | DX35: - | DY35: - | DZ35: 2 | EA35: 1 | EB35: 1 | EC35: 0 | ED35: 2 | EE35: 2 | EF35: 2 | EG35: 1 | EH35: 3 | EI35: 2 | EJ35: 2 | EK35: 2 | EL35: 0 | EM35: 20 | EN35: 0 | EO35: 0 | EP35: 5 | EQ35: 10 | ES35: OUI | ET35: Très insuffisant. Risque l'exclusion | EU35: Blâme | EY35: - | FA35: - | FB35: 2 | FC35: - | FD35: - | FG35: - | FI35: - | FJ35: 1 | FK35: - | FL35: - | FO35: - | FQ35: - | FR35: 1 | FS35: - | FT35: - | FW35: - | FY35: - | GA35: - | GB35: - | GE35: - | GG35: - | GH35: 2 | GI35: - | GJ35: - | GM35: - | GO35: - | GP35: 2 | GQ35: - | GR35: - | GU35: - | GW35: - | GX35: 2 | GY35: - | GZ35: - | HC35: - | HE35: - | HF35: 1 | HG35: - | HH35: - | HK35: - | HM35: - | HN35: 3 | HO35: - | HP35: - | HS35: - | HU35: - | HV35: 2 | HW35: - | HX35: - | IA35: - | IC35: - | ID35: 2 | IE35: - | IF35: - | II35: - | IK35: - | IL35: 2 | IM35: - | IN35: - | IQ35: - | IS35: - | IU35: - | IV35: - | IW35: - | IX35: - | IY35: - | IZ35: - | JA35: - | JB35: - | JC35: - | JD35: - | JE35: - | JF35: - | JG35: - | JH35: - | JI35: - | JJ35: 2 | JK35: 1 | JL35: 1 | JM35: 0 | JN35: 2 | JO35: 2 | JP35: 2 | JQ35: 1 | JR35: 3 | JS35: 2 | JT35: 2 | JU35: 2 | JV35: 0 | JW35: 20 | JX35: 0 | JY35: 0 | JZ35: 0 | KA35: - | KB35: 0 | KF35: OUI | KG35: Peut mieux faire | KH35: Blâme
G36: 119 | O36: - | Q36: - | R36: 2 | S36: - | T36: - | W36: - | Y36: - | Z36: 1 | AA36: - | AB36: - | AE36: - | AG36: - | AH36: 1 | AI36: - | AJ36: - | AM36: - | AO36: - | AQ36: - | AR36: - | AU36: - | AW36: - | AX36: 2 | AY36: - | AZ36: - | BC36: - | BE36: - | BF36: 2 | BG36: - | BH36: - | BK36: - | BM36: - | BN36: 2 | BO36: - | BP36: - | BS36: - | BU36: - | BV36: 1 | BW36: - | BX36: - | CA36: - | CC36: - | CD36: 3 | CE36: - | CF36: - | CI36: - | CK36: - | CL36: 2 | CM36: - | CN36: - | CQ36: - | CS36: - | CT36: 2 | CU36: - | CV36: - | CY36: - | DA36: - | DB36: 2 | DC36: - | DD36: - | DG36: - | DI36: - | DK36: - | DL36: - | DM36: - | DN36: - | DO36: - | DP36: - | DQ36: - | DR36: - | DS36: - | DT36: - | DU36: - | DV36: - | DW36: - | DX36: - | DY36: - | DZ36: 2 | EA36: 1 | EB36: 1 | EC36: 0 | ED36: 2 | EE36: 2 | EF36: 2 | EG36: 1 | EH36: 3 | EI36: 2 | EJ36: 2 | EK36: 2 | EL36: 0 | EM36: 20 | EN36: 0 | EO36: 0 | EP36: 5 | EQ36: 10 | ES36: OUI | ET36: Très insuffisant. Risque l'exclusion | EU36: Blâme | EY36: - | FA36: - | FB36: 2 | FC36: - | FD36: - | FG36: - | FI36: - | FJ36: 1 | FK36: - | FL36: - | FO36: - | FQ36: - | FR36: 1 | FS36: - | FT36: - | FW36: - | FY36: - | GA36: - | GB36: - | GE36: - | GG36: - | GH36: 2 | GI36: - | GJ36: - | GM36: - | GO36: - | GP36: 2 | GQ36: - | GR36: - | GU36: - | GW36: - | GX36: 2 | GY36: - | GZ36: - | HC36: - | HE36: - | HF36: 1 | HG36: - | HH36: - | HK36: - | HM36: - | HN36: 3 | HO36: - | HP36: - | HS36: - | HU36: - | HV36: 2 | HW36: - | HX36: - | IA36: - | IC36: - | ID36: 2 | IE36: - | IF36: - | II36: - | IK36: - | IL36: 2 | IM36: - | IN36: - | IQ36: - | IS36: - | IU36: - | IV36: - | IW36: - | IX36: - | IY36: - | IZ36: - | JA36: - | JB36: - | JC36: - | JD36: - | JE36: - | JF36: - | JG36: - | JH36: - | JI36: - | JJ36: 2 | JK36: 1 | JL36: 1 | JM36: 0 | JN36: 2 | JO36: 2 | JP36: 2 | JQ36: 1 | JR36: 3 | JS36: 2 | JT36: 2 | JU36: 2 | JV36: 0 | JW36: 20 | JX36: 0 | JY36: 0 | JZ36: 0 | KA36: - | KB36: 0 | KF36: OUI | KG36: Peut mieux faire | KH36: Blâme
G37: 119 | O37: - | Q37: - | R37: 2 | S37: - | T37: - | W37: - | Y37: - | Z37: 1 | AA37: - | AB37: - | AE37: - | AG37: - | AH37: 1 | AI37: - | AJ37: - | AM37: - | AO37: - | AQ37: - | AR37: - | AU37: - | AW37: - | AX37: 2 | AY37: - | AZ37: - | BC37: - | BE37: - | BF37: 2 | BG37: - | BH37: - | BK37: - | BM37: - | BN37: 2 | BO37: - | BP37: - | BS37: - | BU37: - | BV37: 1 | BW37: - | BX37: - | CA37: - | CC37: - | CD37: 3 | CE37: - | CF37: - | CI37: - | CK37: - | CL37: 2 | CM37: - | CN37: - | CQ37: - | CS37: - | CT37: 2 | CU37: - | CV37: - | CY37: - | DA37: - | DB37: 2 | DC37: - | DD37: - | DG37: - | DI37: - | DK37: - | DL37: - | DM37: - | DN37: - | DO37: - | DP37: - | DQ37: - | DR37: - | DS37: - | DT37: - | DU37: - | DV37: - | DW37: - | DX37: - | DY37: - | DZ37: 2 | EA37: 1 | EB37: 1 | EC37: 0 | ED37: 2 | EE37: 2 | EF37: 2 | EG37: 1 | EH37: 3 | EI37: 2 | EJ37: 2 | EK37: 2 | EL37: 0 | EM37: 20 | EN37: 0 | EO37: 0 | EP37: 5 | EQ37: 10 | ES37: OUI | ET37: Très insuffisant. Risque l'exclusion | EU37: Blâme | EY37: - | FA37: - | FB37: 2 | FC37: - | FD37: - | FG37: - | FI37: - | FJ37: 1 | FK37: - | FL37: - | FO37: - | FQ37: - | FR37: 1 | FS37: - | FT37: - | FW37: - | FY37: - | GA37: - | GB37: - | GE37: - | GG37: - | GH37: 2 | GI37: - | GJ37: - | GM37: - | GO37: - | GP37: 2 | GQ37: - | GR37: - | GU37: - | GW37: - | GX37: 2 | GY37: - | GZ37: - | HC37: - | HE37: - | HF37: 1 | HG37: - | HH37: - | HK37: - | HM37: - | HN37: 3 | HO37: - | HP37: - | HS37: - | HU37: - | HV37: 2 | HW37: - | HX37: - | IA37: - | IC37: - | ID37: 2 | IE37: - | IF37: - | II37: - | IK37: - | IL37: 2 | IM37: - | IN37: - | IQ37: - | IS37: - | IU37: - | IV37: - | IW37: - | IX37: - | IY37: - | IZ37: - | JA37: - | JB37: - | JC37: - | JD37: - | JE37: - | JF37: - | JG37: - | JH37: - | JI37: - | JJ37: 2 | JK37: 1 | JL37: 1 | JM37: 0 | JN37: 2 | JO37: 2 | JP37: 2 | JQ37: 1 | JR37: 3 | JS37: 2 | JT37: 2 | JU37: 2 | JV37: 0 | JW37: 20 | JX37: 0 | JY37: 0 | JZ37: 0 | KA37: - | KB37: 0 | KF37: OUI | KG37: Peut mieux faire | KH37: Blâme
G38: 119 | O38: - | Q38: - | R38: 2 | S38: - | T38: - | W38: - | Y38: - | Z38: 1 | AA38: - | AB38: - | AE38: - | AG38: - | AH38: 1 | AI38: - | AJ38: - | AM38: - | AO38: - | AQ38: - | AR38: - | AU38: - | AW38: - | AX38: 2 | AY38: - | AZ38: - | BC38: - | BE38: - | BF38: 2 | BG38: - | BH38: - | BK38: - | BM38: - | BN38: 2 | BO38: - | BP38: - | BS38: - | BU38: - | BV38: 1 | BW38: - | BX38: - | CA38: - | CC38: - | CD38: 3 | CE38: - | CF38: - | CI38: - | CK38: - | CL38: 2 | CM38: - | CN38: - | CQ38: - | CS38: - | CT38: 2 | CU38: - | CV38: - | CY38: - | DA38: - | DB38: 2 | DC38: - | DD38: - | DG38: - | DI38: - | DK38: - | DL38: - | DM38: - | DN38: - | DO38: - | DP38: - | DQ38: - | DR38: - | DS38: - | DT38: - | DU38: - | DV38: - | DW38: - | DX38: - | DY38: - | DZ38: 2 | EA38: 1 | EB38: 1 | EC38: 0 | ED38: 2 | EE38: 2 | EF38: 2 | EG38: 1 | EH38: 3 | EI38: 2 | EJ38: 2 | EK38: 2 | EL38: 0 | EM38: 20 | EN38: 0 | EO38: 0 | EP38: 5 | EQ38: 10 | ES38: OUI | ET38: Très insuffisant. Risque l'exclusion | EU38: Blâme | EY38: - | FA38: - | FB38: 2 | FC38: - | FD38: - | FG38: - | FI38: - | FJ38: 1 | FK38: - | FL38: - | FO38: - | FQ38: - | FR38: 1 | FS38: - | FT38: - | FW38: - | FY38: - | GA38: - | GB38: - | GE38: - | GG38: - | GH38: 2 | GI38: - | GJ38: - | GM38: - | GO38: - | GP38: 2 | GQ38: - | GR38: - | GU38: - | GW38: - | GX38: 2 | GY38: - | GZ38: - | HC38: - | HE38: - | HF38: 1 | HG38: - | HH38: - | HK38: - | HM38: - | HN38: 3 | HO38: - | HP38: - | HS38: - | HU38: - | HV38: 2 | HW38: - | HX38: - | IA38: - | IC38: - | ID38: 2 | IE38: - | IF38: - | II38: - | IK38: - | IL38: 2 | IM38: - | IN38: - | IQ38: - | IS38: - | IU38: - | IV38: - | IW38: - | IX38: - | IY38: - | IZ38: - | JA38: - | JB38: - | JC38: - | JD38: - | JE38: - | JF38: - | JG38: - | JH38: - | JI38: - | JJ38: 2 | JK38: 1 | JL38: 1 | JM38: 0 | JN38: 2 | JO38: 2 | JP38: 2 | JQ38: 1 | JR38: 3 | JS38: 2 | JT38: 2 | JU38: 2 | JV38: 0 | JW38: 20 | JX38: 0 | JY38: 0 | JZ38: 0 | KA38: - | KB38: 0 | KF38: OUI | KG38: Peut mieux faire | KH38: Blâme
G39: 119 | O39: - | Q39: - | R39: 2 | S39: - | T39: - | W39: - | Y39: - | Z39: 1 | AA39: - | AB39: - | AE39: - | AG39: - | AH39: 1 | AI39: - | AJ39: - | AM39: - | AO39: - | AQ39: - | AR39: - | AU39: - | AW39: - | AX39: 2 | AY39: - | AZ39: - | BC39: - | BE39: - | BF39: 2 | BG39: - | BH39: - | BK39: - | BM39: - | BN39: 2 | BO39: - | BP39: - | BS39: - | BU39: - | BV39: 1 | BW39: - | BX39: - | CA39: - | CC39: - | CD39: 3 | CE39: - | CF39: - | CI39: - | CK39: - | CL39: 2 | CM39: - | CN39: - | CQ39: - | CS39: - | CT39: 2 | CU39: - | CV39: - | CY39: - | DA39: - | DB39: 2 | DC39: - | DD39: - | DG39: - | DI39: - | DK39: - | DL39: - | DM39: - | DN39: - | DO39: - | DP39: - | DQ39: - | DR39: - | DS39: - | DT39: - | DU39: - | DV39: - | DW39: - | DX39: - | DY39: - | DZ39: 2 | EA39: 1 | EB39: 1 | EC39: 0 | ED39: 2 | EE39: 2 | EF39: 2 | EG39: 1 | EH39: 3 | EI39: 2 | EJ39: 2 | EK39: 2 | EL39: 0 | EM39: 20 | EN39: 0 | EO39: 0 | EP39: 5 | EQ39: 10 | ES39: OUI | ET39: Très insuffisant. Risque l'exclusion | EU39: Blâme | EY39: - | FA39: - | FB39: 2 | FC39: - | FD39: - | FG39: - | FI39: - | FJ39: 1 | FK39: - | FL39: - | FO39: - | FQ39: - | FR39: 1 | FS39: - | FT39: - | FW39: - | FY39: - | GA39: - | GB39: - | GE39: - | GG39: - | GH39: 2 | GI39: - | GJ39: - | GM39: - | GO39: - | GP39: 2 | GQ39: - | GR39: - | GU39: - | GW39: - | GX39: 2 | GY39: - | GZ39: - | HC39: - | HE39: - | HF39: 1 | HG39: - | HH39: - | HK39: - | HM39: - | HN39: 3 | HO39: - | HP39: - | HS39: - | HU39: - | HV39: 2 | HW39: - | HX39: - | IA39: - | IC39: - | ID39: 2 | IE39: - | IF39: - | II39: - | IK39: - | IL39: 2 | IM39: - | IN39: - | IQ39: - | IS39: - | IU39: - | IV39: - | IW39: - | IX39: - | IY39: - | IZ39: - | JA39: - | JB39: - | JC39: - | JD39: - | JE39: - | JF39: - | JG39: - | JH39: - | JI39: - | JJ39: 2 | JK39: 1 | JL39: 1 | JM39: 0 | JN39: 2 | JO39: 2 | JP39: 2 | JQ39: 1 | JR39: 3 | JS39: 2 | JT39: 2 | JU39: 2 | JV39: 0 | JW39: 20 | JX39: 0 | JY39: 0 | JZ39: 0 | KA39: - | KB39: 0 | KF39: OUI | KG39: Peut mieux faire | KH39: Blâme
G40: 119 | O40: - | Q40: - | R40: 2 | S40: - | T40: - | W40: - | Y40: - | Z40: 1 | AA40: - | AB40: - | AE40: - | AG40: - | AH40: 1 | AI40: - | AJ40: - | AM40: - | AO40: - | AQ40: - | AR40: - | AU40: - | AW40: - | AX40: 2 | AY40: - | AZ40: - | BC40: - | BE40: - | BF40: 2 | BG40: - | BH40: - | BK40: - | BM40: - | BN40: 2 | BO40: - | BP40: - | BS40: - | BU40: - | BV40: 1 | BW40: - | BX40: - | CA40: - | CC40: - | CD40: 3 | CE40: - | CF40: - | CI40: - | CK40: - | CL40: 2 | CM40: - | CN40: - | CQ40: - | CS40: - | CT40: 2 | CU40: - | CV40: - | CY40: - | DA40: - | DB40: 2 | DC40: - | DD40: - | DG40: - | DI40: - | DK40: - | DL40: - | DM40: - | DN40: - | DO40: - | DP40: - | DQ40: - | DR40: - | DS40: - | DT40: - | DU40: - | DV40: - | DW40: - | DX40: - | DY40: - | DZ40: 2 | EA40: 1 | EB40: 1 | EC40: 0 | ED40: 2 | EE40: 2 | EF40: 2 | EG40: 1 | EH40: 3 | EI40: 2 | EJ40: 2 | EK40: 2 | EL40: 0 | EM40: 20 | EN40: 0 | EO40: 0 | EP40: 5 | EQ40: 10 | ES40: OUI | ET40: Très insuffisant. Risque l'exclusion | EU40: Blâme | EY40: - | FA40: - | FB40: 2 | FC40: - | FD40: - | FG40: - | FI40: - | FJ40: 1 | FK40: - | FL40: - | FO40: - | FQ40: - | FR40: 1 | FS40: - | FT40: - | FW40: - | FY40: - | GA40: - | GB40: - | GE40: - | GG40: - | GH40: 2 | GI40: - | GJ40: - | GM40: - | GO40: - | GP40: 2 | GQ40: - | GR40: - | GU40: - | GW40: - | GX40: 2 | GY40: - | GZ40: - | HC40: - | HE40: - | HF40: 1 | HG40: - | HH40: - | HK40: - | HM40: - | HN40: 3 | HO40: - | HP40: - | HS40: - | HU40: - | HV40: 2 | HW40: - | HX40: - | IA40: - | IC40: - | ID40: 2 | IE40: - | IF40: - | II40: - | IK40: - | IL40: 2 | IM40: - | IN40: - | IQ40: - | IS40: - | IU40: - | IV40: - | IW40: - | IX40: - | IY40: - | IZ40: - | JA40: - | JB40: - | JC40: - | JD40: - | JE40: - | JF40: - | JG40: - | JH40: - | JI40: - | JJ40: 2 | JK40: 1 | JL40: 1 | JM40: 0 | JN40: 2 | JO40: 2 | JP40: 2 | JQ40: 1 | JR40: 3 | JS40: 2 | JT40: 2 | JU40: 2 | JV40: 0 | JW40: 20 | JX40: 0 | JY40: 0 | JZ40: 0 | KA40: - | KB40: 0 | KF40: OUI | KG40: Peut mieux faire | KH40: Blâme
G41: 119 | O41: - | Q41: - | R41: 2 | S41: - | T41: - | W41: - | Y41: - | Z41: 1 | AA41: - | AB41: - | AE41: - | AG41: - | AH41: 1 | AI41: - | AJ41: - | AM41: - | AO41: - | AQ41: - | AR41: - | AU41: - | AW41: - | AX41: 2 | AY41: - | AZ41: - | BC41: - | BE41: - | BF41: 2 | BG41: - | BH41: - | BK41: - | BM41: - | BN41: 2 | BO41: - | BP41: - | BS41: - | BU41: - | BV41: 1 | BW41: - | BX41: - | CA41: - | CC41: - | CD41: 3 | CE41: - | CF41: - | CI41: - | CK41: - | CL41: 2 | CM41: - | CN41: - | CQ41: - | CS41: - | CT41: 2 | CU41: - | CV41: - | CY41: - | DA41: - | DB41: 2 | DC41: - | DD41: - | DG41: - | DI41: - | DK41: - | DL41: - | DM41: - | DN41: - | DO41: - | DP41: - | DQ41: - | DR41: - | DS41: - | DT41: - | DU41: - | DV41: - | DW41: - | DX41: - | DY41: - | DZ41: 2 | EA41: 1 | EB41: 1 | EC41: 0 | ED41: 2 | EE41: 2 | EF41: 2 | EG41: 1 | EH41: 3 | EI41: 2 | EJ41: 2 | EK41: 2 | EL41: 0 | EM41: 20 | EN41: 0 | EO41: 0 | EP41: 5 | EQ41: 10 | ES41: OUI | ET41: Très insuffisant. Risque l'exclusion | EU41: Blâme | EY41: - | FA41: - | FB41: 2 | FC41: - | FD41: - | FG41: - | FI41: - | FJ41: 1 | FK41: - | FL41: - | FO41: - | FQ41: - | FR41: 1 | FS41: - | FT41: - | FW41: - | FY41: - | GA41: - | GB41: - | GE41: - | GG41: - | GH41: 2 | GI41: - | GJ41: - | GM41: - | GO41: - | GP41: 2 | GQ41: - | GR41: - | GU41: - | GW41: - | GX41: 2 | GY41: - | GZ41: - | HC41: - | HE41: - | HF41: 1 | HG41: - | HH41: - | HK41: - | HM41: - | HN41: 3 | HO41: - | HP41: - | HS41: - | HU41: - | HV41: 2 | HW41: - | HX41: - | IA41: - | IC41: - | ID41: 2 | IE41: - | IF41: - | II41: - | IK41: - | IL41: 2 | IM41: - | IN41: - | IQ41: - | IS41: - | IU41: - | IV41: - | IW41: - | IX41: - | IY41: - | IZ41: - | JA41: - | JB41: - | JC41: - | JD41: - | JE41: - | JF41: - | JG41: - | JH41: - | JI41: - | JJ41: 2 | JK41: 1 | JL41: 1 | JM41: 0 | JN41: 2 | JO41: 2 | JP41: 2 | JQ41: 1 | JR41: 3 | JS41: 2 | JT41: 2 | JU41: 2 | JV41: 0 | JW41: 20 | JX41: 0 | JY41: 0 | JZ41: 0 | KA41: - | KB41: 0 | KF41: OUI | KG41: Peut mieux faire | KH41: Blâme
G42: 119 | O42: - | Q42: - | R42: 2 | S42: - | T42: - | W42: - | Y42: - | Z42: 1 | AA42: - | AB42: - | AE42: - | AG42: - | AH42: 1 | AI42: - | AJ42: - | AM42: - | AO42: - | AQ42: - | AR42: - | AU42: - | AW42: - | AX42: 2 | AY42: - | AZ42: - | BC42: - | BE42: - | BF42: 2 | BG42: - | BH42: - | BK42: - | BM42: - | BN42: 2 | BO42: - | BP42: - | BS42: - | BU42: - | BV42: 1 | BW42: - | BX42: - | CA42: - | CC42: - | CD42: 3 | CE42: - | CF42: - | CI42: - | CK42: - | CL42: 2 | CM42: - | CN42: - | CQ42: - | CS42: - | CT42: 2 | CU42: - | CV42: - | CY42: - | DA42: - | DB42: 2 | DC42: - | DD42: - | DG42: - | DI42: - | DK42: - | DL42: - | DM42: - | DN42: - | DO42: - | DP42: - | DQ42: - | DR42: - | DS42: - | DT42: - | DU42: - | DV42: - | DW42: - | DX42: - | DY42: - | DZ42: 2 | EA42: 1 | EB42: 1 | EC42: 0 | ED42: 2 | EE42: 2 | EF42: 2 | EG42: 1 | EH42: 3 | EI42: 2 | EJ42: 2 | EK42: 2 | EL42: 0 | EM42: 20 | EN42: 0 | EO42: 0 | EP42: 5 | EQ42: 10 | ES42: OUI | ET42: Très insuffisant. Risque l'exclusion | EU42: Blâme | EY42: - | FA42: - | FB42: 2 | FC42: - | FD42: - | FG42: - | FI42: - | FJ42: 1 | FK42: - | FL42: - | FO42: - | FQ42: - | FR42: 1 | FS42: - | FT42: - | FW42: - | FY42: - | GA42: - | GB42: - | GE42: - | GG42: - | GH42: 2 | GI42: - | GJ42: - | GM42: - | GO42: - | GP42: 2 | GQ42: - | GR42: - | GU42: - | GW42: - | GX42: 2 | GY42: - | GZ42: - | HC42: - | HE42: - | HF42: 1 | HG42: - | HH42: - | HK42: - | HM42: - | HN42: 3 | HO42: - | HP42: - | HS42: - | HU42: - | HV42: 2 | HW42: - | HX42: - | IA42: - | IC42: - | ID42: 2 | IE42: - | IF42: - | II42: - | IK42: - | IL42: 2 | IM42: - | IN42: - | IQ42: - | IS42: - | IU42: - | IV42: - | IW42: - | IX42: - | IY42: - | IZ42: - | JA42: - | JB42: - | JC42: - | JD42: - | JE42: - | JF42: - | JG42: - | JH42: - | JI42: - | JJ42: 2 | JK42: 1 | JL42: 1 | JM42: 0 | JN42: 2 | JO42: 2 | JP42: 2 | JQ42: 1 | JR42: 3 | JS42: 2 | JT42: 2 | JU42: 2 | JV42: 0 | JW42: 20 | JX42: 0 | JY42: 0 | JZ42: 0 | KA42: - | KB42: 0 | KF42: OUI | KG42: Peut mieux faire | KH42: Blâme
G43: 119 | O43: - | Q43: - | R43: 2 | S43: - | T43: - | W43: - | Y43: - | Z43: 1 | AA43: - | AB43: - | AE43: - | AG43: - | AH43: 1 | AI43: - | AJ43: - | AM43: - | AO43: - | AQ43: - | AR43: - | AU43: - | AW43: - | AX43: 2 | AY43: - | AZ43: - | BC43: - | BE43: - | BF43: 2 | BG43: - | BH43: - | BK43: - | BM43: - | BN43: 2 | BO43: - | BP43: - | BS43: - | BU43: - | BV43: 1 | BW43: - | BX43: - | CA43: - | CC43: - | CD43: 3 | CE43: - | CF43: - | CI43: - | CK43: - | CL43: 2 | CM43: - | CN43: - | CQ43: - | CS43: - | CT43: 2 | CU43: - | CV43: - | CY43: - | DA43: - | DB43: 2 | DC43: - | DD43: - | DG43: - | DI43: - | DK43: - | DL43: - | DM43: - | DN43: - | DO43: - | DP43: - | DQ43: - | DR43: - | DS43: - | DT43: - | DU43: - | DV43: - | DW43: - | DX43: - | DY43: - | DZ43: 2 | EA43: 1 | EB43: 1 | EC43: 0 | ED43: 2 | EE43: 2 | EF43: 2 | EG43: 1 | EH43: 3 | EI43: 2 | EJ43: 2 | EK43: 2 | EL43: 0 | EM43: 20 | EN43: 0 | EO43: 0 | EP43: 5 | EQ43: 10 | ES43: OUI | ET43: Très insuffisant. Risque l'exclusion | EU43: Blâme | EY43: - | FA43: - | FB43: 2 | FC43: - | FD43: - | FG43: - | FI43: - | FJ43: 1 | FK43: - | FL43: - | FO43: - | FQ43: - | FR43: 1 | FS43: - | FT43: - | FW43: - | FY43: - | GA43: - | GB43: - | GE43: - | GG43: - | GH43: 2 | GI43: - | GJ43: - | GM43: - | GO43: - | GP43: 2 | GQ43: - | GR43: - | GU43: - | GW43: - | GX43: 2 | GY43: - | GZ43: - | HC43: - | HE43: - | HF43: 1 | HG43: - | HH43: - | HK43: - | HM43: - | HN43: 3 | HO43: - | HP43: - | HS43: - | HU43: - | HV43: 2 | HW43: - | HX43: - | IA43: - | IC43: - | ID43: 2 | IE43: - | IF43: - | II43: - | IK43: - | IL43: 2 | IM43: - | IN43: - | IQ43: - | IS43: - | IU43: - | IV43: - | IW43: - | IX43: - | IY43: - | IZ43: - | JA43: - | JB43: - | JC43: - | JD43: - | JE43: - | JF43: - | JG43: - | JH43: - | JI43: - | JJ43: 2 | JK43: 1 | JL43: 1 | JM43: 0 | JN43: 2 | JO43: 2 | JP43: 2 | JQ43: 1 | JR43: 3 | JS43: 2 | JT43: 2 | JU43: 2 | JV43: 0 | JW43: 20 | JX43: 0 | JY43: 0 | JZ43: 0 | KA43: - | KB43: 0 | KF43: OUI | KG43: Peut mieux faire | KH43: Blâme
G44: 119 | O44: - | Q44: - | R44: 2 | S44: - | T44: - | W44: - | Y44: - | Z44: 1 | AA44: - | AB44: - | AE44: - | AG44: - | AH44: 1 | AI44: - | AJ44: - | AM44: - | AO44: - | AQ44: - | AR44: - | AU44: - | AW44: - | AX44: 2 | AY44: - | AZ44: - | BC44: - | BE44: - | BF44: 2 | BG44: - | BH44: - | BK44: - | BM44: - | BN44: 2 | BO44: - | BP44: - | BS44: - | BU44: - | BV44: 1 | BW44: - | BX44: - | CA44: - | CC44: - | CD44: 3 | CE44: - | CF44: - | CI44: - | CK44: - | CL44: 2 | CM44: - | CN44: - | CQ44: - | CS44: - | CT44: 2 | CU44: - | CV44: - | CY44: - | DA44: - | DB44: 2 | DC44: - | DD44: - | DG44: - | DI44: - | DK44: - | DL44: - | DM44: - | DN44: - | DO44: - | DP44: - | DQ44: - | DR44: - | DS44: - | DT44: - | DU44: - | DV44: - | DW44: - | DX44: - | DY44: - | DZ44: 2 | EA44: 1 | EB44: 1 | EC44: 0 | ED44: 2 | EE44: 2 | EF44: 2 | EG44: 1 | EH44: 3 | EI44: 2 | EJ44: 2 | EK44: 2 | EL44: 0 | EM44: 20 | EN44: 0 | EO44: 0 | EP44: 5 | EQ44: 10 | ES44: OUI | ET44: Très insuffisant. Risque l'exclusion | EU44: Blâme | EY44: - | FA44: - | FB44: 2 | FC44: - | FD44: - | FG44: - | FI44: - | FJ44: 1 | FK44: - | FL44: - | FO44: - | FQ44: - | FR44: 1 | FS44: - | FT44: - | FW44: - | FY44: - | GA44: - | GB44: - | GE44: - | GG44: - | GH44: 2 | GI44: - | GJ44: - | GM44: - | GO44: - | GP44: 2 | GQ44: - | GR44: - | GU44: - | GW44: - | GX44: 2 | GY44: - | GZ44: - | HC44: - | HE44: - | HF44: 1 | HG44: - | HH44: - | HK44: - | HM44: - | HN44: 3 | HO44: - | HP44: - | HS44: - | HU44: - | HV44: 2 | HW44: - | HX44: - | IA44: - | IC44: - | ID44: 2 | IE44: - | IF44: - | II44: - | IK44: - | IL44: 2 | IM44: - | IN44: - | IQ44: - | IS44: - | IU44: - | IV44: - | IW44: - | IX44: - | IY44: - | IZ44: - | JA44: - | JB44: - | JC44: - | JD44: - | JE44: - | JF44: - | JG44: - | JH44: - | JI44: - | JJ44: 2 | JK44: 1 | JL44: 1 | JM44: 0 | JN44: 2 | JO44: 2 | JP44: 2 | JQ44: 1 | JR44: 3 | JS44: 2 | JT44: 2 | JU44: 2 | JV44: 0 | JW44: 20 | JX44: 0 | JY44: 0 | JZ44: 0 | KA44: - | KB44: 0 | KF44: OUI | KG44: Peut mieux faire | KH44: Blâme
G45: 119 | O45: - | Q45: - | R45: 2 | S45: - | T45: - | W45: - | Y45: - | Z45: 1 | AA45: - | AB45: - | AE45: - | AG45: - | AH45: 1 | AI45: - | AJ45: - | AM45: - | AO45: - | AQ45: - | AR45: - | AU45: - | AW45: - | AX45: 2 | AY45: - | AZ45: - | BC45: - | BE45: - | BF45: 2 | BG45: - | BH45: - | BK45: - | BM45: - | BN45: 2 | BO45: - | BP45: - | BS45: - | BU45: - | BV45: 1 | BW45: - | BX45: - | CA45: - | CC45: - | CD45: 3 | CE45: - | CF45: - | CI45: - | CK45: - | CL45: 2 | CM45: - | CN45: - | CQ45: - | CS45: - | CT45: 2 | CU45: - | CV45: - | CY45: - | DA45: - | DB45: 2 | DC45: - | DD45: - | DG45: - | DI45: - | DK45: - | DL45: - | DM45: - | DN45: - | DO45: - | DP45: - | DQ45: - | DR45: - | DS45: - | DT45: - | DU45: - | DV45: - | DW45: - | DX45: - | DY45: - | DZ45: 2 | EA45: 1 | EB45: 1 | EC45: 0 | ED45: 2 | EE45: 2 | EF45: 2 | EG45: 1 | EH45: 3 | EI45: 2 | EJ45: 2 | EK45: 2 | EL45: 0 | EM45: 20 | EN45: 0 | EO45: 0 | EP45: 5 | EQ45: 10 | ES45: OUI | ET45: Très insuffisant. Risque l'exclusion | EU45: Blâme | EY45: - | FA45: - | FB45: 2 | FC45: - | FD45: - | FG45: - | FI45: - | FJ45: 1 | FK45: - | FL45: - | FO45: - | FQ45: - | FR45: 1 | FS45: - | FT45: - | FW45: - | FY45: - | GA45: - | GB45: - | GE45: - | GG45: - | GH45: 2 | GI45: - | GJ45: - | GM45: - | GO45: - | GP45: 2 | GQ45: - | GR45: - | GU45: - | GW45: - | GX45: 2 | GY45: - | GZ45: - | HC45: - | HE45: - | HF45: 1 | HG45: - | HH45: - | HK45: - | HM45: - | HN45: 3 | HO45: - | HP45: - | HS45: - | HU45: - | HV45: 2 | HW45: - | HX45: - | IA45: - | IC45: - | ID45: 2 | IE45: - | IF45: - | II45: - | IK45: - | IL45: 2 | IM45: - | IN45: - | IQ45: - | IS45: - | IU45: - | IV45: - | IW45: - | IX45: - | IY45: - | IZ45: - | JA45: - | JB45: - | JC45: - | JD45: - | JE45: - | JF45: - | JG45: - | JH45: - | JI45: - | JJ45: 2 | JK45: 1 | JL45: 1 | JM45: 0 | JN45: 2 | JO45: 2 | JP45: 2 | JQ45: 1 | JR45: 3 | JS45: 2 | JT45: 2 | JU45: 2 | JV45: 0 | JW45: 20 | JX45: 0 | JY45: 0 | JZ45: 0 | KA45: - | KB45: 0 | KF45: OUI | KG45: Peut mieux faire | KH45: Blâme
G46: 119 | O46: - | Q46: - | R46: 2 | S46: - | T46: - | W46: - | Y46: - | Z46: 1 | AA46: - | AB46: - | AE46: - | AG46: - | AH46: 1 | AI46: - | AJ46: - | AM46: - | AO46: - | AQ46: - | AR46: - | AU46: - | AW46: - | AX46: 2 | AY46: - | AZ46: - | BC46: - | BE46: - | BF46: 2 | BG46: - | BH46: - | BK46: - | BM46: - | BN46: 2 | BO46: - | BP46: - | BS46: - | BU46: - | BV46: 1 | BW46: - | BX46: - | CA46: - | CC46: - | CD46: 3 | CE46: - | CF46: - | CI46: - | CK46: - | CL46: 2 | CM46: - | CN46: - | CQ46: - | CS46: - | CT46: 2 | CU46: - | CV46: - | CY46: - | DA46: - | DB46: 2 | DC46: - | DD46: - | DG46: - | DI46: - | DK46: - | DL46: - | DM46: - | DN46: - | DO46: - | DP46: - | DQ46: - | DR46: - | DS46: - | DT46: - | DU46: - | DV46: - | DW46: - | DX46: - | DY46: - | DZ46: 2 | EA46: 1 | EB46: 1 | EC46: 0 | ED46: 2 | EE46: 2 | EF46: 2 | EG46: 1 | EH46: 3 | EI46: 2 | EJ46: 2 | EK46: 2 | EL46: 0 | EM46: 20 | EN46: 0 | EO46: 0 | EP46: 5 | EQ46: 10 | ES46: OUI | ET46: Très insuffisant. Risque l'exclusion | EU46: Blâme | EY46: - | FA46: - | FB46: 2 | FC46: - | FD46: - | FG46: - | FI46: - | FJ46: 1 | FK46: - | FL46: - | FO46: - | FQ46: - | FR46: 1 | FS46: - | FT46: - | FW46: - | FY46: - | GA46: - | GB46: - | GE46: - | GG46: - | GH46: 2 | GI46: - | GJ46: - | GM46: - | GO46: - | GP46: 2 | GQ46: - | GR46: - | GU46: - | GW46: - | GX46: 2 | GY46: - | GZ46: - | HC46: - | HE46: - | HF46: 1 | HG46: - | HH46: - | HK46: - | HM46: - | HN46: 3 | HO46: - | HP46: - | HS46: - | HU46: - | HV46: 2 | HW46: - | HX46: - | IA46: - | IC46: - | ID46: 2 | IE46: - | IF46: - | II46: - | IK46: - | IL46: 2 | IM46: - | IN46: - | IQ46: - | IS46: - | IU46: - | IV46: - | IW46: - | IX46: - | IY46: - | IZ46: - | JA46: - | JB46: - | JC46: - | JD46: - | JE46: - | JF46: - | JG46: - | JH46: - | JI46: - | JJ46: 2 | JK46: 1 | JL46: 1 | JM46: 0 | JN46: 2 | JO46: 2 | JP46: 2 | JQ46: 1 | JR46: 3 | JS46: 2 | JT46: 2 | JU46: 2 | JV46: 0 | JW46: 20 | JX46: 0 | JY46: 0 | JZ46: 0 | KA46: - | KB46: 0 | KF46: OUI | KG46: Peut mieux faire | KH46: Blâme
G47: 119 | O47: - | Q47: - | R47: 2 | S47: - | T47: - | W47: - | Y47: - | Z47: 1 | AA47: - | AB47: - | AE47: - | AG47: - | AH47: 1 | AI47: - | AJ47: - | AM47: - | AO47: - | AQ47: - | AR47: - | AU47: - | AW47: - | AX47: 2 | AY47: - | AZ47: - | BC47: - | BE47: - | BF47: 2 | BG47: - | BH47: - | BK47: - | BM47: - | BN47: 2 | BO47: - | BP47: - | BS47: - | BU47: - | BV47: 1 | BW47: - | BX47: - | CA47: - | CC47: - | CD47: 3 | CE47: - | CF47: - | CI47: - | CK47: - | CL47: 2 | CM47: - | CN47: - | CQ47: - | CS47: - | CT47: 2 | CU47: - | CV47: - | CY47: - | DA47: - | DB47: 2 | DC47: - | DD47: - | DG47: - | DI47: - | DK47: - | DL47: - | DM47: - | DN47: - | DO47: - | DP47: - | DQ47: - | DR47: - | DS47: - | DT47: - | DU47: - | DV47: - | DW47: - | DX47: - | DY47: - | DZ47: 2 | EA47: 1 | EB47: 1 | EC47: 0 | ED47: 2 | EE47: 2 | EF47: 2 | EG47: 1 | EH47: 3 | EI47: 2 | EJ47: 2 | EK47: 2 | EL47: 0 | EM47: 20 | EN47: 0 | EO47: 0 | EP47: 5 | EQ47: 10 | ES47: OUI | ET47: Très insuffisant. Risque l'exclusion | EU47: Blâme | EY47: - | FA47: - | FB47: 2 | FC47: - | FD47: - | FG47: - | FI47: - | FJ47: 1 | FK47: - | FL47: - | FO47: - | FQ47: - | FR47: 1 | FS47: - | FT47: - | FW47: - | FY47: - | GA47: - | GB47: - | GE47: - | GG47: - | GH47: 2 | GI47: - | GJ47: - | GM47: - | GO47: - | GP47: 2 | GQ47: - | GR47: - | GU47: - | GW47: - | GX47: 2 | GY47: - | GZ47: - | HC47: - | HE47: - | HF47: 1 | HG47: - | HH47: - | HK47: - | HM47: - | HN47: 3 | HO47: - | HP47: - | HS47: - | HU47: - | HV47: 2 | HW47: - | HX47: - | IA47: - | IC47: - | ID47: 2 | IE47: - | IF47: - | II47: - | IK47: - | IL47: 2 | IM47: - | IN47: - | IQ47: - | IS47: - | IU47: - | IV47: - | IW47: - | IX47: - | IY47: - | IZ47: - | JA47: - | JB47: - | JC47: - | JD47: - | JE47: - | JF47: - | JG47: - | JH47: - | JI47: - | JJ47: 2 | JK47: 1 | JL47: 1 | JM47: 0 | JN47: 2 | JO47: 2 | JP47: 2 | JQ47: 1 | JR47: 3 | JS47: 2 | JT47: 2 | JU47: 2 | JV47: 0 | JW47: 20 | JX47: 0 | JY47: 0 | JZ47: 0 | KA47: - | KB47: 0 | KF47: OUI | KG47: Peut mieux faire | KH47: Blâme
G48: =DATEDIF(E48,TODAY(),"Y") -> 119 | O48: =IFERROR(AVERAGE(M48:N48),"-") -> - | Q48: =IFERROR(AVERAGE(O48:P48),"-") -> - | R48: 2 | S48: =IFERROR(Q48*2,"-") -> - | T48: =IFERROR(RANK(Q48,$Q$16:$Q$121,0),"-") -> - | W48: =IFERROR(AVERAGE(U48:V48),"-") -> - | Y48: =IFERROR(AVERAGE(W48:X48),"-") -> - | Z48: 1 | AA48: =IFERROR(Y48*1,"-") -> - | AB48: =IFERROR(RANK(Y48,$Y$16:$Y$121,0),"-") -> - | AE48: =IFERROR(AVERAGE(AC48:AD48),"-") -> - | AG48: =IFERROR(AVERAGE(AE48:AF48),"-") -> - | AH48: 1 | AI48: =IFERROR(AG48*1,"-") -> - | AJ48: =IFERROR(RANK(AG48,$AG$16:$AG$121,0),"-") -> - | AM48: =IFERROR(AVERAGE(AK48:AL48),"-") -> - | AO48: =IFERROR(AVERAGE(AM48:AN48),"-") -> - | AQ48: =+IFERROR(AO48*AP48,"-") -> - | AR48: =IFERROR(RANK(AO48,$AO$16:$AO$121,0),"-") -> - | AU48: =IFERROR(AVERAGE(AS48:AT48),"-") -> - | AW48: =IFERROR(AVERAGE(AU48:AV48),"-") -> - | AX48: 2 | AY48: =IFERROR(AW48*AX48,"-") -> - | AZ48: =IFERROR(RANK(AW48,$AW$16:$AW$121,0),"-") -> - | BC48: =IFERROR(AVERAGE(BA48:BB48),"-") -> - | BE48: =IFERROR(AVERAGE(BC48:BD48),"-") -> - | BF48: 2 | BG48: =IFERROR(BE48*BF48,"-") -> - | BH48: =IFERROR(RANK(BE48,$BE$16:$BE$121,0),"-") -> - | BK48: =IFERROR(AVERAGE(BI48:BJ48),"-") -> - | BM48: =IFERROR(AVERAGE(BK48:BL48),"-") -> - | BN48: 2 | BO48: =IFERROR(BM48*BN48,"-") -> - | BP48: =IFERROR(RANK(BM48,$BM$16:$BM$121,0),"-") -> - | BS48: =IFERROR(AVERAGE(BQ48:BR48),"-") -> - | BU48: =IFERROR(AVERAGE(BS48:BT48),"-") -> - | BV48: 1 | BW48: =IFERROR(BU48*BV48,"-") -> - | BX48: =IFERROR(RANK(BU48,$BU$16:$BU$121,0),"-") -> - | CA48: =IFERROR(AVERAGE(BY48:BZ48),"-") -> - | CC48: =IFERROR(AVERAGE(CA48:CB48),"-") -> - | CD48: 3 | CE48: =IFERROR(CC48*CD48,"-") -> - | CF48: - | CI48: =IFERROR(AVERAGE(CG48:CH48),"-") -> - | CK48: =IFERROR(AVERAGE(CI48:CJ48),"-") -> - | CL48: 2 | CM48: =IFERROR(CK48*CL48,"-") -> - | CN48: =IFERROR(RANK(CK48,$CK$16:$CK$121,0),"-") -> - | CQ48: =IFERROR(AVERAGE(CO48:CP48),"-") -> - | CS48: =IFERROR(AVERAGE(CQ48:CR48),"-") -> - | CT48: 2 | CU48: =IFERROR(CS48*CT48,"-") -> - | CV48: =IFERROR(RANK(CS48,$CS$16:$CS$121,0),"-") -> - | CY48: =IFERROR(AVERAGE(CW48:CX48),"-") -> - | DA48: =IFERROR(AVERAGE(CY48:CZ48),"-") -> - | DB48: 2 | DC48: =IFERROR(DA48*DB48,"-") -> - | DD48: =IFERROR(RANK(DA48,$DA$16:$DA$121,0),"-") -> - | DG48: =IFERROR(AVERAGE(DE48:DF48),"-") -> - | DI48: =IFERROR(AVERAGE(DG48:DH48),"-") -> - | DK48: =IFERROR(DI48*DJ48,"-") -> - | DL48: =IFERROR(RANK(DI48,$DI$16:$DI$121,0),"-") -> - | DM48: =IFERROR(S48,"-") -> - | DN48: =IFERROR(AA48,"-") -> - | DO48: =IFERROR(AI48,"-") -> - | DP48: =IFERROR(AQ48,"-") -> - | DQ48: =IFERROR(AY48,"-") -> - | DR48: =IFERROR(BG48,"-") -> - | DS48: =IFERROR(BO48,"-") -> - | DT48: =IFERROR(BW48,"-") -> - | DU48: =IFERROR(CE48,"-") -> - | DV48: =IFERROR(CM48,"-") -> - | DW48: =IFERROR(CU48,"-") -> - | DX48: =IFERROR(DC48,"-") -> - | DY48: =IFERROR(DK48,"-") -> - | DZ48: =IFERROR(R48,"-") -> 2 | EA48: =IFERROR(Z48,"-") -> 1 | EB48: =IFERROR(AH48,"-") -> 1 | EC48: =IFERROR(AP48,"-") -> 0 | ED48: =IFERROR(AX48,"-") -> 2 | EE48: =IFERROR(BF48,"-") -> 2 | EF48: =IFERROR(BN48,"-") -> 2 | EG48: =IFERROR(BV48,"-") -> 1 | EH48: =IFERROR(CD48,"-") -> 3 | EI48: =IFERROR(CL48,"-") -> 2 | EJ48: =IFERROR(CT48,"-") -> 2 | EK48: =IFERROR(DB48,"-") -> 2 | EL48: =IFERROR(DJ48,"-") -> 0 | EM48: 20 | EN48: =IFERROR(SUM(DM48:DY48),"-") -> 0 | EO48: =IFERROR(ROUND(EN48/EM48,2),"-") -> 0 | EP48: =IFERROR(RANK(EO48,$EO$16:$EO$121,0),"-") -> 5 | EQ48: 10 | ES48: OUI | ET48: =IF(EO48>=12,"Satisfaisant doit continuer",IF((EO48>=EQ48)*(EO48<12),"Peut mieux faire",IF(AND(EO48<EQ48,G48<16),"Insuffisant. Risque de redoubler",IF(AND(EO48<EQ48,G48>=16,I48="NON"),"Insuffisant. Risque de redoubler",IF(AND(EO48<EQ48,G48<16,I48="OUI"),"Insuffisant. Risque de redoubler",IF(AND(EO48<EQ48,G48>=16,I48="OUI"),"Insuffisant. Risque l'exclusion",IF(AND(EO48<=5,G48>=16),"Très insuffisant. Risque l'exclusion"))))))) -> Très insuffisant. Risque l'exclusion | EU48: =IF(EO48>=14,"Félicitations",IF((EO48>=13)*(EO48<14),"Encouragement",IF((EO48>=12)*(EO48<13),"Tableau d'honneur",IF((EO48>=9.5)*(EO48<12),"Moyen",IF((EO48>=7)*(EO48<9.5),"Avertissement",IF((EO48>=0)*(EO48<7),"Blâme")))))) -> Blâme | EY48: =IFERROR(AVERAGE(EW48:EX48),"-") -> - | FA48: =IFERROR(AVERAGE(EY48:EZ48),"-") -> - | FB48: 2 | FC48: =IFERROR(FA48*2,"-") -> - | FD48: =IFERROR(RANK(FA48,$Q$16:$Q$65,0),"-") -> - | FG48: =IFERROR(AVERAGE(FE48:FF48),"-") -> - | FI48: =IFERROR(AVERAGE(FG48:FH48),"-") -> - | FJ48: 1 | FK48: =IFERROR(FI48*1,"-") -> - | FL48: =IFERROR(RANK(FI48,$Y$16:$Y$65,0),"-") -> - | FO48: =IFERROR(AVERAGE(FM48:FN48),"-") -> - | FQ48: =IFERROR(AVERAGE(FO48:FP48),"-") -> - | FR48: 1 | FS48: =IFERROR(FQ48*1,"-") -> - | FT48: =IFERROR(RANK(FQ48,$AG$16:$AG$65,0),"-") -> - | FW48: =IFERROR(AVERAGE(FU48:FV48),"-") -> - | FY48: =IFERROR(AVERAGE(FW48:FX48),"-") -> - | GA48: =+IFERROR(FY48*FZ48,"-") -> - | GB48: =IFERROR(RANK(FY48,$AO$16:$AO$65,0),"-") -> - | GE48: =IFERROR(AVERAGE(GC48:GD48),"-") -> - | GG48: =IFERROR(AVERAGE(GE48:GF48),"-") -> - | GH48: 2 | GI48: =IFERROR(GG48*GH48,"-") -> - | GJ48: =IFERROR(RANK(GG48,$AW$16:$AW$65,0),"-") -> - | GM48: =IFERROR(AVERAGE(GK48:GL48),"-") -> - | GO48: =IFERROR(AVERAGE(GM48:GN48),"-") -> - | GP48: 2 | GQ48: =IFERROR(GO48*GP48,"-") -> - | GR48: =IFERROR(RANK(GO48,$BE$16:$BE$65,0),"-") -> - | GU48: =IFERROR(AVERAGE(GS48:GT48),"-") -> - | GW48: =IFERROR(AVERAGE(GU48:GV48),"-") -> - | GX48: 2 | GY48: =IFERROR(GW48*GX48,"-") -> - | GZ48: =IFERROR(RANK(GW48,$BM$16:$BM$65,0),"-") -> - | HC48: =IFERROR(AVERAGE(HA48:HB48),"-") -> - | HE48: =IFERROR(AVERAGE(HC48:HD48),"-") -> - | HF48: 1 | HG48: =IFERROR(HE48*HF48,"-") -> - | HH48: =IFERROR(RANK(HE48,$BU$16:$BU$65,0),"-") -> - | HK48: =IFERROR(AVERAGE(HI48:HJ48),"-") -> - | HM48: =IFERROR(AVERAGE(HK48:HL48),"-") -> - | HN48: 3 | HO48: =IFERROR(HM48*HN48,"-") -> - | HP48: =IFERROR(RANK(HM48,HM48:HM97,0),"-") -> - | HS48: =IFERROR(AVERAGE(HQ48:HR48),"-") -> - | HU48: =IFERROR(AVERAGE(HS48:HT48),"-") -> - | HV48: 2 | HW48: =IFERROR(HU48*HV48,"-") -> - | HX48: =IFERROR(RANK(HU48,$CK$16:$CK$65,0),"-") -> - | IA48: =IFERROR(AVERAGE(HY48:HZ48),"-") -> - | IC48: =IFERROR(AVERAGE(IA48:IB48),"-") -> - | ID48: 2 | IE48: =IFERROR(IC48*ID48,"-") -> - | IF48: =IFERROR(RANK(IC48,$CS$16:$CS$65,0),"-") -> - | II48: =IFERROR(AVERAGE(IG48:IH48),"-") -> - | IK48: =IFERROR(AVERAGE(II48:IJ48),"-") -> - | IL48: 2 | IM48: =IFERROR(IK48*IL48,"-") -> - | IN48: =IFERROR(RANK(IK48,$DA$16:$DA$65,0),"-") -> - | IQ48: =IFERROR(AVERAGE(IO48:IP48),"-") -> - | IS48: =IFERROR(AVERAGE(IQ48:IR48),"-") -> - | IU48: =IFERROR(IS48*IT48,"-") -> - | IV48: =IFERROR(RANK(IS48,$DI$16:$DI$65,0),"-") -> - | IW48: =IFERROR(FC48,"-") -> - | IX48: =IFERROR(FK48,"-") -> - | IY48: =IFERROR(FS48,"-") -> - | IZ48: =IFERROR(GA48,"-") -> - | JA48: =IFERROR(GI48,"-") -> - | JB48: =IFERROR(GQ48,"-") -> - | JC48: =IFERROR(GY48,"-") -> - | JD48: =IFERROR(HG48,"-") -> - | JE48: =IFERROR(HO48,"-") -> - | JF48: =IFERROR(HW48,"-") -> - | JG48: =IFERROR(IE48,"-") -> - | JH48: =IFERROR(IM48,"-") -> - | JI48: =IFERROR(IU48,"-") -> - | JJ48: =IFERROR(FB48,"-") -> 2 | JK48: =IFERROR(FJ48,"-") -> 1 | JL48: =IFERROR(FR48,"-") -> 1 | JM48: =IFERROR(FZ48,"-") -> 0 | JN48: =IFERROR(GH48,"-") -> 2 | JO48: =IFERROR(GP48,"-") -> 2 | JP48: =IFERROR(GX48,"-") -> 2 | JQ48: =IFERROR(HF48,"-") -> 1 | JR48: =IFERROR(HN48,"-") -> 3 | JS48: =IFERROR(HV48,"-") -> 2 | JT48: =IFERROR(ID48,"-") -> 2 | JU48: =IFERROR(IL48,"-") -> 2 | JV48: =IFERROR(IT48,"-") -> 0 | JW48: =IFERROR(SUM(JJ48:JV48),"-") -> 20 | JX48: =IFERROR(SUM(IW48:JI48),"-") -> 0 | JY48: =EO48 -> 0 | JZ48: =IFERROR(ROUND(JX48/JW48,2),"-") -> 0 | KA48: =IFERROR(RANK(JZ48,$EP$16:$EP$65,0),"-") -> - | KB48: =IFERROR(ROUND((JY48+JZ48)/2,2),"---") -> 0 | KF48: OUI | KG48: =IF(KB48>=12,"Satisfaisant doit continuer",IF((KB48>=KD48)*(KB48<12),"Peut mieux faire",IF(AND(KB48<KD48,ET48<16),"Insuffisant. Risque de redoubler",IF(AND(KB48<KD48,ET48>=16,EV48="NON"),"Insuffisant. Risque de redoubler",IF(AND(KB48<KD48,ET48<16,EV48="OUI"),"Insuffisant. Risque de redoubler",IF(AND(KB48<KD48,ET48>=16,EV48="OUI"),"Insuffisant. Risque l'exclusion",IF(AND(KB48<=5,ET48>=16),"Très insuffisant. Risque l'exclusion"))))))) -> Peut mieux faire | KH48: =IF(JZ48>=14,"Félicitations",IF((JZ48>=13)*(JZ48<14),"Encouragement",IF((JZ48>=12)*(JZ48<13),"Tableau d'honneur",IF((JZ48>=9.5)*(JZ48<12),"Moyen",IF((JZ48>=7)*(JZ48<9.5),"Avertissement",IF((JZ48>=0)*(JZ48<7),"Blâme")))))) -> Blâme
G49: 119 | O49: - | Q49: - | R49: 2 | S49: - | T49: - | W49: - | Y49: - | Z49: 1 | AA49: - | AB49: - | AE49: - | AG49: - | AH49: 1 | AI49: - | AJ49: - | AM49: - | AO49: - | AQ49: - | AR49: - | AU49: - | AW49: - | AX49: 2 | AY49: - | AZ49: - | BC49: - | BE49: - | BF49: 2 | BG49: - | BH49: - | BK49: - | BM49: - | BN49: 2 | BO49: - | BP49: - | BS49: - | BU49: - | BV49: 1 | BW49: - | BX49: - | CA49: - | CC49: - | CD49: 3 | CE49: - | CF49: =IFERROR(RANK(CC49,CC49:CC153,0),"-") -> - | CI49: - | CK49: - | CL49: 2 | CM49: - | CN49: - | CQ49: - | CS49: - | CT49: 2 | CU49: - | CV49: - | CY49: - | DA49: - | DB49: 2 | DC49: - | DD49: - | DG49: - | DI49: - | DK49: - | DL49: - | DM49: - | DN49: - | DO49: - | DP49: - | DQ49: - | DR49: - | DS49: - | DT49: - | DU49: - | DV49: - | DW49: - | DX49: - | DY49: - | DZ49: 2 | EA49: 1 | EB49: 1 | EC49: 0 | ED49: 2 | EE49: 2 | EF49: 2 | EG49: 1 | EH49: 3 | EI49: 2 | EJ49: 2 | EK49: 2 | EL49: 0 | EM49: 20 | EN49: 0 | EO49: 0 | EP49: 5 | EQ49: 10 | ES49: OUI | ET49: Très insuffisant. Risque l'exclusion | EU49: Blâme | EY49: - | FA49: - | FB49: 2 | FC49: - | FD49: - | FG49: - | FI49: - | FJ49: 1 | FK49: - | FL49: - | FO49: - | FQ49: - | FR49: 1 | FS49: - | FT49: - | FW49: - | FY49: - | GA49: - | GB49: - | GE49: - | GG49: - | GH49: 2 | GI49: - | GJ49: - | GM49: - | GO49: - | GP49: 2 | GQ49: - | GR49: - | GU49: - | GW49: - | GX49: 2 | GY49: - | GZ49: - | HC49: - | HE49: - | HF49: 1 | HG49: - | HH49: - | HK49: - | HM49: - | HN49: 3 | HO49: - | HP49: - | HS49: - | HU49: - | HV49: 2 | HW49: - | HX49: - | IA49: - | IC49: - | ID49: 2 | IE49: - | IF49: - | II49: - | IK49: - | IL49: 2 | IM49: - | IN49: - | IQ49: - | IS49: - | IU49: - | IV49: - | IW49: - | IX49: - | IY49: - | IZ49: - | JA49: - | JB49: - | JC49: - | JD49: - | JE49: - | JF49: - | JG49: - | JH49: - | JI49: - | JJ49: 2 | JK49: 1 | JL49: 1 | JM49: 0 | JN49: 2 | JO49: 2 | JP49: 2 | JQ49: 1 | JR49: 3 | JS49: 2 | JT49: 2 | JU49: 2 | JV49: 0 | JW49: 20 | JX49: 0 | JY49: 0 | JZ49: 0 | KA49: - | KB49: 0 | KF49: OUI | KG49: Peut mieux faire | KH49: Blâme
G50: 119 | O50: - | Q50: - | R50: 2 | S50: - | T50: - | W50: - | Y50: - | Z50: 1 | AA50: - | AB50: - | AE50: - | AG50: - | AH50: 1 | AI50: - | AJ50: - | AM50: - | AO50: - | AQ50: - | AR50: - | AU50: - | AW50: - | AX50: 2 | AY50: - | AZ50: - | BC50: - | BE50: - | BF50: 2 | BG50: - | BH50: - | BK50: - | BM50: - | BN50: 2 | BO50: - | BP50: - | BS50: - | BU50: - | BV50: 1 | BW50: - | BX50: - | CA50: - | CC50: - | CD50: 3 | CE50: - | CF50: - | CI50: - | CK50: - | CL50: 2 | CM50: - | CN50: - | CQ50: - | CS50: - | CT50: 2 | CU50: - | CV50: - | CY50: - | DA50: - | DB50: 2 | DC50: - | DD50: - | DG50: - | DI50: - | DK50: - | DL50: - | DM50: - | DN50: - | DO50: - | DP50: - | DQ50: - | DR50: - | DS50: - | DT50: - | DU50: - | DV50: - | DW50: - | DX50: - | DY50: - | DZ50: 2 | EA50: 1 | EB50: 1 | EC50: 0 | ED50: 2 | EE50: 2 | EF50: 2 | EG50: 1 | EH50: 3 | EI50: 2 | EJ50: 2 | EK50: 2 | EL50: 0 | EM50: 20 | EN50: 0 | EO50: 0 | EP50: 5 | EQ50: 10 | ES50: OUI | ET50: Très insuffisant. Risque l'exclusion | EU50: Blâme | EY50: - | FA50: - | FB50: 2 | FC50: - | FD50: - | FG50: - | FI50: - | FJ50: 1 | FK50: - | FL50: - | FO50: - | FQ50: - | FR50: 1 | FS50: - | FT50: - | FW50: - | FY50: - | GA50: - | GB50: - | GE50: - | GG50: - | GH50: 2 | GI50: - | GJ50: - | GM50: - | GO50: - | GP50: 2 | GQ50: - | GR50: - | GU50: - | GW50: - | GX50: 2 | GY50: - | GZ50: - | HC50: - | HE50: - | HF50: 1 | HG50: - | HH50: - | HK50: - | HM50: - | HN50: 3 | HO50: - | HP50: - | HS50: - | HU50: - | HV50: 2 | HW50: - | HX50: - | IA50: - | IC50: - | ID50: 2 | IE50: - | IF50: - | II50: - | IK50: - | IL50: 2 | IM50: - | IN50: - | IQ50: - | IS50: - | IU50: - | IV50: - | IW50: - | IX50: - | IY50: - | IZ50: - | JA50: - | JB50: - | JC50: - | JD50: - | JE50: - | JF50: - | JG50: - | JH50: - | JI50: - | JJ50: 2 | JK50: 1 | JL50: 1 | JM50: 0 | JN50: 2 | JO50: 2 | JP50: 2 | JQ50: 1 | JR50: 3 | JS50: 2 | JT50: 2 | JU50: 2 | JV50: 0 | JW50: 20 | JX50: 0 | JY50: 0 | JZ50: 0 | KA50: - | KB50: 0 | KF50: OUI | KG50: Peut mieux faire | KH50: Blâme
G51: 119 | O51: - | Q51: - | R51: 2 | S51: - | T51: - | W51: - | Y51: - | Z51: 1 | AA51: - | AB51: - | AE51: - | AG51: - | AH51: 1 | AI51: - | AJ51: - | AM51: - | AO51: - | AQ51: - | AR51: - | AU51: - | AW51: - | AX51: 2 | AY51: - | AZ51: - | BC51: - | BE51: - | BF51: 2 | BG51: - | BH51: - | BK51: - | BM51: - | BN51: 2 | BO51: - | BP51: - | BS51: - | BU51: - | BV51: 1 | BW51: - | BX51: - | CA51: - | CC51: - | CD51: 3 | CE51: - | CF51: - | CI51: - | CK51: - | CL51: 2 | CM51: - | CN51: - | CQ51: - | CS51: - | CT51: 2 | CU51: - | CV51: - | CY51: - | DA51: - | DB51: 2 | DC51: - | DD51: - | DG51: - | DI51: - | DK51: - | DL51: - | DM51: - | DN51: - | DO51: - | DP51: - | DQ51: - | DR51: - | DS51: - | DT51: - | DU51: - | DV51: - | DW51: - | DX51: - | DY51: - | DZ51: 2 | EA51: 1 | EB51: 1 | EC51: 0 | ED51: 2 | EE51: 2 | EF51: 2 | EG51: 1 | EH51: 3 | EI51: 2 | EJ51: 2 | EK51: 2 | EL51: 0 | EM51: 20 | EN51: 0 | EO51: 0 | EP51: 5 | EQ51: 10 | ES51: OUI | ET51: Très insuffisant. Risque l'exclusion | EU51: Blâme | EY51: - | FA51: - | FB51: 2 | FC51: - | FD51: - | FG51: - | FI51: - | FJ51: 1 | FK51: - | FL51: - | FO51: - | FQ51: - | FR51: 1 | FS51: - | FT51: - | FW51: - | FY51: - | GA51: - | GB51: - | GE51: - | GG51: - | GH51: 2 | GI51: - | GJ51: - | GM51: - | GO51: - | GP51: 2 | GQ51: - | GR51: - | GU51: - | GW51: - | GX51: 2 | GY51: - | GZ51: - | HC51: - | HE51: - | HF51: 1 | HG51: - | HH51: - | HK51: - | HM51: - | HN51: 3 | HO51: - | HP51: - | HS51: - | HU51: - | HV51: 2 | HW51: - | HX51: - | IA51: - | IC51: - | ID51: 2 | IE51: - | IF51: - | II51: - | IK51: - | IL51: 2 | IM51: - | IN51: - | IQ51: - | IS51: - | IU51: - | IV51: - | IW51: - | IX51: - | IY51: - | IZ51: - | JA51: - | JB51: - | JC51: - | JD51: - | JE51: - | JF51: - | JG51: - | JH51: - | JI51: - | JJ51: 2 | JK51: 1 | JL51: 1 | JM51: 0 | JN51: 2 | JO51: 2 | JP51: 2 | JQ51: 1 | JR51: 3 | JS51: 2 | JT51: 2 | JU51: 2 | JV51: 0 | JW51: 20 | JX51: 0 | JY51: 0 | JZ51: 0 | KA51: - | KB51: 0 | KF51: OUI | KG51: Peut mieux faire | KH51: Blâme
G52: 119 | O52: - | Q52: - | R52: 2 | S52: - | T52: - | W52: - | Y52: - | Z52: 1 | AA52: - | AB52: - | AE52: - | AG52: - | AH52: 1 | AI52: - | AJ52: - | AM52: - | AO52: - | AQ52: - | AR52: - | AU52: - | AW52: - | AX52: 2 | AY52: - | AZ52: - | BC52: - | BE52: - | BF52: 2 | BG52: - | BH52: - | BK52: - | BM52: - | BN52: 2 | BO52: - | BP52: - | BS52: - | BU52: - | BV52: 1 | BW52: - | BX52: - | CA52: - | CC52: - | CD52: 3 | CE52: - | CF52: - | CI52: - | CK52: - | CL52: 2 | CM52: - | CN52: - | CQ52: - | CS52: - | CT52: 2 | CU52: - | CV52: - | CY52: - | DA52: - | DB52: 2 | DC52: - | DD52: - | DG52: - | DI52: - | DK52: - | DL52: - | DM52: - | DN52: - | DO52: - | DP52: - | DQ52: - | DR52: - | DS52: - | DT52: - | DU52: - | DV52: - | DW52: - | DX52: - | DY52: - | DZ52: 2 | EA52: 1 | EB52: 1 | EC52: 0 | ED52: 2 | EE52: 2 | EF52: 2 | EG52: 1 | EH52: 3 | EI52: 2 | EJ52: 2 | EK52: 2 | EL52: 0 | EM52: 20 | EN52: 0 | EO52: 0 | EP52: 5 | EQ52: 10 | ES52: OUI | ET52: Très insuffisant. Risque l'exclusion | EU52: Blâme | EY52: - | FA52: - | FB52: 2 | FC52: - | FD52: - | FG52: - | FI52: - | FJ52: 1 | FK52: - | FL52: - | FO52: - | FQ52: - | FR52: 1 | FS52: - | FT52: - | FW52: - | FY52: - | GA52: - | GB52: - | GE52: - | GG52: - | GH52: 2 | GI52: - | GJ52: - | GM52: - | GO52: - | GP52: 2 | GQ52: - | GR52: - | GU52: - | GW52: - | GX52: 2 | GY52: - | GZ52: - | HC52: - | HE52: - | HF52: 1 | HG52: - | HH52: - | HK52: - | HM52: - | HN52: 3 | HO52: - | HP52: - | HS52: - | HU52: - | HV52: 2 | HW52: - | HX52: - | IA52: - | IC52: - | ID52: 2 | IE52: - | IF52: - | II52: - | IK52: - | IL52: 2 | IM52: - | IN52: - | IQ52: - | IS52: - | IU52: - | IV52: - | IW52: - | IX52: - | IY52: - | IZ52: - | JA52: - | JB52: - | JC52: - | JD52: - | JE52: - | JF52: - | JG52: - | JH52: - | JI52: - | JJ52: 2 | JK52: 1 | JL52: 1 | JM52: 0 | JN52: 2 | JO52: 2 | JP52: 2 | JQ52: 1 | JR52: 3 | JS52: 2 | JT52: 2 | JU52: 2 | JV52: 0 | JW52: 20 | JX52: 0 | JY52: 0 | JZ52: 0 | KA52: - | KB52: 0 | KF52: OUI | KG52: Peut mieux faire | KH52: Blâme
G53: 119 | O53: - | Q53: - | R53: 2 | S53: - | T53: - | W53: - | Y53: - | Z53: 1 | AA53: - | AB53: - | AE53: - | AG53: - | AH53: 1 | AI53: - | AJ53: - | AM53: - | AO53: - | AQ53: - | AR53: - | AU53: - | AW53: - | AX53: 2 | AY53: - | AZ53: - | BC53: - | BE53: - | BF53: 2 | BG53: - | BH53: - | BK53: - | BM53: - | BN53: 2 | BO53: - | BP53: - | BS53: - | BU53: - | BV53: 1 | BW53: - | BX53: - | CA53: - | CC53: - | CD53: 3 | CE53: - | CF53: - | CI53: - | CK53: - | CL53: 2 | CM53: - | CN53: - | CQ53: - | CS53: - | CT53: 2 | CU53: - | CV53: - | CY53: - | DA53: - | DB53: 2 | DC53: - | DD53: - | DG53: - | DI53: - | DK53: - | DL53: - | DM53: - | DN53: - | DO53: - | DP53: - | DQ53: - | DR53: - | DS53: - | DT53: - | DU53: - | DV53: - | DW53: - | DX53: - | DY53: - | DZ53: 2 | EA53: 1 | EB53: 1 | EC53: 0 | ED53: 2 | EE53: 2 | EF53: 2 | EG53: 1 | EH53: 3 | EI53: 2 | EJ53: 2 | EK53: 2 | EL53: 0 | EM53: 20 | EN53: 0 | EO53: 0 | EP53: 5 | EQ53: 10 | ES53: OUI | ET53: Très insuffisant. Risque l'exclusion | EU53: Blâme | EY53: - | FA53: - | FB53: 2 | FC53: - | FD53: - | FG53: - | FI53: - | FJ53: 1 | FK53: - | FL53: - | FO53: - | FQ53: - | FR53: 1 | FS53: - | FT53: - | FW53: - | FY53: - | GA53: - | GB53: - | GE53: - | GG53: - | GH53: 2 | GI53: - | GJ53: - | GM53: - | GO53: - | GP53: 2 | GQ53: - | GR53: - | GU53: - | GW53: - | GX53: 2 | GY53: - | GZ53: - | HC53: - | HE53: - | HF53: 1 | HG53: - | HH53: - | HK53: - | HM53: - | HN53: 3 | HO53: - | HP53: - | HS53: - | HU53: - | HV53: 2 | HW53: - | HX53: - | IA53: - | IC53: - | ID53: 2 | IE53: - | IF53: - | II53: - | IK53: - | IL53: 2 | IM53: - | IN53: - | IQ53: - | IS53: - | IU53: - | IV53: - | IW53: - | IX53: - | IY53: - | IZ53: - | JA53: - | JB53: - | JC53: - | JD53: - | JE53: - | JF53: - | JG53: - | JH53: - | JI53: - | JJ53: 2 | JK53: 1 | JL53: 1 | JM53: 0 | JN53: 2 | JO53: 2 | JP53: 2 | JQ53: 1 | JR53: 3 | JS53: 2 | JT53: 2 | JU53: 2 | JV53: 0 | JW53: 20 | JX53: 0 | JY53: 0 | JZ53: 0 | KA53: - | KB53: 0 | KF53: OUI | KG53: Peut mieux faire | KH53: Blâme
G54: 119 | O54: - | Q54: - | R54: 2 | S54: - | T54: - | W54: - | Y54: - | Z54: 1 | AA54: - | AB54: - | AE54: - | AG54: - | AH54: 1 | AI54: - | AJ54: - | AM54: - | AO54: - | AQ54: - | AR54: - | AU54: - | AW54: - | AX54: 2 | AY54: - | AZ54: - | BC54: - | BE54: - | BF54: 2 | BG54: - | BH54: - | BK54: - | BM54: - | BN54: 2 | BO54: - | BP54: - | BS54: - | BU54: - | BV54: 1 | BW54: - | BX54: - | CA54: - | CC54: - | CD54: 3 | CE54: - | CF54: - | CI54: - | CK54: - | CL54: 2 | CM54: - | CN54: - | CQ54: - | CS54: - | CT54: 2 | CU54: - | CV54: - | CY54: - | DA54: - | DB54: 2 | DC54: - | DD54: - | DG54: - | DI54: - | DK54: - | DL54: - | DM54: - | DN54: - | DO54: - | DP54: - | DQ54: - | DR54: - | DS54: - | DT54: - | DU54: - | DV54: - | DW54: - | DX54: - | DY54: - | DZ54: 2 | EA54: 1 | EB54: 1 | EC54: 0 | ED54: 2 | EE54: 2 | EF54: 2 | EG54: 1 | EH54: 3 | EI54: 2 | EJ54: 2 | EK54: 2 | EL54: 0 | EM54: 20 | EN54: 0 | EO54: 0 | EP54: 5 | EQ54: 10 | ES54: OUI | ET54: Très insuffisant. Risque l'exclusion | EU54: Blâme | EY54: - | FA54: - | FB54: 2 | FC54: - | FD54: - | FG54: - | FI54: - | FJ54: 1 | FK54: - | FL54: - | FO54: - | FQ54: - | FR54: 1 | FS54: - | FT54: - | FW54: - | FY54: - | GA54: - | GB54: - | GE54: - | GG54: - | GH54: 2 | GI54: - | GJ54: - | GM54: - | GO54: - | GP54: 2 | GQ54: - | GR54: - | GU54: - | GW54: - | GX54: 2 | GY54: - | GZ54: - | HC54: - | HE54: - | HF54: 1 | HG54: - | HH54: - | HK54: - | HM54: - | HN54: 3 | HO54: - | HP54: - | HS54: - | HU54: - | HV54: 2 | HW54: - | HX54: - | IA54: - | IC54: - | ID54: 2 | IE54: - | IF54: - | II54: - | IK54: - | IL54: 2 | IM54: - | IN54: - | IQ54: - | IS54: - | IU54: - | IV54: - | IW54: - | IX54: - | IY54: - | IZ54: - | JA54: - | JB54: - | JC54: - | JD54: - | JE54: - | JF54: - | JG54: - | JH54: - | JI54: - | JJ54: 2 | JK54: 1 | JL54: 1 | JM54: 0 | JN54: 2 | JO54: 2 | JP54: 2 | JQ54: 1 | JR54: 3 | JS54: 2 | JT54: 2 | JU54: 2 | JV54: 0 | JW54: 20 | JX54: 0 | JY54: 0 | JZ54: 0 | KA54: - | KB54: 0 | KF54: OUI | KG54: Peut mieux faire | KH54: Blâme
G55: 119 | O55: - | Q55: - | R55: 2 | S55: - | T55: - | W55: - | Y55: - | Z55: 1 | AA55: - | AB55: - | AE55: - | AG55: - | AH55: 1 | AI55: - | AJ55: - | AM55: - | AO55: - | AQ55: - | AR55: - | AU55: - | AW55: - | AX55: 2 | AY55: - | AZ55: - | BC55: - | BE55: - | BF55: 2 | BG55: - | BH55: - | BK55: - | BM55: - | BN55: 2 | BO55: - | BP55: - | BS55: - | BU55: - | BV55: 1 | BW55: - | BX55: - | CA55: - | CC55: - | CD55: 3 | CE55: - | CF55: - | CI55: - | CK55: - | CL55: 2 | CM55: - | CN55: - | CQ55: - | CS55: - | CT55: 2 | CU55: - | CV55: - | CY55: - | DA55: - | DB55: 2 | DC55: - | DD55: - | DG55: - | DI55: - | DK55: - | DL55: - | DM55: - | DN55: - | DO55: - | DP55: - | DQ55: - | DR55: - | DS55: - | DT55: - | DU55: - | DV55: - | DW55: - | DX55: - | DY55: - | DZ55: 2 | EA55: 1 | EB55: 1 | EC55: 0 | ED55: 2 | EE55: 2 | EF55: 2 | EG55: 1 | EH55: 3 | EI55: 2 | EJ55: 2 | EK55: 2 | EL55: 0 | EM55: 20 | EN55: 0 | EO55: 0 | EP55: 5 | EQ55: 10 | ES55: OUI | ET55: Très insuffisant. Risque l'exclusion | EU55: Blâme | EY55: - | FA55: - | FB55: 2 | FC55: - | FD55: - | FG55: - | FI55: - | FJ55: 1 | FK55: - | FL55: - | FO55: - | FQ55: - | FR55: 1 | FS55: - | FT55: - | FW55: - | FY55: - | GA55: - | GB55: - | GE55: - | GG55: - | GH55: 2 | GI55: - | GJ55: - | GM55: - | GO55: - | GP55: 2 | GQ55: - | GR55: - | GU55: - | GW55: - | GX55: 2 | GY55: - | GZ55: - | HC55: - | HE55: - | HF55: 1 | HG55: - | HH55: - | HK55: - | HM55: - | HN55: 3 | HO55: - | HP55: - | HS55: - | HU55: - | HV55: 2 | HW55: - | HX55: - | IA55: - | IC55: - | ID55: 2 | IE55: - | IF55: - | II55: - | IK55: - | IL55: 2 | IM55: - | IN55: - | IQ55: - | IS55: - | IU55: - | IV55: - | IW55: - | IX55: - | IY55: - | IZ55: - | JA55: - | JB55: - | JC55: - | JD55: - | JE55: - | JF55: - | JG55: - | JH55: - | JI55: - | JJ55: 2 | JK55: 1 | JL55: 1 | JM55: 0 | JN55: 2 | JO55: 2 | JP55: 2 | JQ55: 1 | JR55: 3 | JS55: 2 | JT55: 2 | JU55: 2 | JV55: 0 | JW55: 20 | JX55: 0 | JY55: 0 | JZ55: 0 | KA55: - | KB55: 0 | KF55: OUI | KG55: Peut mieux faire | KH55: Blâme
G56: 119 | O56: - | Q56: - | R56: 2 | S56: - | T56: - | W56: - | Y56: - | Z56: 1 | AA56: - | AB56: - | AE56: - | AG56: - | AH56: 1 | AI56: - | AJ56: - | AM56: - | AO56: - | AQ56: - | AR56: - | AU56: - | AW56: - | AX56: 2 | AY56: - | AZ56: - | BC56: - | BE56: - | BF56: 2 | BG56: - | BH56: - | BK56: - | BM56: - | BN56: 2 | BO56: - | BP56: - | BS56: - | BU56: - | BV56: 1 | BW56: - | BX56: - | CA56: - | CC56: - | CD56: 3 | CE56: - | CF56: - | CI56: - | CK56: - | CL56: 2 | CM56: - | CN56: - | CQ56: - | CS56: - | CT56: 2 | CU56: - | CV56: - | CY56: - | DA56: - | DB56: 2 | DC56: - | DD56: - | DG56: - | DI56: - | DK56: - | DL56: - | DM56: - | DN56: - | DO56: - | DP56: - | DQ56: - | DR56: - | DS56: - | DT56: - | DU56: - | DV56: - | DW56: - | DX56: - | DY56: - | DZ56: 2 | EA56: 1 | EB56: 1 | EC56: 0 | ED56: 2 | EE56: 2 | EF56: 2 | EG56: 1 | EH56: 3 | EI56: 2 | EJ56: 2 | EK56: 2 | EL56: 0 | EM56: 20 | EN56: 0 | EO56: 0 | EP56: 5 | EQ56: 10 | ES56: OUI | ET56: Très insuffisant. Risque l'exclusion | EU56: Blâme | EY56: - | FA56: - | FB56: 2 | FC56: - | FD56: - | FG56: - | FI56: - | FJ56: 1 | FK56: - | FL56: - | FO56: - | FQ56: - | FR56: 1 | FS56: - | FT56: - | FW56: - | FY56: - | GA56: - | GB56: - | GE56: - | GG56: - | GH56: 2 | GI56: - | GJ56: - | GM56: - | GO56: - | GP56: 2 | GQ56: - | GR56: - | GU56: - | GW56: - | GX56: 2 | GY56: - | GZ56: - | HC56: - | HE56: - | HF56: 1 | HG56: - | HH56: - | HK56: - | HM56: - | HN56: 3 | HO56: - | HP56: - | HS56: - | HU56: - | HV56: 2 | HW56: - | HX56: - | IA56: - | IC56: - | ID56: 2 | IE56: - | IF56: - | II56: - | IK56: - | IL56: 2 | IM56: - | IN56: - | IQ56: - | IS56: - | IU56: - | IV56: - | IW56: - | IX56: - | IY56: - | IZ56: - | JA56: - | JB56: - | JC56: - | JD56: - | JE56: - | JF56: - | JG56: - | JH56: - | JI56: - | JJ56: 2 | JK56: 1 | JL56: 1 | JM56: 0 | JN56: 2 | JO56: 2 | JP56: 2 | JQ56: 1 | JR56: 3 | JS56: 2 | JT56: 2 | JU56: 2 | JV56: 0 | JW56: 20 | JX56: 0 | JY56: 0 | JZ56: 0 | KA56: - | KB56: 0 | KF56: OUI | KG56: Peut mieux faire | KH56: Blâme
G57: 119 | O57: - | Q57: - | R57: 2 | S57: - | T57: - | W57: - | Y57: - | Z57: 1 | AA57: - | AB57: - | AE57: - | AG57: - | AH57: 1 | AI57: - | AJ57: - | AM57: - | AO57: - | AQ57: - | AR57: - | AU57: - | AW57: - | AX57: 2 | AY57: - | AZ57: - | BC57: - | BE57: - | BF57: 2 | BG57: - | BH57: - | BK57: - | BM57: - | BN57: 2 | BO57: - | BP57: - | BS57: - | BU57: - | BV57: 1 | BW57: - | BX57: - | CA57: - | CC57: - | CD57: 3 | CE57: - | CF57: - | CI57: - | CK57: - | CL57: 2 | CM57: - | CN57: - | CQ57: - | CS57: - | CT57: 2 | CU57: - | CV57: - | CY57: - | DA57: - | DB57: 2 | DC57: - | DD57: - | DG57: - | DI57: - | DK57: - | DL57: - | DM57: - | DN57: - | DO57: - | DP57: - | DQ57: - | DR57: - | DS57: - | DT57: - | DU57: - | DV57: - | DW57: - | DX57: - | DY57: - | DZ57: 2 | EA57: 1 | EB57: 1 | EC57: 0 | ED57: 2 | EE57: 2 | EF57: 2 | EG57: 1 | EH57: 3 | EI57: 2 | EJ57: 2 | EK57: 2 | EL57: 0 | EM57: 20 | EN57: 0 | EO57: 0 | EP57: 5 | EQ57: 10 | ES57: OUI | ET57: Très insuffisant. Risque l'exclusion | EU57: Blâme | EY57: - | FA57: - | FB57: 2 | FC57: - | FD57: - | FG57: - | FI57: - | FJ57: 1 | FK57: - | FL57: - | FO57: - | FQ57: - | FR57: 1 | FS57: - | FT57: - | FW57: - | FY57: - | GA57: - | GB57: - | GE57: - | GG57: - | GH57: 2 | GI57: - | GJ57: - | GM57: - | GO57: - | GP57: 2 | GQ57: - | GR57: - | GU57: - | GW57: - | GX57: 2 | GY57: - | GZ57: - | HC57: - | HE57: - | HF57: 1 | HG57: - | HH57: - | HK57: - | HM57: - | HN57: 3 | HO57: - | HP57: - | HS57: - | HU57: - | HV57: 2 | HW57: - | HX57: - | IA57: - | IC57: - | ID57: 2 | IE57: - | IF57: - | II57: - | IK57: - | IL57: 2 | IM57: - | IN57: - | IQ57: - | IS57: - | IU57: - | IV57: - | IW57: - | IX57: - | IY57: - | IZ57: - | JA57: - | JB57: - | JC57: - | JD57: - | JE57: - | JF57: - | JG57: - | JH57: - | JI57: - | JJ57: 2 | JK57: 1 | JL57: 1 | JM57: 0 | JN57: 2 | JO57: 2 | JP57: 2 | JQ57: 1 | JR57: 3 | JS57: 2 | JT57: 2 | JU57: 2 | JV57: 0 | JW57: 20 | JX57: 0 | JY57: 0 | JZ57: 0 | KA57: - | KB57: 0 | KF57: OUI | KG57: Peut mieux faire | KH57: Blâme
G58: 119 | O58: - | Q58: - | R58: 2 | S58: - | T58: - | W58: - | Y58: - | Z58: 1 | AA58: - | AB58: - | AE58: - | AG58: - | AH58: 1 | AI58: - | AJ58: - | AM58: - | AO58: - | AQ58: - | AR58: - | AU58: - | AW58: - | AX58: 2 | AY58: - | AZ58: - | BC58: - | BE58: - | BF58: 2 | BG58: - | BH58: - | BK58: - | BM58: - | BN58: 2 | BO58: - | BP58: - | BS58: - | BU58: - | BV58: 1 | BW58: - | BX58: - | CA58: - | CC58: - | CD58: 3 | CE58: - | CF58: - | CI58: - | CK58: - | CL58: 2 | CM58: - | CN58: - | CQ58: - | CS58: - | CT58: 2 | CU58: - | CV58: - | CY58: - | DA58: - | DB58: 2 | DC58: - | DD58: - | DG58: - | DI58: - | DK58: - | DL58: - | DM58: - | DN58: - | DO58: - | DP58: - | DQ58: - | DR58: - | DS58: - | DT58: - | DU58: - | DV58: - | DW58: - | DX58: - | DY58: - | DZ58: 2 | EA58: 1 | EB58: 1 | EC58: 0 | ED58: 2 | EE58: 2 | EF58: 2 | EG58: 1 | EH58: 3 | EI58: 2 | EJ58: 2 | EK58: 2 | EL58: 0 | EM58: 20 | EN58: 0 | EO58: 0 | EP58: 5 | EQ58: 10 | ES58: OUI | ET58: Très insuffisant. Risque l'exclusion | EU58: Blâme | EY58: - | FA58: - | FB58: 2 | FC58: - | FD58: - | FG58: - | FI58: - | FJ58: 1 | FK58: - | FL58: - | FO58: - | FQ58: - | FR58: 1 | FS58: - | FT58: - | FW58: - | FY58: - | GA58: - | GB58: - | GE58: - | GG58: - | GH58: 2 | GI58: - | GJ58: - | GM58: - | GO58: - | GP58: 2 | GQ58: - | GR58: - | GU58: - | GW58: - | GX58: 2 | GY58: - | GZ58: - | HC58: - | HE58: - | HF58: 1 | HG58: - | HH58: - | HK58: - | HM58: - | HN58: 3 | HO58: - | HP58: - | HS58: - | HU58: - | HV58: 2 | HW58: - | HX58: - | IA58: - | IC58: - | ID58: 2 | IE58: - | IF58: - | II58: - | IK58: - | IL58: 2 | IM58: - | IN58: - | IQ58: - | IS58: - | IU58: - | IV58: - | IW58: - | IX58: - | IY58: - | IZ58: - | JA58: - | JB58: - | JC58: - | JD58: - | JE58: - | JF58: - | JG58: - | JH58: - | JI58: - | JJ58: 2 | JK58: 1 | JL58: 1 | JM58: 0 | JN58: 2 | JO58: 2 | JP58: 2 | JQ58: 1 | JR58: 3 | JS58: 2 | JT58: 2 | JU58: 2 | JV58: 0 | JW58: 20 | JX58: 0 | JY58: 0 | JZ58: 0 | KA58: - | KB58: 0 | KF58: OUI | KG58: Peut mieux faire | KH58: Blâme
G59: 119 | O59: - | Q59: - | R59: 2 | S59: - | T59: - | W59: - | Y59: - | Z59: 1 | AA59: - | AB59: - | AE59: - | AG59: - | AH59: 1 | AI59: - | AJ59: - | AM59: - | AO59: - | AQ59: - | AR59: - | AU59: - | AW59: - | AX59: 2 | AY59: - | AZ59: - | BC59: - | BE59: - | BF59: 2 | BG59: - | BH59: - | BK59: - | BM59: - | BN59: 2 | BO59: - | BP59: - | BS59: - | BU59: - | BV59: 1 | BW59: - | BX59: - | CA59: - | CC59: - | CD59: 3 | CE59: - | CF59: - | CI59: - | CK59: - | CL59: 2 | CM59: - | CN59: - | CQ59: - | CS59: - | CT59: 2 | CU59: - | CV59: - | CY59: - | DA59: - | DB59: 2 | DC59: - | DD59: - | DG59: - | DI59: - | DK59: - | DL59: - | DM59: - | DN59: - | DO59: - | DP59: - | DQ59: - | DR59: - | DS59: - | DT59: - | DU59: - | DV59: - | DW59: - | DX59: - | DY59: - | DZ59: 2 | EA59: 1 | EB59: 1 | EC59: 0 | ED59: 2 | EE59: 2 | EF59: 2 | EG59: 1 | EH59: 3 | EI59: 2 | EJ59: 2 | EK59: 2 | EL59: 0 | EM59: 20 | EN59: 0 | EO59: 0 | EP59: 5 | EQ59: 10 | ES59: OUI | ET59: Très insuffisant. Risque l'exclusion | EU59: Blâme | EY59: - | FA59: - | FB59: 2 | FC59: - | FD59: - | FG59: - | FI59: - | FJ59: 1 | FK59: - | FL59: - | FO59: - | FQ59: - | FR59: 1 | FS59: - | FT59: - | FW59: - | FY59: - | GA59: - | GB59: - | GE59: - | GG59: - | GH59: 2 | GI59: - | GJ59: - | GM59: - | GO59: - | GP59: 2 | GQ59: - | GR59: - | GU59: - | GW59: - | GX59: 2 | GY59: - | GZ59: - | HC59: - | HE59: - | HF59: 1 | HG59: - | HH59: - | HK59: - | HM59: - | HN59: 3 | HO59: - | HP59: - | HS59: - | HU59: - | HV59: 2 | HW59: - | HX59: - | IA59: - | IC59: - | ID59: 2 | IE59: - | IF59: - | II59: - | IK59: - | IL59: 2 | IM59: - | IN59: - | IQ59: - | IS59: - | IU59: - | IV59: - | IW59: - | IX59: - | IY59: - | IZ59: - | JA59: - | JB59: - | JC59: - | JD59: - | JE59: - | JF59: - | JG59: - | JH59: - | JI59: - | JJ59: 2 | JK59: 1 | JL59: 1 | JM59: 0 | JN59: 2 | JO59: 2 | JP59: 2 | JQ59: 1 | JR59: 3 | JS59: 2 | JT59: 2 | JU59: 2 | JV59: 0 | JW59: 20 | JX59: 0 | JY59: 0 | JZ59: 0 | KA59: - | KB59: 0 | KF59: OUI | KG59: Peut mieux faire | KH59: Blâme
G60: 119 | O60: - | Q60: - | R60: 2 | S60: - | T60: - | W60: - | Y60: - | Z60: 1 | AA60: - | AB60: - | AE60: - | AG60: - | AH60: 1 | AI60: - | AJ60: - | AM60: - | AO60: - | AQ60: - | AR60: - | AU60: - | AW60: - | AX60: 2 | AY60: - | AZ60: - | BC60: - | BE60: - | BF60: 2 | BG60: - | BH60: - | BK60: - | BM60: - | BN60: 2 | BO60: - | BP60: - | BS60: - | BU60: - | BV60: 1 | BW60: - | BX60: - | CA60: - | CC60: - | CD60: 3 | CE60: - | CF60: - | CI60: - | CK60: - | CL60: 2 | CM60: - | CN60: - | CQ60: - | CS60: - | CT60: 2 | CU60: - | CV60: - | CY60: - | DA60: - | DB60: 2 | DC60: - | DD60: - | DG60: - | DI60: - | DK60: - | DL60: - | DM60: - | DN60: - | DO60: - | DP60: - | DQ60: - | DR60: - | DS60: - | DT60: - | DU60: - | DV60: - | DW60: - | DX60: - | DY60: - | DZ60: 2 | EA60: 1 | EB60: 1 | EC60: 0 | ED60: 2 | EE60: 2 | EF60: 2 | EG60: 1 | EH60: 3 | EI60: 2 | EJ60: 2 | EK60: 2 | EL60: 0 | EM60: 20 | EN60: 0 | EO60: 0 | EP60: 5 | EQ60: 10 | ES60: OUI | ET60: Très insuffisant. Risque l'exclusion | EU60: Blâme | EY60: - | FA60: - | FB60: 2 | FC60: - | FD60: - | FG60: - | FI60: - | FJ60: 1 | FK60: - | FL60: - | FO60: - | FQ60: - | FR60: 1 | FS60: - | FT60: - | FW60: - | FY60: - | GA60: - | GB60: - | GE60: - | GG60: - | GH60: 2 | GI60: - | GJ60: - | GM60: - | GO60: - | GP60: 2 | GQ60: - | GR60: - | GU60: - | GW60: - | GX60: 2 | GY60: - | GZ60: - | HC60: - | HE60: - | HF60: 1 | HG60: - | HH60: - | HK60: - | HM60: - | HN60: 3 | HO60: - | HP60: - | HS60: - | HU60: - | HV60: 2 | HW60: - | HX60: - | IA60: - | IC60: - | ID60: 2 | IE60: - | IF60: - | II60: - | IK60: - | IL60: 2 | IM60: - | IN60: - | IQ60: - | IS60: - | IU60: - | IV60: - | IW60: - | IX60: - | IY60: - | IZ60: - | JA60: - | JB60: - | JC60: - | JD60: - | JE60: - | JF60: - | JG60: - | JH60: - | JI60: - | JJ60: 2 | JK60: 1 | JL60: 1 | JM60: 0 | JN60: 2 | JO60: 2 | JP60: 2 | JQ60: 1 | JR60: 3 | JS60: 2 | JT60: 2 | JU60: 2 | JV60: 0 | JW60: 20 | JX60: 0 | JY60: 0 | JZ60: 0 | KA60: - | KB60: 0 | KF60: OUI | KG60: Peut mieux faire | KH60: Blâme
G61: 119 | O61: - | Q61: - | R61: 2 | S61: - | T61: - | W61: - | Y61: - | Z61: 1 | AA61: - | AB61: - | AE61: - | AG61: - | AH61: 1 | AI61: - | AJ61: - | AM61: - | AO61: - | AQ61: - | AR61: - | AU61: - | AW61: - | AX61: 2 | AY61: - | AZ61: - | BC61: - | BE61: - | BF61: 2 | BG61: - | BH61: - | BK61: - | BM61: - | BN61: 2 | BO61: - | BP61: - | BS61: - | BU61: - | BV61: 1 | BW61: - | BX61: - | CA61: - | CC61: - | CD61: 3 | CE61: - | CF61: - | CI61: - | CK61: - | CL61: 2 | CM61: - | CN61: - | CQ61: - | CS61: - | CT61: 2 | CU61: - | CV61: - | CY61: - | DA61: - | DB61: 2 | DC61: - | DD61: - | DG61: - | DI61: - | DK61: - | DL61: - | DM61: - | DN61: - | DO61: - | DP61: - | DQ61: - | DR61: - | DS61: - | DT61: - | DU61: - | DV61: - | DW61: - | DX61: - | DY61: - | DZ61: 2 | EA61: 1 | EB61: 1 | EC61: 0 | ED61: 2 | EE61: 2 | EF61: 2 | EG61: 1 | EH61: 3 | EI61: 2 | EJ61: 2 | EK61: 2 | EL61: 0 | EM61: 20 | EN61: 0 | EO61: 0 | EP61: 5 | EQ61: 10 | ES61: OUI | ET61: Très insuffisant. Risque l'exclusion | EU61: Blâme | EY61: - | FA61: - | FB61: 2 | FC61: - | FD61: - | FG61: - | FI61: - | FJ61: 1 | FK61: - | FL61: - | FO61: - | FQ61: - | FR61: 1 | FS61: - | FT61: - | FW61: - | FY61: - | GA61: - | GB61: - | GE61: - | GG61: - | GH61: 2 | GI61: - | GJ61: - | GM61: - | GO61: - | GP61: 2 | GQ61: - | GR61: - | GU61: - | GW61: - | GX61: 2 | GY61: - | GZ61: - | HC61: - | HE61: - | HF61: 1 | HG61: - | HH61: - | HK61: - | HM61: - | HN61: 3 | HO61: - | HP61: - | HS61: - | HU61: - | HV61: 2 | HW61: - | HX61: - | IA61: - | IC61: - | ID61: 2 | IE61: - | IF61: - | II61: - | IK61: - | IL61: 2 | IM61: - | IN61: - | IQ61: - | IS61: - | IU61: - | IV61: - | IW61: - | IX61: - | IY61: - | IZ61: - | JA61: - | JB61: - | JC61: - | JD61: - | JE61: - | JF61: - | JG61: - | JH61: - | JI61: - | JJ61: 2 | JK61: 1 | JL61: 1 | JM61: 0 | JN61: 2 | JO61: 2 | JP61: 2 | JQ61: 1 | JR61: 3 | JS61: 2 | JT61: 2 | JU61: 2 | JV61: 0 | JW61: 20 | JX61: 0 | JY61: 0 | JZ61: 0 | KA61: - | KB61: 0 | KF61: OUI | KG61: Peut mieux faire | KH61: Blâme
G62: 119 | O62: - | Q62: - | R62: 2 | S62: - | T62: - | W62: - | Y62: - | Z62: 1 | AA62: - | AB62: - | AE62: - | AG62: - | AH62: 1 | AI62: - | AJ62: - | AM62: - | AO62: - | AQ62: - | AR62: - | AU62: - | AW62: - | AX62: 2 | AY62: - | AZ62: - | BC62: - | BE62: - | BF62: 2 | BG62: - | BH62: - | BK62: - | BM62: - | BN62: 2 | BO62: - | BP62: - | BS62: - | BU62: - | BV62: 1 | BW62: - | BX62: - | CA62: - | CC62: - | CD62: 3 | CE62: - | CF62: - | CI62: - | CK62: - | CL62: 2 | CM62: - | CN62: - | CQ62: - | CS62: - | CT62: 2 | CU62: - | CV62: - | CY62: - | DA62: - | DB62: 2 | DC62: - | DD62: - | DG62: - | DI62: - | DK62: - | DL62: - | DM62: - | DN62: - | DO62: - | DP62: - | DQ62: - | DR62: - | DS62: - | DT62: - | DU62: - | DV62: - | DW62: - | DX62: - | DY62: - | DZ62: 2 | EA62: 1 | EB62: 1 | EC62: 0 | ED62: 2 | EE62: 2 | EF62: 2 | EG62: 1 | EH62: 3 | EI62: 2 | EJ62: 2 | EK62: 2 | EL62: 0 | EM62: 20 | EN62: 0 | EO62: 0 | EP62: 5 | EQ62: 10 | ES62: OUI | ET62: Très insuffisant. Risque l'exclusion | EU62: Blâme | EY62: - | FA62: - | FB62: 2 | FC62: - | FD62: - | FG62: - | FI62: - | FJ62: 1 | FK62: - | FL62: - | FO62: - | FQ62: - | FR62: 1 | FS62: - | FT62: - | FW62: - | FY62: - | GA62: - | GB62: - | GE62: - | GG62: - | GH62: 2 | GI62: - | GJ62: - | GM62: - | GO62: - | GP62: 2 | GQ62: - | GR62: - | GU62: - | GW62: - | GX62: 2 | GY62: - | GZ62: - | HC62: - | HE62: - | HF62: 1 | HG62: - | HH62: - | HK62: - | HM62: - | HN62: 3 | HO62: - | HP62: - | HS62: - | HU62: - | HV62: 2 | HW62: - | HX62: - | IA62: - | IC62: - | ID62: 2 | IE62: - | IF62: - | II62: - | IK62: - | IL62: 2 | IM62: - | IN62: - | IQ62: - | IS62: - | IU62: - | IV62: - | IW62: - | IX62: - | IY62: - | IZ62: - | JA62: - | JB62: - | JC62: - | JD62: - | JE62: - | JF62: - | JG62: - | JH62: - | JI62: - | JJ62: 2 | JK62: 1 | JL62: 1 | JM62: 0 | JN62: 2 | JO62: 2 | JP62: 2 | JQ62: 1 | JR62: 3 | JS62: 2 | JT62: 2 | JU62: 2 | JV62: 0 | JW62: 20 | JX62: 0 | JY62: 0 | JZ62: 0 | KA62: - | KB62: 0 | KF62: OUI | KG62: Peut mieux faire | KH62: Blâme
G63: 119 | O63: - | Q63: - | R63: 2 | S63: - | T63: - | W63: - | Y63: - | Z63: 1 | AA63: - | AB63: - | AE63: - | AG63: - | AH63: 1 | AI63: - | AJ63: - | AM63: - | AO63: - | AQ63: - | AR63: - | AU63: - | AW63: - | AX63: 2 | AY63: - | AZ63: - | BC63: - | BE63: - | BF63: 2 | BG63: - | BH63: - | BK63: - | BM63: - | BN63: 2 | BO63: - | BP63: - | BS63: - | BU63: - | BV63: 1 | BW63: - | BX63: - | CA63: - | CC63: - | CD63: 3 | CE63: - | CF63: - | CI63: - | CK63: - | CL63: 2 | CM63: - | CN63: - | CQ63: - | CS63: - | CT63: 2 | CU63: - | CV63: - | CY63: - | DA63: - | DB63: 2 | DC63: - | DD63: - | DG63: - | DI63: - | DK63: - | DL63: - | DM63: - | DN63: - | DO63: - | DP63: - | DQ63: - | DR63: - | DS63: - | DT63: - | DU63: - | DV63: - | DW63: - | DX63: - | DY63: - | DZ63: 2 | EA63: 1 | EB63: 1 | EC63: 0 | ED63: 2 | EE63: 2 | EF63: 2 | EG63: 1 | EH63: 3 | EI63: 2 | EJ63: 2 | EK63: 2 | EL63: 0 | EM63: 20 | EN63: 0 | EO63: 0 | EP63: 5 | EQ63: 10 | ES63: OUI | ET63: Très insuffisant. Risque l'exclusion | EU63: Blâme | EY63: - | FA63: - | FB63: 2 | FC63: - | FD63: - | FG63: - | FI63: - | FJ63: 1 | FK63: - | FL63: - | FO63: - | FQ63: - | FR63: 1 | FS63: - | FT63: - | FW63: - | FY63: - | GA63: - | GB63: - | GE63: - | GG63: - | GH63: 2 | GI63: - | GJ63: - | GM63: - | GO63: - | GP63: 2 | GQ63: - | GR63: - | GU63: - | GW63: - | GX63: 2 | GY63: - | GZ63: - | HC63: - | HE63: - | HF63: 1 | HG63: - | HH63: - | HK63: - | HM63: - | HN63: 3 | HO63: - | HP63: - | HS63: - | HU63: - | HV63: 2 | HW63: - | HX63: - | IA63: - | IC63: - | ID63: 2 | IE63: - | IF63: - | II63: - | IK63: - | IL63: 2 | IM63: - | IN63: - | IQ63: - | IS63: - | IU63: - | IV63: - | IW63: - | IX63: - | IY63: - | IZ63: - | JA63: - | JB63: - | JC63: - | JD63: - | JE63: - | JF63: - | JG63: - | JH63: - | JI63: - | JJ63: 2 | JK63: 1 | JL63: 1 | JM63: 0 | JN63: 2 | JO63: 2 | JP63: 2 | JQ63: 1 | JR63: 3 | JS63: 2 | JT63: 2 | JU63: 2 | JV63: 0 | JW63: 20 | JX63: 0 | JY63: 0 | JZ63: 0 | KA63: - | KB63: 0 | KF63: OUI | KG63: Peut mieux faire | KH63: Blâme
G64: 119 | O64: - | Q64: - | R64: 2 | S64: - | T64: - | W64: - | Y64: - | Z64: 1 | AA64: - | AB64: - | AE64: - | AG64: - | AH64: 1 | AI64: - | AJ64: - | AM64: - | AO64: - | AQ64: - | AR64: - | AU64: - | AW64: - | AX64: 2 | AY64: - | AZ64: - | BC64: - | BE64: - | BF64: 2 | BG64: - | BH64: - | BK64: - | BM64: - | BN64: 2 | BO64: - | BP64: - | BS64: - | BU64: - | BV64: 1 | BW64: - | BX64: - | CA64: - | CC64: - | CD64: 3 | CE64: - | CF64: - | CI64: - | CK64: - | CL64: 2 | CM64: - | CN64: - | CQ64: - | CS64: - | CT64: 2 | CU64: - | CV64: - | CY64: - | DA64: - | DB64: 2 | DC64: - | DD64: - | DG64: - | DI64: - | DK64: - | DL64: - | DM64: - | DN64: - | DO64: - | DP64: - | DQ64: - | DR64: - | DS64: - | DT64: - | DU64: - | DV64: - | DW64: - | DX64: - | DY64: - | DZ64: 2 | EA64: 1 | EB64: 1 | EC64: 0 | ED64: 2 | EE64: 2 | EF64: 2 | EG64: 1 | EH64: 3 | EI64: 2 | EJ64: 2 | EK64: 2 | EL64: 0 | EM64: 20 | EN64: 0 | EO64: 0 | EP64: 5 | EQ64: 10 | ES64: OUI | ET64: Très insuffisant. Risque l'exclusion | EU64: Blâme | EY64: - | FA64: - | FB64: 2 | FC64: - | FD64: - | FG64: - | FI64: - | FJ64: 1 | FK64: - | FL64: - | FO64: - | FQ64: - | FR64: 1 | FS64: - | FT64: - | FW64: - | FY64: - | GA64: - | GB64: - | GE64: - | GG64: - | GH64: 2 | GI64: - | GJ64: - | GM64: - | GO64: - | GP64: 2 | GQ64: - | GR64: - | GU64: - | GW64: - | GX64: 2 | GY64: - | GZ64: - | HC64: - | HE64: - | HF64: 1 | HG64: - | HH64: - | HK64: - | HM64: - | HN64: 3 | HO64: - | HP64: - | HS64: - | HU64: - | HV64: 2 | HW64: - | HX64: - | IA64: - | IC64: - | ID64: 2 | IE64: - | IF64: - | II64: - | IK64: - | IL64: 2 | IM64: - | IN64: - | IQ64: - | IS64: - | IU64: - | IV64: - | IW64: - | IX64: - | IY64: - | IZ64: - | JA64: - | JB64: - | JC64: - | JD64: - | JE64: - | JF64: - | JG64: - | JH64: - | JI64: - | JJ64: 2 | JK64: 1 | JL64: 1 | JM64: 0 | JN64: 2 | JO64: 2 | JP64: 2 | JQ64: 1 | JR64: 3 | JS64: 2 | JT64: 2 | JU64: 2 | JV64: 0 | JW64: 20 | JX64: 0 | JY64: 0 | JZ64: 0 | KA64: - | KB64: 0 | KF64: OUI | KG64: Peut mieux faire | KH64: Blâme
G65: 119 | O65: - | Q65: - | R65: 2 | S65: - | T65: - | W65: - | Y65: - | Z65: 1 | AA65: - | AB65: - | AE65: - | AG65: - | AH65: 1 | AI65: - | AJ65: - | AM65: - | AO65: - | AQ65: - | AR65: - | AU65: - | AW65: - | AX65: 2 | AY65: - | AZ65: - | BC65: - | BE65: - | BF65: 2 | BG65: - | BH65: - | BK65: - | BM65: - | BN65: 2 | BO65: - | BP65: - | BS65: - | BU65: - | BV65: 1 | BW65: - | BX65: - | CA65: - | CC65: - | CD65: 3 | CE65: - | CF65: - | CI65: - | CK65: - | CL65: 2 | CM65: - | CN65: - | CQ65: - | CS65: - | CT65: 2 | CU65: - | CV65: - | CY65: - | DA65: - | DB65: 2 | DC65: - | DD65: - | DG65: - | DI65: - | DK65: - | DL65: - | DM65: - | DN65: - | DO65: - | DP65: - | DQ65: - | DR65: - | DS65: - | DT65: - | DU65: - | DV65: - | DW65: - | DX65: - | DY65: - | DZ65: 2 | EA65: 1 | EB65: 1 | EC65: 0 | ED65: 2 | EE65: 2 | EF65: 2 | EG65: 1 | EH65: 3 | EI65: 2 | EJ65: 2 | EK65: 2 | EL65: 0 | EM65: 20 | EN65: 0 | EO65: 0 | EP65: 5 | EQ65: 10 | ES65: OUI | ET65: Très insuffisant. Risque l'exclusion | EU65: Blâme | EY65: - | FA65: - | FB65: 2 | FC65: - | FD65: - | FG65: - | FI65: - | FJ65: 1 | FK65: - | FL65: - | FO65: - | FQ65: - | FR65: 1 | FS65: - | FT65: - | FW65: - | FY65: - | GA65: - | GB65: - | GE65: - | GG65: - | GH65: 2 | GI65: - | GJ65: - | GM65: - | GO65: - | GP65: 2 | GQ65: - | GR65: - | GU65: - | GW65: - | GX65: 2 | GY65: - | GZ65: - | HC65: - | HE65: - | HF65: 1 | HG65: - | HH65: - | HK65: - | HM65: - | HN65: 3 | HO65: - | HP65: - | HS65: - | HU65: - | HV65: 2 | HW65: - | HX65: - | IA65: - | IC65: - | ID65: 2 | IE65: - | IF65: - | II65: - | IK65: - | IL65: 2 | IM65: - | IN65: - | IQ65: - | IS65: - | IU65: - | IV65: - | IW65: - | IX65: - | IY65: - | IZ65: - | JA65: - | JB65: - | JC65: - | JD65: - | JE65: - | JF65: - | JG65: - | JH65: - | JI65: - | JJ65: 2 | JK65: 1 | JL65: 1 | JM65: 0 | JN65: 2 | JO65: 2 | JP65: 2 | JQ65: 1 | JR65: 3 | JS65: 2 | JT65: 2 | JU65: 2 | JV65: 0 | JW65: 20 | JX65: 0 | JY65: 0 | JZ65: 0 | KA65: - | KB65: 0 | KF65: OUI | KG65: Peut mieux faire | KH65: Blâme
G66: 119 | O66: - | Q66: - | R66: 2 | S66: - | T66: - | W66: - | Y66: - | Z66: 1 | AA66: - | AB66: - | AE66: - | AG66: - | AH66: 1 | AI66: - | AJ66: - | AM66: - | AO66: - | AQ66: - | AR66: - | AU66: - | AW66: - | AX66: 2 | AY66: - | AZ66: - | BC66: - | BE66: - | BF66: 2 | BG66: - | BH66: - | BK66: - | BM66: - | BN66: 2 | BO66: - | BP66: - | BS66: - | BU66: - | BV66: 1 | BW66: - | BX66: - | CA66: - | CC66: - | CD66: 3 | CE66: - | CF66: - | CI66: - | CK66: - | CL66: 2 | CM66: - | CN66: - | CQ66: - | CS66: - | CT66: 2 | CU66: - | CV66: - | CY66: - | DA66: - | DB66: 2 | DC66: - | DD66: - | DG66: - | DI66: - | DK66: - | DL66: - | DM66: - | DN66: - | DO66: - | DP66: - | DQ66: - | DR66: - | DS66: - | DT66: - | DU66: - | DV66: - | DW66: - | DX66: - | DY66: - | DZ66: 2 | EA66: 1 | EB66: 1 | EC66: 0 | ED66: 2 | EE66: 2 | EF66: 2 | EG66: 1 | EH66: 3 | EI66: 2 | EJ66: 2 | EK66: 2 | EL66: 0 | EM66: 20 | EN66: 0 | EO66: 0 | EP66: 5 | EQ66: 10 | ES66: OUI | ET66: Très insuffisant. Risque l'exclusion | EU66: Blâme | EY66: - | FA66: - | FB66: 2 | FC66: - | FD66: - | FG66: - | FI66: - | FJ66: 1 | FK66: - | FL66: - | FO66: - | FQ66: - | FR66: 1 | FS66: - | FT66: - | FW66: - | FY66: - | GA66: - | GB66: - | GE66: - | GG66: - | GH66: 2 | GI66: - | GJ66: - | GM66: - | GO66: - | GP66: 2 | GQ66: - | GR66: - | GU66: - | GW66: - | GX66: 2 | GY66: - | GZ66: - | HC66: - | HE66: - | HF66: 1 | HG66: - | HH66: - | HK66: - | HM66: - | HN66: 3 | HO66: - | HP66: - | HS66: - | HU66: - | HV66: 2 | HW66: - | HX66: - | IA66: - | IC66: - | ID66: 2 | IE66: - | IF66: - | II66: - | IK66: - | IL66: 2 | IM66: - | IN66: - | IQ66: - | IS66: - | IU66: - | IV66: - | IW66: - | IX66: - | IY66: - | IZ66: - | JA66: - | JB66: - | JC66: - | JD66: - | JE66: - | JF66: - | JG66: - | JH66: - | JI66: - | JJ66: 2 | JK66: 1 | JL66: 1 | JM66: 0 | JN66: 2 | JO66: 2 | JP66: 2 | JQ66: 1 | JR66: 3 | JS66: 2 | JT66: 2 | JU66: 2 | JV66: 0 | JW66: 20 | JX66: 0 | JY66: 0 | JZ66: 0 | KA66: - | KB66: 0 | KF66: OUI | KG66: Peut mieux faire | KH66: Blâme
G67: 119 | O67: - | Q67: - | R67: 2 | S67: - | T67: - | W67: - | Y67: - | Z67: 1 | AA67: - | AB67: - | AE67: - | AG67: - | AH67: 1 | AI67: - | AJ67: - | AM67: - | AO67: - | AQ67: - | AR67: - | AU67: - | AW67: - | AX67: 2 | AY67: - | AZ67: - | BC67: - | BE67: - | BF67: 2 | BG67: - | BH67: - | BK67: - | BM67: - | BN67: 2 | BO67: - | BP67: - | BS67: - | BU67: - | BV67: 1 | BW67: - | BX67: - | CA67: - | CC67: - | CD67: 3 | CE67: - | CF67: - | CI67: - | CK67: - | CL67: 2 | CM67: - | CN67: - | CQ67: - | CS67: - | CT67: 2 | CU67: - | CV67: - | CY67: - | DA67: - | DB67: 2 | DC67: - | DD67: - | DG67: - | DI67: - | DK67: - | DL67: - | DM67: - | DN67: - | DO67: - | DP67: - | DQ67: - | DR67: - | DS67: - | DT67: - | DU67: - | DV67: - | DW67: - | DX67: - | DY67: - | DZ67: 2 | EA67: 1 | EB67: 1 | EC67: 0 | ED67: 2 | EE67: 2 | EF67: 2 | EG67: 1 | EH67: 3 | EI67: 2 | EJ67: 2 | EK67: 2 | EL67: 0 | EM67: 20 | EN67: 0 | EO67: 0 | EP67: 5 | EQ67: 10 | ES67: OUI | ET67: Très insuffisant. Risque l'exclusion | EU67: Blâme | EY67: - | FA67: - | FB67: 2 | FC67: - | FD67: - | FG67: - | FI67: - | FJ67: 1 | FK67: - | FL67: - | FO67: - | FQ67: - | FR67: 1 | FS67: - | FT67: - | FW67: - | FY67: - | GA67: - | GB67: - | GE67: - | GG67: - | GH67: 2 | GI67: - | GJ67: - | GM67: - | GO67: - | GP67: 2 | GQ67: - | GR67: - | GU67: - | GW67: - | GX67: 2 | GY67: - | GZ67: - | HC67: - | HE67: - | HF67: 1 | HG67: - | HH67: - | HK67: - | HM67: - | HN67: 3 | HO67: - | HP67: - | HS67: - | HU67: - | HV67: 2 | HW67: - | HX67: - | IA67: - | IC67: - | ID67: 2 | IE67: - | IF67: - | II67: - | IK67: - | IL67: 2 | IM67: - | IN67: - | IQ67: - | IS67: - | IU67: - | IV67: - | IW67: - | IX67: - | IY67: - | IZ67: - | JA67: - | JB67: - | JC67: - | JD67: - | JE67: - | JF67: - | JG67: - | JH67: - | JI67: - | JJ67: 2 | JK67: 1 | JL67: 1 | JM67: 0 | JN67: 2 | JO67: 2 | JP67: 2 | JQ67: 1 | JR67: 3 | JS67: 2 | JT67: 2 | JU67: 2 | JV67: 0 | JW67: 20 | JX67: 0 | JY67: 0 | JZ67: 0 | KA67: - | KB67: 0 | KF67: OUI | KG67: Peut mieux faire | KH67: Blâme
G68: 119 | O68: - | Q68: - | R68: 2 | S68: - | T68: - | W68: - | Y68: - | Z68: 1 | AA68: - | AB68: - | AE68: - | AG68: - | AH68: 1 | AI68: - | AJ68: - | AM68: - | AO68: - | AQ68: - | AR68: - | AU68: - | AW68: - | AX68: 2 | AY68: - | AZ68: - | BC68: - | BE68: - | BF68: 2 | BG68: - | BH68: - | BK68: - | BM68: - | BN68: 2 | BO68: - | BP68: - | BS68: - | BU68: - | BV68: 1 | BW68: - | BX68: - | CA68: - | CC68: - | CD68: 3 | CE68: - | CF68: - | CI68: - | CK68: - | CL68: 2 | CM68: - | CN68: - | CQ68: - | CS68: - | CT68: 2 | CU68: - | CV68: - | CY68: - | DA68: - | DB68: 2 | DC68: - | DD68: - | DG68: - | DI68: - | DK68: - | DL68: - | DM68: - | DN68: - | DO68: - | DP68: - | DQ68: - | DR68: - | DS68: - | DT68: - | DU68: - | DV68: - | DW68: - | DX68: - | DY68: - | DZ68: 2 | EA68: 1 | EB68: 1 | EC68: 0 | ED68: 2 | EE68: 2 | EF68: 2 | EG68: 1 | EH68: 3 | EI68: 2 | EJ68: 2 | EK68: 2 | EL68: 0 | EM68: 20 | EN68: 0 | EO68: 0 | EP68: 5 | EQ68: 10 | ES68: OUI | ET68: Très insuffisant. Risque l'exclusion | EU68: Blâme | EY68: - | FA68: - | FB68: 2 | FC68: - | FD68: - | FG68: - | FI68: - | FJ68: 1 | FK68: - | FL68: - | FO68: - | FQ68: - | FR68: 1 | FS68: - | FT68: - | FW68: - | FY68: - | GA68: - | GB68: - | GE68: - | GG68: - | GH68: 2 | GI68: - | GJ68: - | GM68: - | GO68: - | GP68: 2 | GQ68: - | GR68: - | GU68: - | GW68: - | GX68: 2 | GY68: - | GZ68: - | HC68: - | HE68: - | HF68: 1 | HG68: - | HH68: - | HK68: - | HM68: - | HN68: 3 | HO68: - | HP68: - | HS68: - | HU68: - | HV68: 2 | HW68: - | HX68: - | IA68: - | IC68: - | ID68: 2 | IE68: - | IF68: - | II68: - | IK68: - | IL68: 2 | IM68: - | IN68: - | IQ68: - | IS68: - | IU68: - | IV68: - | IW68: - | IX68: - | IY68: - | IZ68: - | JA68: - | JB68: - | JC68: - | JD68: - | JE68: - | JF68: - | JG68: - | JH68: - | JI68: - | JJ68: 2 | JK68: 1 | JL68: 1 | JM68: 0 | JN68: 2 | JO68: 2 | JP68: 2 | JQ68: 1 | JR68: 3 | JS68: 2 | JT68: 2 | JU68: 2 | JV68: 0 | JW68: 20 | JX68: 0 | JY68: 0 | JZ68: 0 | KA68: - | KB68: 0 | KF68: OUI | KG68: Peut mieux faire | KH68: Blâme
G69: 119 | O69: - | Q69: - | R69: 2 | S69: - | T69: - | W69: - | Y69: - | Z69: 1 | AA69: - | AB69: - | AE69: - | AG69: - | AH69: 1 | AI69: - | AJ69: - | AM69: - | AO69: - | AQ69: - | AR69: - | AU69: - | AW69: - | AX69: 2 | AY69: - | AZ69: - | BC69: - | BE69: - | BF69: 2 | BG69: - | BH69: - | BK69: - | BM69: - | BN69: 2 | BO69: - | BP69: - | BS69: - | BU69: - | BV69: 1 | BW69: - | BX69: - | CA69: - | CC69: - | CD69: 3 | CE69: - | CF69: - | CI69: - | CK69: - | CL69: 2 | CM69: - | CN69: - | CQ69: - | CS69: - | CT69: 2 | CU69: - | CV69: - | CY69: - | DA69: - | DB69: 2 | DC69: - | DD69: - | DG69: - | DI69: - | DK69: - | DL69: - | DM69: - | DN69: - | DO69: - | DP69: - | DQ69: - | DR69: - | DS69: - | DT69: - | DU69: - | DV69: - | DW69: - | DX69: - | DY69: - | DZ69: 2 | EA69: 1 | EB69: 1 | EC69: 0 | ED69: 2 | EE69: 2 | EF69: 2 | EG69: 1 | EH69: 3 | EI69: 2 | EJ69: 2 | EK69: 2 | EL69: 0 | EM69: 20 | EN69: 0 | EO69: 0 | EP69: 5 | EQ69: 10 | ES69: OUI | ET69: Très insuffisant. Risque l'exclusion | EU69: Blâme | EY69: - | FA69: - | FB69: 2 | FC69: - | FD69: - | FG69: - | FI69: - | FJ69: 1 | FK69: - | FL69: - | FO69: - | FQ69: - | FR69: 1 | FS69: - | FT69: - | FW69: - | FY69: - | GA69: - | GB69: - | GE69: - | GG69: - | GH69: 2 | GI69: - | GJ69: - | GM69: - | GO69: - | GP69: 2 | GQ69: - | GR69: - | GU69: - | GW69: - | GX69: 2 | GY69: - | GZ69: - | HC69: - | HE69: - | HF69: 1 | HG69: - | HH69: - | HK69: - | HM69: - | HN69: 3 | HO69: - | HP69: - | HS69: - | HU69: - | HV69: 2 | HW69: - | HX69: - | IA69: - | IC69: - | ID69: 2 | IE69: - | IF69: - | II69: - | IK69: - | IL69: 2 | IM69: - | IN69: - | IQ69: - | IS69: - | IU69: - | IV69: - | IW69: - | IX69: - | IY69: - | IZ69: - | JA69: - | JB69: - | JC69: - | JD69: - | JE69: - | JF69: - | JG69: - | JH69: - | JI69: - | JJ69: 2 | JK69: 1 | JL69: 1 | JM69: 0 | JN69: 2 | JO69: 2 | JP69: 2 | JQ69: 1 | JR69: 3 | JS69: 2 | JT69: 2 | JU69: 2 | JV69: 0 | JW69: 20 | JX69: 0 | JY69: 0 | JZ69: 0 | KA69: - | KB69: 0 | KF69: OUI | KG69: Peut mieux faire | KH69: Blâme
G70: 119 | O70: - | Q70: - | R70: 2 | S70: - | T70: - | W70: - | Y70: - | Z70: 1 | AA70: - | AB70: - | AE70: - | AG70: - | AH70: 1 | AI70: - | AJ70: - | AM70: - | AO70: - | AQ70: - | AR70: - | AU70: - | AW70: - | AX70: 2 | AY70: - | AZ70: - | BC70: - | BE70: - | BF70: 2 | BG70: - | BH70: - | BK70: - | BM70: - | BN70: 2 | BO70: - | BP70: - | BS70: - | BU70: - | BV70: 1 | BW70: - | BX70: - | CA70: - | CC70: - | CD70: 3 | CE70: - | CF70: - | CI70: - | CK70: - | CL70: 2 | CM70: - | CN70: - | CQ70: - | CS70: - | CT70: 2 | CU70: - | CV70: - | CY70: - | DA70: - | DB70: 2 | DC70: - | DD70: - | DG70: - | DI70: - | DK70: - | DL70: - | DM70: - | DN70: - | DO70: - | DP70: - | DQ70: - | DR70: - | DS70: - | DT70: - | DU70: - | DV70: - | DW70: - | DX70: - | DY70: - | DZ70: 2 | EA70: 1 | EB70: 1 | EC70: 0 | ED70: 2 | EE70: 2 | EF70: 2 | EG70: 1 | EH70: 3 | EI70: 2 | EJ70: 2 | EK70: 2 | EL70: 0 | EM70: 20 | EN70: 0 | EO70: 0 | EP70: 5 | EQ70: 10 | ES70: OUI | ET70: Très insuffisant. Risque l'exclusion | EU70: Blâme | EY70: - | FA70: - | FB70: 2 | FC70: - | FD70: - | FG70: - | FI70: - | FJ70: 1 | FK70: - | FL70: - | FO70: - | FQ70: - | FR70: 1 | FS70: - | FT70: - | FW70: - | FY70: - | GA70: - | GB70: - | GE70: - | GG70: - | GH70: 2 | GI70: - | GJ70: - | GM70: - | GO70: - | GP70: 2 | GQ70: - | GR70: - | GU70: - | GW70: - | GX70: 2 | GY70: - | GZ70: - | HC70: - | HE70: - | HF70: 1 | HG70: - | HH70: - | HK70: - | HM70: - | HN70: 3 | HO70: - | HP70: - | HS70: - | HU70: - | HV70: 2 | HW70: - | HX70: - | IA70: - | IC70: - | ID70: 2 | IE70: - | IF70: - | II70: - | IK70: - | IL70: 2 | IM70: - | IN70: - | IQ70: - | IS70: - | IU70: - | IV70: - | IW70: - | IX70: - | IY70: - | IZ70: - | JA70: - | JB70: - | JC70: - | JD70: - | JE70: - | JF70: - | JG70: - | JH70: - | JI70: - | JJ70: 2 | JK70: 1 | JL70: 1 | JM70: 0 | JN70: 2 | JO70: 2 | JP70: 2 | JQ70: 1 | JR70: 3 | JS70: 2 | JT70: 2 | JU70: 2 | JV70: 0 | JW70: 20 | JX70: 0 | JY70: 0 | JZ70: 0 | KA70: - | KB70: 0 | KF70: OUI | KG70: Peut mieux faire | KH70: Blâme
G71: 119 | O71: - | Q71: - | R71: 2 | S71: - | T71: - | W71: - | Y71: - | Z71: 1 | AA71: - | AB71: - | AE71: - | AG71: - | AH71: 1 | AI71: - | AJ71: - | AM71: - | AO71: - | AQ71: - | AR71: - | AU71: - | AW71: - | AX71: 2 | AY71: - | AZ71: - | BC71: - | BE71: - | BF71: 2 | BG71: - | BH71: - | BK71: - | BM71: - | BN71: 2 | BO71: - | BP71: - | BS71: - | BU71: - | BV71: 1 | BW71: - | BX71: - | CA71: - | CC71: - | CD71: 3 | CE71: - | CF71: - | CI71: - | CK71: - | CL71: 2 | CM71: - | CN71: - | CQ71: - | CS71: - | CT71: 2 | CU71: - | CV71: - | CY71: - | DA71: - | DB71: 2 | DC71: - | DD71: - | DG71: - | DI71: - | DK71: - | DL71: - | DM71: - | DN71: - | DO71: - | DP71: - | DQ71: - | DR71: - | DS71: - | DT71: - | DU71: - | DV71: - | DW71: - | DX71: - | DY71: - | DZ71: 2 | EA71: 1 | EB71: 1 | EC71: 0 | ED71: 2 | EE71: 2 | EF71: 2 | EG71: 1 | EH71: 3 | EI71: 2 | EJ71: 2 | EK71: 2 | EL71: 0 | EM71: 20 | EN71: 0 | EO71: 0 | EP71: 5 | EQ71: 10 | ES71: OUI | ET71: Très insuffisant. Risque l'exclusion | EU71: Blâme | EY71: - | FA71: - | FB71: 2 | FC71: - | FD71: - | FG71: - | FI71: - | FJ71: 1 | FK71: - | FL71: - | FO71: - | FQ71: - | FR71: 1 | FS71: - | FT71: - | FW71: - | FY71: - | GA71: - | GB71: - | GE71: - | GG71: - | GH71: 2 | GI71: - | GJ71: - | GM71: - | GO71: - | GP71: 2 | GQ71: - | GR71: - | GU71: - | GW71: - | GX71: 2 | GY71: - | GZ71: - | HC71: - | HE71: - | HF71: 1 | HG71: - | HH71: - | HK71: - | HM71: - | HN71: 3 | HO71: - | HP71: - | HS71: - | HU71: - | HV71: 2 | HW71: - | HX71: - | IA71: - | IC71: - | ID71: 2 | IE71: - | IF71: - | II71: - | IK71: - | IL71: 2 | IM71: - | IN71: - | IQ71: - | IS71: - | IU71: - | IV71: - | IW71: - | IX71: - | IY71: - | IZ71: - | JA71: - | JB71: - | JC71: - | JD71: - | JE71: - | JF71: - | JG71: - | JH71: - | JI71: - | JJ71: 2 | JK71: 1 | JL71: 1 | JM71: 0 | JN71: 2 | JO71: 2 | JP71: 2 | JQ71: 1 | JR71: 3 | JS71: 2 | JT71: 2 | JU71: 2 | JV71: 0 | JW71: 20 | JX71: 0 | JY71: 0 | JZ71: 0 | KA71: - | KB71: 0 | KF71: OUI | KG71: Peut mieux faire | KH71: Blâme
G72: 119 | O72: - | Q72: - | R72: 2 | S72: - | T72: - | W72: - | Y72: - | Z72: 1 | AA72: - | AB72: - | AE72: - | AG72: - | AH72: 1 | AI72: - | AJ72: - | AM72: - | AO72: - | AQ72: - | AR72: - | AU72: - | AW72: - | AX72: 2 | AY72: - | AZ72: - | BC72: - | BE72: - | BF72: 2 | BG72: - | BH72: - | BK72: - | BM72: - | BN72: 2 | BO72: - | BP72: - | BS72: - | BU72: - | BV72: 1 | BW72: - | BX72: - | CA72: - | CC72: - | CD72: 3 | CE72: - | CF72: - | CI72: - | CK72: - | CL72: 2 | CM72: - | CN72: - | CQ72: - | CS72: - | CT72: 2 | CU72: - | CV72: - | CY72: - | DA72: - | DB72: 2 | DC72: - | DD72: - | DG72: - | DI72: - | DK72: - | DL72: - | DM72: - | DN72: - | DO72: - | DP72: - | DQ72: - | DR72: - | DS72: - | DT72: - | DU72: - | DV72: - | DW72: - | DX72: - | DY72: - | DZ72: 2 | EA72: 1 | EB72: 1 | EC72: 0 | ED72: 2 | EE72: 2 | EF72: 2 | EG72: 1 | EH72: 3 | EI72: 2 | EJ72: 2 | EK72: 2 | EL72: 0 | EM72: 20 | EN72: 0 | EO72: 0 | EP72: 5 | EQ72: 10 | ES72: OUI | ET72: Très insuffisant. Risque l'exclusion | EU72: Blâme | EY72: - | FA72: - | FB72: 2 | FC72: - | FD72: - | FG72: - | FI72: - | FJ72: 1 | FK72: - | FL72: - | FO72: - | FQ72: - | FR72: 1 | FS72: - | FT72: - | FW72: - | FY72: - | GA72: - | GB72: - | GE72: - | GG72: - | GH72: 2 | GI72: - | GJ72: - | GM72: - | GO72: - | GP72: 2 | GQ72: - | GR72: - | GU72: - | GW72: - | GX72: 2 | GY72: - | GZ72: - | HC72: - | HE72: - | HF72: 1 | HG72: - | HH72: - | HK72: - | HM72: - | HN72: 3 | HO72: - | HP72: - | HS72: - | HU72: - | HV72: 2 | HW72: - | HX72: - | IA72: - | IC72: - | ID72: 2 | IE72: - | IF72: - | II72: - | IK72: - | IL72: 2 | IM72: - | IN72: - | IQ72: - | IS72: - | IU72: - | IV72: - | IW72: - | IX72: - | IY72: - | IZ72: - | JA72: - | JB72: - | JC72: - | JD72: - | JE72: - | JF72: - | JG72: - | JH72: - | JI72: - | JJ72: 2 | JK72: 1 | JL72: 1 | JM72: 0 | JN72: 2 | JO72: 2 | JP72: 2 | JQ72: 1 | JR72: 3 | JS72: 2 | JT72: 2 | JU72: 2 | JV72: 0 | JW72: 20 | JX72: 0 | JY72: 0 | JZ72: 0 | KA72: - | KB72: 0 | KF72: OUI | KG72: Peut mieux faire | KH72: Blâme
G73: 119 | O73: - | Q73: - | R73: 2 | S73: - | T73: - | W73: - | Y73: - | Z73: 1 | AA73: - | AB73: - | AE73: - | AG73: - | AH73: 1 | AI73: - | AJ73: - | AM73: - | AO73: - | AQ73: - | AR73: - | AU73: - | AW73: - | AX73: 2 | AY73: - | AZ73: - | BC73: - | BE73: - | BF73: 2 | BG73: - | BH73: - | BK73: - | BM73: - | BN73: 2 | BO73: - | BP73: - | BS73: - | BU73: - | BV73: 1 | BW73: - | BX73: - | CA73: - | CC73: - | CD73: 3 | CE73: - | CF73: - | CI73: - | CK73: - | CL73: 2 | CM73: - | CN73: - | CQ73: - | CS73: - | CT73: 2 | CU73: - | CV73: - | CY73: - | DA73: - | DB73: 2 | DC73: - | DD73: - | DG73: - | DI73: - | DK73: - | DL73: - | DM73: - | DN73: - | DO73: - | DP73: - | DQ73: - | DR73: - | DS73: - | DT73: - | DU73: - | DV73: - | DW73: - | DX73: - | DY73: - | DZ73: 2 | EA73: 1 | EB73: 1 | EC73: 0 | ED73: 2 | EE73: 2 | EF73: 2 | EG73: 1 | EH73: 3 | EI73: 2 | EJ73: 2 | EK73: 2 | EL73: 0 | EM73: 20 | EN73: 0 | EO73: 0 | EP73: 5 | EQ73: 10 | ES73: OUI | ET73: Très insuffisant. Risque l'exclusion | EU73: Blâme | EY73: - | FA73: - | FB73: 2 | FC73: - | FD73: - | FG73: - | FI73: - | FJ73: 1 | FK73: - | FL73: - | FO73: - | FQ73: - | FR73: 1 | FS73: - | FT73: - | FW73: - | FY73: - | GA73: - | GB73: - | GE73: - | GG73: - | GH73: 2 | GI73: - | GJ73: - | GM73: - | GO73: - | GP73: 2 | GQ73: - | GR73: - | GU73: - | GW73: - | GX73: 2 | GY73: - | GZ73: - | HC73: - | HE73: - | HF73: 1 | HG73: - | HH73: - | HK73: - | HM73: - | HN73: 3 | HO73: - | HP73: =IFERROR(RANK(HM73,HM73:HM121,0),"-") -> - | HS73: - | HU73: - | HV73: 2 | HW73: - | HX73: - | IA73: - | IC73: - | ID73: 2 | IE73: - | IF73: - | II73: - | IK73: - | IL73: 2 | IM73: - | IN73: - | IQ73: - | IS73: - | IU73: - | IV73: - | IW73: - | IX73: - | IY73: - | IZ73: - | JA73: - | JB73: - | JC73: - | JD73: - | JE73: - | JF73: - | JG73: - | JH73: - | JI73: - | JJ73: 2 | JK73: 1 | JL73: 1 | JM73: 0 | JN73: 2 | JO73: 2 | JP73: 2 | JQ73: 1 | JR73: 3 | JS73: 2 | JT73: 2 | JU73: 2 | JV73: 0 | JW73: 20 | JX73: 0 | JY73: 0 | JZ73: 0 | KA73: - | KB73: 0 | KF73: OUI | KG73: Peut mieux faire | KH73: Blâme
G74: 119 | O74: - | Q74: - | R74: 2 | S74: - | T74: - | W74: - | Y74: - | Z74: 1 | AA74: - | AB74: - | AE74: - | AG74: - | AH74: 1 | AI74: - | AJ74: - | AM74: - | AO74: - | AQ74: - | AR74: - | AU74: - | AW74: - | AX74: 2 | AY74: - | AZ74: - | BC74: - | BE74: - | BF74: 2 | BG74: - | BH74: - | BK74: - | BM74: - | BN74: 2 | BO74: - | BP74: - | BS74: - | BU74: - | BV74: 1 | BW74: - | BX74: - | CA74: - | CC74: - | CD74: 3 | CE74: - | CF74: - | CI74: - | CK74: - | CL74: 2 | CM74: - | CN74: - | CQ74: - | CS74: - | CT74: 2 | CU74: - | CV74: - | CY74: - | DA74: - | DB74: 2 | DC74: - | DD74: - | DG74: - | DI74: - | DK74: - | DL74: - | DM74: - | DN74: - | DO74: - | DP74: - | DQ74: - | DR74: - | DS74: - | DT74: - | DU74: - | DV74: - | DW74: - | DX74: - | DY74: - | DZ74: 2 | EA74: 1 | EB74: 1 | EC74: 0 | ED74: 2 | EE74: 2 | EF74: 2 | EG74: 1 | EH74: 3 | EI74: 2 | EJ74: 2 | EK74: 2 | EL74: 0 | EM74: 20 | EN74: 0 | EO74: 0 | EP74: 5 | EQ74: 10 | ES74: OUI | ET74: Très insuffisant. Risque l'exclusion | EU74: Blâme | EY74: - | FA74: - | FB74: 2 | FC74: - | FD74: - | FG74: - | FI74: - | FJ74: 1 | FK74: - | FL74: - | FO74: - | FQ74: - | FR74: 1 | FS74: - | FT74: - | FW74: - | FY74: - | GA74: - | GB74: - | GE74: - | GG74: - | GH74: 2 | GI74: - | GJ74: - | GM74: - | GO74: - | GP74: 2 | GQ74: - | GR74: - | GU74: - | GW74: - | GX74: 2 | GY74: - | GZ74: - | HC74: - | HE74: - | HF74: 1 | HG74: - | HH74: - | HK74: - | HM74: - | HN74: 3 | HO74: - | HP74: - | HS74: - | HU74: - | HV74: 2 | HW74: - | HX74: - | IA74: - | IC74: - | ID74: 2 | IE74: - | IF74: - | II74: - | IK74: - | IL74: 2 | IM74: - | IN74: - | IQ74: - | IS74: - | IU74: - | IV74: - | IW74: - | IX74: - | IY74: - | IZ74: - | JA74: - | JB74: - | JC74: - | JD74: - | JE74: - | JF74: - | JG74: - | JH74: - | JI74: - | JJ74: 2 | JK74: 1 | JL74: 1 | JM74: 0 | JN74: 2 | JO74: 2 | JP74: 2 | JQ74: 1 | JR74: 3 | JS74: 2 | JT74: 2 | JU74: 2 | JV74: 0 | JW74: 20 | JX74: 0 | JY74: 0 | JZ74: 0 | KA74: - | KB74: 0 | KF74: OUI | KG74: Peut mieux faire | KH74: Blâme
G75: 119 | O75: - | Q75: - | R75: 2 | S75: - | T75: - | W75: - | Y75: - | Z75: 1 | AA75: - | AB75: - | AE75: - | AG75: - | AH75: 1 | AI75: - | AJ75: - | AM75: - | AO75: - | AQ75: - | AR75: - | AU75: - | AW75: - | AX75: 2 | AY75: - | AZ75: - | BC75: - | BE75: - | BF75: 2 | BG75: - | BH75: - | BK75: - | BM75: - | BN75: 2 | BO75: - | BP75: - | BS75: - | BU75: - | BV75: 1 | BW75: - | BX75: - | CA75: - | CC75: - | CD75: 3 | CE75: - | CF75: - | CI75: - | CK75: - | CL75: 2 | CM75: - | CN75: - | CQ75: - | CS75: - | CT75: 2 | CU75: - | CV75: - | CY75: - | DA75: - | DB75: 2 | DC75: - | DD75: - | DG75: - | DI75: - | DK75: - | DL75: - | DM75: - | DN75: - | DO75: - | DP75: - | DQ75: - | DR75: - | DS75: - | DT75: - | DU75: - | DV75: - | DW75: - | DX75: - | DY75: - | DZ75: 2 | EA75: 1 | EB75: 1 | EC75: 0 | ED75: 2 | EE75: 2 | EF75: 2 | EG75: 1 | EH75: 3 | EI75: 2 | EJ75: 2 | EK75: 2 | EL75: 0 | EM75: 20 | EN75: 0 | EO75: 0 | EP75: 5 | EQ75: 10 | ES75: OUI | ET75: Très insuffisant. Risque l'exclusion | EU75: Blâme | EY75: - | FA75: - | FB75: 2 | FC75: - | FD75: - | FG75: - | FI75: - | FJ75: 1 | FK75: - | FL75: - | FO75: - | FQ75: - | FR75: 1 | FS75: - | FT75: - | FW75: - | FY75: - | GA75: - | GB75: - | GE75: - | GG75: - | GH75: 2 | GI75: - | GJ75: - | GM75: - | GO75: - | GP75: 2 | GQ75: - | GR75: - | GU75: - | GW75: - | GX75: 2 | GY75: - | GZ75: - | HC75: - | HE75: - | HF75: 1 | HG75: - | HH75: - | HK75: - | HM75: - | HN75: 3 | HO75: - | HP75: - | HS75: - | HU75: - | HV75: 2 | HW75: - | HX75: - | IA75: - | IC75: - | ID75: 2 | IE75: - | IF75: - | II75: - | IK75: - | IL75: 2 | IM75: - | IN75: - | IQ75: - | IS75: - | IU75: - | IV75: - | IW75: - | IX75: - | IY75: - | IZ75: - | JA75: - | JB75: - | JC75: - | JD75: - | JE75: - | JF75: - | JG75: - | JH75: - | JI75: - | JJ75: 2 | JK75: 1 | JL75: 1 | JM75: 0 | JN75: 2 | JO75: 2 | JP75: 2 | JQ75: 1 | JR75: 3 | JS75: 2 | JT75: 2 | JU75: 2 | JV75: 0 | JW75: 20 | JX75: 0 | JY75: 0 | JZ75: 0 | KA75: - | KB75: 0 | KF75: OUI | KG75: Peut mieux faire | KH75: Blâme
G76: 119 | O76: - | Q76: - | R76: 2 | S76: - | T76: - | W76: - | Y76: - | Z76: 1 | AA76: - | AB76: - | AE76: - | AG76: - | AH76: 1 | AI76: - | AJ76: - | AM76: - | AO76: - | AQ76: - | AR76: - | AU76: - | AW76: - | AX76: 2 | AY76: - | AZ76: - | BC76: - | BE76: - | BF76: 2 | BG76: - | BH76: - | BK76: - | BM76: - | BN76: 2 | BO76: - | BP76: - | BS76: - | BU76: - | BV76: 1 | BW76: - | BX76: - | CA76: - | CC76: - | CD76: 3 | CE76: - | CF76: - | CI76: - | CK76: - | CL76: 2 | CM76: - | CN76: - | CQ76: - | CS76: - | CT76: 2 | CU76: - | CV76: - | CY76: - | DA76: - | DB76: 2 | DC76: - | DD76: - | DG76: - | DI76: - | DK76: - | DL76: - | DM76: - | DN76: - | DO76: - | DP76: - | DQ76: - | DR76: - | DS76: - | DT76: - | DU76: - | DV76: - | DW76: - | DX76: - | DY76: - | DZ76: 2 | EA76: 1 | EB76: 1 | EC76: 0 | ED76: 2 | EE76: 2 | EF76: 2 | EG76: 1 | EH76: 3 | EI76: 2 | EJ76: 2 | EK76: 2 | EL76: 0 | EM76: 20 | EN76: 0 | EO76: 0 | EP76: 5 | EQ76: 10 | ES76: OUI | ET76: Très insuffisant. Risque l'exclusion | EU76: Blâme | EY76: - | FA76: - | FB76: 2 | FC76: - | FD76: - | FG76: - | FI76: - | FJ76: 1 | FK76: - | FL76: - | FO76: - | FQ76: - | FR76: 1 | FS76: - | FT76: - | FW76: - | FY76: - | GA76: - | GB76: - | GE76: - | GG76: - | GH76: 2 | GI76: - | GJ76: - | GM76: - | GO76: - | GP76: 2 | GQ76: - | GR76: - | GU76: - | GW76: - | GX76: 2 | GY76: - | GZ76: - | HC76: - | HE76: - | HF76: 1 | HG76: - | HH76: - | HK76: - | HM76: - | HN76: 3 | HO76: - | HP76: - | HS76: - | HU76: - | HV76: 2 | HW76: - | HX76: - | IA76: - | IC76: - | ID76: 2 | IE76: - | IF76: - | II76: - | IK76: - | IL76: 2 | IM76: - | IN76: - | IQ76: - | IS76: - | IU76: - | IV76: - | IW76: - | IX76: - | IY76: - | IZ76: - | JA76: - | JB76: - | JC76: - | JD76: - | JE76: - | JF76: - | JG76: - | JH76: - | JI76: - | JJ76: 2 | JK76: 1 | JL76: 1 | JM76: 0 | JN76: 2 | JO76: 2 | JP76: 2 | JQ76: 1 | JR76: 3 | JS76: 2 | JT76: 2 | JU76: 2 | JV76: 0 | JW76: 20 | JX76: 0 | JY76: 0 | JZ76: 0 | KA76: - | KB76: 0 | KF76: OUI | KG76: Peut mieux faire | KH76: Blâme
G77: 119 | O77: - | Q77: - | R77: 2 | S77: - | T77: - | W77: - | Y77: - | Z77: 1 | AA77: - | AB77: - | AE77: - | AG77: - | AH77: 1 | AI77: - | AJ77: - | AM77: - | AO77: - | AQ77: - | AR77: - | AU77: - | AW77: - | AX77: 2 | AY77: - | AZ77: - | BC77: - | BE77: - | BF77: 2 | BG77: - | BH77: - | BK77: - | BM77: - | BN77: 2 | BO77: - | BP77: - | BS77: - | BU77: - | BV77: 1 | BW77: - | BX77: - | CA77: - | CC77: - | CD77: 3 | CE77: - | CF77: - | CI77: - | CK77: - | CL77: 2 | CM77: - | CN77: - | CQ77: - | CS77: - | CT77: 2 | CU77: - | CV77: - | CY77: - | DA77: - | DB77: 2 | DC77: - | DD77: - | DG77: - | DI77: - | DK77: - | DL77: - | DM77: - | DN77: - | DO77: - | DP77: - | DQ77: - | DR77: - | DS77: - | DT77: - | DU77: - | DV77: - | DW77: - | DX77: - | DY77: - | DZ77: 2 | EA77: 1 | EB77: 1 | EC77: 0 | ED77: 2 | EE77: 2 | EF77: 2 | EG77: 1 | EH77: 3 | EI77: 2 | EJ77: 2 | EK77: 2 | EL77: 0 | EM77: 20 | EN77: 0 | EO77: 0 | EP77: 5 | EQ77: 10 | ES77: OUI | ET77: Très insuffisant. Risque l'exclusion | EU77: Blâme | EY77: - | FA77: - | FB77: 2 | FC77: - | FD77: - | FG77: - | FI77: - | FJ77: 1 | FK77: - | FL77: - | FO77: - | FQ77: - | FR77: 1 | FS77: - | FT77: - | FW77: - | FY77: - | GA77: - | GB77: - | GE77: - | GG77: - | GH77: 2 | GI77: - | GJ77: - | GM77: - | GO77: - | GP77: 2 | GQ77: - | GR77: - | GU77: - | GW77: - | GX77: 2 | GY77: - | GZ77: - | HC77: - | HE77: - | HF77: 1 | HG77: - | HH77: - | HK77: - | HM77: - | HN77: 3 | HO77: - | HP77: - | HS77: - | HU77: - | HV77: 2 | HW77: - | HX77: - | IA77: - | IC77: - | ID77: 2 | IE77: - | IF77: - | II77: - | IK77: - | IL77: 2 | IM77: - | IN77: - | IQ77: - | IS77: - | IU77: - | IV77: - | IW77: - | IX77: - | IY77: - | IZ77: - | JA77: - | JB77: - | JC77: - | JD77: - | JE77: - | JF77: - | JG77: - | JH77: - | JI77: - | JJ77: 2 | JK77: 1 | JL77: 1 | JM77: 0 | JN77: 2 | JO77: 2 | JP77: 2 | JQ77: 1 | JR77: 3 | JS77: 2 | JT77: 2 | JU77: 2 | JV77: 0 | JW77: 20 | JX77: 0 | JY77: 0 | JZ77: 0 | KA77: - | KB77: 0 | KF77: OUI | KG77: Peut mieux faire | KH77: Blâme
G78: 119 | O78: - | Q78: - | R78: 2 | S78: - | T78: - | W78: - | Y78: - | Z78: 1 | AA78: - | AB78: - | AE78: - | AG78: - | AH78: 1 | AI78: - | AJ78: - | AM78: - | AO78: - | AQ78: - | AR78: - | AU78: - | AW78: - | AX78: 2 | AY78: - | AZ78: - | BC78: - | BE78: - | BF78: 2 | BG78: - | BH78: - | BK78: - | BM78: - | BN78: 2 | BO78: - | BP78: - | BS78: - | BU78: - | BV78: 1 | BW78: - | BX78: - | CA78: - | CC78: - | CD78: 3 | CE78: - | CF78: - | CI78: - | CK78: - | CL78: 2 | CM78: - | CN78: - | CQ78: - | CS78: - | CT78: 2 | CU78: - | CV78: - | CY78: - | DA78: - | DB78: 2 | DC78: - | DD78: - | DG78: - | DI78: - | DK78: - | DL78: - | DM78: - | DN78: - | DO78: - | DP78: - | DQ78: - | DR78: - | DS78: - | DT78: - | DU78: - | DV78: - | DW78: - | DX78: - | DY78: - | DZ78: 2 | EA78: 1 | EB78: 1 | EC78: 0 | ED78: 2 | EE78: 2 | EF78: 2 | EG78: 1 | EH78: 3 | EI78: 2 | EJ78: 2 | EK78: 2 | EL78: 0 | EM78: 20 | EN78: 0 | EO78: 0 | EP78: 5 | EQ78: 10 | ES78: OUI | ET78: Très insuffisant. Risque l'exclusion | EU78: Blâme | EY78: - | FA78: - | FB78: 2 | FC78: - | FD78: - | FG78: - | FI78: - | FJ78: 1 | FK78: - | FL78: - | FO78: - | FQ78: - | FR78: 1 | FS78: - | FT78: - | FW78: - | FY78: - | GA78: - | GB78: - | GE78: - | GG78: - | GH78: 2 | GI78: - | GJ78: - | GM78: - | GO78: - | GP78: 2 | GQ78: - | GR78: - | GU78: - | GW78: - | GX78: 2 | GY78: - | GZ78: - | HC78: - | HE78: - | HF78: 1 | HG78: - | HH78: - | HK78: - | HM78: - | HN78: 3 | HO78: - | HP78: - | HS78: - | HU78: - | HV78: 2 | HW78: - | HX78: - | IA78: - | IC78: - | ID78: 2 | IE78: - | IF78: - | II78: - | IK78: - | IL78: 2 | IM78: - | IN78: - | IQ78: - | IS78: - | IU78: - | IV78: - | IW78: - | IX78: - | IY78: - | IZ78: - | JA78: - | JB78: - | JC78: - | JD78: - | JE78: - | JF78: - | JG78: - | JH78: - | JI78: - | JJ78: 2 | JK78: 1 | JL78: 1 | JM78: 0 | JN78: 2 | JO78: 2 | JP78: 2 | JQ78: 1 | JR78: 3 | JS78: 2 | JT78: 2 | JU78: 2 | JV78: 0 | JW78: 20 | JX78: 0 | JY78: 0 | JZ78: 0 | KA78: - | KB78: 0 | KF78: OUI | KG78: Peut mieux faire | KH78: Blâme
G79: 119 | O79: - | Q79: - | R79: 2 | S79: - | T79: - | W79: - | Y79: - | Z79: 1 | AA79: - | AB79: - | AE79: - | AG79: - | AH79: 1 | AI79: - | AJ79: - | AM79: - | AO79: - | AQ79: - | AR79: - | AU79: - | AW79: - | AX79: 2 | AY79: - | AZ79: - | BC79: - | BE79: - | BF79: 2 | BG79: - | BH79: - | BK79: - | BM79: - | BN79: 2 | BO79: - | BP79: - | BS79: - | BU79: - | BV79: 1 | BW79: - | BX79: - | CA79: - | CC79: - | CD79: 3 | CE79: - | CF79: - | CI79: - | CK79: - | CL79: 2 | CM79: - | CN79: - | CQ79: - | CS79: - | CT79: 2 | CU79: - | CV79: - | CY79: - | DA79: - | DB79: 2 | DC79: - | DD79: - | DG79: - | DI79: - | DK79: - | DL79: - | DM79: - | DN79: - | DO79: - | DP79: - | DQ79: - | DR79: - | DS79: - | DT79: - | DU79: - | DV79: - | DW79: - | DX79: - | DY79: - | DZ79: 2 | EA79: 1 | EB79: 1 | EC79: 0 | ED79: 2 | EE79: 2 | EF79: 2 | EG79: 1 | EH79: 3 | EI79: 2 | EJ79: 2 | EK79: 2 | EL79: 0 | EM79: 20 | EN79: 0 | EO79: 0 | EP79: 5 | EQ79: 10 | ES79: OUI | ET79: Très insuffisant. Risque l'exclusion | EU79: Blâme | EY79: - | FA79: - | FB79: 2 | FC79: - | FD79: - | FG79: - | FI79: - | FJ79: 1 | FK79: - | FL79: - | FO79: - | FQ79: - | FR79: 1 | FS79: - | FT79: - | FW79: - | FY79: - | GA79: - | GB79: - | GE79: - | GG79: - | GH79: 2 | GI79: - | GJ79: - | GM79: - | GO79: - | GP79: 2 | GQ79: - | GR79: - | GU79: - | GW79: - | GX79: 2 | GY79: - | GZ79: - | HC79: - | HE79: - | HF79: 1 | HG79: - | HH79: - | HK79: - | HM79: - | HN79: 3 | HO79: - | HP79: - | HS79: - | HU79: - | HV79: 2 | HW79: - | HX79: - | IA79: - | IC79: - | ID79: 2 | IE79: - | IF79: - | II79: - | IK79: - | IL79: 2 | IM79: - | IN79: - | IQ79: - | IS79: - | IU79: - | IV79: - | IW79: - | IX79: - | IY79: - | IZ79: - | JA79: - | JB79: - | JC79: - | JD79: - | JE79: - | JF79: - | JG79: - | JH79: - | JI79: - | JJ79: 2 | JK79: 1 | JL79: 1 | JM79: 0 | JN79: 2 | JO79: 2 | JP79: 2 | JQ79: 1 | JR79: 3 | JS79: 2 | JT79: 2 | JU79: 2 | JV79: 0 | JW79: 20 | JX79: 0 | JY79: 0 | JZ79: 0 | KA79: - | KB79: 0 | KF79: OUI | KG79: Peut mieux faire | KH79: Blâme
G80: =DATEDIF(E80,TODAY(),"Y") -> 119 | O80: =IFERROR(AVERAGE(M80:N80),"-") -> - | Q80: =IFERROR(AVERAGE(O80:P80),"-") -> - | R80: 2 | S80: =IFERROR(Q80*2,"-") -> - | T80: =IFERROR(RANK(Q80,$Q$16:$Q$121,0),"-") -> - | W80: =IFERROR(AVERAGE(U80:V80),"-") -> - | Y80: =IFERROR(AVERAGE(W80:X80),"-") -> - | Z80: 1 | AA80: =IFERROR(Y80*1,"-") -> - | AB80: =IFERROR(RANK(Y80,$Y$16:$Y$121,0),"-") -> - | AE80: =IFERROR(AVERAGE(AC80:AD80),"-") -> - | AG80: =IFERROR(AVERAGE(AE80:AF80),"-") -> - | AH80: 1 | AI80: =IFERROR(AG80*1,"-") -> - | AJ80: =IFERROR(RANK(AG80,$AG$16:$AG$121,0),"-") -> - | AM80: =IFERROR(AVERAGE(AK80:AL80),"-") -> - | AO80: =IFERROR(AVERAGE(AM80:AN80),"-") -> - | AQ80: =+IFERROR(AO80*AP80,"-") -> - | AR80: =IFERROR(RANK(AO80,$AO$16:$AO$121,0),"-") -> - | AU80: =IFERROR(AVERAGE(AS80:AT80),"-") -> - | AW80: =IFERROR(AVERAGE(AU80:AV80),"-") -> - | AX80: 2 | AY80: =IFERROR(AW80*AX80,"-") -> - | AZ80: =IFERROR(RANK(AW80,$AW$16:$AW$121,0),"-") -> - | BC80: =IFERROR(AVERAGE(BA80:BB80),"-") -> - | BE80: =IFERROR(AVERAGE(BC80:BD80),"-") -> - | BF80: 2 | BG80: =IFERROR(BE80*BF80,"-") -> - | BH80: =IFERROR(RANK(BE80,$BE$16:$BE$121,0),"-") -> - | BK80: =IFERROR(AVERAGE(BI80:BJ80),"-") -> - | BM80: =IFERROR(AVERAGE(BK80:BL80),"-") -> - | BN80: 2 | BO80: =IFERROR(BM80*BN80,"-") -> - | BP80: =IFERROR(RANK(BM80,$BM$16:$BM$121,0),"-") -> - | BS80: =IFERROR(AVERAGE(BQ80:BR80),"-") -> - | BU80: =IFERROR(AVERAGE(BS80:BT80),"-") -> - | BV80: 1 | BW80: =IFERROR(BU80*BV80,"-") -> - | BX80: =IFERROR(RANK(BU80,$BU$16:$BU$121,0),"-") -> - | CA80: =IFERROR(AVERAGE(BY80:BZ80),"-") -> - | CC80: =IFERROR(AVERAGE(CA80:CB80),"-") -> - | CD80: 3 | CE80: =IFERROR(CC80*CD80,"-") -> - | CF80: - | CI80: =IFERROR(AVERAGE(CG80:CH80),"-") -> - | CK80: =IFERROR(AVERAGE(CI80:CJ80),"-") -> - | CL80: 2 | CM80: =IFERROR(CK80*CL80,"-") -> - | CN80: =IFERROR(RANK(CK80,$CK$16:$CK$121,0),"-") -> - | CQ80: =IFERROR(AVERAGE(CO80:CP80),"-") -> - | CS80: =IFERROR(AVERAGE(CQ80:CR80),"-") -> - | CT80: 2 | CU80: =IFERROR(CS80*CT80,"-") -> - | CV80: =IFERROR(RANK(CS80,$CS$16:$CS$121,0),"-") -> - | CY80: =IFERROR(AVERAGE(CW80:CX80),"-") -> - | DA80: =IFERROR(AVERAGE(CY80:CZ80),"-") -> - | DB80: 2 | DC80: =IFERROR(DA80*DB80,"-") -> - | DD80: =IFERROR(RANK(DA80,$DA$16:$DA$121,0),"-") -> - | DG80: =IFERROR(AVERAGE(DE80:DF80),"-") -> - | DI80: =IFERROR(AVERAGE(DG80:DH80),"-") -> - | DK80: =IFERROR(DI80*DJ80,"-") -> - | DL80: =IFERROR(RANK(DI80,$DI$16:$DI$121,0),"-") -> - | DM80: =IFERROR(S80,"-") -> - | DN80: =IFERROR(AA80,"-") -> - | DO80: =IFERROR(AI80,"-") -> - | DP80: =IFERROR(AQ80,"-") -> - | DQ80: =IFERROR(AY80,"-") -> - | DR80: =IFERROR(BG80,"-") -> - | DS80: =IFERROR(BO80,"-") -> - | DT80: =IFERROR(BW80,"-") -> - | DU80: =IFERROR(CE80,"-") -> - | DV80: =IFERROR(CM80,"-") -> - | DW80: =IFERROR(CU80,"-") -> - | DX80: =IFERROR(DC80,"-") -> - | DY80: =IFERROR(DK80,"-") -> - | DZ80: =IFERROR(R80,"-") -> 2 | EA80: =IFERROR(Z80,"-") -> 1 | EB80: =IFERROR(AH80,"-") -> 1 | EC80: =IFERROR(AP80,"-") -> 0 | ED80: =IFERROR(AX80,"-") -> 2 | EE80: =IFERROR(BF80,"-") -> 2 | EF80: =IFERROR(BN80,"-") -> 2 | EG80: =IFERROR(BV80,"-") -> 1 | EH80: =IFERROR(CD80,"-") -> 3 | EI80: =IFERROR(CL80,"-") -> 2 | EJ80: =IFERROR(CT80,"-") -> 2 | EK80: =IFERROR(DB80,"-") -> 2 | EL80: =IFERROR(DJ80,"-") -> 0 | EM80: 20 | EN80: =IFERROR(SUM(DM80:DY80),"-") -> 0 | EO80: =IFERROR(ROUND(EN80/EM80,2),"-") -> 0 | EP80: =IFERROR(RANK(EO80,$EO$16:$EO$121,0),"-") -> 5 | EQ80: 10 | ES80: OUI | ET80: =IF(EO80>=12,"Satisfaisant doit continuer",IF((EO80>=EQ80)*(EO80<12),"Peut mieux faire",IF(AND(EO80<EQ80,G80<16),"Insuffisant. Risque de redoubler",IF(AND(EO80<EQ80,G80>=16,I80="NON"),"Insuffisant. Risque de redoubler",IF(AND(EO80<EQ80,G80<16,I80="OUI"),"Insuffisant. Risque de redoubler",IF(AND(EO80<EQ80,G80>=16,I80="OUI"),"Insuffisant. Risque l'exclusion",IF(AND(EO80<=5,G80>=16),"Très insuffisant. Risque l'exclusion"))))))) -> Très insuffisant. Risque l'exclusion | EU80: =IF(EO80>=14,"Félicitations",IF((EO80>=13)*(EO80<14),"Encouragement",IF((EO80>=12)*(EO80<13),"Tableau d'honneur",IF((EO80>=9.5)*(EO80<12),"Moyen",IF((EO80>=7)*(EO80<9.5),"Avertissement",IF((EO80>=0)*(EO80<7),"Blâme")))))) -> Blâme | EY80: =IFERROR(AVERAGE(EW80:EX80),"-") -> - | FA80: =IFERROR(AVERAGE(EY80:EZ80),"-") -> - | FB80: 2 | FC80: =IFERROR(FA80*2,"-") -> - | FD80: =IFERROR(RANK(FA80,$Q$16:$Q$65,0),"-") -> - | FG80: =IFERROR(AVERAGE(FE80:FF80),"-") -> - | FI80: =IFERROR(AVERAGE(FG80:FH80),"-") -> - | FJ80: 1 | FK80: =IFERROR(FI80*1,"-") -> - | FL80: =IFERROR(RANK(FI80,$Y$16:$Y$65,0),"-") -> - | FO80: =IFERROR(AVERAGE(FM80:FN80),"-") -> - | FQ80: =IFERROR(AVERAGE(FO80:FP80),"-") -> - | FR80: 1 | FS80: =IFERROR(FQ80*1,"-") -> - | FT80: =IFERROR(RANK(FQ80,$AG$16:$AG$65,0),"-") -> - | FW80: =IFERROR(AVERAGE(FU80:FV80),"-") -> - | FY80: =IFERROR(AVERAGE(FW80:FX80),"-") -> - | GA80: =+IFERROR(FY80*FZ80,"-") -> - | GB80: =IFERROR(RANK(FY80,$AO$16:$AO$65,0),"-") -> - | GE80: =IFERROR(AVERAGE(GC80:GD80),"-") -> - | GG80: =IFERROR(AVERAGE(GE80:GF80),"-") -> - | GH80: 2 | GI80: =IFERROR(GG80*GH80,"-") -> - | GJ80: =IFERROR(RANK(GG80,$AW$16:$AW$65,0),"-") -> - | GM80: =IFERROR(AVERAGE(GK80:GL80),"-") -> - | GO80: =IFERROR(AVERAGE(GM80:GN80),"-") -> - | GP80: 2 | GQ80: =IFERROR(GO80*GP80,"-") -> - | GR80: =IFERROR(RANK(GO80,$BE$16:$BE$65,0),"-") -> - | GU80: =IFERROR(AVERAGE(GS80:GT80),"-") -> - | GW80: =IFERROR(AVERAGE(GU80:GV80),"-") -> - | GX80: 2 | GY80: =IFERROR(GW80*GX80,"-") -> - | GZ80: =IFERROR(RANK(GW80,$BM$16:$BM$65,0),"-") -> - | HC80: =IFERROR(AVERAGE(HA80:HB80),"-") -> - | HE80: =IFERROR(AVERAGE(HC80:HD80),"-") -> - | HF80: 1 | HG80: =IFERROR(HE80*HF80,"-") -> - | HH80: =IFERROR(RANK(HE80,$BU$16:$BU$65,0),"-") -> - | HK80: =IFERROR(AVERAGE(HI80:HJ80),"-") -> - | HM80: =IFERROR(AVERAGE(HK80:HL80),"-") -> - | HN80: 3 | HO80: =IFERROR(HM80*HN80,"-") -> - | HP80: - | HS80: =IFERROR(AVERAGE(HQ80:HR80),"-") -> - | HU80: =IFERROR(AVERAGE(HS80:HT80),"-") -> - | HV80: 2 | HW80: =IFERROR(HU80*HV80,"-") -> - | HX80: =IFERROR(RANK(HU80,$CK$16:$CK$65,0),"-") -> - | IA80: =IFERROR(AVERAGE(HY80:HZ80),"-") -> - | IC80: =IFERROR(AVERAGE(IA80:IB80),"-") -> - | ID80: 2 | IE80: =IFERROR(IC80*ID80,"-") -> - | IF80: =IFERROR(RANK(IC80,$CS$16:$CS$65,0),"-") -> - | II80: =IFERROR(AVERAGE(IG80:IH80),"-") -> - | IK80: =IFERROR(AVERAGE(II80:IJ80),"-") -> - | IL80: 2 | IM80: =IFERROR(IK80*IL80,"-") -> - | IN80: =IFERROR(RANK(IK80,$DA$16:$DA$65,0),"-") -> - | IQ80: =IFERROR(AVERAGE(IO80:IP80),"-") -> - | IS80: =IFERROR(AVERAGE(IQ80:IR80),"-") -> - | IU80: =IFERROR(IS80*IT80,"-") -> - | IV80: =IFERROR(RANK(IS80,$DI$16:$DI$65,0),"-") -> - | IW80: =IFERROR(FC80,"-") -> - | IX80: =IFERROR(FK80,"-") -> - | IY80: =IFERROR(FS80,"-") -> - | IZ80: =IFERROR(GA80,"-") -> - | JA80: =IFERROR(GI80,"-") -> - | JB80: =IFERROR(GQ80,"-") -> - | JC80: =IFERROR(GY80,"-") -> - | JD80: =IFERROR(HG80,"-") -> - | JE80: =IFERROR(HO80,"-") -> - | JF80: =IFERROR(HW80,"-") -> - | JG80: =IFERROR(IE80,"-") -> - | JH80: =IFERROR(IM80,"-") -> - | JI80: =IFERROR(IU80,"-") -> - | JJ80: =IFERROR(FB80,"-") -> 2 | JK80: =IFERROR(FJ80,"-") -> 1 | JL80: =IFERROR(FR80,"-") -> 1 | JM80: =IFERROR(FZ80,"-") -> 0 | JN80: =IFERROR(GH80,"-") -> 2 | JO80: =IFERROR(GP80,"-") -> 2 | JP80: =IFERROR(GX80,"-") -> 2 | JQ80: =IFERROR(HF80,"-") -> 1 | JR80: =IFERROR(HN80,"-") -> 3 | JS80: =IFERROR(HV80,"-") -> 2 | JT80: =IFERROR(ID80,"-") -> 2 | JU80: =IFERROR(IL80,"-") -> 2 | JV80: =IFERROR(IT80,"-") -> 0 | JW80: =IFERROR(SUM(JJ80:JV80),"-") -> 20 | JX80: =IFERROR(SUM(IW80:JI80),"-") -> 0 | JY80: =EO80 -> 0 | JZ80: =IFERROR(ROUND(JX80/JW80,2),"-") -> 0 | KA80: =IFERROR(RANK(JZ80,$EP$16:$EP$65,0),"-") -> - | KB80: =IFERROR(ROUND((JY80+JZ80)/2,2),"---") -> 0 | KF80: OUI | KG80: =IF(KB80>=12,"Satisfaisant doit continuer",IF((KB80>=KD80)*(KB80<12),"Peut mieux faire",IF(AND(KB80<KD80,ET80<16),"Insuffisant. Risque de redoubler",IF(AND(KB80<KD80,ET80>=16,EV80="NON"),"Insuffisant. Risque de redoubler",IF(AND(KB80<KD80,ET80<16,EV80="OUI"),"Insuffisant. Risque de redoubler",IF(AND(KB80<KD80,ET80>=16,EV80="OUI"),"Insuffisant. Risque l'exclusion",IF(AND(KB80<=5,ET80>=16),"Très insuffisant. Risque l'exclusion"))))))) -> Peut mieux faire | KH80: =IF(JZ80>=14,"Félicitations",IF((JZ80>=13)*(JZ80<14),"Encouragement",IF((JZ80>=12)*(JZ80<13),"Tableau d'honneur",IF((JZ80>=9.5)*(JZ80<12),"Moyen",IF((JZ80>=7)*(JZ80<9.5),"Avertissement",IF((JZ80>=0)*(JZ80<7),"Blâme")))))) -> Blâme
G81: 119 | O81: - | Q81: - | R81: 2 | S81: - | T81: - | W81: - | Y81: - | Z81: 1 | AA81: - | AB81: - | AE81: - | AG81: - | AH81: 1 | AI81: - | AJ81: - | AM81: - | AO81: - | AQ81: - | AR81: - | AU81: - | AW81: - | AX81: 2 | AY81: - | AZ81: - | BC81: - | BE81: - | BF81: 2 | BG81: - | BH81: - | BK81: - | BM81: - | BN81: 2 | BO81: - | BP81: - | BS81: - | BU81: - | BV81: 1 | BW81: - | BX81: - | CA81: - | CC81: - | CD81: 3 | CE81: - | CF81: =IFERROR(RANK(CC81,CC81:CC185,0),"-") -> - | CI81: - | CK81: - | CL81: 2 | CM81: - | CN81: - | CQ81: - | CS81: - | CT81: 2 | CU81: - | CV81: - | CY81: - | DA81: - | DB81: 2 | DC81: - | DD81: - | DG81: - | DI81: - | DK81: - | DL81: - | DM81: - | DN81: - | DO81: - | DP81: - | DQ81: - | DR81: - | DS81: - | DT81: - | DU81: - | DV81: - | DW81: - | DX81: - | DY81: - | DZ81: 2 | EA81: 1 | EB81: 1 | EC81: 0 | ED81: 2 | EE81: 2 | EF81: 2 | EG81: 1 | EH81: 3 | EI81: 2 | EJ81: 2 | EK81: 2 | EL81: 0 | EM81: 20 | EN81: 0 | EO81: 0 | EP81: 5 | EQ81: 10 | ES81: OUI | ET81: Très insuffisant. Risque l'exclusion | EU81: Blâme | EY81: - | FA81: - | FB81: 2 | FC81: - | FD81: - | FG81: - | FI81: - | FJ81: 1 | FK81: - | FL81: - | FO81: - | FQ81: - | FR81: 1 | FS81: - | FT81: - | FW81: - | FY81: - | GA81: - | GB81: - | GE81: - | GG81: - | GH81: 2 | GI81: - | GJ81: - | GM81: - | GO81: - | GP81: 2 | GQ81: - | GR81: - | GU81: - | GW81: - | GX81: 2 | GY81: - | GZ81: - | HC81: - | HE81: - | HF81: 1 | HG81: - | HH81: - | HK81: - | HM81: - | HN81: 3 | HO81: - | HP81: - | HS81: - | HU81: - | HV81: 2 | HW81: - | HX81: - | IA81: - | IC81: - | ID81: 2 | IE81: - | IF81: - | II81: - | IK81: - | IL81: 2 | IM81: - | IN81: - | IQ81: - | IS81: - | IU81: - | IV81: - | IW81: - | IX81: - | IY81: - | IZ81: - | JA81: - | JB81: - | JC81: - | JD81: - | JE81: - | JF81: - | JG81: - | JH81: - | JI81: - | JJ81: 2 | JK81: 1 | JL81: 1 | JM81: 0 | JN81: 2 | JO81: 2 | JP81: 2 | JQ81: 1 | JR81: 3 | JS81: 2 | JT81: 2 | JU81: 2 | JV81: 0 | JW81: 20 | JX81: 0 | JY81: 0 | JZ81: 0 | KA81: - | KB81: 0 | KF81: OUI | KG81: Peut mieux faire | KH81: Blâme
G82: 119 | O82: - | Q82: - | R82: 2 | S82: - | T82: - | W82: - | Y82: - | Z82: 1 | AA82: - | AB82: - | AE82: - | AG82: - | AH82: 1 | AI82: - | AJ82: - | AM82: - | AO82: - | AQ82: - | AR82: - | AU82: - | AW82: - | AX82: 2 | AY82: - | AZ82: - | BC82: - | BE82: - | BF82: 2 | BG82: - | BH82: - | BK82: - | BM82: - | BN82: 2 | BO82: - | BP82: - | BS82: - | BU82: - | BV82: 1 | BW82: - | BX82: - | CA82: - | CC82: - | CD82: 3 | CE82: - | CF82: - | CI82: - | CK82: - | CL82: 2 | CM82: - | CN82: - | CQ82: - | CS82: - | CT82: 2 | CU82: - | CV82: - | CY82: - | DA82: - | DB82: 2 | DC82: - | DD82: - | DG82: - | DI82: - | DK82: - | DL82: - | DM82: - | DN82: - | DO82: - | DP82: - | DQ82: - | DR82: - | DS82: - | DT82: - | DU82: - | DV82: - | DW82: - | DX82: - | DY82: - | DZ82: 2 | EA82: 1 | EB82: 1 | EC82: 0 | ED82: 2 | EE82: 2 | EF82: 2 | EG82: 1 | EH82: 3 | EI82: 2 | EJ82: 2 | EK82: 2 | EL82: 0 | EM82: 20 | EN82: 0 | EO82: 0 | EP82: 5 | EQ82: 10 | ES82: OUI | ET82: Très insuffisant. Risque l'exclusion | EU82: Blâme | EY82: - | FA82: - | FB82: 2 | FC82: - | FD82: - | FG82: - | FI82: - | FJ82: 1 | FK82: - | FL82: - | FO82: - | FQ82: - | FR82: 1 | FS82: - | FT82: - | FW82: - | FY82: - | GA82: - | GB82: - | GE82: - | GG82: - | GH82: 2 | GI82: - | GJ82: - | GM82: - | GO82: - | GP82: 2 | GQ82: - | GR82: - | GU82: - | GW82: - | GX82: 2 | GY82: - | GZ82: - | HC82: - | HE82: - | HF82: 1 | HG82: - | HH82: - | HK82: - | HM82: - | HN82: 3 | HO82: - | HP82: - | HS82: - | HU82: - | HV82: 2 | HW82: - | HX82: - | IA82: - | IC82: - | ID82: 2 | IE82: - | IF82: - | II82: - | IK82: - | IL82: 2 | IM82: - | IN82: - | IQ82: - | IS82: - | IU82: - | IV82: - | IW82: - | IX82: - | IY82: - | IZ82: - | JA82: - | JB82: - | JC82: - | JD82: - | JE82: - | JF82: - | JG82: - | JH82: - | JI82: - | JJ82: 2 | JK82: 1 | JL82: 1 | JM82: 0 | JN82: 2 | JO82: 2 | JP82: 2 | JQ82: 1 | JR82: 3 | JS82: 2 | JT82: 2 | JU82: 2 | JV82: 0 | JW82: 20 | JX82: 0 | JY82: 0 | JZ82: 0 | KA82: - | KB82: 0 | KF82: OUI | KG82: Peut mieux faire | KH82: Blâme
G83: 119 | O83: - | Q83: - | R83: 2 | S83: - | T83: - | W83: - | Y83: - | Z83: 1 | AA83: - | AB83: - | AE83: - | AG83: - | AH83: 1 | AI83: - | AJ83: - | AM83: - | AO83: - | AQ83: - | AR83: - | AU83: - | AW83: - | AX83: 2 | AY83: - | AZ83: - | BC83: - | BE83: - | BF83: 2 | BG83: - | BH83: - | BK83: - | BM83: - | BN83: 2 | BO83: - | BP83: - | BS83: - | BU83: - | BV83: 1 | BW83: - | BX83: - | CA83: - | CC83: - | CD83: 3 | CE83: - | CF83: - | CI83: - | CK83: - | CL83: 2 | CM83: - | CN83: - | CQ83: - | CS83: - | CT83: 2 | CU83: - | CV83: - | CY83: - | DA83: - | DB83: 2 | DC83: - | DD83: - | DG83: - | DI83: - | DK83: - | DL83: - | DM83: - | DN83: - | DO83: - | DP83: - | DQ83: - | DR83: - | DS83: - | DT83: - | DU83: - | DV83: - | DW83: - | DX83: - | DY83: - | DZ83: 2 | EA83: 1 | EB83: 1 | EC83: 0 | ED83: 2 | EE83: 2 | EF83: 2 | EG83: 1 | EH83: 3 | EI83: 2 | EJ83: 2 | EK83: 2 | EL83: 0 | EM83: 20 | EN83: 0 | EO83: 0 | EP83: 5 | EQ83: 10 | ES83: OUI | ET83: Très insuffisant. Risque l'exclusion | EU83: Blâme | EY83: - | FA83: - | FB83: 2 | FC83: - | FD83: - | FG83: - | FI83: - | FJ83: 1 | FK83: - | FL83: - | FO83: - | FQ83: - | FR83: 1 | FS83: - | FT83: - | FW83: - | FY83: - | GA83: - | GB83: - | GE83: - | GG83: - | GH83: 2 | GI83: - | GJ83: - | GM83: - | GO83: - | GP83: 2 | GQ83: - | GR83: - | GU83: - | GW83: - | GX83: 2 | GY83: - | GZ83: - | HC83: - | HE83: - | HF83: 1 | HG83: - | HH83: - | HK83: - | HM83: - | HN83: 3 | HO83: - | HP83: - | HS83: - | HU83: - | HV83: 2 | HW83: - | HX83: - | IA83: - | IC83: - | ID83: 2 | IE83: - | IF83: - | II83: - | IK83: - | IL83: 2 | IM83: - | IN83: - | IQ83: - | IS83: - | IU83: - | IV83: - | IW83: - | IX83: - | IY83: - | IZ83: - | JA83: - | JB83: - | JC83: - | JD83: - | JE83: - | JF83: - | JG83: - | JH83: - | JI83: - | JJ83: 2 | JK83: 1 | JL83: 1 | JM83: 0 | JN83: 2 | JO83: 2 | JP83: 2 | JQ83: 1 | JR83: 3 | JS83: 2 | JT83: 2 | JU83: 2 | JV83: 0 | JW83: 20 | JX83: 0 | JY83: 0 | JZ83: 0 | KA83: - | KB83: 0 | KF83: OUI | KG83: Peut mieux faire | KH83: Blâme
G84: 119 | O84: - | Q84: - | R84: 2 | S84: - | T84: - | W84: - | Y84: - | Z84: 1 | AA84: - | AB84: - | AE84: - | AG84: - | AH84: 1 | AI84: - | AJ84: - | AM84: - | AO84: - | AQ84: - | AR84: - | AU84: - | AW84: - | AX84: 2 | AY84: - | AZ84: - | BC84: - | BE84: - | BF84: 2 | BG84: - | BH84: - | BK84: - | BM84: - | BN84: 2 | BO84: - | BP84: - | BS84: - | BU84: - | BV84: 1 | BW84: - | BX84: - | CA84: - | CC84: - | CD84: 3 | CE84: - | CF84: - | CI84: - | CK84: - | CL84: 2 | CM84: - | CN84: - | CQ84: - | CS84: - | CT84: 2 | CU84: - | CV84: - | CY84: - | DA84: - | DB84: 2 | DC84: - | DD84: - | DG84: - | DI84: - | DK84: - | DL84: - | DM84: - | DN84: - | DO84: - | DP84: - | DQ84: - | DR84: - | DS84: - | DT84: - | DU84: - | DV84: - | DW84: - | DX84: - | DY84: - | DZ84: 2 | EA84: 1 | EB84: 1 | EC84: 0 | ED84: 2 | EE84: 2 | EF84: 2 | EG84: 1 | EH84: 3 | EI84: 2 | EJ84: 2 | EK84: 2 | EL84: 0 | EM84: 20 | EN84: 0 | EO84: 0 | EP84: 5 | EQ84: 10 | ES84: OUI | ET84: Très insuffisant. Risque l'exclusion | EU84: Blâme | EY84: - | FA84: - | FB84: 2 | FC84: - | FD84: - | FG84: - | FI84: - | FJ84: 1 | FK84: - | FL84: - | FO84: - | FQ84: - | FR84: 1 | FS84: - | FT84: - | FW84: - | FY84: - | GA84: - | GB84: - | GE84: - | GG84: - | GH84: 2 | GI84: - | GJ84: - | GM84: - | GO84: - | GP84: 2 | GQ84: - | GR84: - | GU84: - | GW84: - | GX84: 2 | GY84: - | GZ84: - | HC84: - | HE84: - | HF84: 1 | HG84: - | HH84: - | HK84: - | HM84: - | HN84: 3 | HO84: - | HP84: - | HS84: - | HU84: - | HV84: 2 | HW84: - | HX84: - | IA84: - | IC84: - | ID84: 2 | IE84: - | IF84: - | II84: - | IK84: - | IL84: 2 | IM84: - | IN84: - | IQ84: - | IS84: - | IU84: - | IV84: - | IW84: - | IX84: - | IY84: - | IZ84: - | JA84: - | JB84: - | JC84: - | JD84: - | JE84: - | JF84: - | JG84: - | JH84: - | JI84: - | JJ84: 2 | JK84: 1 | JL84: 1 | JM84: 0 | JN84: 2 | JO84: 2 | JP84: 2 | JQ84: 1 | JR84: 3 | JS84: 2 | JT84: 2 | JU84: 2 | JV84: 0 | JW84: 20 | JX84: 0 | JY84: 0 | JZ84: 0 | KA84: - | KB84: 0 | KF84: OUI | KG84: Peut mieux faire | KH84: Blâme
G85: 119 | O85: - | Q85: - | R85: 2 | S85: - | T85: - | W85: - | Y85: - | Z85: 1 | AA85: - | AB85: - | AE85: - | AG85: - | AH85: 1 | AI85: - | AJ85: - | AM85: - | AO85: - | AQ85: - | AR85: - | AU85: - | AW85: - | AX85: 2 | AY85: - | AZ85: - | BC85: - | BE85: - | BF85: 2 | BG85: - | BH85: - | BK85: - | BM85: - | BN85: 2 | BO85: - | BP85: - | BS85: - | BU85: - | BV85: 1 | BW85: - | BX85: - | CA85: - | CC85: - | CD85: 3 | CE85: - | CF85: - | CI85: - | CK85: - | CL85: 2 | CM85: - | CN85: - | CQ85: - | CS85: - | CT85: 2 | CU85: - | CV85: - | CY85: - | DA85: - | DB85: 2 | DC85: - | DD85: - | DG85: - | DI85: - | DK85: - | DL85: - | DM85: - | DN85: - | DO85: - | DP85: - | DQ85: - | DR85: - | DS85: - | DT85: - | DU85: - | DV85: - | DW85: - | DX85: - | DY85: - | DZ85: 2 | EA85: 1 | EB85: 1 | EC85: 0 | ED85: 2 | EE85: 2 | EF85: 2 | EG85: 1 | EH85: 3 | EI85: 2 | EJ85: 2 | EK85: 2 | EL85: 0 | EM85: 20 | EN85: 0 | EO85: 0 | EP85: 5 | EQ85: 10 | ES85: OUI | ET85: Très insuffisant. Risque l'exclusion | EU85: Blâme | EY85: - | FA85: - | FB85: 2 | FC85: - | FD85: - | FG85: - | FI85: - | FJ85: 1 | FK85: - | FL85: - | FO85: - | FQ85: - | FR85: 1 | FS85: - | FT85: - | FW85: - | FY85: - | GA85: - | GB85: - | GE85: - | GG85: - | GH85: 2 | GI85: - | GJ85: - | GM85: - | GO85: - | GP85: 2 | GQ85: - | GR85: - | GU85: - | GW85: - | GX85: 2 | GY85: - | GZ85: - | HC85: - | HE85: - | HF85: 1 | HG85: - | HH85: - | HK85: - | HM85: - | HN85: 3 | HO85: - | HP85: - | HS85: - | HU85: - | HV85: 2 | HW85: - | HX85: - | IA85: - | IC85: - | ID85: 2 | IE85: - | IF85: - | II85: - | IK85: - | IL85: 2 | IM85: - | IN85: - | IQ85: - | IS85: - | IU85: - | IV85: - | IW85: - | IX85: - | IY85: - | IZ85: - | JA85: - | JB85: - | JC85: - | JD85: - | JE85: - | JF85: - | JG85: - | JH85: - | JI85: - | JJ85: 2 | JK85: 1 | JL85: 1 | JM85: 0 | JN85: 2 | JO85: 2 | JP85: 2 | JQ85: 1 | JR85: 3 | JS85: 2 | JT85: 2 | JU85: 2 | JV85: 0 | JW85: 20 | JX85: 0 | JY85: 0 | JZ85: 0 | KA85: - | KB85: 0 | KF85: OUI | KG85: Peut mieux faire | KH85: Blâme
G86: 119 | O86: - | Q86: - | R86: 2 | S86: - | T86: - | W86: - | Y86: - | Z86: 1 | AA86: - | AB86: - | AE86: - | AG86: - | AH86: 1 | AI86: - | AJ86: - | AM86: - | AO86: - | AQ86: - | AR86: - | AU86: - | AW86: - | AX86: 2 | AY86: - | AZ86: - | BC86: - | BE86: - | BF86: 2 | BG86: - | BH86: - | BK86: - | BM86: - | BN86: 2 | BO86: - | BP86: - | BS86: - | BU86: - | BV86: 1 | BW86: - | BX86: - | CA86: - | CC86: - | CD86: 3 | CE86: - | CF86: - | CI86: - | CK86: - | CL86: 2 | CM86: - | CN86: - | CQ86: - | CS86: - | CT86: 2 | CU86: - | CV86: - | CY86: - | DA86: - | DB86: 2 | DC86: - | DD86: - | DG86: - | DI86: - | DK86: - | DL86: - | DM86: - | DN86: - | DO86: - | DP86: - | DQ86: - | DR86: - | DS86: - | DT86: - | DU86: - | DV86: - | DW86: - | DX86: - | DY86: - | DZ86: 2 | EA86: 1 | EB86: 1 | EC86: 0 | ED86: 2 | EE86: 2 | EF86: 2 | EG86: 1 | EH86: 3 | EI86: 2 | EJ86: 2 | EK86: 2 | EL86: 0 | EM86: 20 | EN86: 0 | EO86: 0 | EP86: 5 | EQ86: 10 | ES86: OUI | ET86: Très insuffisant. Risque l'exclusion | EU86: Blâme | EY86: - | FA86: - | FB86: 2 | FC86: - | FD86: - | FG86: - | FI86: - | FJ86: 1 | FK86: - | FL86: - | FO86: - | FQ86: - | FR86: 1 | FS86: - | FT86: - | FW86: - | FY86: - | GA86: - | GB86: - | GE86: - | GG86: - | GH86: 2 | GI86: - | GJ86: - | GM86: - | GO86: - | GP86: 2 | GQ86: - | GR86: - | GU86: - | GW86: - | GX86: 2 | GY86: - | GZ86: - | HC86: - | HE86: - | HF86: 1 | HG86: - | HH86: - | HK86: - | HM86: - | HN86: 3 | HO86: - | HP86: - | HS86: - | HU86: - | HV86: 2 | HW86: - | HX86: - | IA86: - | IC86: - | ID86: 2 | IE86: - | IF86: - | II86: - | IK86: - | IL86: 2 | IM86: - | IN86: - | IQ86: - | IS86: - | IU86: - | IV86: - | IW86: - | IX86: - | IY86: - | IZ86: - | JA86: - | JB86: - | JC86: - | JD86: - | JE86: - | JF86: - | JG86: - | JH86: - | JI86: - | JJ86: 2 | JK86: 1 | JL86: 1 | JM86: 0 | JN86: 2 | JO86: 2 | JP86: 2 | JQ86: 1 | JR86: 3 | JS86: 2 | JT86: 2 | JU86: 2 | JV86: 0 | JW86: 20 | JX86: 0 | JY86: 0 | JZ86: 0 | KA86: - | KB86: 0 | KF86: OUI | KG86: Peut mieux faire | KH86: Blâme
G87: 119 | O87: - | Q87: - | R87: 2 | S87: - | T87: - | W87: - | Y87: - | Z87: 1 | AA87: - | AB87: - | AE87: - | AG87: - | AH87: 1 | AI87: - | AJ87: - | AM87: - | AO87: - | AQ87: - | AR87: - | AU87: - | AW87: - | AX87: 2 | AY87: - | AZ87: - | BC87: - | BE87: - | BF87: 2 | BG87: - | BH87: - | BK87: - | BM87: - | BN87: 2 | BO87: - | BP87: - | BS87: - | BU87: - | BV87: 1 | BW87: - | BX87: - | CA87: - | CC87: - | CD87: 3 | CE87: - | CF87: - | CI87: - | CK87: - | CL87: 2 | CM87: - | CN87: - | CQ87: - | CS87: - | CT87: 2 | CU87: - | CV87: - | CY87: - | DA87: - | DB87: 2 | DC87: - | DD87: - | DG87: - | DI87: - | DK87: - | DL87: - | DM87: - | DN87: - | DO87: - | DP87: - | DQ87: - | DR87: - | DS87: - | DT87: - | DU87: - | DV87: - | DW87: - | DX87: - | DY87: - | DZ87: 2 | EA87: 1 | EB87: 1 | EC87: 0 | ED87: 2 | EE87: 2 | EF87: 2 | EG87: 1 | EH87: 3 | EI87: 2 | EJ87: 2 | EK87: 2 | EL87: 0 | EM87: 20 | EN87: 0 | EO87: 0 | EP87: 5 | EQ87: 10 | ES87: OUI | ET87: Très insuffisant. Risque l'exclusion | EU87: Blâme | EY87: - | FA87: - | FB87: 2 | FC87: - | FD87: - | FG87: - | FI87: - | FJ87: 1 | FK87: - | FL87: - | FO87: - | FQ87: - | FR87: 1 | FS87: - | FT87: - | FW87: - | FY87: - | GA87: - | GB87: - | GE87: - | GG87: - | GH87: 2 | GI87: - | GJ87: - | GM87: - | GO87: - | GP87: 2 | GQ87: - | GR87: - | GU87: - | GW87: - | GX87: 2 | GY87: - | GZ87: - | HC87: - | HE87: - | HF87: 1 | HG87: - | HH87: - | HK87: - | HM87: - | HN87: 3 | HO87: - | HP87: - | HS87: - | HU87: - | HV87: 2 | HW87: - | HX87: - | IA87: - | IC87: - | ID87: 2 | IE87: - | IF87: - | II87: - | IK87: - | IL87: 2 | IM87: - | IN87: - | IQ87: - | IS87: - | IU87: - | IV87: - | IW87: - | IX87: - | IY87: - | IZ87: - | JA87: - | JB87: - | JC87: - | JD87: - | JE87: - | JF87: - | JG87: - | JH87: - | JI87: - | JJ87: 2 | JK87: 1 | JL87: 1 | JM87: 0 | JN87: 2 | JO87: 2 | JP87: 2 | JQ87: 1 | JR87: 3 | JS87: 2 | JT87: 2 | JU87: 2 | JV87: 0 | JW87: 20 | JX87: 0 | JY87: 0 | JZ87: 0 | KA87: - | KB87: 0 | KF87: OUI | KG87: Peut mieux faire | KH87: Blâme
G88: 119 | O88: - | Q88: - | R88: 2 | S88: - | T88: - | W88: - | Y88: - | Z88: 1 | AA88: - | AB88: - | AE88: - | AG88: - | AH88: 1 | AI88: - | AJ88: - | AM88: - | AO88: - | AQ88: - | AR88: - | AU88: - | AW88: - | AX88: 2 | AY88: - | AZ88: - | BC88: - | BE88: - | BF88: 2 | BG88: - | BH88: - | BK88: - | BM88: - | BN88: 2 | BO88: - | BP88: - | BS88: - | BU88: - | BV88: 1 | BW88: - | BX88: - | CA88: - | CC88: - | CD88: 3 | CE88: - | CF88: - | CI88: - | CK88: - | CL88: 2 | CM88: - | CN88: - | CQ88: - | CS88: - | CT88: 2 | CU88: - | CV88: - | CY88: - | DA88: - | DB88: 2 | DC88: - | DD88: - | DG88: - | DI88: - | DK88: - | DL88: - | DM88: - | DN88: - | DO88: - | DP88: - | DQ88: - | DR88: - | DS88: - | DT88: - | DU88: - | DV88: - | DW88: - | DX88: - | DY88: - | DZ88: 2 | EA88: 1 | EB88: 1 | EC88: 0 | ED88: 2 | EE88: 2 | EF88: 2 | EG88: 1 | EH88: 3 | EI88: 2 | EJ88: 2 | EK88: 2 | EL88: 0 | EM88: 20 | EN88: 0 | EO88: 0 | EP88: 5 | EQ88: 10 | ES88: OUI | ET88: Très insuffisant. Risque l'exclusion | EU88: Blâme | EY88: - | FA88: - | FB88: 2 | FC88: - | FD88: - | FG88: - | FI88: - | FJ88: 1 | FK88: - | FL88: - | FO88: - | FQ88: - | FR88: 1 | FS88: - | FT88: - | FW88: - | FY88: - | GA88: - | GB88: - | GE88: - | GG88: - | GH88: 2 | GI88: - | GJ88: - | GM88: - | GO88: - | GP88: 2 | GQ88: - | GR88: - | GU88: - | GW88: - | GX88: 2 | GY88: - | GZ88: - | HC88: - | HE88: - | HF88: 1 | HG88: - | HH88: - | HK88: - | HM88: - | HN88: 3 | HO88: - | HP88: - | HS88: - | HU88: - | HV88: 2 | HW88: - | HX88: - | IA88: - | IC88: - | ID88: 2 | IE88: - | IF88: - | II88: - | IK88: - | IL88: 2 | IM88: - | IN88: - | IQ88: - | IS88: - | IU88: - | IV88: - | IW88: - | IX88: - | IY88: - | IZ88: - | JA88: - | JB88: - | JC88: - | JD88: - | JE88: - | JF88: - | JG88: - | JH88: - | JI88: - | JJ88: 2 | JK88: 1 | JL88: 1 | JM88: 0 | JN88: 2 | JO88: 2 | JP88: 2 | JQ88: 1 | JR88: 3 | JS88: 2 | JT88: 2 | JU88: 2 | JV88: 0 | JW88: 20 | JX88: 0 | JY88: 0 | JZ88: 0 | KA88: - | KB88: 0 | KF88: OUI | KG88: Peut mieux faire | KH88: Blâme
G89: 119 | O89: - | Q89: - | R89: 2 | S89: - | T89: - | W89: - | Y89: - | Z89: 1 | AA89: - | AB89: - | AE89: - | AG89: - | AH89: 1 | AI89: - | AJ89: - | AM89: - | AO89: - | AQ89: - | AR89: - | AU89: - | AW89: - | AX89: 2 | AY89: - | AZ89: - | BC89: - | BE89: - | BF89: 2 | BG89: - | BH89: - | BK89: - | BM89: - | BN89: 2 | BO89: - | BP89: - | BS89: - | BU89: - | BV89: 1 | BW89: - | BX89: - | CA89: - | CC89: - | CD89: 3 | CE89: - | CF89: - | CI89: - | CK89: - | CL89: 2 | CM89: - | CN89: - | CQ89: - | CS89: - | CT89: 2 | CU89: - | CV89: - | CY89: - | DA89: - | DB89: 2 | DC89: - | DD89: - | DG89: - | DI89: - | DK89: - | DL89: - | DM89: - | DN89: - | DO89: - | DP89: - | DQ89: - | DR89: - | DS89: - | DT89: - | DU89: - | DV89: - | DW89: - | DX89: - | DY89: - | DZ89: 2 | EA89: 1 | EB89: 1 | EC89: 0 | ED89: 2 | EE89: 2 | EF89: 2 | EG89: 1 | EH89: 3 | EI89: 2 | EJ89: 2 | EK89: 2 | EL89: 0 | EM89: 20 | EN89: 0 | EO89: 0 | EP89: 5 | EQ89: 10 | ES89: OUI | ET89: Très insuffisant. Risque l'exclusion | EU89: Blâme | EY89: - | FA89: - | FB89: 2 | FC89: - | FD89: - | FG89: - | FI89: - | FJ89: 1 | FK89: - | FL89: - | FO89: - | FQ89: - | FR89: 1 | FS89: - | FT89: - | FW89: - | FY89: - | GA89: - | GB89: - | GE89: - | GG89: - | GH89: 2 | GI89: - | GJ89: - | GM89: - | GO89: - | GP89: 2 | GQ89: - | GR89: - | GU89: - | GW89: - | GX89: 2 | GY89: - | GZ89: - | HC89: - | HE89: - | HF89: 1 | HG89: - | HH89: - | HK89: - | HM89: - | HN89: 3 | HO89: - | HP89: - | HS89: - | HU89: - | HV89: 2 | HW89: - | HX89: - | IA89: - | IC89: - | ID89: 2 | IE89: - | IF89: - | II89: - | IK89: - | IL89: 2 | IM89: - | IN89: - | IQ89: - | IS89: - | IU89: - | IV89: - | IW89: - | IX89: - | IY89: - | IZ89: - | JA89: - | JB89: - | JC89: - | JD89: - | JE89: - | JF89: - | JG89: - | JH89: - | JI89: - | JJ89: 2 | JK89: 1 | JL89: 1 | JM89: 0 | JN89: 2 | JO89: 2 | JP89: 2 | JQ89: 1 | JR89: 3 | JS89: 2 | JT89: 2 | JU89: 2 | JV89: 0 | JW89: 20 | JX89: 0 | JY89: 0 | JZ89: 0 | KA89: - | KB89: 0 | KF89: OUI | KG89: Peut mieux faire | KH89: Blâme
G90: 119 | O90: - | Q90: - | R90: 2 | S90: - | T90: - | W90: - | Y90: - | Z90: 1 | AA90: - | AB90: - | AE90: - | AG90: - | AH90: 1 | AI90: - | AJ90: - | AM90: - | AO90: - | AQ90: - | AR90: - | AU90: - | AW90: - | AX90: 2 | AY90: - | AZ90: - | BC90: - | BE90: - | BF90: 2 | BG90: - | BH90: - | BK90: - | BM90: - | BN90: 2 | BO90: - | BP90: - | BS90: - | BU90: - | BV90: 1 | BW90: - | BX90: - | CA90: - | CC90: - | CD90: 3 | CE90: - | CF90: - | CI90: - | CK90: - | CL90: 2 | CM90: - | CN90: - | CQ90: - | CS90: - | CT90: 2 | CU90: - | CV90: - | CY90: - | DA90: - | DB90: 2 | DC90: - | DD90: - | DG90: - | DI90: - | DK90: - | DL90: - | DM90: - | DN90: - | DO90: - | DP90: - | DQ90: - | DR90: - | DS90: - | DT90: - | DU90: - | DV90: - | DW90: - | DX90: - | DY90: - | DZ90: 2 | EA90: 1 | EB90: 1 | EC90: 0 | ED90: 2 | EE90: 2 | EF90: 2 | EG90: 1 | EH90: 3 | EI90: 2 | EJ90: 2 | EK90: 2 | EL90: 0 | EM90: 20 | EN90: 0 | EO90: 0 | EP90: 5 | EQ90: 10 | ES90: OUI | ET90: Très insuffisant. Risque l'exclusion | EU90: Blâme | EY90: - | FA90: - | FB90: 2 | FC90: - | FD90: - | FG90: - | FI90: - | FJ90: 1 | FK90: - | FL90: - | FO90: - | FQ90: - | FR90: 1 | FS90: - | FT90: - | FW90: - | FY90: - | GA90: - | GB90: - | GE90: - | GG90: - | GH90: 2 | GI90: - | GJ90: - | GM90: - | GO90: - | GP90: 2 | GQ90: - | GR90: - | GU90: - | GW90: - | GX90: 2 | GY90: - | GZ90: - | HC90: - | HE90: - | HF90: 1 | HG90: - | HH90: - | HK90: - | HM90: - | HN90: 3 | HO90: - | HP90: - | HS90: - | HU90: - | HV90: 2 | HW90: - | HX90: - | IA90: - | IC90: - | ID90: 2 | IE90: - | IF90: - | II90: - | IK90: - | IL90: 2 | IM90: - | IN90: - | IQ90: - | IS90: - | IU90: - | IV90: - | IW90: - | IX90: - | IY90: - | IZ90: - | JA90: - | JB90: - | JC90: - | JD90: - | JE90: - | JF90: - | JG90: - | JH90: - | JI90: - | JJ90: 2 | JK90: 1 | JL90: 1 | JM90: 0 | JN90: 2 | JO90: 2 | JP90: 2 | JQ90: 1 | JR90: 3 | JS90: 2 | JT90: 2 | JU90: 2 | JV90: 0 | JW90: 20 | JX90: 0 | JY90: 0 | JZ90: 0 | KA90: - | KB90: 0 | KF90: OUI | KG90: Peut mieux faire | KH90: Blâme
G91: 119 | O91: - | Q91: - | R91: 2 | S91: - | T91: - | W91: - | Y91: - | Z91: 1 | AA91: - | AB91: - | AE91: - | AG91: - | AH91: 1 | AI91: - | AJ91: - | AM91: - | AO91: - | AQ91: - | AR91: - | AU91: - | AW91: - | AX91: 2 | AY91: - | AZ91: - | BC91: - | BE91: - | BF91: 2 | BG91: - | BH91: - | BK91: - | BM91: - | BN91: 2 | BO91: - | BP91: - | BS91: - | BU91: - | BV91: 1 | BW91: - | BX91: - | CA91: - | CC91: - | CD91: 3 | CE91: - | CF91: - | CI91: - | CK91: - | CL91: 2 | CM91: - | CN91: - | CQ91: - | CS91: - | CT91: 2 | CU91: - | CV91: - | CY91: - | DA91: - | DB91: 2 | DC91: - | DD91: - | DG91: - | DI91: - | DK91: - | DL91: - | DM91: - | DN91: - | DO91: - | DP91: - | DQ91: - | DR91: - | DS91: - | DT91: - | DU91: - | DV91: - | DW91: - | DX91: - | DY91: - | DZ91: 2 | EA91: 1 | EB91: 1 | EC91: 0 | ED91: 2 | EE91: 2 | EF91: 2 | EG91: 1 | EH91: 3 | EI91: 2 | EJ91: 2 | EK91: 2 | EL91: 0 | EM91: 20 | EN91: 0 | EO91: 0 | EP91: 5 | EQ91: 10 | ES91: OUI | ET91: Très insuffisant. Risque l'exclusion | EU91: Blâme | EY91: - | FA91: - | FB91: 2 | FC91: - | FD91: - | FG91: - | FI91: - | FJ91: 1 | FK91: - | FL91: - | FO91: - | FQ91: - | FR91: 1 | FS91: - | FT91: - | FW91: - | FY91: - | GA91: - | GB91: - | GE91: - | GG91: - | GH91: 2 | GI91: - | GJ91: - | GM91: - | GO91: - | GP91: 2 | GQ91: - | GR91: - | GU91: - | GW91: - | GX91: 2 | GY91: - | GZ91: - | HC91: - | HE91: - | HF91: 1 | HG91: - | HH91: - | HK91: - | HM91: - | HN91: 3 | HO91: - | HP91: - | HS91: - | HU91: - | HV91: 2 | HW91: - | HX91: - | IA91: - | IC91: - | ID91: 2 | IE91: - | IF91: - | II91: - | IK91: - | IL91: 2 | IM91: - | IN91: - | IQ91: - | IS91: - | IU91: - | IV91: - | IW91: - | IX91: - | IY91: - | IZ91: - | JA91: - | JB91: - | JC91: - | JD91: - | JE91: - | JF91: - | JG91: - | JH91: - | JI91: - | JJ91: 2 | JK91: 1 | JL91: 1 | JM91: 0 | JN91: 2 | JO91: 2 | JP91: 2 | JQ91: 1 | JR91: 3 | JS91: 2 | JT91: 2 | JU91: 2 | JV91: 0 | JW91: 20 | JX91: 0 | JY91: 0 | JZ91: 0 | KA91: - | KB91: 0 | KF91: OUI | KG91: Peut mieux faire | KH91: Blâme
G92: 119 | O92: - | Q92: - | R92: 2 | S92: - | T92: - | W92: - | Y92: - | Z92: 1 | AA92: - | AB92: - | AE92: - | AG92: - | AH92: 1 | AI92: - | AJ92: - | AM92: - | AO92: - | AQ92: - | AR92: - | AU92: - | AW92: - | AX92: 2 | AY92: - | AZ92: - | BC92: - | BE92: - | BF92: 2 | BG92: - | BH92: - | BK92: - | BM92: - | BN92: 2 | BO92: - | BP92: - | BS92: - | BU92: - | BV92: 1 | BW92: - | BX92: - | CA92: - | CC92: - | CD92: 3 | CE92: - | CF92: - | CI92: - | CK92: - | CL92: 2 | CM92: - | CN92: - | CQ92: - | CS92: - | CT92: 2 | CU92: - | CV92: - | CY92: - | DA92: - | DB92: 2 | DC92: - | DD92: - | DG92: - | DI92: - | DK92: - | DL92: - | DM92: - | DN92: - | DO92: - | DP92: - | DQ92: - | DR92: - | DS92: - | DT92: - | DU92: - | DV92: - | DW92: - | DX92: - | DY92: - | DZ92: 2 | EA92: 1 | EB92: 1 | EC92: 0 | ED92: 2 | EE92: 2 | EF92: 2 | EG92: 1 | EH92: 3 | EI92: 2 | EJ92: 2 | EK92: 2 | EL92: 0 | EM92: 20 | EN92: 0 | EO92: 0 | EP92: 5 | EQ92: 10 | ES92: OUI | ET92: Très insuffisant. Risque l'exclusion | EU92: Blâme | EY92: - | FA92: - | FB92: 2 | FC92: - | FD92: - | FG92: - | FI92: - | FJ92: 1 | FK92: - | FL92: - | FO92: - | FQ92: - | FR92: 1 | FS92: - | FT92: - | FW92: - | FY92: - | GA92: - | GB92: - | GE92: - | GG92: - | GH92: 2 | GI92: - | GJ92: - | GM92: - | GO92: - | GP92: 2 | GQ92: - | GR92: - | GU92: - | GW92: - | GX92: 2 | GY92: - | GZ92: - | HC92: - | HE92: - | HF92: 1 | HG92: - | HH92: - | HK92: - | HM92: - | HN92: 3 | HO92: - | HP92: - | HS92: - | HU92: - | HV92: 2 | HW92: - | HX92: - | IA92: - | IC92: - | ID92: 2 | IE92: - | IF92: - | II92: - | IK92: - | IL92: 2 | IM92: - | IN92: - | IQ92: - | IS92: - | IU92: - | IV92: - | IW92: - | IX92: - | IY92: - | IZ92: - | JA92: - | JB92: - | JC92: - | JD92: - | JE92: - | JF92: - | JG92: - | JH92: - | JI92: - | JJ92: 2 | JK92: 1 | JL92: 1 | JM92: 0 | JN92: 2 | JO92: 2 | JP92: 2 | JQ92: 1 | JR92: 3 | JS92: 2 | JT92: 2 | JU92: 2 | JV92: 0 | JW92: 20 | JX92: 0 | JY92: 0 | JZ92: 0 | KA92: - | KB92: 0 | KF92: OUI | KG92: Peut mieux faire | KH92: Blâme
G93: 119 | O93: - | Q93: - | R93: 2 | S93: - | T93: - | W93: - | Y93: - | Z93: 1 | AA93: - | AB93: - | AE93: - | AG93: - | AH93: 1 | AI93: - | AJ93: - | AM93: - | AO93: - | AQ93: - | AR93: - | AU93: - | AW93: - | AX93: 2 | AY93: - | AZ93: - | BC93: - | BE93: - | BF93: 2 | BG93: - | BH93: - | BK93: - | BM93: - | BN93: 2 | BO93: - | BP93: - | BS93: - | BU93: - | BV93: 1 | BW93: - | BX93: - | CA93: - | CC93: - | CD93: 3 | CE93: - | CF93: - | CI93: - | CK93: - | CL93: 2 | CM93: - | CN93: - | CQ93: - | CS93: - | CT93: 2 | CU93: - | CV93: - | CY93: - | DA93: - | DB93: 2 | DC93: - | DD93: - | DG93: - | DI93: - | DK93: - | DL93: - | DM93: - | DN93: - | DO93: - | DP93: - | DQ93: - | DR93: - | DS93: - | DT93: - | DU93: - | DV93: - | DW93: - | DX93: - | DY93: - | DZ93: 2 | EA93: 1 | EB93: 1 | EC93: 0 | ED93: 2 | EE93: 2 | EF93: 2 | EG93: 1 | EH93: 3 | EI93: 2 | EJ93: 2 | EK93: 2 | EL93: 0 | EM93: 20 | EN93: 0 | EO93: 0 | EP93: 5 | EQ93: 10 | ES93: OUI | ET93: Très insuffisant. Risque l'exclusion | EU93: Blâme | EY93: - | FA93: - | FB93: 2 | FC93: - | FD93: - | FG93: - | FI93: - | FJ93: 1 | FK93: - | FL93: - | FO93: - | FQ93: - | FR93: 1 | FS93: - | FT93: - | FW93: - | FY93: - | GA93: - | GB93: - | GE93: - | GG93: - | GH93: 2 | GI93: - | GJ93: - | GM93: - | GO93: - | GP93: 2 | GQ93: - | GR93: - | GU93: - | GW93: - | GX93: 2 | GY93: - | GZ93: - | HC93: - | HE93: - | HF93: 1 | HG93: - | HH93: - | HK93: - | HM93: - | HN93: 3 | HO93: - | HP93: - | HS93: - | HU93: - | HV93: 2 | HW93: - | HX93: - | IA93: - | IC93: - | ID93: 2 | IE93: - | IF93: - | II93: - | IK93: - | IL93: 2 | IM93: - | IN93: - | IQ93: - | IS93: - | IU93: - | IV93: - | IW93: - | IX93: - | IY93: - | IZ93: - | JA93: - | JB93: - | JC93: - | JD93: - | JE93: - | JF93: - | JG93: - | JH93: - | JI93: - | JJ93: 2 | JK93: 1 | JL93: 1 | JM93: 0 | JN93: 2 | JO93: 2 | JP93: 2 | JQ93: 1 | JR93: 3 | JS93: 2 | JT93: 2 | JU93: 2 | JV93: 0 | JW93: 20 | JX93: 0 | JY93: 0 | JZ93: 0 | KA93: - | KB93: 0 | KF93: OUI | KG93: Peut mieux faire | KH93: Blâme
G94: 119 | O94: - | Q94: - | R94: 2 | S94: - | T94: - | W94: - | Y94: - | Z94: 1 | AA94: - | AB94: - | AE94: - | AG94: - | AH94: 1 | AI94: - | AJ94: - | AM94: - | AO94: - | AQ94: - | AR94: - | AU94: - | AW94: - | AX94: 2 | AY94: - | AZ94: - | BC94: - | BE94: - | BF94: 2 | BG94: - | BH94: - | BK94: - | BM94: - | BN94: 2 | BO94: - | BP94: - | BS94: - | BU94: - | BV94: 1 | BW94: - | BX94: - | CA94: - | CC94: - | CD94: 3 | CE94: - | CF94: - | CI94: - | CK94: - | CL94: 2 | CM94: - | CN94: - | CQ94: - | CS94: - | CT94: 2 | CU94: - | CV94: - | CY94: - | DA94: - | DB94: 2 | DC94: - | DD94: - | DG94: - | DI94: - | DK94: - | DL94: - | DM94: - | DN94: - | DO94: - | DP94: - | DQ94: - | DR94: - | DS94: - | DT94: - | DU94: - | DV94: - | DW94: - | DX94: - | DY94: - | DZ94: 2 | EA94: 1 | EB94: 1 | EC94: 0 | ED94: 2 | EE94: 2 | EF94: 2 | EG94: 1 | EH94: 3 | EI94: 2 | EJ94: 2 | EK94: 2 | EL94: 0 | EM94: 20 | EN94: 0 | EO94: 0 | EP94: 5 | EQ94: 10 | ES94: OUI | ET94: Très insuffisant. Risque l'exclusion | EU94: Blâme | EY94: - | FA94: - | FB94: 2 | FC94: - | FD94: - | FG94: - | FI94: - | FJ94: 1 | FK94: - | FL94: - | FO94: - | FQ94: - | FR94: 1 | FS94: - | FT94: - | FW94: - | FY94: - | GA94: - | GB94: - | GE94: - | GG94: - | GH94: 2 | GI94: - | GJ94: - | GM94: - | GO94: - | GP94: 2 | GQ94: - | GR94: - | GU94: - | GW94: - | GX94: 2 | GY94: - | GZ94: - | HC94: - | HE94: - | HF94: 1 | HG94: - | HH94: - | HK94: - | HM94: - | HN94: 3 | HO94: - | HP94: - | HS94: - | HU94: - | HV94: 2 | HW94: - | HX94: - | IA94: - | IC94: - | ID94: 2 | IE94: - | IF94: - | II94: - | IK94: - | IL94: 2 | IM94: - | IN94: - | IQ94: - | IS94: - | IU94: - | IV94: - | IW94: - | IX94: - | IY94: - | IZ94: - | JA94: - | JB94: - | JC94: - | JD94: - | JE94: - | JF94: - | JG94: - | JH94: - | JI94: - | JJ94: 2 | JK94: 1 | JL94: 1 | JM94: 0 | JN94: 2 | JO94: 2 | JP94: 2 | JQ94: 1 | JR94: 3 | JS94: 2 | JT94: 2 | JU94: 2 | JV94: 0 | JW94: 20 | JX94: 0 | JY94: 0 | JZ94: 0 | KA94: - | KB94: 0 | KF94: OUI | KG94: Peut mieux faire | KH94: Blâme
G95: 119 | O95: - | Q95: - | R95: 2 | S95: - | T95: - | W95: - | Y95: - | Z95: 1 | AA95: - | AB95: - | AE95: - | AG95: - | AH95: 1 | AI95: - | AJ95: - | AM95: - | AO95: - | AQ95: - | AR95: - | AU95: - | AW95: - | AX95: 2 | AY95: - | AZ95: - | BC95: - | BE95: - | BF95: 2 | BG95: - | BH95: - | BK95: - | BM95: - | BN95: 2 | BO95: - | BP95: - | BS95: - | BU95: - | BV95: 1 | BW95: - | BX95: - | CA95: - | CC95: - | CD95: 3 | CE95: - | CF95: - | CI95: - | CK95: - | CL95: 2 | CM95: - | CN95: - | CQ95: - | CS95: - | CT95: 2 | CU95: - | CV95: - | CY95: - | DA95: - | DB95: 2 | DC95: - | DD95: - | DG95: - | DI95: - | DK95: - | DL95: - | DM95: - | DN95: - | DO95: - | DP95: - | DQ95: - | DR95: - | DS95: - | DT95: - | DU95: - | DV95: - | DW95: - | DX95: - | DY95: - | DZ95: 2 | EA95: 1 | EB95: 1 | EC95: 0 | ED95: 2 | EE95: 2 | EF95: 2 | EG95: 1 | EH95: 3 | EI95: 2 | EJ95: 2 | EK95: 2 | EL95: 0 | EM95: 20 | EN95: 0 | EO95: 0 | EP95: 5 | EQ95: 10 | ES95: OUI | ET95: Très insuffisant. Risque l'exclusion | EU95: Blâme | EY95: - | FA95: - | FB95: 2 | FC95: - | FD95: - | FG95: - | FI95: - | FJ95: 1 | FK95: - | FL95: - | FO95: - | FQ95: - | FR95: 1 | FS95: - | FT95: - | FW95: - | FY95: - | GA95: - | GB95: - | GE95: - | GG95: - | GH95: 2 | GI95: - | GJ95: - | GM95: - | GO95: - | GP95: 2 | GQ95: - | GR95: - | GU95: - | GW95: - | GX95: 2 | GY95: - | GZ95: - | HC95: - | HE95: - | HF95: 1 | HG95: - | HH95: - | HK95: - | HM95: - | HN95: 3 | HO95: - | HP95: - | HS95: - | HU95: - | HV95: 2 | HW95: - | HX95: - | IA95: - | IC95: - | ID95: 2 | IE95: - | IF95: - | II95: - | IK95: - | IL95: 2 | IM95: - | IN95: - | IQ95: - | IS95: - | IU95: - | IV95: - | IW95: - | IX95: - | IY95: - | IZ95: - | JA95: - | JB95: - | JC95: - | JD95: - | JE95: - | JF95: - | JG95: - | JH95: - | JI95: - | JJ95: 2 | JK95: 1 | JL95: 1 | JM95: 0 | JN95: 2 | JO95: 2 | JP95: 2 | JQ95: 1 | JR95: 3 | JS95: 2 | JT95: 2 | JU95: 2 | JV95: 0 | JW95: 20 | JX95: 0 | JY95: 0 | JZ95: 0 | KA95: - | KB95: 0 | KF95: OUI | KG95: Peut mieux faire | KH95: Blâme
G96: 119 | O96: - | Q96: - | R96: 2 | S96: - | T96: - | W96: - | Y96: - | Z96: 1 | AA96: - | AB96: - | AE96: - | AG96: - | AH96: 1 | AI96: - | AJ96: - | AM96: - | AO96: - | AQ96: - | AR96: - | AU96: - | AW96: - | AX96: 2 | AY96: - | AZ96: - | BC96: - | BE96: - | BF96: 2 | BG96: - | BH96: - | BK96: - | BM96: - | BN96: 2 | BO96: - | BP96: - | BS96: - | BU96: - | BV96: 1 | BW96: - | BX96: - | CA96: - | CC96: - | CD96: 3 | CE96: - | CF96: - | CI96: - | CK96: - | CL96: 2 | CM96: - | CN96: - | CQ96: - | CS96: - | CT96: 2 | CU96: - | CV96: - | CY96: - | DA96: - | DB96: 2 | DC96: - | DD96: - | DG96: - | DI96: - | DK96: - | DL96: - | DM96: - | DN96: - | DO96: - | DP96: - | DQ96: - | DR96: - | DS96: - | DT96: - | DU96: - | DV96: - | DW96: - | DX96: - | DY96: - | DZ96: 2 | EA96: 1 | EB96: 1 | EC96: 0 | ED96: 2 | EE96: 2 | EF96: 2 | EG96: 1 | EH96: 3 | EI96: 2 | EJ96: 2 | EK96: 2 | EL96: 0 | EM96: 20 | EN96: 0 | EO96: 0 | EP96: 5 | EQ96: 10 | ES96: OUI | ET96: Très insuffisant. Risque l'exclusion | EU96: Blâme | EY96: - | FA96: - | FB96: 2 | FC96: - | FD96: - | FG96: - | FI96: - | FJ96: 1 | FK96: - | FL96: - | FO96: - | FQ96: - | FR96: 1 | FS96: - | FT96: - | FW96: - | FY96: - | GA96: - | GB96: - | GE96: - | GG96: - | GH96: 2 | GI96: - | GJ96: - | GM96: - | GO96: - | GP96: 2 | GQ96: - | GR96: - | GU96: - | GW96: - | GX96: 2 | GY96: - | GZ96: - | HC96: - | HE96: - | HF96: 1 | HG96: - | HH96: - | HK96: - | HM96: - | HN96: 3 | HO96: - | HP96: - | HS96: - | HU96: - | HV96: 2 | HW96: - | HX96: - | IA96: - | IC96: - | ID96: 2 | IE96: - | IF96: - | II96: - | IK96: - | IL96: 2 | IM96: - | IN96: - | IQ96: - | IS96: - | IU96: - | IV96: - | IW96: - | IX96: - | IY96: - | IZ96: - | JA96: - | JB96: - | JC96: - | JD96: - | JE96: - | JF96: - | JG96: - | JH96: - | JI96: - | JJ96: 2 | JK96: 1 | JL96: 1 | JM96: 0 | JN96: 2 | JO96: 2 | JP96: 2 | JQ96: 1 | JR96: 3 | JS96: 2 | JT96: 2 | JU96: 2 | JV96: 0 | JW96: 20 | JX96: 0 | JY96: 0 | JZ96: 0 | KA96: - | KB96: 0 | KF96: OUI | KG96: Peut mieux faire | KH96: Blâme
G97: 119 | O97: - | Q97: - | R97: 2 | S97: - | T97: - | W97: - | Y97: - | Z97: 1 | AA97: - | AB97: - | AE97: - | AG97: - | AH97: 1 | AI97: - | AJ97: - | AM97: - | AO97: - | AQ97: - | AR97: - | AU97: - | AW97: - | AX97: 2 | AY97: - | AZ97: - | BC97: - | BE97: - | BF97: 2 | BG97: - | BH97: - | BK97: - | BM97: - | BN97: 2 | BO97: - | BP97: - | BS97: - | BU97: - | BV97: 1 | BW97: - | BX97: - | CA97: - | CC97: - | CD97: 3 | CE97: - | CF97: - | CI97: - | CK97: - | CL97: 2 | CM97: - | CN97: - | CQ97: - | CS97: - | CT97: 2 | CU97: - | CV97: - | CY97: - | DA97: - | DB97: 2 | DC97: - | DD97: - | DG97: - | DI97: - | DK97: - | DL97: - | DM97: - | DN97: - | DO97: - | DP97: - | DQ97: - | DR97: - | DS97: - | DT97: - | DU97: - | DV97: - | DW97: - | DX97: - | DY97: - | DZ97: 2 | EA97: 1 | EB97: 1 | EC97: 0 | ED97: 2 | EE97: 2 | EF97: 2 | EG97: 1 | EH97: 3 | EI97: 2 | EJ97: 2 | EK97: 2 | EL97: 0 | EM97: 20 | EN97: 0 | EO97: 0 | EP97: 5 | EQ97: 10 | ES97: OUI | ET97: Très insuffisant. Risque l'exclusion | EU97: Blâme | EY97: - | FA97: - | FB97: 2 | FC97: - | FD97: - | FG97: - | FI97: - | FJ97: 1 | FK97: - | FL97: - | FO97: - | FQ97: - | FR97: 1 | FS97: - | FT97: - | FW97: - | FY97: - | GA97: - | GB97: - | GE97: - | GG97: - | GH97: 2 | GI97: - | GJ97: - | GM97: - | GO97: - | GP97: 2 | GQ97: - | GR97: - | GU97: - | GW97: - | GX97: 2 | GY97: - | GZ97: - | HC97: - | HE97: - | HF97: 1 | HG97: - | HH97: - | HK97: - | HM97: - | HN97: 3 | HO97: - | HP97: - | HS97: - | HU97: - | HV97: 2 | HW97: - | HX97: - | IA97: - | IC97: - | ID97: 2 | IE97: - | IF97: - | II97: - | IK97: - | IL97: 2 | IM97: - | IN97: - | IQ97: - | IS97: - | IU97: - | IV97: - | IW97: - | IX97: - | IY97: - | IZ97: - | JA97: - | JB97: - | JC97: - | JD97: - | JE97: - | JF97: - | JG97: - | JH97: - | JI97: - | JJ97: 2 | JK97: 1 | JL97: 1 | JM97: 0 | JN97: 2 | JO97: 2 | JP97: 2 | JQ97: 1 | JR97: 3 | JS97: 2 | JT97: 2 | JU97: 2 | JV97: 0 | JW97: 20 | JX97: 0 | JY97: 0 | JZ97: 0 | KA97: - | KB97: 0 | KF97: OUI | KG97: Peut mieux faire | KH97: Blâme
G98: 119 | O98: - | Q98: - | R98: 2 | S98: - | T98: - | W98: - | Y98: - | Z98: 1 | AA98: - | AB98: - | AE98: - | AG98: - | AH98: 1 | AI98: - | AJ98: - | AM98: - | AO98: - | AQ98: - | AR98: - | AU98: - | AW98: - | AX98: 2 | AY98: - | AZ98: - | BC98: - | BE98: - | BF98: 2 | BG98: - | BH98: - | BK98: - | BM98: - | BN98: 2 | BO98: - | BP98: - | BS98: - | BU98: - | BV98: 1 | BW98: - | BX98: - | CA98: - | CC98: - | CD98: 3 | CE98: - | CF98: - | CI98: - | CK98: - | CL98: 2 | CM98: - | CN98: - | CQ98: - | CS98: - | CT98: 2 | CU98: - | CV98: - | CY98: - | DA98: - | DB98: 2 | DC98: - | DD98: - | DG98: - | DI98: - | DK98: - | DL98: - | DM98: - | DN98: - | DO98: - | DP98: - | DQ98: - | DR98: - | DS98: - | DT98: - | DU98: - | DV98: - | DW98: - | DX98: - | DY98: - | DZ98: 2 | EA98: 1 | EB98: 1 | EC98: 0 | ED98: 2 | EE98: 2 | EF98: 2 | EG98: 1 | EH98: 3 | EI98: 2 | EJ98: 2 | EK98: 2 | EL98: 0 | EM98: 20 | EN98: 0 | EO98: 0 | EP98: 5 | EQ98: 10 | ES98: OUI | ET98: Très insuffisant. Risque l'exclusion | EU98: Blâme | EY98: - | FA98: - | FB98: 2 | FC98: - | FD98: - | FG98: - | FI98: - | FJ98: 1 | FK98: - | FL98: - | FO98: - | FQ98: - | FR98: 1 | FS98: - | FT98: - | FW98: - | FY98: - | GA98: - | GB98: - | GE98: - | GG98: - | GH98: 2 | GI98: - | GJ98: - | GM98: - | GO98: - | GP98: 2 | GQ98: - | GR98: - | GU98: - | GW98: - | GX98: 2 | GY98: - | GZ98: - | HC98: - | HE98: - | HF98: 1 | HG98: - | HH98: - | HK98: - | HM98: - | HN98: 3 | HO98: - | HP98: - | HS98: - | HU98: - | HV98: 2 | HW98: - | HX98: - | IA98: - | IC98: - | ID98: 2 | IE98: - | IF98: - | II98: - | IK98: - | IL98: 2 | IM98: - | IN98: - | IQ98: - | IS98: - | IU98: - | IV98: - | IW98: - | IX98: - | IY98: - | IZ98: - | JA98: - | JB98: - | JC98: - | JD98: - | JE98: - | JF98: - | JG98: - | JH98: - | JI98: - | JJ98: 2 | JK98: 1 | JL98: 1 | JM98: 0 | JN98: 2 | JO98: 2 | JP98: 2 | JQ98: 1 | JR98: 3 | JS98: 2 | JT98: 2 | JU98: 2 | JV98: 0 | JW98: 20 | JX98: 0 | JY98: 0 | JZ98: 0 | KA98: - | KB98: 0 | KF98: OUI | KG98: Peut mieux faire | KH98: Blâme
G99: 119 | O99: - | Q99: - | R99: 2 | S99: - | T99: - | W99: - | Y99: - | Z99: 1 | AA99: - | AB99: - | AE99: - | AG99: - | AH99: 1 | AI99: - | AJ99: - | AM99: - | AO99: - | AQ99: - | AR99: - | AU99: - | AW99: - | AX99: 2 | AY99: - | AZ99: - | BC99: - | BE99: - | BF99: 2 | BG99: - | BH99: - | BK99: - | BM99: - | BN99: 2 | BO99: - | BP99: - | BS99: - | BU99: - | BV99: 1 | BW99: - | BX99: - | CA99: - | CC99: - | CD99: 3 | CE99: - | CF99: - | CI99: - | CK99: - | CL99: 2 | CM99: - | CN99: - | CQ99: - | CS99: - | CT99: 2 | CU99: - | CV99: - | CY99: - | DA99: - | DB99: 2 | DC99: - | DD99: - | DG99: - | DI99: - | DK99: - | DL99: - | DM99: - | DN99: - | DO99: - | DP99: - | DQ99: - | DR99: - | DS99: - | DT99: - | DU99: - | DV99: - | DW99: - | DX99: - | DY99: - | DZ99: 2 | EA99: 1 | EB99: 1 | EC99: 0 | ED99: 2 | EE99: 2 | EF99: 2 | EG99: 1 | EH99: 3 | EI99: 2 | EJ99: 2 | EK99: 2 | EL99: 0 | EM99: 20 | EN99: 0 | EO99: 0 | EP99: 5 | EQ99: 10 | ES99: OUI | ET99: Très insuffisant. Risque l'exclusion | EU99: Blâme | EY99: - | FA99: - | FB99: 2 | FC99: - | FD99: - | FG99: - | FI99: - | FJ99: 1 | FK99: - | FL99: - | FO99: - | FQ99: - | FR99: 1 | FS99: - | FT99: - | FW99: - | FY99: - | GA99: - | GB99: - | GE99: - | GG99: - | GH99: 2 | GI99: - | GJ99: - | GM99: - | GO99: - | GP99: 2 | GQ99: - | GR99: - | GU99: - | GW99: - | GX99: 2 | GY99: - | GZ99: - | HC99: - | HE99: - | HF99: 1 | HG99: - | HH99: - | HK99: - | HM99: - | HN99: 3 | HO99: - | HP99: - | HS99: - | HU99: - | HV99: 2 | HW99: - | HX99: - | IA99: - | IC99: - | ID99: 2 | IE99: - | IF99: - | II99: - | IK99: - | IL99: 2 | IM99: - | IN99: - | IQ99: - | IS99: - | IU99: - | IV99: - | IW99: - | IX99: - | IY99: - | IZ99: - | JA99: - | JB99: - | JC99: - | JD99: - | JE99: - | JF99: - | JG99: - | JH99: - | JI99: - | JJ99: 2 | JK99: 1 | JL99: 1 | JM99: 0 | JN99: 2 | JO99: 2 | JP99: 2 | JQ99: 1 | JR99: 3 | JS99: 2 | JT99: 2 | JU99: 2 | JV99: 0 | JW99: 20 | JX99: 0 | JY99: 0 | JZ99: 0 | KA99: - | KB99: 0 | KF99: OUI | KG99: Peut mieux faire | KH99: Blâme
G100: 119 | O100: - | Q100: - | R100: 2 | S100: - | T100: - | W100: - | Y100: - | Z100: 1 | AA100: - | AB100: - | AE100: - | AG100: - | AH100: 1 | AI100: - | AJ100: - | AM100: - | AO100: - | AQ100: - | AR100: - | AU100: - | AW100: - | AX100: 2 | AY100: - | AZ100: - | BC100: - | BE100: - | BF100: 2 | BG100: - | BH100: - | BK100: - | BM100: - | BN100: 2 | BO100: - | BP100: - | BS100: - | BU100: - | BV100: 1 | BW100: - | BX100: - | CA100: - | CC100: - | CD100: 3 | CE100: - | CF100: - | CI100: - | CK100: - | CL100: 2 | CM100: - | CN100: - | CQ100: - | CS100: - | CT100: 2 | CU100: - | CV100: - | CY100: - | DA100: - | DB100: 2 | DC100: - | DD100: - | DG100: - | DI100: - | DK100: - | DL100: - | DM100: - | DN100: - | DO100: - | DP100: - | DQ100: - | DR100: - | DS100: - | DT100: - | DU100: - | DV100: - | DW100: - | DX100: - | DY100: - | DZ100: 2 | EA100: 1 | EB100: 1 | EC100: 0 | ED100: 2 | EE100: 2 | EF100: 2 | EG100: 1 | EH100: 3 | EI100: 2 | EJ100: 2 | EK100: 2 | EL100: 0 | EM100: 20 | EN100: 0 | EO100: 0 | EP100: 5 | EQ100: 10 | ES100: OUI | ET100: Très insuffisant. Risque l'exclusion | EU100: Blâme | EY100: - | FA100: - | FB100: 2 | FC100: - | FD100: - | FG100: - | FI100: - | FJ100: 1 | FK100: - | FL100: - | FO100: - | FQ100: - | FR100: 1 | FS100: - | FT100: - | FW100: - | FY100: - | GA100: - | GB100: - | GE100: - | GG100: - | GH100: 2 | GI100: - | GJ100: - | GM100: - | GO100: - | GP100: 2 | GQ100: - | GR100: - | GU100: - | GW100: - | GX100: 2 | GY100: - | GZ100: - | HC100: - | HE100: - | HF100: 1 | HG100: - | HH100: - | HK100: - | HM100: - | HN100: 3 | HO100: - | HP100: - | HS100: - | HU100: - | HV100: 2 | HW100: - | HX100: - | IA100: - | IC100: - | ID100: 2 | IE100: - | IF100: - | II100: - | IK100: - | IL100: 2 | IM100: - | IN100: - | IQ100: - | IS100: - | IU100: - | IV100: - | IW100: - | IX100: - | IY100: - | IZ100: - | JA100: - | JB100: - | JC100: - | JD100: - | JE100: - | JF100: - | JG100: - | JH100: - | JI100: - | JJ100: 2 | JK100: 1 | JL100: 1 | JM100: 0 | JN100: 2 | JO100: 2 | JP100: 2 | JQ100: 1 | JR100: 3 | JS100: 2 | JT100: 2 | JU100: 2 | JV100: 0 | JW100: 20 | JX100: 0 | JY100: 0 | JZ100: 0 | KA100: - | KB100: 0 | KF100: OUI | KG100: Peut mieux faire | KH100: Blâme
G101: 119 | O101: - | Q101: - | R101: 2 | S101: - | T101: - | W101: - | Y101: - | Z101: 1 | AA101: - | AB101: - | AE101: - | AG101: - | AH101: 1 | AI101: - | AJ101: - | AM101: - | AO101: - | AQ101: - | AR101: - | AU101: - | AW101: - | AX101: 2 | AY101: - | AZ101: - | BC101: - | BE101: - | BF101: 2 | BG101: - | BH101: - | BK101: - | BM101: - | BN101: 2 | BO101: - | BP101: - | BS101: - | BU101: - | BV101: 1 | BW101: - | BX101: - | CA101: - | CC101: - | CD101: 3 | CE101: - | CF101: - | CI101: - | CK101: - | CL101: 2 | CM101: - | CN101: - | CQ101: - | CS101: - | CT101: 2 | CU101: - | CV101: - | CY101: - | DA101: - | DB101: 2 | DC101: - | DD101: - | DG101: - | DI101: - | DK101: - | DL101: - | DM101: - | DN101: - | DO101: - | DP101: - | DQ101: - | DR101: - | DS101: - | DT101: - | DU101: - | DV101: - | DW101: - | DX101: - | DY101: - | DZ101: 2 | EA101: 1 | EB101: 1 | EC101: 0 | ED101: 2 | EE101: 2 | EF101: 2 | EG101: 1 | EH101: 3 | EI101: 2 | EJ101: 2 | EK101: 2 | EL101: 0 | EM101: 20 | EN101: 0 | EO101: 0 | EP101: 5 | EQ101: 10 | ES101: OUI | ET101: Très insuffisant. Risque l'exclusion | EU101: Blâme | EY101: - | FA101: - | FB101: 2 | FC101: - | FD101: - | FG101: - | FI101: - | FJ101: 1 | FK101: - | FL101: - | FO101: - | FQ101: - | FR101: 1 | FS101: - | FT101: - | FW101: - | FY101: - | GA101: - | GB101: - | GE101: - | GG101: - | GH101: 2 | GI101: - | GJ101: - | GM101: - | GO101: - | GP101: 2 | GQ101: - | GR101: - | GU101: - | GW101: - | GX101: 2 | GY101: - | GZ101: - | HC101: - | HE101: - | HF101: 1 | HG101: - | HH101: - | HK101: - | HM101: - | HN101: 3 | HO101: - | HP101: - | HS101: - | HU101: - | HV101: 2 | HW101: - | HX101: - | IA101: - | IC101: - | ID101: 2 | IE101: - | IF101: - | II101: - | IK101: - | IL101: 2 | IM101: - | IN101: - | IQ101: - | IS101: - | IU101: - | IV101: - | IW101: - | IX101: - | IY101: - | IZ101: - | JA101: - | JB101: - | JC101: - | JD101: - | JE101: - | JF101: - | JG101: - | JH101: - | JI101: - | JJ101: 2 | JK101: 1 | JL101: 1 | JM101: 0 | JN101: 2 | JO101: 2 | JP101: 2 | JQ101: 1 | JR101: 3 | JS101: 2 | JT101: 2 | JU101: 2 | JV101: 0 | JW101: 20 | JX101: 0 | JY101: 0 | JZ101: 0 | KA101: - | KB101: 0 | KF101: OUI | KG101: Peut mieux faire | KH101: Blâme
G102: 119 | O102: - | Q102: - | R102: 2 | S102: - | T102: - | W102: - | Y102: - | Z102: 1 | AA102: - | AB102: - | AE102: - | AG102: - | AH102: 1 | AI102: - | AJ102: - | AM102: - | AO102: - | AQ102: - | AR102: - | AU102: - | AW102: - | AX102: 2 | AY102: - | AZ102: - | BC102: - | BE102: - | BF102: 2 | BG102: - | BH102: - | BK102: - | BM102: - | BN102: 2 | BO102: - | BP102: - | BS102: - | BU102: - | BV102: 1 | BW102: - | BX102: - | CA102: - | CC102: - | CD102: 3 | CE102: - | CF102: - | CI102: - | CK102: - | CL102: 2 | CM102: - | CN102: - | CQ102: - | CS102: - | CT102: 2 | CU102: - | CV102: - | CY102: - | DA102: - | DB102: 2 | DC102: - | DD102: - | DG102: - | DI102: - | DK102: - | DL102: - | DM102: - | DN102: - | DO102: - | DP102: - | DQ102: - | DR102: - | DS102: - | DT102: - | DU102: - | DV102: - | DW102: - | DX102: - | DY102: - | DZ102: 2 | EA102: 1 | EB102: 1 | EC102: 0 | ED102: 2 | EE102: 2 | EF102: 2 | EG102: 1 | EH102: 3 | EI102: 2 | EJ102: 2 | EK102: 2 | EL102: 0 | EM102: 20 | EN102: 0 | EO102: 0 | EP102: 5 | EQ102: 10 | ES102: OUI | ET102: Très insuffisant. Risque l'exclusion | EU102: Blâme | EY102: - | FA102: - | FB102: 2 | FC102: - | FD102: - | FG102: - | FI102: - | FJ102: 1 | FK102: - | FL102: - | FO102: - | FQ102: - | FR102: 1 | FS102: - | FT102: - | FW102: - | FY102: - | GA102: - | GB102: - | GE102: - | GG102: - | GH102: 2 | GI102: - | GJ102: - | GM102: - | GO102: - | GP102: 2 | GQ102: - | GR102: - | GU102: - | GW102: - | GX102: 2 | GY102: - | GZ102: - | HC102: - | HE102: - | HF102: 1 | HG102: - | HH102: - | HK102: - | HM102: - | HN102: 3 | HO102: - | HP102: - | HS102: - | HU102: - | HV102: 2 | HW102: - | HX102: - | IA102: - | IC102: - | ID102: 2 | IE102: - | IF102: - | II102: - | IK102: - | IL102: 2 | IM102: - | IN102: - | IQ102: - | IS102: - | IU102: - | IV102: - | IW102: - | IX102: - | IY102: - | IZ102: - | JA102: - | JB102: - | JC102: - | JD102: - | JE102: - | JF102: - | JG102: - | JH102: - | JI102: - | JJ102: 2 | JK102: 1 | JL102: 1 | JM102: 0 | JN102: 2 | JO102: 2 | JP102: 2 | JQ102: 1 | JR102: 3 | JS102: 2 | JT102: 2 | JU102: 2 | JV102: 0 | JW102: 20 | JX102: 0 | JY102: 0 | JZ102: 0 | KA102: - | KB102: 0 | KF102: OUI | KG102: Peut mieux faire | KH102: Blâme
G103: 119 | O103: - | Q103: - | R103: 2 | S103: - | T103: - | W103: - | Y103: - | Z103: 1 | AA103: - | AB103: - | AE103: - | AG103: - | AH103: 1 | AI103: - | AJ103: - | AM103: - | AO103: - | AQ103: - | AR103: - | AU103: - | AW103: - | AX103: 2 | AY103: - | AZ103: - | BC103: - | BE103: - | BF103: 2 | BG103: - | BH103: - | BK103: - | BM103: - | BN103: 2 | BO103: - | BP103: - | BS103: - | BU103: - | BV103: 1 | BW103: - | BX103: - | CA103: - | CC103: - | CD103: 3 | CE103: - | CF103: - | CI103: - | CK103: - | CL103: 2 | CM103: - | CN103: - | CQ103: - | CS103: - | CT103: 2 | CU103: - | CV103: - | CY103: - | DA103: - | DB103: 2 | DC103: - | DD103: - | DG103: - | DI103: - | DK103: - | DL103: - | DM103: - | DN103: - | DO103: - | DP103: - | DQ103: - | DR103: - | DS103: - | DT103: - | DU103: - | DV103: - | DW103: - | DX103: - | DY103: - | DZ103: 2 | EA103: 1 | EB103: 1 | EC103: 0 | ED103: 2 | EE103: 2 | EF103: 2 | EG103: 1 | EH103: 3 | EI103: 2 | EJ103: 2 | EK103: 2 | EL103: 0 | EM103: 20 | EN103: 0 | EO103: 0 | EP103: 5 | EQ103: 10 | ES103: OUI | ET103: Très insuffisant. Risque l'exclusion | EU103: Blâme | EY103: - | FA103: - | FB103: 2 | FC103: - | FD103: - | FG103: - | FI103: - | FJ103: 1 | FK103: - | FL103: - | FO103: - | FQ103: - | FR103: 1 | FS103: - | FT103: - | FW103: - | FY103: - | GA103: - | GB103: - | GE103: - | GG103: - | GH103: 2 | GI103: - | GJ103: - | GM103: - | GO103: - | GP103: 2 | GQ103: - | GR103: - | GU103: - | GW103: - | GX103: 2 | GY103: - | GZ103: - | HC103: - | HE103: - | HF103: 1 | HG103: - | HH103: - | HK103: - | HM103: - | HN103: 3 | HO103: - | HP103: - | HS103: - | HU103: - | HV103: 2 | HW103: - | HX103: - | IA103: - | IC103: - | ID103: 2 | IE103: - | IF103: - | II103: - | IK103: - | IL103: 2 | IM103: - | IN103: - | IQ103: - | IS103: - | IU103: - | IV103: - | IW103: - | IX103: - | IY103: - | IZ103: - | JA103: - | JB103: - | JC103: - | JD103: - | JE103: - | JF103: - | JG103: - | JH103: - | JI103: - | JJ103: 2 | JK103: 1 | JL103: 1 | JM103: 0 | JN103: 2 | JO103: 2 | JP103: 2 | JQ103: 1 | JR103: 3 | JS103: 2 | JT103: 2 | JU103: 2 | JV103: 0 | JW103: 20 | JX103: 0 | JY103: 0 | JZ103: 0 | KA103: - | KB103: 0 | KF103: OUI | KG103: Peut mieux faire | KH103: Blâme
G104: 119 | O104: - | Q104: - | R104: 2 | S104: - | T104: - | W104: - | Y104: - | Z104: 1 | AA104: - | AB104: - | AE104: - | AG104: - | AH104: 1 | AI104: - | AJ104: - | AM104: - | AO104: - | AQ104: - | AR104: - | AU104: - | AW104: - | AX104: 2 | AY104: - | AZ104: - | BC104: - | BE104: - | BF104: 2 | BG104: - | BH104: - | BK104: - | BM104: - | BN104: 2 | BO104: - | BP104: - | BS104: - | BU104: - | BV104: 1 | BW104: - | BX104: - | CA104: - | CC104: - | CD104: 3 | CE104: - | CF104: - | CI104: - | CK104: - | CL104: 2 | CM104: - | CN104: - | CQ104: - | CS104: - | CT104: 2 | CU104: - | CV104: - | CY104: - | DA104: - | DB104: 2 | DC104: - | DD104: - | DG104: - | DI104: - | DK104: - | DL104: - | DM104: - | DN104: - | DO104: - | DP104: - | DQ104: - | DR104: - | DS104: - | DT104: - | DU104: - | DV104: - | DW104: - | DX104: - | DY104: - | DZ104: 2 | EA104: 1 | EB104: 1 | EC104: 0 | ED104: 2 | EE104: 2 | EF104: 2 | EG104: 1 | EH104: 3 | EI104: 2 | EJ104: 2 | EK104: 2 | EL104: 0 | EM104: 20 | EN104: 0 | EO104: 0 | EP104: 5 | EQ104: 10 | ES104: OUI | ET104: Très insuffisant. Risque l'exclusion | EU104: Blâme | EY104: - | FA104: - | FB104: 2 | FC104: - | FD104: - | FG104: - | FI104: - | FJ104: 1 | FK104: - | FL104: - | FO104: - | FQ104: - | FR104: 1 | FS104: - | FT104: - | FW104: - | FY104: - | GA104: - | GB104: - | GE104: - | GG104: - | GH104: 2 | GI104: - | GJ104: - | GM104: - | GO104: - | GP104: 2 | GQ104: - | GR104: - | GU104: - | GW104: - | GX104: 2 | GY104: - | GZ104: - | HC104: - | HE104: - | HF104: 1 | HG104: - | HH104: - | HK104: - | HM104: - | HN104: 3 | HO104: - | HP104: - | HS104: - | HU104: - | HV104: 2 | HW104: - | HX104: - | IA104: - | IC104: - | ID104: 2 | IE104: - | IF104: - | II104: - | IK104: - | IL104: 2 | IM104: - | IN104: - | IQ104: - | IS104: - | IU104: - | IV104: - | IW104: - | IX104: - | IY104: - | IZ104: - | JA104: - | JB104: - | JC104: - | JD104: - | JE104: - | JF104: - | JG104: - | JH104: - | JI104: - | JJ104: 2 | JK104: 1 | JL104: 1 | JM104: 0 | JN104: 2 | JO104: 2 | JP104: 2 | JQ104: 1 | JR104: 3 | JS104: 2 | JT104: 2 | JU104: 2 | JV104: 0 | JW104: 20 | JX104: 0 | JY104: 0 | JZ104: 0 | KA104: - | KB104: 0 | KF104: OUI | KG104: Peut mieux faire | KH104: Blâme
G105: 119 | O105: - | Q105: - | R105: 2 | S105: - | T105: - | W105: - | Y105: - | Z105: 1 | AA105: - | AB105: - | AE105: - | AG105: - | AH105: 1 | AI105: - | AJ105: - | AM105: - | AO105: - | AQ105: - | AR105: - | AU105: - | AW105: - | AX105: 2 | AY105: - | AZ105: - | BC105: - | BE105: - | BF105: 2 | BG105: - | BH105: - | BK105: - | BM105: - | BN105: 2 | BO105: - | BP105: - | BS105: - | BU105: - | BV105: 1 | BW105: - | BX105: - | CA105: - | CC105: - | CD105: 3 | CE105: - | CF105: - | CI105: - | CK105: - | CL105: 2 | CM105: - | CN105: - | CQ105: - | CS105: - | CT105: 2 | CU105: - | CV105: - | CY105: - | DA105: - | DB105: 2 | DC105: - | DD105: - | DG105: - | DI105: - | DK105: - | DL105: - | DM105: - | DN105: - | DO105: - | DP105: - | DQ105: - | DR105: - | DS105: - | DT105: - | DU105: - | DV105: - | DW105: - | DX105: - | DY105: - | DZ105: 2 | EA105: 1 | EB105: 1 | EC105: 0 | ED105: 2 | EE105: 2 | EF105: 2 | EG105: 1 | EH105: 3 | EI105: 2 | EJ105: 2 | EK105: 2 | EL105: 0 | EM105: 20 | EN105: 0 | EO105: 0 | EP105: 5 | EQ105: 10 | ES105: OUI | ET105: Très insuffisant. Risque l'exclusion | EU105: Blâme | EY105: - | FA105: - | FB105: 2 | FC105: - | FD105: - | FG105: - | FI105: - | FJ105: 1 | FK105: - | FL105: - | FO105: - | FQ105: - | FR105: 1 | FS105: - | FT105: - | FW105: - | FY105: - | GA105: - | GB105: - | GE105: - | GG105: - | GH105: 2 | GI105: - | GJ105: - | GM105: - | GO105: - | GP105: 2 | GQ105: - | GR105: - | GU105: - | GW105: - | GX105: 2 | GY105: - | GZ105: - | HC105: - | HE105: - | HF105: 1 | HG105: - | HH105: - | HK105: - | HM105: - | HN105: 3 | HO105: - | HP105: =IFERROR(RANK(HM105,HM105:HM153,0),"-") -> - | HS105: - | HU105: - | HV105: 2 | HW105: - | HX105: - | IA105: - | IC105: - | ID105: 2 | IE105: - | IF105: - | II105: - | IK105: - | IL105: 2 | IM105: - | IN105: - | IQ105: - | IS105: - | IU105: - | IV105: - | IW105: - | IX105: - | IY105: - | IZ105: - | JA105: - | JB105: - | JC105: - | JD105: - | JE105: - | JF105: - | JG105: - | JH105: - | JI105: - | JJ105: 2 | JK105: 1 | JL105: 1 | JM105: 0 | JN105: 2 | JO105: 2 | JP105: 2 | JQ105: 1 | JR105: 3 | JS105: 2 | JT105: 2 | JU105: 2 | JV105: 0 | JW105: 20 | JX105: 0 | JY105: 0 | JZ105: 0 | KA105: - | KB105: 0 | KF105: OUI | KG105: Peut mieux faire | KH105: Blâme
G106: 119 | O106: - | Q106: - | R106: 2 | S106: - | T106: - | W106: - | Y106: - | Z106: 1 | AA106: - | AB106: - | AE106: - | AG106: - | AH106: 1 | AI106: - | AJ106: - | AM106: - | AO106: - | AQ106: - | AR106: - | AU106: - | AW106: - | AX106: 2 | AY106: - | AZ106: - | BC106: - | BE106: - | BF106: 2 | BG106: - | BH106: - | BK106: - | BM106: - | BN106: 2 | BO106: - | BP106: - | BS106: - | BU106: - | BV106: 1 | BW106: - | BX106: - | CA106: - | CC106: - | CD106: 3 | CE106: - | CF106: - | CI106: - | CK106: - | CL106: 2 | CM106: - | CN106: - | CQ106: - | CS106: - | CT106: 2 | CU106: - | CV106: - | CY106: - | DA106: - | DB106: 2 | DC106: - | DD106: - | DG106: - | DI106: - | DK106: - | DL106: - | DM106: - | DN106: - | DO106: - | DP106: - | DQ106: - | DR106: - | DS106: - | DT106: - | DU106: - | DV106: - | DW106: - | DX106: - | DY106: - | DZ106: 2 | EA106: 1 | EB106: 1 | EC106: 0 | ED106: 2 | EE106: 2 | EF106: 2 | EG106: 1 | EH106: 3 | EI106: 2 | EJ106: 2 | EK106: 2 | EL106: 0 | EM106: 20 | EN106: 0 | EO106: 0 | EP106: 5 | EQ106: 10 | ES106: OUI | ET106: Très insuffisant. Risque l'exclusion | EU106: Blâme | EY106: - | FA106: - | FB106: 2 | FC106: - | FD106: - | FG106: - | FI106: - | FJ106: 1 | FK106: - | FL106: - | FO106: - | FQ106: - | FR106: 1 | FS106: - | FT106: - | FW106: - | FY106: - | GA106: - | GB106: - | GE106: - | GG106: - | GH106: 2 | GI106: - | GJ106: - | GM106: - | GO106: - | GP106: 2 | GQ106: - | GR106: - | GU106: - | GW106: - | GX106: 2 | GY106: - | GZ106: - | HC106: - | HE106: - | HF106: 1 | HG106: - | HH106: - | HK106: - | HM106: - | HN106: 3 | HO106: - | HP106: - | HS106: - | HU106: - | HV106: 2 | HW106: - | HX106: - | IA106: - | IC106: - | ID106: 2 | IE106: - | IF106: - | II106: - | IK106: - | IL106: 2 | IM106: - | IN106: - | IQ106: - | IS106: - | IU106: - | IV106: - | IW106: - | IX106: - | IY106: - | IZ106: - | JA106: - | JB106: - | JC106: - | JD106: - | JE106: - | JF106: - | JG106: - | JH106: - | JI106: - | JJ106: 2 | JK106: 1 | JL106: 1 | JM106: 0 | JN106: 2 | JO106: 2 | JP106: 2 | JQ106: 1 | JR106: 3 | JS106: 2 | JT106: 2 | JU106: 2 | JV106: 0 | JW106: 20 | JX106: 0 | JY106: 0 | JZ106: 0 | KA106: - | KB106: 0 | KF106: OUI | KG106: Peut mieux faire | KH106: Blâme
G107: 119 | O107: - | Q107: - | R107: 2 | S107: - | T107: - | W107: - | Y107: - | Z107: 1 | AA107: - | AB107: - | AE107: - | AG107: - | AH107: 1 | AI107: - | AJ107: - | AM107: - | AO107: - | AQ107: - | AR107: - | AU107: - | AW107: - | AX107: 2 | AY107: - | AZ107: - | BC107: - | BE107: - | BF107: 2 | BG107: - | BH107: - | BK107: - | BM107: - | BN107: 2 | BO107: - | BP107: - | BS107: - | BU107: - | BV107: 1 | BW107: - | BX107: - | CA107: - | CC107: - | CD107: 3 | CE107: - | CF107: - | CI107: - | CK107: - | CL107: 2 | CM107: - | CN107: - | CQ107: - | CS107: - | CT107: 2 | CU107: - | CV107: - | CY107: - | DA107: - | DB107: 2 | DC107: - | DD107: - | DG107: - | DI107: - | DK107: - | DL107: - | DM107: - | DN107: - | DO107: - | DP107: - | DQ107: - | DR107: - | DS107: - | DT107: - | DU107: - | DV107: - | DW107: - | DX107: - | DY107: - | DZ107: 2 | EA107: 1 | EB107: 1 | EC107: 0 | ED107: 2 | EE107: 2 | EF107: 2 | EG107: 1 | EH107: 3 | EI107: 2 | EJ107: 2 | EK107: 2 | EL107: 0 | EM107: 20 | EN107: 0 | EO107: 0 | EP107: 5 | EQ107: 10 | ES107: OUI | ET107: Très insuffisant. Risque l'exclusion | EU107: Blâme | EY107: - | FA107: - | FB107: 2 | FC107: - | FD107: - | FG107: - | FI107: - | FJ107: 1 | FK107: - | FL107: - | FO107: - | FQ107: - | FR107: 1 | FS107: - | FT107: - | FW107: - | FY107: - | GA107: - | GB107: - | GE107: - | GG107: - | GH107: 2 | GI107: - | GJ107: - | GM107: - | GO107: - | GP107: 2 | GQ107: - | GR107: - | GU107: - | GW107: - | GX107: 2 | GY107: - | GZ107: - | HC107: - | HE107: - | HF107: 1 | HG107: - | HH107: - | HK107: - | HM107: - | HN107: 3 | HO107: - | HP107: - | HS107: - | HU107: - | HV107: 2 | HW107: - | HX107: - | IA107: - | IC107: - | ID107: 2 | IE107: - | IF107: - | II107: - | IK107: - | IL107: 2 | IM107: - | IN107: - | IQ107: - | IS107: - | IU107: - | IV107: - | IW107: - | IX107: - | IY107: - | IZ107: - | JA107: - | JB107: - | JC107: - | JD107: - | JE107: - | JF107: - | JG107: - | JH107: - | JI107: - | JJ107: 2 | JK107: 1 | JL107: 1 | JM107: 0 | JN107: 2 | JO107: 2 | JP107: 2 | JQ107: 1 | JR107: 3 | JS107: 2 | JT107: 2 | JU107: 2 | JV107: 0 | JW107: 20 | JX107: 0 | JY107: 0 | JZ107: 0 | KA107: - | KB107: 0 | KF107: OUI | KG107: Peut mieux faire | KH107: Blâme
G108: 119 | O108: - | Q108: - | R108: 2 | S108: - | T108: - | W108: - | Y108: - | Z108: 1 | AA108: - | AB108: - | AE108: - | AG108: - | AH108: 1 | AI108: - | AJ108: - | AM108: - | AO108: - | AQ108: - | AR108: - | AU108: - | AW108: - | AX108: 2 | AY108: - | AZ108: - | BC108: - | BE108: - | BF108: 2 | BG108: - | BH108: - | BK108: - | BM108: - | BN108: 2 | BO108: - | BP108: - | BS108: - | BU108: - | BV108: 1 | BW108: - | BX108: - | CA108: - | CC108: - | CD108: 3 | CE108: - | CF108: - | CI108: - | CK108: - | CL108: 2 | CM108: - | CN108: - | CQ108: - | CS108: - | CT108: 2 | CU108: - | CV108: - | CY108: - | DA108: - | DB108: 2 | DC108: - | DD108: - | DG108: - | DI108: - | DK108: - | DL108: - | DM108: - | DN108: - | DO108: - | DP108: - | DQ108: - | DR108: - | DS108: - | DT108: - | DU108: - | DV108: - | DW108: - | DX108: - | DY108: - | DZ108: 2 | EA108: 1 | EB108: 1 | EC108: 0 | ED108: 2 | EE108: 2 | EF108: 2 | EG108: 1 | EH108: 3 | EI108: 2 | EJ108: 2 | EK108: 2 | EL108: 0 | EM108: 20 | EN108: 0 | EO108: 0 | EP108: 5 | EQ108: 10 | ES108: OUI | ET108: Très insuffisant. Risque l'exclusion | EU108: Blâme | EY108: - | FA108: - | FB108: 2 | FC108: - | FD108: - | FG108: - | FI108: - | FJ108: 1 | FK108: - | FL108: - | FO108: - | FQ108: - | FR108: 1 | FS108: - | FT108: - | FW108: - | FY108: - | GA108: - | GB108: - | GE108: - | GG108: - | GH108: 2 | GI108: - | GJ108: - | GM108: - | GO108: - | GP108: 2 | GQ108: - | GR108: - | GU108: - | GW108: - | GX108: 2 | GY108: - | GZ108: - | HC108: - | HE108: - | HF108: 1 | HG108: - | HH108: - | HK108: - | HM108: - | HN108: 3 | HO108: - | HP108: - | HS108: - | HU108: - | HV108: 2 | HW108: - | HX108: - | IA108: - | IC108: - | ID108: 2 | IE108: - | IF108: - | II108: - | IK108: - | IL108: 2 | IM108: - | IN108: - | IQ108: - | IS108: - | IU108: - | IV108: - | IW108: - | IX108: - | IY108: - | IZ108: - | JA108: - | JB108: - | JC108: - | JD108: - | JE108: - | JF108: - | JG108: - | JH108: - | JI108: - | JJ108: 2 | JK108: 1 | JL108: 1 | JM108: 0 | JN108: 2 | JO108: 2 | JP108: 2 | JQ108: 1 | JR108: 3 | JS108: 2 | JT108: 2 | JU108: 2 | JV108: 0 | JW108: 20 | JX108: 0 | JY108: 0 | JZ108: 0 | KA108: - | KB108: 0 | KF108: OUI | KG108: Peut mieux faire | KH108: Blâme
G109: 119 | O109: - | Q109: - | R109: 2 | S109: - | T109: - | W109: - | Y109: - | Z109: 1 | AA109: - | AB109: - | AE109: - | AG109: - | AH109: 1 | AI109: - | AJ109: - | AM109: - | AO109: - | AQ109: - | AR109: - | AU109: - | AW109: - | AX109: 2 | AY109: - | AZ109: - | BC109: - | BE109: - | BF109: 2 | BG109: - | BH109: - | BK109: - | BM109: - | BN109: 2 | BO109: - | BP109: - | BS109: - | BU109: - | BV109: 1 | BW109: - | BX109: - | CA109: - | CC109: - | CD109: 3 | CE109: - | CF109: - | CI109: - | CK109: - | CL109: 2 | CM109: - | CN109: - | CQ109: - | CS109: - | CT109: 2 | CU109: - | CV109: - | CY109: - | DA109: - | DB109: 2 | DC109: - | DD109: - | DG109: - | DI109: - | DK109: - | DL109: - | DM109: - | DN109: - | DO109: - | DP109: - | DQ109: - | DR109: - | DS109: - | DT109: - | DU109: - | DV109: - | DW109: - | DX109: - | DY109: - | DZ109: 2 | EA109: 1 | EB109: 1 | EC109: 0 | ED109: 2 | EE109: 2 | EF109: 2 | EG109: 1 | EH109: 3 | EI109: 2 | EJ109: 2 | EK109: 2 | EL109: 0 | EM109: 20 | EN109: 0 | EO109: 0 | EP109: 5 | EQ109: 10 | ES109: OUI | ET109: Très insuffisant. Risque l'exclusion | EU109: Blâme | EY109: - | FA109: - | FB109: 2 | FC109: - | FD109: - | FG109: - | FI109: - | FJ109: 1 | FK109: - | FL109: - | FO109: - | FQ109: - | FR109: 1 | FS109: - | FT109: - | FW109: - | FY109: - | GA109: - | GB109: - | GE109: - | GG109: - | GH109: 2 | GI109: - | GJ109: - | GM109: - | GO109: - | GP109: 2 | GQ109: - | GR109: - | GU109: - | GW109: - | GX109: 2 | GY109: - | GZ109: - | HC109: - | HE109: - | HF109: 1 | HG109: - | HH109: - | HK109: - | HM109: - | HN109: 3 | HO109: - | HP109: - | HS109: - | HU109: - | HV109: 2 | HW109: - | HX109: - | IA109: - | IC109: - | ID109: 2 | IE109: - | IF109: - | II109: - | IK109: - | IL109: 2 | IM109: - | IN109: - | IQ109: - | IS109: - | IU109: - | IV109: - | IW109: - | IX109: - | IY109: - | IZ109: - | JA109: - | JB109: - | JC109: - | JD109: - | JE109: - | JF109: - | JG109: - | JH109: - | JI109: - | JJ109: 2 | JK109: 1 | JL109: 1 | JM109: 0 | JN109: 2 | JO109: 2 | JP109: 2 | JQ109: 1 | JR109: 3 | JS109: 2 | JT109: 2 | JU109: 2 | JV109: 0 | JW109: 20 | JX109: 0 | JY109: 0 | JZ109: 0 | KA109: - | KB109: 0 | KF109: OUI | KG109: Peut mieux faire | KH109: Blâme
G110: 119 | O110: - | Q110: - | R110: 2 | S110: - | T110: - | W110: - | Y110: - | Z110: 1 | AA110: - | AB110: - | AE110: - | AG110: - | AH110: 1 | AI110: - | AJ110: - | AM110: - | AO110: - | AQ110: - | AR110: - | AU110: - | AW110: - | AX110: 2 | AY110: - | AZ110: - | BC110: - | BE110: - | BF110: 2 | BG110: - | BH110: - | BK110: - | BM110: - | BN110: 2 | BO110: - | BP110: - | BS110: - | BU110: - | BV110: 1 | BW110: - | BX110: - | CA110: - | CC110: - | CD110: 3 | CE110: - | CF110: - | CI110: - | CK110: - | CL110: 2 | CM110: - | CN110: - | CQ110: - | CS110: - | CT110: 2 | CU110: - | CV110: - | CY110: - | DA110: - | DB110: 2 | DC110: - | DD110: - | DG110: - | DI110: - | DK110: - | DL110: - | DM110: - | DN110: - | DO110: - | DP110: - | DQ110: - | DR110: - | DS110: - | DT110: - | DU110: - | DV110: - | DW110: - | DX110: - | DY110: - | DZ110: 2 | EA110: 1 | EB110: 1 | EC110: 0 | ED110: 2 | EE110: 2 | EF110: 2 | EG110: 1 | EH110: 3 | EI110: 2 | EJ110: 2 | EK110: 2 | EL110: 0 | EM110: 20 | EN110: 0 | EO110: 0 | EP110: 5 | EQ110: 10 | ES110: OUI | ET110: Très insuffisant. Risque l'exclusion | EU110: Blâme | EY110: - | FA110: - | FB110: 2 | FC110: - | FD110: - | FG110: - | FI110: - | FJ110: 1 | FK110: - | FL110: - | FO110: - | FQ110: - | FR110: 1 | FS110: - | FT110: - | FW110: - | FY110: - | GA110: - | GB110: - | GE110: - | GG110: - | GH110: 2 | GI110: - | GJ110: - | GM110: - | GO110: - | GP110: 2 | GQ110: - | GR110: - | GU110: - | GW110: - | GX110: 2 | GY110: - | GZ110: - | HC110: - | HE110: - | HF110: 1 | HG110: - | HH110: - | HK110: - | HM110: - | HN110: 3 | HO110: - | HP110: - | HS110: - | HU110: - | HV110: 2 | HW110: - | HX110: - | IA110: - | IC110: - | ID110: 2 | IE110: - | IF110: - | II110: - | IK110: - | IL110: 2 | IM110: - | IN110: - | IQ110: - | IS110: - | IU110: - | IV110: - | IW110: - | IX110: - | IY110: - | IZ110: - | JA110: - | JB110: - | JC110: - | JD110: - | JE110: - | JF110: - | JG110: - | JH110: - | JI110: - | JJ110: 2 | JK110: 1 | JL110: 1 | JM110: 0 | JN110: 2 | JO110: 2 | JP110: 2 | JQ110: 1 | JR110: 3 | JS110: 2 | JT110: 2 | JU110: 2 | JV110: 0 | JW110: 20 | JX110: 0 | JY110: 0 | JZ110: 0 | KA110: - | KB110: 0 | KF110: OUI | KG110: Peut mieux faire | KH110: Blâme
G111: 119 | O111: - | Q111: - | R111: 2 | S111: - | T111: - | W111: - | Y111: - | Z111: 1 | AA111: - | AB111: - | AE111: - | AG111: - | AH111: 1 | AI111: - | AJ111: - | AM111: - | AO111: - | AQ111: - | AR111: - | AU111: - | AW111: - | AX111: 2 | AY111: - | AZ111: - | BC111: - | BE111: - | BF111: 2 | BG111: - | BH111: - | BK111: - | BM111: - | BN111: 2 | BO111: - | BP111: - | BS111: - | BU111: - | BV111: 1 | BW111: - | BX111: - | CA111: - | CC111: - | CD111: 3 | CE111: - | CF111: - | CI111: - | CK111: - | CL111: 2 | CM111: - | CN111: - | CQ111: - | CS111: - | CT111: 2 | CU111: - | CV111: - | CY111: - | DA111: - | DB111: 2 | DC111: - | DD111: - | DG111: - | DI111: - | DK111: - | DL111: - | DM111: - | DN111: - | DO111: - | DP111: - | DQ111: - | DR111: - | DS111: - | DT111: - | DU111: - | DV111: - | DW111: - | DX111: - | DY111: - | DZ111: 2 | EA111: 1 | EB111: 1 | EC111: 0 | ED111: 2 | EE111: 2 | EF111: 2 | EG111: 1 | EH111: 3 | EI111: 2 | EJ111: 2 | EK111: 2 | EL111: 0 | EM111: 20 | EN111: 0 | EO111: 0 | EP111: 5 | EQ111: 10 | ES111: OUI | ET111: Très insuffisant. Risque l'exclusion | EU111: Blâme | EY111: - | FA111: - | FB111: 2 | FC111: - | FD111: - | FG111: - | FI111: - | FJ111: 1 | FK111: - | FL111: - | FO111: - | FQ111: - | FR111: 1 | FS111: - | FT111: - | FW111: - | FY111: - | GA111: - | GB111: - | GE111: - | GG111: - | GH111: 2 | GI111: - | GJ111: - | GM111: - | GO111: - | GP111: 2 | GQ111: - | GR111: - | GU111: - | GW111: - | GX111: 2 | GY111: - | GZ111: - | HC111: - | HE111: - | HF111: 1 | HG111: - | HH111: - | HK111: - | HM111: - | HN111: 3 | HO111: - | HP111: - | HS111: - | HU111: - | HV111: 2 | HW111: - | HX111: - | IA111: - | IC111: - | ID111: 2 | IE111: - | IF111: - | II111: - | IK111: - | IL111: 2 | IM111: - | IN111: - | IQ111: - | IS111: - | IU111: - | IV111: - | IW111: - | IX111: - | IY111: - | IZ111: - | JA111: - | JB111: - | JC111: - | JD111: - | JE111: - | JF111: - | JG111: - | JH111: - | JI111: - | JJ111: 2 | JK111: 1 | JL111: 1 | JM111: 0 | JN111: 2 | JO111: 2 | JP111: 2 | JQ111: 1 | JR111: 3 | JS111: 2 | JT111: 2 | JU111: 2 | JV111: 0 | JW111: 20 | JX111: 0 | JY111: 0 | JZ111: 0 | KA111: - | KB111: 0 | KF111: OUI | KG111: Peut mieux faire | KH111: Blâme
G112: =DATEDIF(E112,TODAY(),"Y") -> 119 | O112: =IFERROR(AVERAGE(M112:N112),"-") -> - | Q112: =IFERROR(AVERAGE(O112:P112),"-") -> - | R112: 2 | S112: =IFERROR(Q112*2,"-") -> - | T112: =IFERROR(RANK(Q112,$Q$16:$Q$121,0),"-") -> - | W112: =IFERROR(AVERAGE(U112:V112),"-") -> - | Y112: =IFERROR(AVERAGE(W112:X112),"-") -> - | Z112: 1 | AA112: =IFERROR(Y112*1,"-") -> - | AB112: =IFERROR(RANK(Y112,$Y$16:$Y$121,0),"-") -> - | AE112: =IFERROR(AVERAGE(AC112:AD112),"-") -> - | AG112: =IFERROR(AVERAGE(AE112:AF112),"-") -> - | AH112: 1 | AI112: =IFERROR(AG112*1,"-") -> - | AJ112: =IFERROR(RANK(AG112,$AG$16:$AG$121,0),"-") -> - | AM112: =IFERROR(AVERAGE(AK112:AL112),"-") -> - | AO112: =IFERROR(AVERAGE(AM112:AN112),"-") -> - | AQ112: =+IFERROR(AO112*AP112,"-") -> - | AR112: =IFERROR(RANK(AO112,$AO$16:$AO$121,0),"-") -> - | AU112: =IFERROR(AVERAGE(AS112:AT112),"-") -> - | AW112: =IFERROR(AVERAGE(AU112:AV112),"-") -> - | AX112: 2 | AY112: =IFERROR(AW112*AX112,"-") -> - | AZ112: =IFERROR(RANK(AW112,$AW$16:$AW$121,0),"-") -> - | BC112: =IFERROR(AVERAGE(BA112:BB112),"-") -> - | BE112: =IFERROR(AVERAGE(BC112:BD112),"-") -> - | BF112: 2 | BG112: =IFERROR(BE112*BF112,"-") -> - | BH112: =IFERROR(RANK(BE112,$BE$16:$BE$121,0),"-") -> - | BK112: =IFERROR(AVERAGE(BI112:BJ112),"-") -> - | BM112: =IFERROR(AVERAGE(BK112:BL112),"-") -> - | BN112: 2 | BO112: =IFERROR(BM112*BN112,"-") -> - | BP112: =IFERROR(RANK(BM112,$BM$16:$BM$121,0),"-") -> - | BS112: =IFERROR(AVERAGE(BQ112:BR112),"-") -> - | BU112: =IFERROR(AVERAGE(BS112:BT112),"-") -> - | BV112: 1 | BW112: =IFERROR(BU112*BV112,"-") -> - | BX112: =IFERROR(RANK(BU112,$BU$16:$BU$121,0),"-") -> - | CA112: =IFERROR(AVERAGE(BY112:BZ112),"-") -> - | CC112: =IFERROR(AVERAGE(CA112:CB112),"-") -> - | CD112: 3 | CE112: =IFERROR(CC112*CD112,"-") -> - | CF112: - | CI112: =IFERROR(AVERAGE(CG112:CH112),"-") -> - | CK112: =IFERROR(AVERAGE(CI112:CJ112),"-") -> - | CL112: 2 | CM112: =IFERROR(CK112*CL112,"-") -> - | CN112: =IFERROR(RANK(CK112,$CK$16:$CK$121,0),"-") -> - | CQ112: =IFERROR(AVERAGE(CO112:CP112),"-") -> - | CS112: =IFERROR(AVERAGE(CQ112:CR112),"-") -> - | CT112: 2 | CU112: =IFERROR(CS112*CT112,"-") -> - | CV112: =IFERROR(RANK(CS112,$CS$16:$CS$121,0),"-") -> - | CY112: =IFERROR(AVERAGE(CW112:CX112),"-") -> - | DA112: =IFERROR(AVERAGE(CY112:CZ112),"-") -> - | DB112: 2 | DC112: =IFERROR(DA112*DB112,"-") -> - | DD112: =IFERROR(RANK(DA112,$DA$16:$DA$121,0),"-") -> - | DG112: =IFERROR(AVERAGE(DE112:DF112),"-") -> - | DI112: =IFERROR(AVERAGE(DG112:DH112),"-") -> - | DK112: =IFERROR(DI112*DJ112,"-") -> - | DL112: =IFERROR(RANK(DI112,$DI$16:$DI$121,0),"-") -> - | DM112: =IFERROR(S112,"-") -> - | DN112: =IFERROR(AA112,"-") -> - | DO112: =IFERROR(AI112,"-") -> - | DP112: =IFERROR(AQ112,"-") -> - | DQ112: =IFERROR(AY112,"-") -> - | DR112: =IFERROR(BG112,"-") -> - | DS112: =IFERROR(BO112,"-") -> - | DT112: =IFERROR(BW112,"-") -> - | DU112: =IFERROR(CE112,"-") -> - | DV112: =IFERROR(CM112,"-") -> - | DW112: =IFERROR(CU112,"-") -> - | DX112: =IFERROR(DC112,"-") -> - | DY112: =IFERROR(DK112,"-") -> - | DZ112: =IFERROR(R112,"-") -> 2 | EA112: =IFERROR(Z112,"-") -> 1 | EB112: =IFERROR(AH112,"-") -> 1 | EC112: =IFERROR(AP112,"-") -> 0 | ED112: =IFERROR(AX112,"-") -> 2 | EE112: =IFERROR(BF112,"-") -> 2 | EF112: =IFERROR(BN112,"-") -> 2 | EG112: =IFERROR(BV112,"-") -> 1 | EH112: =IFERROR(CD112,"-") -> 3 | EI112: =IFERROR(CL112,"-") -> 2 | EJ112: =IFERROR(CT112,"-") -> 2 | EK112: =IFERROR(DB112,"-") -> 2 | EL112: =IFERROR(DJ112,"-") -> 0 | EM112: 20 | EN112: =IFERROR(SUM(DM112:DY112),"-") -> 0 | EO112: =IFERROR(ROUND(EN112/EM112,2),"-") -> 0 | EP112: =IFERROR(RANK(EO112,$EO$16:$EO$121,0),"-") -> 5 | EQ112: 10 | ES112: OUI | ET112: =IF(EO112>=12,"Satisfaisant doit continuer",IF((EO112>=EQ112)*(EO112<12),"Peut mieux faire",IF(AND(EO112<EQ112,G112<16),"Insuffisant. Risque de redoubler",IF(AND(EO112<EQ112,G112>=16,I112="NON"),"Insuffisant. Risque de redoubler",IF(AND(EO112<EQ112,G112<16,I112="OUI"),"Insuffisant. Risque de redoubler",IF(AND(EO112<EQ112,G112>=16,I112="OUI"),"Insuffisant. Risque l'exclusion",IF(AND(EO112<=5,G112>=16),"Très insuffisant. Risque l'exclusion"))))))) -> Très insuffisant. Risque l'exclusion | EU112: =IF(EO112>=14,"Félicitations",IF((EO112>=13)*(EO112<14),"Encouragement",IF((EO112>=12)*(EO112<13),"Tableau d'honneur",IF((EO112>=9.5)*(EO112<12),"Moyen",IF((EO112>=7)*(EO112<9.5),"Avertissement",IF((EO112>=0)*(EO112<7),"Blâme")))))) -> Blâme | EY112: =IFERROR(AVERAGE(EW112:EX112),"-") -> - | FA112: =IFERROR(AVERAGE(EY112:EZ112),"-") -> - | FB112: 2 | FC112: =IFERROR(FA112*2,"-") -> - | FD112: =IFERROR(RANK(FA112,$Q$16:$Q$65,0),"-") -> - | FG112: =IFERROR(AVERAGE(FE112:FF112),"-") -> - | FI112: =IFERROR(AVERAGE(FG112:FH112),"-") -> - | FJ112: 1 | FK112: =IFERROR(FI112*1,"-") -> - | FL112: =IFERROR(RANK(FI112,$Y$16:$Y$65,0),"-") -> - | FO112: =IFERROR(AVERAGE(FM112:FN112),"-") -> - | FQ112: =IFERROR(AVERAGE(FO112:FP112),"-") -> - | FR112: 1 | FS112: =IFERROR(FQ112*1,"-") -> - | FT112: =IFERROR(RANK(FQ112,$AG$16:$AG$65,0),"-") -> - | FW112: =IFERROR(AVERAGE(FU112:FV112),"-") -> - | FY112: =IFERROR(AVERAGE(FW112:FX112),"-") -> - | GA112: =+IFERROR(FY112*FZ112,"-") -> - | GB112: =IFERROR(RANK(FY112,$AO$16:$AO$65,0),"-") -> - | GE112: =IFERROR(AVERAGE(GC112:GD112),"-") -> - | GG112: =IFERROR(AVERAGE(GE112:GF112),"-") -> - | GH112: 2 | GI112: =IFERROR(GG112*GH112,"-") -> - | GJ112: =IFERROR(RANK(GG112,$AW$16:$AW$65,0),"-") -> - | GM112: =IFERROR(AVERAGE(GK112:GL112),"-") -> - | GO112: =IFERROR(AVERAGE(GM112:GN112),"-") -> - | GP112: 2 | GQ112: =IFERROR(GO112*GP112,"-") -> - | GR112: =IFERROR(RANK(GO112,$BE$16:$BE$65,0),"-") -> - | GU112: =IFERROR(AVERAGE(GS112:GT112),"-") -> - | GW112: =IFERROR(AVERAGE(GU112:GV112),"-") -> - | GX112: 2 | GY112: =IFERROR(GW112*GX112,"-") -> - | GZ112: =IFERROR(RANK(GW112,$BM$16:$BM$65,0),"-") -> - | HC112: =IFERROR(AVERAGE(HA112:HB112),"-") -> - | HE112: =IFERROR(AVERAGE(HC112:HD112),"-") -> - | HF112: 1 | HG112: =IFERROR(HE112*HF112,"-") -> - | HH112: =IFERROR(RANK(HE112,$BU$16:$BU$65,0),"-") -> - | HK112: =IFERROR(AVERAGE(HI112:HJ112),"-") -> - | HM112: =IFERROR(AVERAGE(HK112:HL112),"-") -> - | HN112: 3 | HO112: =IFERROR(HM112*HN112,"-") -> - | HP112: - | HS112: =IFERROR(AVERAGE(HQ112:HR112),"-") -> - | HU112: =IFERROR(AVERAGE(HS112:HT112),"-") -> - | HV112: 2 | HW112: =IFERROR(HU112*HV112,"-") -> - | HX112: =IFERROR(RANK(HU112,$CK$16:$CK$65,0),"-") -> - | IA112: =IFERROR(AVERAGE(HY112:HZ112),"-") -> - | IC112: =IFERROR(AVERAGE(IA112:IB112),"-") -> - | ID112: 2 | IE112: =IFERROR(IC112*ID112,"-") -> - | IF112: =IFERROR(RANK(IC112,$CS$16:$CS$65,0),"-") -> - | II112: =IFERROR(AVERAGE(IG112:IH112),"-") -> - | IK112: =IFERROR(AVERAGE(II112:IJ112),"-") -> - | IL112: 2 | IM112: =IFERROR(IK112*IL112,"-") -> - | IN112: =IFERROR(RANK(IK112,$DA$16:$DA$65,0),"-") -> - | IQ112: =IFERROR(AVERAGE(IO112:IP112),"-") -> - | IS112: =IFERROR(AVERAGE(IQ112:IR112),"-") -> - | IU112: =IFERROR(IS112*IT112,"-") -> - | IV112: =IFERROR(RANK(IS112,$DI$16:$DI$65,0),"-") -> - | IW112: =IFERROR(FC112,"-") -> - | IX112: =IFERROR(FK112,"-") -> - | IY112: =IFERROR(FS112,"-") -> - | IZ112: =IFERROR(GA112,"-") -> - | JA112: =IFERROR(GI112,"-") -> - | JB112: =IFERROR(GQ112,"-") -> - | JC112: =IFERROR(GY112,"-") -> - | JD112: =IFERROR(HG112,"-") -> - | JE112: =IFERROR(HO112,"-") -> - | JF112: =IFERROR(HW112,"-") -> - | JG112: =IFERROR(IE112,"-") -> - | JH112: =IFERROR(IM112,"-") -> - | JI112: =IFERROR(IU112,"-") -> - | JJ112: =IFERROR(FB112,"-") -> 2 | JK112: =IFERROR(FJ112,"-") -> 1 | JL112: =IFERROR(FR112,"-") -> 1 | JM112: =IFERROR(FZ112,"-") -> 0 | JN112: =IFERROR(GH112,"-") -> 2 | JO112: =IFERROR(GP112,"-") -> 2 | JP112: =IFERROR(GX112,"-") -> 2 | JQ112: =IFERROR(HF112,"-") -> 1 | JR112: =IFERROR(HN112,"-") -> 3 | JS112: =IFERROR(HV112,"-") -> 2 | JT112: =IFERROR(ID112,"-") -> 2 | JU112: =IFERROR(IL112,"-") -> 2 | JV112: =IFERROR(IT112,"-") -> 0 | JW112: =IFERROR(SUM(JJ112:JV112),"-") -> 20 | JX112: =IFERROR(SUM(IW112:JI112),"-") -> 0 | JY112: =EO112 -> 0 | JZ112: =IFERROR(ROUND(JX112/JW112,2),"-") -> 0 | KA112: =IFERROR(RANK(JZ112,$EP$16:$EP$65,0),"-") -> - | KB112: =IFERROR(ROUND((JY112+JZ112)/2,2),"---") -> 0 | KF112: OUI | KG112: =IF(KB112>=12,"Satisfaisant doit continuer",IF((KB112>=KD112)*(KB112<12),"Peut mieux faire",IF(AND(KB112<KD112,ET112<16),"Insuffisant. Risque de redoubler",IF(AND(KB112<KD112,ET112>=16,EV112="NON"),"Insuffisant. Risque de redoubler",IF(AND(KB112<KD112,ET112<16,EV112="OUI"),"Insuffisant. Risque de redoubler",IF(AND(KB112<KD112,ET112>=16,EV112="OUI"),"Insuffisant. Risque l'exclusion",IF(AND(KB112<=5,ET112>=16),"Très insuffisant. Risque l'exclusion"))))))) -> Peut mieux faire | KH112: =IF(JZ112>=14,"Félicitations",IF((JZ112>=13)*(JZ112<14),"Encouragement",IF((JZ112>=12)*(JZ112<13),"Tableau d'honneur",IF((JZ112>=9.5)*(JZ112<12),"Moyen",IF((JZ112>=7)*(JZ112<9.5),"Avertissement",IF((JZ112>=0)*(JZ112<7),"Blâme")))))) -> Blâme
G113: 119 | O113: - | Q113: - | R113: 2 | S113: - | T113: - | W113: - | Y113: - | Z113: 1 | AA113: - | AB113: - | AE113: - | AG113: - | AH113: 1 | AI113: - | AJ113: - | AM113: - | AO113: - | AQ113: - | AR113: - | AU113: - | AW113: - | AX113: 2 | AY113: - | AZ113: - | BC113: - | BE113: - | BF113: 2 | BG113: - | BH113: - | BK113: - | BM113: - | BN113: 2 | BO113: - | BP113: - | BS113: - | BU113: - | BV113: 1 | BW113: - | BX113: - | CA113: - | CC113: - | CD113: 3 | CE113: - | CF113: =IFERROR(RANK(CC113,CC113:CC217,0),"-") -> - | CI113: - | CK113: - | CL113: 2 | CM113: - | CN113: - | CQ113: - | CS113: - | CT113: 2 | CU113: - | CV113: - | CY113: - | DA113: - | DB113: 2 | DC113: - | DD113: - | DG113: - | DI113: - | DK113: - | DL113: - | DM113: - | DN113: - | DO113: - | DP113: - | DQ113: - | DR113: - | DS113: - | DT113: - | DU113: - | DV113: - | DW113: - | DX113: - | DY113: - | DZ113: 2 | EA113: 1 | EB113: 1 | EC113: 0 | ED113: 2 | EE113: 2 | EF113: 2 | EG113: 1 | EH113: 3 | EI113: 2 | EJ113: 2 | EK113: 2 | EL113: 0 | EM113: 20 | EN113: 0 | EO113: 0 | EP113: 5 | EQ113: 10 | ES113: OUI | ET113: Très insuffisant. Risque l'exclusion | EU113: Blâme | EY113: - | FA113: - | FB113: 2 | FC113: - | FD113: - | FG113: - | FI113: - | FJ113: 1 | FK113: - | FL113: - | FO113: - | FQ113: - | FR113: 1 | FS113: - | FT113: - | FW113: - | FY113: - | GA113: - | GB113: - | GE113: - | GG113: - | GH113: 2 | GI113: - | GJ113: - | GM113: - | GO113: - | GP113: 2 | GQ113: - | GR113: - | GU113: - | GW113: - | GX113: 2 | GY113: - | GZ113: - | HC113: - | HE113: - | HF113: 1 | HG113: - | HH113: - | HK113: - | HM113: - | HN113: 3 | HO113: - | HP113: - | HS113: - | HU113: - | HV113: 2 | HW113: - | HX113: - | IA113: - | IC113: - | ID113: 2 | IE113: - | IF113: - | II113: - | IK113: - | IL113: 2 | IM113: - | IN113: - | IQ113: - | IS113: - | IU113: - | IV113: - | IW113: - | IX113: - | IY113: - | IZ113: - | JA113: - | JB113: - | JC113: - | JD113: - | JE113: - | JF113: - | JG113: - | JH113: - | JI113: - | JJ113: 2 | JK113: 1 | JL113: 1 | JM113: 0 | JN113: 2 | JO113: 2 | JP113: 2 | JQ113: 1 | JR113: 3 | JS113: 2 | JT113: 2 | JU113: 2 | JV113: 0 | JW113: 20 | JX113: 0 | JY113: 0 | JZ113: 0 | KA113: - | KB113: 0 | KF113: OUI | KG113: Peut mieux faire | KH113: Blâme
G114: 119 | O114: - | Q114: - | R114: 2 | S114: - | T114: - | W114: - | Y114: - | Z114: 1 | AA114: - | AB114: - | AE114: - | AG114: - | AH114: 1 | AI114: - | AJ114: - | AM114: - | AO114: - | AQ114: - | AR114: - | AU114: - | AW114: - | AX114: 2 | AY114: - | AZ114: - | BC114: - | BE114: - | BF114: 2 | BG114: - | BH114: - | BK114: - | BM114: - | BN114: 2 | BO114: - | BP114: - | BS114: - | BU114: - | BV114: 1 | BW114: - | BX114: - | CA114: - | CC114: - | CD114: 3 | CE114: - | CF114: - | CI114: - | CK114: - | CL114: 2 | CM114: - | CN114: - | CQ114: - | CS114: - | CT114: 2 | CU114: - | CV114: - | CY114: - | DA114: - | DB114: 2 | DC114: - | DD114: - | DG114: - | DI114: - | DK114: - | DL114: - | DM114: - | DN114: - | DO114: - | DP114: - | DQ114: - | DR114: - | DS114: - | DT114: - | DU114: - | DV114: - | DW114: - | DX114: - | DY114: - | DZ114: 2 | EA114: 1 | EB114: 1 | EC114: 0 | ED114: 2 | EE114: 2 | EF114: 2 | EG114: 1 | EH114: 3 | EI114: 2 | EJ114: 2 | EK114: 2 | EL114: 0 | EM114: 20 | EN114: 0 | EO114: 0 | EP114: 5 | EQ114: 10 | ES114: OUI | ET114: Très insuffisant. Risque l'exclusion | EU114: Blâme | EY114: - | FA114: - | FB114: 2 | FC114: - | FD114: - | FG114: - | FI114: - | FJ114: 1 | FK114: - | FL114: - | FO114: - | FQ114: - | FR114: 1 | FS114: - | FT114: - | FW114: - | FY114: - | GA114: - | GB114: - | GE114: - | GG114: - | GH114: 2 | GI114: - | GJ114: - | GM114: - | GO114: - | GP114: 2 | GQ114: - | GR114: - | GU114: - | GW114: - | GX114: 2 | GY114: - | GZ114: - | HC114: - | HE114: - | HF114: 1 | HG114: - | HH114: - | HK114: - | HM114: - | HN114: 3 | HO114: - | HP114: - | HS114: - | HU114: - | HV114: 2 | HW114: - | HX114: - | IA114: - | IC114: - | ID114: 2 | IE114: - | IF114: - | II114: - | IK114: - | IL114: 2 | IM114: - | IN114: - | IQ114: - | IS114: - | IU114: - | IV114: - | IW114: - | IX114: - | IY114: - | IZ114: - | JA114: - | JB114: - | JC114: - | JD114: - | JE114: - | JF114: - | JG114: - | JH114: - | JI114: - | JJ114: 2 | JK114: 1 | JL114: 1 | JM114: 0 | JN114: 2 | JO114: 2 | JP114: 2 | JQ114: 1 | JR114: 3 | JS114: 2 | JT114: 2 | JU114: 2 | JV114: 0 | JW114: 20 | JX114: 0 | JY114: 0 | JZ114: 0 | KA114: - | KB114: 0 | KF114: OUI | KG114: Peut mieux faire | KH114: Blâme
G115: 119 | O115: - | Q115: - | R115: 2 | S115: - | T115: - | W115: - | Y115: - | Z115: 1 | AA115: - | AB115: - | AE115: - | AG115: - | AH115: 1 | AI115: - | AJ115: - | AM115: - | AO115: - | AQ115: - | AR115: - | AU115: - | AW115: - | AX115: 2 | AY115: - | AZ115: - | BC115: - | BE115: - | BF115: 2 | BG115: - | BH115: - | BK115: - | BM115: - | BN115: 2 | BO115: - | BP115: - | BS115: - | BU115: - | BV115: 1 | BW115: - | BX115: - | CA115: - | CC115: - | CD115: 3 | CE115: - | CF115: - | CI115: - | CK115: - | CL115: 2 | CM115: - | CN115: - | CQ115: - | CS115: - | CT115: 2 | CU115: - | CV115: - | CY115: - | DA115: - | DB115: 2 | DC115: - | DD115: - | DG115: - | DI115: - | DK115: - | DL115: - | DM115: - | DN115: - | DO115: - | DP115: - | DQ115: - | DR115: - | DS115: - | DT115: - | DU115: - | DV115: - | DW115: - | DX115: - | DY115: - | DZ115: 2 | EA115: 1 | EB115: 1 | EC115: 0 | ED115: 2 | EE115: 2 | EF115: 2 | EG115: 1 | EH115: 3 | EI115: 2 | EJ115: 2 | EK115: 2 | EL115: 0 | EM115: 20 | EN115: 0 | EO115: 0 | EP115: 5 | EQ115: 10 | ES115: OUI | ET115: Très insuffisant. Risque l'exclusion | EU115: Blâme | EY115: - | FA115: - | FB115: 2 | FC115: - | FD115: - | FG115: - | FI115: - | FJ115: 1 | FK115: - | FL115: - | FO115: - | FQ115: - | FR115: 1 | FS115: - | FT115: - | FW115: - | FY115: - | GA115: - | GB115: - | GE115: - | GG115: - | GH115: 2 | GI115: - | GJ115: - | GM115: - | GO115: - | GP115: 2 | GQ115: - | GR115: - | GU115: - | GW115: - | GX115: 2 | GY115: - | GZ115: - | HC115: - | HE115: - | HF115: 1 | HG115: - | HH115: - | HK115: - | HM115: - | HN115: 3 | HO115: - | HP115: - | HS115: - | HU115: - | HV115: 2 | HW115: - | HX115: - | IA115: - | IC115: - | ID115: 2 | IE115: - | IF115: - | II115: - | IK115: - | IL115: 2 | IM115: - | IN115: - | IQ115: - | IS115: - | IU115: - | IV115: - | IW115: - | IX115: - | IY115: - | IZ115: - | JA115: - | JB115: - | JC115: - | JD115: - | JE115: - | JF115: - | JG115: - | JH115: - | JI115: - | JJ115: 2 | JK115: 1 | JL115: 1 | JM115: 0 | JN115: 2 | JO115: 2 | JP115: 2 | JQ115: 1 | JR115: 3 | JS115: 2 | JT115: 2 | JU115: 2 | JV115: 0 | JW115: 20 | JX115: 0 | JY115: 0 | JZ115: 0 | KA115: - | KB115: 0 | KF115: OUI | KG115: Peut mieux faire | KH115: Blâme
G116: 119 | O116: - | Q116: - | R116: 2 | S116: - | T116: - | W116: - | Y116: - | Z116: 1 | AA116: - | AB116: - | AE116: - | AG116: - | AH116: 1 | AI116: - | AJ116: - | AM116: - | AO116: - | AQ116: - | AR116: - | AU116: - | AW116: - | AX116: 2 | AY116: - | AZ116: - | BC116: - | BE116: - | BF116: 2 | BG116: - | BH116: - | BK116: - | BM116: - | BN116: 2 | BO116: - | BP116: - | BS116: - | BU116: - | BV116: 1 | BW116: - | BX116: - | CA116: - | CC116: - | CD116: 3 | CE116: - | CF116: - | CI116: - | CK116: - | CL116: 2 | CM116: - | CN116: - | CQ116: - | CS116: - | CT116: 2 | CU116: - | CV116: - | CY116: - | DA116: - | DB116: 2 | DC116: - | DD116: - | DG116: - | DI116: - | DK116: - | DL116: - | DM116: - | DN116: - | DO116: - | DP116: - | DQ116: - | DR116: - | DS116: - | DT116: - | DU116: - | DV116: - | DW116: - | DX116: - | DY116: - | DZ116: 2 | EA116: 1 | EB116: 1 | EC116: 0 | ED116: 2 | EE116: 2 | EF116: 2 | EG116: 1 | EH116: 3 | EI116: 2 | EJ116: 2 | EK116: 2 | EL116: 0 | EM116: 20 | EN116: 0 | EO116: 0 | EP116: 5 | EQ116: 10 | ES116: OUI | ET116: Très insuffisant. Risque l'exclusion | EU116: Blâme | EY116: - | FA116: - | FB116: 2 | FC116: - | FD116: - | FG116: - | FI116: - | FJ116: 1 | FK116: - | FL116: - | FO116: - | FQ116: - | FR116: 1 | FS116: - | FT116: - | FW116: - | FY116: - | GA116: - | GB116: - | GE116: - | GG116: - | GH116: 2 | GI116: - | GJ116: - | GM116: - | GO116: - | GP116: 2 | GQ116: - | GR116: - | GU116: - | GW116: - | GX116: 2 | GY116: - | GZ116: - | HC116: - | HE116: - | HF116: 1 | HG116: - | HH116: - | HK116: - | HM116: - | HN116: 3 | HO116: - | HP116: - | HS116: - | HU116: - | HV116: 2 | HW116: - | HX116: - | IA116: - | IC116: - | ID116: 2 | IE116: - | IF116: - | II116: - | IK116: - | IL116: 2 | IM116: - | IN116: - | IQ116: - | IS116: - | IU116: - | IV116: - | IW116: - | IX116: - | IY116: - | IZ116: - | JA116: - | JB116: - | JC116: - | JD116: - | JE116: - | JF116: - | JG116: - | JH116: - | JI116: - | JJ116: 2 | JK116: 1 | JL116: 1 | JM116: 0 | JN116: 2 | JO116: 2 | JP116: 2 | JQ116: 1 | JR116: 3 | JS116: 2 | JT116: 2 | JU116: 2 | JV116: 0 | JW116: 20 | JX116: 0 | JY116: 0 | JZ116: 0 | KA116: - | KB116: 0 | KF116: OUI | KG116: Peut mieux faire | KH116: Blâme
G117: 119 | O117: - | Q117: - | R117: 2 | S117: - | T117: - | W117: - | Y117: - | Z117: 1 | AA117: - | AB117: - | AE117: - | AG117: - | AH117: 1 | AI117: - | AJ117: - | AM117: - | AO117: - | AQ117: - | AR117: - | AU117: - | AW117: - | AX117: 2 | AY117: - | AZ117: - | BC117: - | BE117: - | BF117: 2 | BG117: - | BH117: - | BK117: - | BM117: - | BN117: 2 | BO117: - | BP117: - | BS117: - | BU117: - | BV117: 1 | BW117: - | BX117: - | CA117: - | CC117: - | CD117: 3 | CE117: - | CF117: - | CI117: - | CK117: - | CL117: 2 | CM117: - | CN117: - | CQ117: - | CS117: - | CT117: 2 | CU117: - | CV117: - | CY117: - | DA117: - | DB117: 2 | DC117: - | DD117: - | DG117: - | DI117: - | DK117: - | DL117: - | DM117: - | DN117: - | DO117: - | DP117: - | DQ117: - | DR117: - | DS117: - | DT117: - | DU117: - | DV117: - | DW117: - | DX117: - | DY117: - | DZ117: 2 | EA117: 1 | EB117: 1 | EC117: 0 | ED117: 2 | EE117: 2 | EF117: 2 | EG117: 1 | EH117: 3 | EI117: 2 | EJ117: 2 | EK117: 2 | EL117: 0 | EM117: 20 | EN117: 0 | EO117: 0 | EP117: 5 | EQ117: 10 | ES117: OUI | ET117: Très insuffisant. Risque l'exclusion | EU117: Blâme | EY117: - | FA117: - | FB117: 2 | FC117: - | FD117: - | FG117: - | FI117: - | FJ117: 1 | FK117: - | FL117: - | FO117: - | FQ117: - | FR117: 1 | FS117: - | FT117: - | FW117: - | FY117: - | GA117: - | GB117: - | GE117: - | GG117: - | GH117: 2 | GI117: - | GJ117: - | GM117: - | GO117: - | GP117: 2 | GQ117: - | GR117: - | GU117: - | GW117: - | GX117: 2 | GY117: - | GZ117: - | HC117: - | HE117: - | HF117: 1 | HG117: - | HH117: - | HK117: - | HM117: - | HN117: 3 | HO117: - | HP117: - | HS117: - | HU117: - | HV117: 2 | HW117: - | HX117: - | IA117: - | IC117: - | ID117: 2 | IE117: - | IF117: - | II117: - | IK117: - | IL117: 2 | IM117: - | IN117: - | IQ117: - | IS117: - | IU117: - | IV117: - | IW117: - | IX117: - | IY117: - | IZ117: - | JA117: - | JB117: - | JC117: - | JD117: - | JE117: - | JF117: - | JG117: - | JH117: - | JI117: - | JJ117: 2 | JK117: 1 | JL117: 1 | JM117: 0 | JN117: 2 | JO117: 2 | JP117: 2 | JQ117: 1 | JR117: 3 | JS117: 2 | JT117: 2 | JU117: 2 | JV117: 0 | JW117: 20 | JX117: 0 | JY117: 0 | JZ117: 0 | KA117: - | KB117: 0 | KF117: OUI | KG117: Peut mieux faire | KH117: Blâme
G118: 119 | O118: - | Q118: - | R118: 2 | S118: - | T118: - | W118: - | Y118: - | Z118: 1 | AA118: - | AB118: - | AE118: - | AG118: - | AH118: 1 | AI118: - | AJ118: - | AM118: - | AO118: - | AQ118: - | AR118: - | AU118: - | AW118: - | AX118: 2 | AY118: - | AZ118: - | BC118: - | BE118: - | BF118: 2 | BG118: - | BH118: - | BK118: - | BM118: - | BN118: 2 | BO118: - | BP118: - | BS118: - | BU118: - | BV118: 1 | BW118: - | BX118: - | CA118: - | CC118: - | CD118: 3 | CE118: - | CF118: - | CI118: - | CK118: - | CL118: 2 | CM118: - | CN118: - | CQ118: - | CS118: - | CT118: 2 | CU118: - | CV118: - | CY118: - | DA118: - | DB118: 2 | DC118: - | DD118: - | DG118: - | DI118: - | DK118: - | DL118: - | DM118: - | DN118: - | DO118: - | DP118: - | DQ118: - | DR118: - | DS118: - | DT118: - | DU118: - | DV118: - | DW118: - | DX118: - | DY118: - | DZ118: 2 | EA118: 1 | EB118: 1 | EC118: 0 | ED118: 2 | EE118: 2 | EF118: 2 | EG118: 1 | EH118: 3 | EI118: 2 | EJ118: 2 | EK118: 2 | EL118: 0 | EM118: 20 | EN118: 0 | EO118: 0 | EP118: 5 | EQ118: 10 | ES118: OUI | ET118: Très insuffisant. Risque l'exclusion | EU118: Blâme | EY118: - | FA118: - | FB118: 2 | FC118: - | FD118: - | FG118: - | FI118: - | FJ118: 1 | FK118: - | FL118: - | FO118: - | FQ118: - | FR118: 1 | FS118: - | FT118: - | FW118: - | FY118: - | GA118: - | GB118: - | GE118: - | GG118: - | GH118: 2 | GI118: - | GJ118: - | GM118: - | GO118: - | GP118: 2 | GQ118: - | GR118: - | GU118: - | GW118: - | GX118: 2 | GY118: - | GZ118: - | HC118: - | HE118: - | HF118: 1 | HG118: - | HH118: - | HK118: - | HM118: - | HN118: 3 | HO118: - | HP118: - | HS118: - | HU118: - | HV118: 2 | HW118: - | HX118: - | IA118: - | IC118: - | ID118: 2 | IE118: - | IF118: - | II118: - | IK118: - | IL118: 2 | IM118: - | IN118: - | IQ118: - | IS118: - | IU118: - | IV118: - | IW118: - | IX118: - | IY118: - | IZ118: - | JA118: - | JB118: - | JC118: - | JD118: - | JE118: - | JF118: - | JG118: - | JH118: - | JI118: - | JJ118: 2 | JK118: 1 | JL118: 1 | JM118: 0 | JN118: 2 | JO118: 2 | JP118: 2 | JQ118: 1 | JR118: 3 | JS118: 2 | JT118: 2 | JU118: 2 | JV118: 0 | JW118: 20 | JX118: 0 | JY118: 0 | JZ118: 0 | KA118: - | KB118: 0 | KF118: OUI | KG118: Peut mieux faire | KH118: Blâme
G119: 119 | O119: - | Q119: - | R119: 2 | S119: - | T119: - | W119: - | Y119: - | Z119: 1 | AA119: - | AB119: - | AE119: - | AG119: - | AH119: 1 | AI119: - | AJ119: - | AM119: - | AO119: - | AQ119: - | AR119: - | AU119: - | AW119: - | AX119: 2 | AY119: - | AZ119: - | BC119: - | BE119: - | BF119: 2 | BG119: - | BH119: - | BK119: - | BM119: - | BN119: 2 | BO119: - | BP119: - | BS119: - | BU119: - | BV119: 1 | BW119: - | BX119: - | CA119: - | CC119: - | CD119: 3 | CE119: - | CF119: - | CI119: - | CK119: - | CL119: 2 | CM119: - | CN119: - | CQ119: - | CS119: - | CT119: 2 | CU119: - | CV119: - | CY119: - | DA119: - | DB119: 2 | DC119: - | DD119: - | DG119: - | DI119: - | DK119: - | DL119: - | DM119: - | DN119: - | DO119: - | DP119: - | DQ119: - | DR119: - | DS119: - | DT119: - | DU119: - | DV119: - | DW119: - | DX119: - | DY119: - | DZ119: 2 | EA119: 1 | EB119: 1 | EC119: 0 | ED119: 2 | EE119: 2 | EF119: 2 | EG119: 1 | EH119: 3 | EI119: 2 | EJ119: 2 | EK119: 2 | EL119: 0 | EM119: 20 | EN119: 0 | EO119: 0 | EP119: 5 | EQ119: 10 | ES119: OUI | ET119: Très insuffisant. Risque l'exclusion | EU119: Blâme | EY119: - | FA119: - | FB119: 2 | FC119: - | FD119: - | FG119: - | FI119: - | FJ119: 1 | FK119: - | FL119: - | FO119: - | FQ119: - | FR119: 1 | FS119: - | FT119: - | FW119: - | FY119: - | GA119: - | GB119: - | GE119: - | GG119: - | GH119: 2 | GI119: - | GJ119: - | GM119: - | GO119: - | GP119: 2 | GQ119: - | GR119: - | GU119: - | GW119: - | GX119: 2 | GY119: - | GZ119: - | HC119: - | HE119: - | HF119: 1 | HG119: - | HH119: - | HK119: - | HM119: - | HN119: 3 | HO119: - | HP119: - | HS119: - | HU119: - | HV119: 2 | HW119: - | HX119: - | IA119: - | IC119: - | ID119: 2 | IE119: - | IF119: - | II119: - | IK119: - | IL119: 2 | IM119: - | IN119: - | IQ119: - | IS119: - | IU119: - | IV119: - | IW119: - | IX119: - | IY119: - | IZ119: - | JA119: - | JB119: - | JC119: - | JD119: - | JE119: - | JF119: - | JG119: - | JH119: - | JI119: - | JJ119: 2 | JK119: 1 | JL119: 1 | JM119: 0 | JN119: 2 | JO119: 2 | JP119: 2 | JQ119: 1 | JR119: 3 | JS119: 2 | JT119: 2 | JU119: 2 | JV119: 0 | JW119: 20 | JX119: 0 | JY119: 0 | JZ119: 0 | KA119: - | KB119: 0 | KF119: OUI | KG119: Peut mieux faire | KH119: Blâme
G120: 119 | O120: - | Q120: - | R120: 2 | S120: - | T120: - | W120: - | Y120: - | Z120: 1 | AA120: - | AB120: - | AE120: - | AG120: - | AH120: 1 | AI120: - | AJ120: - | AM120: - | AO120: - | AQ120: - | AR120: - | AU120: - | AW120: - | AX120: 2 | AY120: - | AZ120: - | BC120: - | BE120: - | BF120: 2 | BG120: - | BH120: - | BK120: - | BM120: - | BN120: 2 | BO120: - | BP120: - | BS120: - | BU120: - | BV120: 1 | BW120: - | BX120: - | CA120: - | CC120: - | CD120: 3 | CE120: - | CF120: - | CI120: - | CK120: - | CL120: 2 | CM120: - | CN120: - | CQ120: - | CS120: - | CT120: 2 | CU120: - | CV120: - | CY120: - | DA120: - | DB120: 2 | DC120: - | DD120: - | DG120: - | DI120: - | DK120: - | DL120: - | DM120: - | DN120: - | DO120: - | DP120: - | DQ120: - | DR120: - | DS120: - | DT120: - | DU120: - | DV120: - | DW120: - | DX120: - | DY120: - | DZ120: 2 | EA120: 1 | EB120: 1 | EC120: 0 | ED120: 2 | EE120: 2 | EF120: 2 | EG120: 1 | EH120: 3 | EI120: 2 | EJ120: 2 | EK120: 2 | EL120: 0 | EM120: 20 | EN120: 0 | EO120: 0 | EP120: 5 | EQ120: 10 | ES120: OUI | ET120: Très insuffisant. Risque l'exclusion | EU120: Blâme | EY120: - | FA120: - | FB120: 2 | FC120: - | FD120: - | FG120: - | FI120: - | FJ120: 1 | FK120: - | FL120: - | FO120: - | FQ120: - | FR120: 1 | FS120: - | FT120: - | FW120: - | FY120: - | GA120: - | GB120: - | GE120: - | GG120: - | GH120: 2 | GI120: - | GJ120: - | GM120: - | GO120: - | GP120: 2 | GQ120: - | GR120: - | GU120: - | GW120: - | GX120: 2 | GY120: - | GZ120: - | HC120: - | HE120: - | HF120: 1 | HG120: - | HH120: - | HK120: - | HM120: - | HN120: 3 | HO120: - | HP120: - | HS120: - | HU120: - | HV120: 2 | HW120: - | HX120: - | IA120: - | IC120: - | ID120: 2 | IE120: - | IF120: - | II120: - | IK120: - | IL120: 2 | IM120: - | IN120: - | IQ120: - | IS120: - | IU120: - | IV120: - | IW120: - | IX120: - | IY120: - | IZ120: - | JA120: - | JB120: - | JC120: - | JD120: - | JE120: - | JF120: - | JG120: - | JH120: - | JI120: - | JJ120: 2 | JK120: 1 | JL120: 1 | JM120: 0 | JN120: 2 | JO120: 2 | JP120: 2 | JQ120: 1 | JR120: 3 | JS120: 2 | JT120: 2 | JU120: 2 | JV120: 0 | JW120: 20 | JX120: 0 | JY120: 0 | JZ120: 0 | KA120: - | KB120: 0 | KF120: OUI | KG120: Peut mieux faire | KH120: Blâme
G121: 119 | O121: - | Q121: - | R121: 2 | S121: - | T121: - | W121: - | Y121: - | Z121: 1 | AA121: - | AB121: - | AE121: - | AG121: - | AH121: 1 | AI121: - | AJ121: - | AM121: - | AO121: - | AQ121: - | AR121: - | AU121: - | AW121: - | AX121: 2 | AY121: - | AZ121: - | BC121: - | BE121: - | BF121: 2 | BG121: - | BH121: - | BK121: - | BM121: - | BN121: 2 | BO121: - | BP121: - | BS121: - | BU121: - | BV121: 1 | BW121: - | BX121: - | CA121: - | CC121: - | CD121: 3 | CE121: - | CF121: - | CI121: - | CK121: - | CL121: 2 | CM121: - | CN121: - | CQ121: - | CS121: - | CT121: 2 | CU121: - | CV121: - | CY121: - | DA121: - | DB121: 2 | DC121: - | DD121: - | DG121: - | DI121: - | DK121: - | DL121: - | DM121: - | DN121: - | DO121: - | DP121: - | DQ121: - | DR121: - | DS121: - | DT121: - | DU121: - | DV121: - | DW121: - | DX121: - | DY121: - | DZ121: 2 | EA121: 1 | EB121: 1 | EC121: 0 | ED121: 2 | EE121: 2 | EF121: 2 | EG121: 1 | EH121: 3 | EI121: 2 | EJ121: 2 | EK121: 2 | EL121: 0 | EM121: 20 | EN121: 0 | EO121: 0 | EP121: 5 | EQ121: 10 | ES121: OUI | ET121: Très insuffisant. Risque l'exclusion | EU121: Blâme | EY121: - | FA121: - | FB121: 2 | FC121: - | FD121: - | FG121: - | FI121: - | FJ121: 1 | FK121: - | FL121: - | FO121: - | FQ121: - | FR121: 1 | FS121: - | FT121: - | FW121: - | FY121: - | GA121: - | GB121: - | GE121: - | GG121: - | GH121: 2 | GI121: - | GJ121: - | GM121: - | GO121: - | GP121: 2 | GQ121: - | GR121: - | GU121: - | GW121: - | GX121: 2 | GY121: - | GZ121: - | HC121: - | HE121: - | HF121: 1 | HG121: - | HH121: - | HK121: - | HM121: - | HN121: 3 | HO121: - | HP121: - | HS121: - | HU121: - | HV121: 2 | HW121: - | HX121: - | IA121: - | IC121: - | ID121: 2 | IE121: - | IF121: - | II121: - | IK121: - | IL121: 2 | IM121: - | IN121: - | IQ121: - | IS121: - | IU121: - | IV121: - | IW121: - | IX121: - | IY121: - | IZ121: - | JA121: - | JB121: - | JC121: - | JD121: - | JE121: - | JF121: - | JG121: - | JH121: - | JI121: - | JJ121: 2 | JK121: 1 | JL121: 1 | JM121: 0 | JN121: 2 | JO121: 2 | JP121: 2 | JQ121: 1 | JR121: 3 | JS121: 2 | JT121: 2 | JU121: 2 | JV121: 0 | JW121: 20 | JX121: 0 | JY121: 0 | JZ121: 0 | KA121: - | KB121: 0 | KF121: OUI | KG121: Peut mieux faire | KH121: Blâme

Sheet 3B
B5: STATISTIQUES AUTOMATISEES
E7: HONNEURS | H7: SANS HONNEURS
B8: Genre | C8: Effectifs | D8: Redoublement | E8: TH | F8: Encouragement | G8: Félicitations | H8: Avertissement | I8: Blâme | J8: Moyen
B9: Filles | C9: =COUNTIF(H16:H121,"F") -> 3 | D9: =COUNTIFS(H16:H121,"F",I16:I121,"OUI") -> 0 | E9: =COUNTIFS(H16:H121,"F",EU16:EU121,"Tableau d'honneur") -> 0 | F9: =COUNTIFS(H16:H121,"F",EU16:EU121,"Encouragement") -> 0 | G9: =COUNTIFS(H16:H121,"F",EU16:EU121,"Félicitations") -> 0 | H9: =COUNTIFS(H16:H121,"F",EU16:EU121,"Avertissement") -> 0 | I9: =COUNTIFS(H16:H121,"F",EU16:EU121,"Blâme") -> 0 | J9: =COUNTIFS(H16:H121,"F",EU16:EU121,"Moyen") -> 3
B10: Garçons | C10: =COUNTIF(H16:H121,"M") -> 1 | D10: =COUNTIFS(H16:H121,"M",I16:I121,"OUI") -> 0 | E10: =COUNTIFS(H16:H121,"M",EU16:EU121,"Tableau d'honneur") -> 0 | F10: =COUNTIFS(H16:H121,"M",EU16:EU121,"Encouragement") -> 0 | G10: =COUNTIFS(H16:H121,"M",EU16:EU121,"Félicitations") -> 0 | H10: =COUNTIFS(H16:H121,"M",EU16:EU121,"Avertissement") -> 0 | I10: =COUNTIFS(H16:H121,"M",EU16:EU121,"Blâme") -> 0 | J10: =COUNTIFS(H16:H121,"M",EU16:EU121,"Moyen") -> 1
B11: Total | C11: =IFERROR(SUM(C9:C10),"---") -> 4 | D11: 0 | E11: 0 | F11: 0 | G11: 0 | H11: 0 | I11: 0 | J11: 4
B13: INFORMATIONS SUR LES ELEVES
Q14: 2 | Y14: 1 | AG14: 1 | AO14: 1 | AW14: 2 | BE14: 2 | BM14: 2 | BU14: 1 | CC14: 3 | CK14: 2 | CS14: 2 | DA14: 2 | DI14: 1 | FA14: 2 | FI14: 1 | FQ14: 1 | FY14: 1 | GG14: 2 | GO14: 2 | GW14: 2 | HE14: 1 | HM14: 3 | HU14: 2 | IC14: 2 | IK14: 2 | IS14: 1
A15: Nro | B15: CODE | C15: Prénom | D15: Nom | E15: Date de naissance | F15: Lieu de naissance | G15: Age | H15: Sexe | I15: Classes reprises | K15: Abs. | L15: Ret. | M15: D1 | N15: D2 | O15: MD | P15: COMP | Q15: MOY | R15: Coef | S15: Points | T15: RM | U15: D1 | V15: D2 | W15: MD | X15: COMP | Y15: MOY | Z15: Coef | AA15: Points | AB15: RM | AC15: D1 | AD15: D2 | AE15: MD | AF15: COMP | AG15: M.S | AH15: Coef | AI15: Points | AJ15: RM | AK15: D1 | AL15: D2 | AM15: MD | AN15: COMP | AO15: M.S | AP15: Coef | AQ15: Points | AR15: RM | AS15: D1 | AT15: D2 | AU15: MD | AV15: COMP | AW15: M.S | AX15: Coef | AY15: Points | AZ15: RM | BA15: D1 | BB15: D2 | BC15: MD | BD15: COMP | BE15: MOY | BF15: Coef | BG15: Points | BH15: RM | BI15: D1 | BJ15: D2 | BK15: MD | BL15: COMP | BM15: MOY | BN15: Coef | BO15: Points | BP15: RM | BQ15: D1 | BR15: D2 | BS15: MD | BT15: COMP | BU15: MOY | BV15: Coef | BW15: Points | BX15: RM | BY15: D1 | BZ15: D2 | CA15: MD | CB15: COMP | CC15: MOY | CD15: Coef | CE15: Points | CF15: RM | CG15: D1 | CH15: D2 | CI15: MD | CJ15: COMP | CK15: MOY | CL15: Coef | CM15: Points | CN15: RM | CO15: D1 | CP15: D2 | CQ15: MD | CR15: COMP | CS15: MOY | CT15: Coef | CU15: Points | CV15: RM | CW15: D1 | CX15: D2 | CY15: MD | CZ15: COMP | DA15: MOY | DB15: Coef | DC15: Points | DD15: RM | DE15: D1 | DF15: D2 | DG15: MD | DH15: COMP | DI15: M.S | DJ15: Coef | DK15: Points | DL15: RM | DM15: CF | DN15: TSQ | DO15: ORTH | DP15: Rec | DQ15: ANG | DR15: ESP | DS15: HG | DT15: EC | DU15: Math | DV15: SVT | DW15: PC | DX15: EPS | DY15: Info | DZ15: CF | EA15: TSQ | EB15: ORTH | EC15: REC | ED15: ANG | EE15: ESP | EF15: HG | EG15: EC | EH15: MATH | EI15: SVT | EJ15: PC | EK15: EPS | EL15: INFO | EM15: TC | EN15: Total | EO15: Moy1 | EP15: RS | EQ15: MP | ER15: CAE | ET15: Remarques | EU15: Honneurs | EV15: Décisions | EW15: D1 | EX15: D2 | EY15: MD | EZ15: COMP | FA15: MOY | FB15: Coef | FC15: Points | FD15: RM | FE15: D1 | FF15: D2 | FG15: MD | FH15: COMP | FI15: MOY | FJ15: Coef | FK15: Points | FL15: RM | FM15: D1 | FN15: D2 | FO15: MD | FP15: COMP | FQ15: M.S | FR15: Coef | FS15: Points | FT15: RM | FU15: D1 | FV15: D2 | FW15: MD | FX15: COMP | FY15: M.S | FZ15: Coef | GA15: Points | GB15: RM | GC15: D1 | GD15: D2 | GE15: MD | GF15: COMP | GG15: M.S | GH15: Coef | GI15: Points | GJ15: RM | GK15: D1 | GL15: D2 | GM15: MD | GN15: COMP | GO15: MOY | GP15: Coef | GQ15: Points | GR15: RM | GS15: D1 | GT15: D2 | GU15: MD | GV15: COMP | GW15: MOY | GX15: Coef | GY15: Points | GZ15: RM | HA15: D1 | HB15: D2 | HC15: MD | HD15: COMP | HE15: MOY | HF15: Coef | HG15: Points | HH15: RM | HI15: D1 | HJ15: D2 | HK15: MD | HL15: COMP | HM15: MOY | HN15: Coef | HO15: Points | HP15: RM | HQ15: D1 | HR15: D2 | HS15: MD | HT15: COMP | HU15: MOY | HV15: Coef | HW15: Points | HX15: RM | HY15: D1 | HZ15: D2 | IA15: MD | IB15: COMP | IC15: MOY | ID15: Coef | IE15: Points | IF15: RM | IG15: D1 | IH15: D2 | II15: MD | IJ15: COMP | IK15: MOY | IL15: Coef | IM15: Points | IN15: RM | IO15: D1 | IP15: D2 | IQ15: MD | IR15: COMP | IS15: M.S | IT15: Coef | IU15: Points | IV15: RM | IW15: CF | IX15: TSQ | IY15: ORTH | IZ15: Rec | JA15: ANG | JB15: ESP | JC15: HG | JD15: EC | JE15: Math | JF15: SVT | JG15: PC | JH15: EPS | JI15: Info | JJ15: CF | JK15: TSQ | JL15: ORTH | JM15: REC | JN15: ANG | JO15: ESP | JP15: HG | JQ15: EC | JR15: MATH | JS15: SVT | JT15: PC | JU15: EPS | JV15: INFO | JW15: TC | JX15: Total | JY15: Moy1 | JZ15: Moy2 | KA15: RS2 | KB15: Moy an | KC15: Rang an | KD15: MP | KE15: CAE | KG15: Ramarque | KH15: Honneurs | KI15: Décisions
A16: 1 | B16: CHDI3B | C16: Christine | D16: DIOMPY | E16: 2003-12-11 | F16: MBOUSNAKH NGOURB | G16: =DATEDIF(E16,TODAY(),"Y") -> 15 | H16: F | I16: NON | M16: 11 | N16: 10 | O16: =IFERROR(AVERAGE(M16:N16),"-") -> 10.5 | P16: 12 | Q16: =IFERROR(AVERAGE(O16:P16),"-") -> 11.25 | R16: 2 | S16: =IFERROR(Q16*2,"-") -> 22.5 | T16: =IFERROR(RANK(Q16,$Q$16:$Q$121,0),"-") -> 3 | U16: 12 | V16: 19 | W16: =IFERROR(AVERAGE(U16:V16),"-") -> 15.5 | X16: 13 | Y16: =IFERROR(AVERAGE(W16:X16),"-") -> 14.25 | Z16: 1 | AA16: =IFERROR(Y16*1,"-") -> 14.25 | AB16: =IFERROR(RANK(Y16,$Y$16:$Y$121,0),"-") -> 2 | AC16: 9 | AD16: 12 | AE16: =IFERROR(AVERAGE(AC16:AD16),"-") -> 10.5 | AF16: 7 | AG16: =IFERROR(AVERAGE(AE16:AF16),"-") -> 8.75 | AH16: 1 | AI16: =IFERROR(AG16*1,"-") -> 8.75 | AJ16: =IFERROR(RANK(AG16,$AG$16:$AG$121,0),"-") -> 4 | AM16: =IFERROR(AVERAGE(AK16:AL16),"-") -> - | AO16: =IFERROR(AVERAGE(AM16:AN16),"-") -> - | AQ16: =+IFERROR(AO16*AP16,"-") -> - | AR16: =IFERROR(RANK(AO16,$AO$16:$AO$121,0),"-") -> - | AS16: 19 | AT16: 14 | AU16: =IFERROR(AVERAGE(AS16:AT16),"-") -> 16.5 | AV16: 17 | AW16: =IFERROR(AVERAGE(AU16:AV16),"-") -> 16.75 | AX16: 2 | AY16: =IFERROR(AW16*AX16,"-") -> 33.5 | AZ16: =IFERROR(RANK(AW16,$AW$16:$AW$121,0),"-") -> 1 | BA16: 12 | BB16: 16 | BC16: =IFERROR(AVERAGE(BA16:BB16),"-") -> 14 | BD16: 12 | BE16: =IFERROR(AVERAGE(BC16:BD16),"-") -> 13 | BF16: 2 | BG16: =IFERROR(BE16*BF16,"-") -> 26 | BH16: =IFERROR(RANK(BE16,$BE$16:$BE$121,0),"-") -> 1 | BI16: 8 | BJ16: 8 | BK16: =IFERROR(AVERAGE(BI16:BJ16),"-") -> 8 | BL16: 9 | BM16: =IFERROR(AVERAGE(BK16:BL16),"-") -> 8.5 | BN16: 2 | BO16: =IFERROR(BM16*BN16,"-") -> 17 | BP16: =IFERROR(RANK(BM16,$BM$16:$BM$121,0),"-") -> 3 | BQ16: 11 | BR16: 10 | BS16: =IFERROR(AVERAGE(BQ16:BR16),"-") -> 10.5 | BT16: 9 | BU16: =IFERROR(AVERAGE(BS16:BT16),"-") -> 9.75 | BV16: 1 | BW16: =IFERROR(BU16*BV16,"-") -> 9.75 | BX16: =IFERROR(RANK(BU16,$BU$16:$BU$121,0),"-") -> 4 | BY16: 9 | BZ16: 10 | CA16: =IFERROR(AVERAGE(BY16:BZ16),"-") -> 9.5 | CB16: 8 | CC16: =IFERROR(AVERAGE(CA16:CB16),"-") -> 8.75 | CD16: 3 | CE16: =IFERROR(CC16*CD16,"-") -> 26.25 | CF16: =IFERROR(RANK(CC16,CC16:CC121,0),"-") -> 4 | CG16: 13 | CH16: 10 | CI16: =IFERROR(AVERAGE(CG16:CH16),"-") -> 11.5 | CJ16: 11 | CK16: =IFERROR(AVERAGE(CI16:CJ16),"-") -> 11.25 | CL16: 2 | CM16: =IFERROR(CK16*CL16,"-") -> 22.5 | CN16: =IFERROR(RANK(CK16,$CK$16:$CK$121,0),"-") -> 1 | CO16: 12 | CP16: 9 | CQ16: =IFERROR(AVERAGE(CO16:CP16),"-") -> 10.5 | CR16: 9 | CS16: =IFERROR(AVERAGE(CQ16:CR16),"-") -> 9.75 | CT16: 2 | CU16: =IFERROR(CS16*CT16,"-") -> 19.5 | CV16: =IFERROR(RANK(CS16,$CS$16:$CS$121,0),"-") -> 3 | CW16: 15 | CX16: 19 | CY16: =IFERROR(AVERAGE(CW16:CX16),"-") -> 17 | CZ16: 7 | DA16: =IFERROR(AVERAGE(CY16:CZ16),"-") -> 12 | DB16: 2 | DC16: =IFERROR(DA16*DB16,"-") -> 24 | DD16: =IFERROR(RANK(DA16,$DA$16:$DA$121,0),"-") -> 3 | DE16: 12 | DF16: 15 | DG16: =IFERROR(AVERAGE(DE16:DF16),"-") -> 13.5 | DH16: 11 | DI16: =IFERROR(AVERAGE(DG16:DH16),"-") -> 12.25 | DK16: =IFERROR(DI16*DJ16,"-") -> 0 | DL16: =IFERROR(RANK(DI16,$DI$16:$DI$121,0),"-") -> 2 | DM16: =IFERROR(S16,"-") -> 22.5 | DN16: =IFERROR(AA16,"-") -> 14.25 | DO16: =IFERROR(AI16,"-") -> 8.75 | DP16: =IFERROR(AQ16,"-") -> - | DQ16: =IFERROR(AY16,"-") -> 33.5 | DR16: =IFERROR(BG16,"-") -> 26 | DS16: =IFERROR(BO16,"-") -> 17 | DT16: =IFERROR(BW16,"-") -> 9.75 | DU16: =IFERROR(CE16,"-") -> 26.25 | DV16: =IFERROR(CM16,"-") -> 22.5 | DW16: =IFERROR(CU16,"-") -> 19.5 | DX16: =IFERROR(DC16,"-") -> 24 | DY16: =IFERROR(DK16,"-") -> 0 | DZ16: =IFERROR(R16,"-") -> 2 | EA16: =IFERROR(Z16,"-") -> 1 | EB16: =IFERROR(AH16,"-") -> 1 | EC16: =IFERROR(AP16,"-") -> 0 | ED16: =IFERROR(AX16,"-") -> 2 | EE16: =IFERROR(BF16,"-") -> 2 | EF16: =IFERROR(BN16,"-") -> 2 | EG16: =IFERROR(BV16,"-") -> 1 | EH16: =IFERROR(CD16,"-") -> 3 | EI16: =IFERROR(CL16,"-") -> 2 | EJ16: =IFERROR(CT16,"-") -> 2 | EK16: =IFERROR(DB16,"-") -> 2 | EL16: =IFERROR(DJ16,"-") -> 0 | EM16: 20 | EN16: =IFERROR(SUM(DM16:DY16),"-") -> 224 | EO16: =IFERROR(ROUND(EN16/EM16,2),"-") -> 11.2 | EP16: =IFERROR(RANK(EO16,$EO$16:$EO$121,0),"-") -> 4 | EQ16: 10 | ES16: OUI | ET16: =IF(EO16>=12,"Satisfaisant doit continuer",IF((EO16>=EQ16)*(EO16<12),"Peut mieux faire",IF(AND(EO16<EQ16,G16<16),"Insuffisant. Risque de redoubler",IF(AND(EO16<EQ16,G16>=16,I16="NON"),"Insuffisant. Risque de redoubler",IF(AND(EO16<EQ16,G16<16,I16="OUI"),"Insuffisant. Risque de redoubler",IF(AND(EO16<EQ16,G16>=16,I16="OUI"),"Insuffisant. Risque l'exclusion",IF(AND(EO16<=5,G16>=16),"Très insuffisant. Risque l'exclusion"))))))) -> Peut mieux faire | EU16: =IF(EO16>=14,"Félicitations",IF((EO16>=13)*(EO16<14),"Encouragement",IF((EO16>=12)*(EO16<13),"Tableau d'honneur",IF((EO16>=9.5)*(EO16<12),"Moyen",IF((EO16>=7)*(EO16<9.5),"Avertissement",IF((EO16>=0)*(EO16<7),"Blâme")))))) -> Moyen | EY16: =IFERROR(AVERAGE(EW16:EX16),"-") -> - | FA16: =IFERROR(AVERAGE(EY16:EZ16),"-") -> - | FB16: 2 | FC16: =IFERROR(FA16*2,"-") -> - | FD16: =IFERROR(RANK(FA16,$Q$16:$Q$65,0),"-") -> - | FG16: =IFERROR(AVERAGE(FE16:FF16),"-") -> - | FI16: =IFERROR(AVERAGE(FG16:FH16),"-") -> - | FJ16: 1 | FK16: =IFERROR(FI16*1,"-") -> - | FL16: =IFERROR(RANK(FI16,$Y$16:$Y$65,0),"-") -> - | FO16: =IFERROR(AVERAGE(FM16:FN16),"-") -> - | FQ16: =IFERROR(AVERAGE(FO16:FP16),"-") -> - | FR16: 1 | FS16: =IFERROR(FQ16*1,"-") -> - | FT16: =IFERROR(RANK(FQ16,$AG$16:$AG$65,0),"-") -> - | FW16: =IFERROR(AVERAGE(FU16:FV16),"-") -> - | FY16: =IFERROR(AVERAGE(FW16:FX16),"-") -> - | GA16: =+IFERROR(FY16*FZ16,"-") -> - | GB16: =IFERROR(RANK(FY16,$AO$16:$AO$65,0),"-") -> - | GE16: =IFERROR(AVERAGE(GC16:GD16),"-") -> - | GG16: =IFERROR(AVERAGE(GE16:GF16),"-") -> - | GH16: 2 | GI16: =IFERROR(GG16*GH16,"-") -> - | GJ16: =IFERROR(RANK(GG16,$AW$16:$AW$65,0),"-") -> - | GM16: =IFERROR(AVERAGE(GK16:GL16),"-") -> - | GO16: =IFERROR(AVERAGE(GM16:GN16),"-") -> - | GP16: 2 | GQ16: =IFERROR(GO16*GP16,"-") -> - | GR16: =IFERROR(RANK(GO16,$BE$16:$BE$65,0),"-") -> - | GU16: =IFERROR(AVERAGE(GS16:GT16),"-") -> - | GW16: =IFERROR(AVERAGE(GU16:GV16),"-") -> - | GX16: 2 | GY16: =IFERROR(GW16*GX16,"-") -> - | GZ16: =IFERROR(RANK(GW16,$BM$16:$BM$65,0),"-") -> - | HC16: =IFERROR(AVERAGE(HA16:HB16),"-") -> - | HE16: =IFERROR(AVERAGE(HC16:HD16),"-") -> - | HF16: 1 | HG16: =IFERROR(HE16*HF16,"-") -> - | HH16: =IFERROR(RANK(HE16,$BU$16:$BU$65,0),"-") -> - | HK16: =IFERROR(AVERAGE(HI16:HJ16),"-") -> - | HM16: =IFERROR(AVERAGE(HK16:HL16),"-") -> - | HN16: 3 | HO16: =IFERROR(HM16*HN16,"-") -> - | HP16: =IFERROR(RANK(HM16,HM16:HM65,0),"-") -> - | HS16: =IFERROR(AVERAGE(HQ16:HR16),"-") -> - | HU16: =IFERROR(AVERAGE(HS16:HT16),"-") -> - | HV16: 2 | HW16: =IFERROR(HU16*HV16,"-") -> - | HX16: =IFERROR(RANK(HU16,$CK$16:$CK$65,0),"-") -> - | IA16: =IFERROR(AVERAGE(HY16:HZ16),"-") -> - | IC16: =IFERROR(AVERAGE(IA16:IB16),"-") -> - | ID16: 2 | IE16: =IFERROR(IC16*ID16,"-") -> - | IF16: =IFERROR(RANK(IC16,$CS$16:$CS$65,0),"-") -> - | II16: =IFERROR(AVERAGE(IG16:IH16),"-") -> - | IK16: =IFERROR(AVERAGE(II16:IJ16),"-") -> - | IL16: 2 | IM16: =IFERROR(IK16*IL16,"-") -> - | IN16: =IFERROR(RANK(IK16,$DA$16:$DA$65,0),"-") -> - | IQ16: =IFERROR(AVERAGE(IO16:IP16),"-") -> - | IS16: =IFERROR(AVERAGE(IQ16:IR16),"-") -> - | IU16: =IFERROR(IS16*IT16,"-") -> - | IV16: =IFERROR(RANK(IS16,$DI$16:$DI$65,0),"-") -> - | IW16: =IFERROR(FC16,"-") -> - | IX16: =IFERROR(FK16,"-") -> - | IY16: =IFERROR(FS16,"-") -> - | IZ16: =IFERROR(GA16,"-") -> - | JA16: =IFERROR(GI16,"-") -> - | JB16: =IFERROR(GQ16,"-") -> - | JC16: =IFERROR(GY16,"-") -> - | JD16: =IFERROR(HG16,"-") -> - | JE16: =IFERROR(HO16,"-") -> - | JF16: =IFERROR(HW16,"-") -> - | JG16: =IFERROR(IE16,"-") -> - | JH16: =IFERROR(IM16,"-") -> - | JI16: =IFERROR(IU16,"-") -> - | JJ16: =IFERROR(FB16,"-") -> 2 | JK16: =IFERROR(FJ16,"-") -> 1 | JL16: =IFERROR(FR16,"-") -> 1 | JM16: =IFERROR(FZ16,"-") -> 0 | JN16: =IFERROR(GH16,"-") -> 2 | JO16: =IFERROR(GP16,"-") -> 2 | JP16: =IFERROR(GX16,"-") -> 2 | JQ16: =IFERROR(HF16,"-") -> 1 | JR16: =IFERROR(HN16,"-") -> 3 | JS16: =IFERROR(HV16,"-") -> 2 | JT16: =IFERROR(ID16,"-") -> 2 | JU16: =IFERROR(IL16,"-") -> 2 | JV16: =IFERROR(IT16,"-") -> 0 | JW16: =IFERROR(SUM(JJ16:JV16),"-") -> 20 | JX16: =IFERROR(SUM(IW16:JI16),"-") -> 0 | JY16: =EO16 -> 11.2 | JZ16: =IFERROR(ROUND(JX16/JW16,2),"-") -> 0 | KA16: =IFERROR(RANK(JZ16,$EP$16:$EP$65,0),"-") -> - | KB16: =IFERROR(ROUND((JY16+JZ16)/2,2),"---") -> 5.6 | KF16: OUI | KG16: =IF(KB16>=12,"Satisfaisant doit continuer",IF((KB16>=KD16)*(KB16<12),"Peut mieux faire",IF(AND(KB16<KD16,ET16<16),"Insuffisant. Risque de redoubler",IF(AND(KB16<KD16,ET16>=16,EV16="NON"),"Insuffisant. Risque de redoubler",IF(AND(KB16<KD16,ET16<16,EV16="OUI"),"Insuffisant. Risque de redoubler",IF(AND(KB16<KD16,ET16>=16,EV16="OUI"),"Insuffisant. Risque l'exclusion",IF(AND(KB16<=5,ET16>=16),"Très insuffisant. Risque l'exclusion"))))))) -> Peut mieux faire | KH16: =IF(JZ16>=14,"Félicitations",IF((JZ16>=13)*(JZ16<14),"Encouragement",IF((JZ16>=12)*(JZ16<13),"Tableau d'honneur",IF((JZ16>=9.5)*(JZ16<12),"Moyen",IF((JZ16>=7)*(JZ16<9.5),"Avertissement",IF((JZ16>=0)*(JZ16<7),"Blâme")))))) -> Blâme
A17: 2 | B17: YAHA3B | C17: Yacine | D17: HANN | E17: 2003-11-12 | F17: MBOUSNAKH NGOR | G17: =DATEDIF(E17,TODAY(),"Y") -> 15 | H17: F | I17: NON | M17: 11 | N17: 12 | O17: 11.5 | P17: 14 | Q17: 12.75 | R17: 2 | S17: 25.5 | T17: 2 | U17: 9 | V17: 20 | W17: 14.5 | X17: 14 | Y17: 14.25 | Z17: 1 | AA17: 14.25 | AB17: 2 | AC17: 10 | AD17: 10 | AE17: 10 | AF17: 13 | AG17: 11.5 | AH17: 1 | AI17: 11.5 | AJ17: 2 | AM17: - | AO17: - | AQ17: - | AR17: - | AS17: 12 | AT17: 11 | AU17: 11.5 | AV17: 10 | AW17: 10.75 | AX17: 2 | AY17: 21.5 | AZ17: 4 | BA17: 13 | BB17: 9 | BC17: 11 | BD17: 13 | BE17: 12 | BF17: 2 | BG17: 24 | BH17: 2 | BI17: 11 | BJ17: 15 | BK17: 13 | BL17: 14 | BM17: 13.5 | BN17: 2 | BO17: 27 | BP17: 2 | BQ17: 13 | BR17: 9 | BS17: 11 | BT17: 9 | BU17: 10 | BV17: 1 | BW17: 10 | BX17: 3 | BY17: 8 | BZ17: 9 | CA17: 8.5 | CB17: 10 | CC17: 9.25 | CD17: 3 | CE17: 27.75 | CF17: =IFERROR(RANK(CC17,CC17:CC121,0),"-") -> 3 | CG17: 12 | CH17: 9 | CI17: 10.5 | CJ17: 10 | CK17: 10.25 | CL17: 2 | CM17: 20.5 | CN17: 2 | CO17: 14 | CP17: 10 | CQ17: 12 | CR17: 8 | CS17: 10 | CT17: 2 | CU17: 20 | CV17: 2 | CW17: 16 | CX17: 15 | CY17: 15.5 | CZ17: 7 | DA17: 11.25 | DB17: 2 | DC17: 22.5 | DD17: 4 | DE17: 18 | DF17: 17 | DG17: 17.5 | DH17: 15 | DI17: 16.25 | DK17: 0 | DL17: 1 | DM17: 25.5 | DN17: 14.25 | DO17: 11.5 | DP17: - | DQ17: 21.5 | DR17: 24 | DS17: 27 | DT17: 10 | DU17: 27.75 | DV17: 20.5 | DW17: 20 | DX17: 22.5 | DY17: 0 | DZ17: 2 | EA17: 1 | EB17: 1 | EC17: 0 | ED17: 2 | EE17: 2 | EF17: 2 | EG17: 1 | EH17: 3 | EI17: 2 | EJ17: 2 | EK17: 2 | EL17: 0 | EM17: 20 | EN17: 224.5 | EO17: 11.23 | EP17: 3 | EQ17: 10 | ES17: OUI | ET17: Peut mieux faire | EU17: Moyen | EY17: - | FA17: - | FB17: 2 | FC17: - | FD17: - | FG17: - | FI17: - | FJ17: 1 | FK17: - | FL17: - | FO17: - | FQ17: - | FR17: 1 | FS17: - | FT17: - | FW17: - | FY17: - | GA17: - | GB17: - | GE17: - | GG17: - | GH17: 2 | GI17: - | GJ17: - | GM17: - | GO17: - | GP17: 2 | GQ17: - | GR17: - | GU17: - | GW17: - | GX17: 2 | GY17: - | GZ17: - | HC17: - | HE17: - | HF17: 1 | HG17: - | HH17: - | HK17: - | HM17: - | HN17: 3 | HO17: - | HP17: - | HS17: - | HU17: - | HV17: 2 | HW17: - | HX17: - | IA17: - | IC17: - | ID17: 2 | IE17: - | IF17: - | II17: - | IK17: - | IL17: 2 | IM17: - | IN17: - | IQ17: - | IS17: - | IU17: - | IV17: - | IW17: - | IX17: - | IY17: - | IZ17: - | JA17: - | JB17: - | JC17: - | JD17: - | JE17: - | JF17: - | JG17: - | JH17: - | JI17: - | JJ17: 2 | JK17: 1 | JL17: 1 | JM17: 0 | JN17: 2 | JO17: 2 | JP17: 2 | JQ17: 1 | JR17: 3 | JS17: 2 | JT17: 2 | JU17: 2 | JV17: 0 | JW17: 20 | JX17: 0 | JY17: 11.23 | JZ17: 0 | KA17: - | KB17: 5.62 | KF17: OUI | KG17: Peut mieux faire | KH17: Blâme
A18: 3 | B18: DAMB3B | C18: David | D18: MBENGUE | E18: 2003-05-09 | F18: GUELOR | G18: 16 | H18: M | I18: NON | M18: 11 | N18: 11 | O18: 11 | P18: 15 | Q18: 13 | R18: 2 | S18: 26 | T18: 1 | U18: 14 | V18: 13 | W18: 13.5 | X18: 12 | Y18: 12.75 | Z18: 1 | AA18: 12.75 | AB18: 4 | AC18: 8 | AD18: 13 | AE18: 10.5 | AF18: 9 | AG18: 9.75 | AH18: 1 | AI18: 9.75 | AJ18: 3 | AM18: - | AO18: - | AQ18: - | AR18: - | AS18: 11 | AT18: 16 | AU18: 13.5 | AV18: 12 | AW18: 12.75 | AX18: 2 | AY18: 25.5 | AZ18: 3 | BA18: 12 | BB18: 8 | BC18: 10 | BD18: 9 | BE18: 9.5 | BF18: 2 | BG18: 19 | BH18: 3 | BI18: 14 | BJ18: 16 | BK18: 15 | BL18: 15 | BM18: 15 | BN18: 2 | BO18: 30 | BP18: 1 | BQ18: 10 | BR18: 12 | BS18: 11 | BT18: 10 | BU18: 10.5 | BV18: 1 | BW18: 10.5 | BX18: 1 | BY18: 10 | BZ18: 12 | CA18: 11 | CB18: 11 | CC18: 11 | CD18: 3 | CE18: 33 | CF18: 2 | CG18: 11 | CH18: 8 | CI18: 9.5 | CJ18: 9 | CK18: 9.25 | CL18: 2 | CM18: 18.5 | CN18: 3 | CO18: 11 | CP18: 13 | CQ18: 12 | CR18: 7 | CS18: 9.5 | CT18: 2 | CU18: 19 | CV18: 4 | CW18: 17 | CX18: 12 | CY18: 14.5 | CZ18: 12 | DA18: 13.25 | DB18: 2 | DC18: 26.5 | DD18: 2 | DE18: 8 | DF18: 7 | DG18: 7.5 | DH18: 6 | DI18: 6.75 | DK18: 0 | DL18: 4 | DM18: 26 | DN18: 12.75 | DO18: 9.75 | DP18: - | DQ18: 25.5 | DR18: 19 | DS18: 30 | DT18: 10.5 | DU18: 33 | DV18: 18.5 | DW18: 19 | DX18: 26.5 | DY18: 0 | DZ18: 2 | EA18: 1 | EB18: 1 | EC18: 0 | ED18: 2 | EE18: 2 | EF18: 2 | EG18: 1 | EH18: 3 | EI18: 2 | EJ18: 2 | EK18: 2 | EL18: 0 | EM18: 20 | EN18: 230.5 | EO18: 11.53 | EP18: 2 | EQ18: 10 | ES18: OUI | ET18: Peut mieux faire | EU18: Moyen | EW18: 8 | EX18: 10 | EY18: 9 | EZ18: 11 | FA18: 10 | FB18: 2 | FC18: 20 | FD18: - | FE18: 11 | FF18: 10 | FG18: 10.5 | FH18: 9 | FI18: 9.75 | FJ18: 1 | FK18: 9.75 | FL18: - | FO18: - | FQ18: - | FR18: 1 | FS18: - | FT18: - | FW18: - | FY18: - | GA18: - | GB18: - | GE18: - | GG18: - | GH18: 2 | GI18: - | GJ18: - | GM18: - | GO18: - | GP18: 2 | GQ18: - | GR18: - | GU18: - | GW18: - | GX18: 2 | GY18: - | GZ18: - | HC18: - | HE18: - | HF18: 1 | HG18: - | HH18: - | HK18: - | HM18: - | HN18: 3 | HO18: - | HP18: - | HS18: - | HU18: - | HV18: 2 | HW18: - | HX18: - | IA18: - | IC18: - | ID18: 2 | IE18: - | IF18: - | II18: - | IK18: - | IL18: 2 | IM18: - | IN18: - | IQ18: - | IS18: - | IU18: - | IV18: - | IW18: 20 | IX18: 9.75 | IY18: - | IZ18: - | JA18: - | JB18: - | JC18: - | JD18: - | JE18: - | JF18: - | JG18: - | JH18: - | JI18: - | JJ18: 2 | JK18: 1 | JL18: 1 | JM18: 0 | JN18: 2 | JO18: 2 | JP18: 2 | JQ18: 1 | JR18: 3 | JS18: 2 | JT18: 2 | JU18: 2 | JV18: 0 | JW18: 20 | JX18: 29.75 | JY18: 11.53 | JZ18: 1.49 | KA18: - | KB18: 6.51 | KF18: OUI | KG18: Peut mieux faire | KH18: Blâme
A19: 4 | B19: HATH3B | C19: Hadji | D19: THIAO | E19: 2002-10-06 | F19: MBOUZNAKH | G19: 16 | H19: F | I19: NON | M19: 11 | N19: 9 | O19: 10 | P19: 11 | Q19: 10.5 | R19: 2 | S19: 21 | T19: 4 | U19: 15 | V19: 15 | W19: 15 | X19: 15 | Y19: 15 | Z19: 1 | AA19: 15 | AB19: 1 | AC19: 12 | AD19: 15 | AE19: 13.5 | AF19: 11 | AG19: 12.25 | AH19: 1 | AI19: 12.25 | AJ19: 1 | AM19: - | AO19: - | AQ19: - | AR19: - | AS19: 18 | AT19: 12 | AU19: 15 | AV19: 14 | AW19: 14.5 | AX19: 2 | AY19: 29 | AZ19: 2 | BA19: 15 | BB19: 11 | BC19: 13 | BD19: 4 | BE19: 8.5 | BF19: 2 | BG19: 17 | BH19: 4 | BI19: 9 | BJ19: 9 | BK19: 9 | BL19: 7 | BM19: 8 | BN19: 2 | BO19: 16 | BP19: 4 | BQ19: 9 | BR19: 11 | BS19: 10 | BT19: 11 | BU19: 10.5 | BV19: 1 | BW19: 10.5 | BX19: 1 | BY19: 13 | BZ19: 15 | CA19: 14 | CB19: 16 | CC19: 15 | CD19: 3 | CE19: 45 | CF19: 1 | CG19: 10 | CH19: 7 | CI19: 8.5 | CJ19: 8 | CK19: 8.25 | CL19: 2 | CM19: 16.5 | CN19: 4 | CO19: 13 | CP19: ²5 | CQ19: 13 | CR19: 10 | CS19: 11.5 | CT19: 2 | CU19: 23 | CV19: 1 | CW19: 13 | CX19: 11 | CY19: 12 | CZ19: 18 | DA19: 15 | DB19: 2 | DC19: 30 | DD19: 1 | DE19: 10 | DF19: 12 | DG19: 11 | DH19: 11 | DI19: 11 | DK19: 0 | DL19: 3 | DM19: 21 | DN19: 15 | DO19: 12.25 | DP19: - | DQ19: 29 | DR19: 17 | DS19: 16 | DT19: 10.5 | DU19: 45 | DV19: 16.5 | DW19: 23 | DX19: 30 | DY19: 0 | DZ19: 2 | EA19: 1 | EB19: 1 | EC19: 0 | ED19: 2 | EE19: 2 | EF19: 2 | EG19: 1 | EH19: 3 | EI19: 2 | EJ19: 2 | EK19: 2 | EL19: 0 | EM19: 20 | EN19: 235.25 | EO19: 11.76 | EP19: 1 | EQ19: 10 | ES19: OUI | ET19: Peut mieux faire | EU19: Moyen | EY19: - | FA19: - | FB19: 2 | FC19: - | FD19: - | FG19: - | FI19: - | FJ19: 1 | FK19: - | FL19: - | FO19: - | FQ19: - | FR19: 1 | FS19: - | FT19: - | FW19: - | FY19: - | GA19: - | GB19: - | GE19: - | GG19: - | GH19: 2 | GI19: - | GJ19: - | GM19: - | GO19: - | GP19: 2 | GQ19: - | GR19: - | GU19: - | GW19: - | GX19: 2 | GY19: - | GZ19: - | HC19: - | HE19: - | HF19: 1 | HG19: - | HH19: - | HK19: - | HM19: - | HN19: 3 | HO19: - | HP19: - | HS19: - | HU19: - | HV19: 2 | HW19: - | HX19: - | IA19: - | IC19: - | ID19: 2 | IE19: - | IF19: - | II19: - | IK19: - | IL19: 2 | IM19: - | IN19: - | IQ19: - | IS19: - | IU19: - | IV19: - | IW19: - | IX19: - | IY19: - | IZ19: - | JA19: - | JB19: - | JC19: - | JD19: - | JE19: - | JF19: - | JG19: - | JH19: - | JI19: - | JJ19: 2 | JK19: 1 | JL19: 1 | JM19: 0 | JN19: 2 | JO19: 2 | JP19: 2 | JQ19: 1 | JR19: 3 | JS19: 2 | JT19: 2 | JU19: 2 | JV19: 0 | JW19: 20 | JX19: 0 | JY19: 11.76 | JZ19: 0 | KA19: - | KB19: 5.88 | KF19: OUI | KG19: Peut mieux faire | KH19: Blâme
G20: =DATEDIF(E20,TODAY(),"Y") -> 119 | O20: - | Q20: - | R20: 2 | S20: - | T20: - | W20: - | Y20: - | Z20: 1 | AA20: - | AB20: - | AE20: - | AG20: - | AH20: 1 | AI20: - | AJ20: - | AM20: - | AO20: - | AQ20: - | AR20: - | AU20: - | AW20: - | AX20: 2 | AY20: - | AZ20: - | BC20: - | BE20: - | BF20: 2 | BG20: - | BH20: - | BK20: - | BM20: - | BN20: 2 | BO20: - | BP20: - | BS20: - | BU20: - | BV20: 1 | BW20: - | BX20: - | CA20: - | CC20: - | CD20: 3 | CE20: - | CF20: - | CI20: - | CK20: - | CL20: 2 | CM20: - | CN20: - | CQ20: - | CS20: - | CT20: 2 | CU20: - | CV20: - | CY20: - | DA20: - | DB20: 2 | DC20: - | DD20: - | DG20: - | DI20: - | DK20: - | DL20: - | DM20: - | DN20: - | DO20: - | DP20: - | DQ20: - | DR20: - | DS20: - | DT20: - | DU20: - | DV20: - | DW20: - | DX20: - | DY20: - | DZ20: 2 | EA20: 1 | EB20: 1 | EC20: 0 | ED20: 2 | EE20: 2 | EF20: 2 | EG20: 1 | EH20: 3 | EI20: 2 | EJ20: 2 | EK20: 2 | EL20: 0 | EM20: 20 | EN20: 0 | EO20: 0 | EP20: 5 | EQ20: 10 | ES20: OUI | ET20: Très insuffisant. Risque l'exclusion | EU20: Blâme | EY20: - | FA20: - | FB20: 2 | FC20: - | FD20: - | FG20: - | FI20: - | FJ20: 1 | FK20: - | FL20: - | FO20: - | FQ20: - | FR20: 1 | FS20: - | FT20: - | FW20: - | FY20: - | GA20: - | GB20: - | GE20: - | GG20: - | GH20: 2 | GI20: - | GJ20: - | GM20: - | GO20: - | GP20: 2 | GQ20: - | GR20: - | GU20: - | GW20: - | GX20: 2 | GY20: - | GZ20: - | HC20: - | HE20: - | HF20: 1 | HG20: - | HH20: - | HK20: - | HM20: - | HN20: 3 | HO20: - | HP20: - | HS20: - | HU20: - | HV20: 2 | HW20: - | HX20: - | IA20: - | IC20: - | ID20: 2 | IE20: - | IF20: - | II20: - | IK20: - | IL20: 2 | IM20: - | IN20: - | IQ20: - | IS20: - | IU20: - | IV20: - | IW20: - | IX20: - | IY20: - | IZ20: - | JA20: - | JB20: - | JC20: - | JD20: - | JE20: - | JF20: - | JG20: - | JH20: - | JI20: - | JJ20: 2 | JK20: 1 | JL20: 1 | JM20: 0 | JN20: 2 | JO20: 2 | JP20: 2 | JQ20: 1 | JR20: 3 | JS20: 2 | JT20: 2 | JU20: 2 | JV20: 0 | JW20: 20 | JX20: 0 | JY20: 0 | JZ20: 0 | KA20: - | KB20: 0 | KF20: OUI | KG20: Peut mieux faire | KH20: Blâme
G21: 119 | O21: - | Q21: - | R21: 2 | S21: - | T21: - | W21: - | Y21: - | Z21: 1 | AA21: - | AB21: - | AE21: - | AG21: - | AH21: 1 | AI21: - | AJ21: - | AM21: - | AO21: - | AQ21: - | AR21: - | AU21: - | AW21: - | AX21: 2 | AY21: - | AZ21: - | BC21: - | BE21: - | BF21: 2 | BG21: - | BH21: - | BK21: - | BM21: - | BN21: 2 | BO21: - | BP21: - | BS21: - | BU21: - | BV21: 1 | BW21: - | BX21: - | CA21: - | CC21: - | CD21: 3 | CE21: - | CF21: - | CI21: - | CK21: - | CL21: 2 | CM21: - | CN21: - | CQ21: - | CS21: - | CT21: 2 | CU21: - | CV21: - | CY21: - | DA21: - | DB21: 2 | DC21: - | DD21: - | DG21: - | DI21: - | DK21: - | DL21: - | DM21: - | DN21: - | DO21: - | DP21: - | DQ21: - | DR21: - | DS21: - | DT21: - | DU21: - | DV21: - | DW21: - | DX21: - | DY21: - | DZ21: 2 | EA21: 1 | EB21: 1 | EC21: 0 | ED21: 2 | EE21: 2 | EF21: 2 | EG21: 1 | EH21: 3 | EI21: 2 | EJ21: 2 | EK21: 2 | EL21: 0 | EM21: 20 | EN21: 0 | EO21: 0 | EP21: 5 | EQ21: 10 | ES21: OUI | ET21: Très insuffisant. Risque l'exclusion | EU21: Blâme | EY21: - | FA21: - | FB21: 2 | FC21: - | FD21: - | FG21: - | FI21: - | FJ21: 1 | FK21: - | FL21: - | FO21: - | FQ21: - | FR21: 1 | FS21: - | FT21: - | FW21: - | FY21: - | GA21: - | GB21: - | GE21: - | GG21: - | GH21: 2 | GI21: - | GJ21: - | GM21: - | GO21: - | GP21: 2 | GQ21: - | GR21: - | GU21: - | GW21: - | GX21: 2 | GY21: - | GZ21: - | HC21: - | HE21: - | HF21: 1 | HG21: - | HH21: - | HK21: - | HM21: - | HN21: 3 | HO21: - | HP21: - | HS21: - | HU21: - | HV21: 2 | HW21: - | HX21: - | IA21: - | IC21: - | ID21: 2 | IE21: - | IF21: - | II21: - | IK21: - | IL21: 2 | IM21: - | IN21: - | IQ21: - | IS21: - | IU21: - | IV21: - | IW21: - | IX21: - | IY21: - | IZ21: - | JA21: - | JB21: - | JC21: - | JD21: - | JE21: - | JF21: - | JG21: - | JH21: - | JI21: - | JJ21: 2 | JK21: 1 | JL21: 1 | JM21: 0 | JN21: 2 | JO21: 2 | JP21: 2 | JQ21: 1 | JR21: 3 | JS21: 2 | JT21: 2 | JU21: 2 | JV21: 0 | JW21: 20 | JX21: 0 | JY21: 0 | JZ21: 0 | KA21: - | KB21: 0 | KF21: OUI | KG21: Peut mieux faire | KH21: Blâme
G22: 119 | O22: - | Q22: - | R22: 2 | S22: - | T22: - | W22: - | Y22: - | Z22: 1 | AA22: - | AB22: - | AE22: - | AG22: - | AH22: 1 | AI22: - | AJ22: - | AM22: - | AO22: - | AQ22: - | AR22: - | AU22: - | AW22: - | AX22: 2 | AY22: - | AZ22: - | BC22: - | BE22: - | BF22: 2 | BG22: - | BH22: - | BK22: - | BM22: - | BN22: 2 | BO22: - | BP22: - | BS22: - | BU22: - | BV22: 1 | BW22: - | BX22: - | CA22: - | CC22: - | CD22: 3 | CE22: - | CF22: - | CI22: - | CK22: - | CL22: 2 | CM22: - | CN22: - | CQ22: - | CS22: - | CT22: 2 | CU22: - | CV22: - | CY22: - | DA22: - | DB22: 2 | DC22: - | DD22: - | DG22: - | DI22: - | DK22: - | DL22: - | DM22: - | DN22: - | DO22: - | DP22: - | DQ22: - | DR22: - | DS22: - | DT22: - | DU22: - | DV22: - | DW22: - | DX22: - | DY22: - | DZ22: 2 | EA22: 1 | EB22: 1 | EC22: 0 | ED22: 2 | EE22: 2 | EF22: 2 | EG22: 1 | EH22: 3 | EI22: 2 | EJ22: 2 | EK22: 2 | EL22: 0 | EM22: 20 | EN22: 0 | EO22: 0 | EP22: 5 | EQ22: 10 | ES22: OUI | ET22: Très insuffisant. Risque l'exclusion | EU22: Blâme | EY22: - | FA22: - | FB22: 2 | FC22: - | FD22: - | FG22: - | FI22: - | FJ22: 1 | FK22: - | FL22: - | FO22: - | FQ22: - | FR22: 1 | FS22: - | FT22: - | FW22: - | FY22: - | GA22: - | GB22: - | GE22: - | GG22: - | GH22: 2 | GI22: - | GJ22: - | GM22: - | GO22: - | GP22: 2 | GQ22: - | GR22: - | GU22: - | GW22: - | GX22: 2 | GY22: - | GZ22: - | HC22: - | HE22: - | HF22: 1 | HG22: - | HH22: - | HK22: - | HM22: - | HN22: 3 | HO22: - | HP22: - | HS22: - | HU22: - | HV22: 2 | HW22: - | HX22: - | IA22: - | IC22: - | ID22: 2 | IE22: - | IF22: - | II22: - | IK22: - | IL22: 2 | IM22: - | IN22: - | IQ22: - | IS22: - | IU22: - | IV22: - | IW22: - | IX22: - | IY22: - | IZ22: - | JA22: - | JB22: - | JC22: - | JD22: - | JE22: - | JF22: - | JG22: - | JH22: - | JI22: - | JJ22: 2 | JK22: 1 | JL22: 1 | JM22: 0 | JN22: 2 | JO22: 2 | JP22: 2 | JQ22: 1 | JR22: 3 | JS22: 2 | JT22: 2 | JU22: 2 | JV22: 0 | JW22: 20 | JX22: 0 | JY22: 0 | JZ22: 0 | KA22: - | KB22: 0 | KF22: OUI | KG22: Peut mieux faire | KH22: Blâme
G23: 119 | O23: - | Q23: - | R23: 2 | S23: - | T23: - | W23: - | Y23: - | Z23: 1 | AA23: - | AB23: - | AE23: - | AG23: - | AH23: 1 | AI23: - | AJ23: - | AM23: - | AO23: - | AQ23: - | AR23: - | AU23: - | AW23: - | AX23: 2 | AY23: - | AZ23: - | BC23: - | BE23: - | BF23: 2 | BG23: - | BH23: - | BK23: - | BM23: - | BN23: 2 | BO23: - | BP23: - | BS23: - | BU23: - | BV23: 1 | BW23: - | BX23: - | CA23: - | CC23: - | CD23: 3 | CE23: - | CF23: - | CI23: - | CK23: - | CL23: 2 | CM23: - | CN23: - | CQ23: - | CS23: - | CT23: 2 | CU23: - | CV23: - | CY23: - | DA23: - | DB23: 2 | DC23: - | DD23: - | DG23: - | DI23: - | DK23: - | DL23: - | DM23: - | DN23: - | DO23: - | DP23: - | DQ23: - | DR23: - | DS23: - | DT23: - | DU23: - | DV23: - | DW23: - | DX23: - | DY23: - | DZ23: 2 | EA23: 1 | EB23: 1 | EC23: 0 | ED23: 2 | EE23: 2 | EF23: 2 | EG23: 1 | EH23: 3 | EI23: 2 | EJ23: 2 | EK23: 2 | EL23: 0 | EM23: 20 | EN23: 0 | EO23: 0 | EP23: 5 | EQ23: 10 | ES23: OUI | ET23: Très insuffisant. Risque l'exclusion | EU23: Blâme | EY23: - | FA23: - | FB23: 2 | FC23: - | FD23: - | FG23: - | FI23: - | FJ23: 1 | FK23: - | FL23: - | FO23: - | FQ23: - | FR23: 1 | FS23: - | FT23: - | FW23: - | FY23: - | GA23: - | GB23: - | GE23: - | GG23: - | GH23: 2 | GI23: - | GJ23: - | GM23: - | GO23: - | GP23: 2 | GQ23: - | GR23: - | GU23: - | GW23: - | GX23: 2 | GY23: - | GZ23: - | HC23: - | HE23: - | HF23: 1 | HG23: - | HH23: - | HK23: - | HM23: - | HN23: 3 | HO23: - | HP23: - | HS23: - | HU23: - | HV23: 2 | HW23: - | HX23: - | IA23: - | IC23: - | ID23: 2 | IE23: - | IF23: - | II23: - | IK23: - | IL23: 2 | IM23: - | IN23: - | IQ23: - | IS23: - | IU23: - | IV23: - | IW23: - | IX23: - | IY23: - | IZ23: - | JA23: - | JB23: - | JC23: - | JD23: - | JE23: - | JF23: - | JG23: - | JH23: - | JI23: - | JJ23: 2 | JK23: 1 | JL23: 1 | JM23: 0 | JN23: 2 | JO23: 2 | JP23: 2 | JQ23: 1 | JR23: 3 | JS23: 2 | JT23: 2 | JU23: 2 | JV23: 0 | JW23: 20 | JX23: 0 | JY23: 0 | JZ23: 0 | KA23: - | KB23: 0 | KF23: OUI | KG23: Peut mieux faire | KH23: Blâme
G24: 119 | O24: - | Q24: - | R24: 2 | S24: - | T24: - | W24: - | Y24: - | Z24: 1 | AA24: - | AB24: - | AE24: - | AG24: - | AH24: 1 | AI24: - | AJ24: - | AM24: - | AO24: - | AQ24: - | AR24: - | AU24: - | AW24: - | AX24: 2 | AY24: - | AZ24: - | BC24: - | BE24: - | BF24: 2 | BG24: - | BH24: - | BK24: - | BM24: - | BN24: 2 | BO24: - | BP24: - | BS24: - | BU24: - | BV24: 1 | BW24: - | BX24: - | CA24: - | CC24: - | CD24: 3 | CE24: - | CF24: - | CI24: - | CK24: - | CL24: 2 | CM24: - | CN24: - | CQ24: - | CS24: - | CT24: 2 | CU24: - | CV24: - | CY24: - | DA24: - | DB24: 2 | DC24: - | DD24: - | DG24: - | DI24: - | DK24: - | DL24: - | DM24: - | DN24: - | DO24: - | DP24: - | DQ24: - | DR24: - | DS24: - | DT24: - | DU24: - | DV24: - | DW24: - | DX24: - | DY24: - | DZ24: 2 | EA24: 1 | EB24: 1 | EC24: 0 | ED24: 2 | EE24: 2 | EF24: 2 | EG24: 1 | EH24: 3 | EI24: 2 | EJ24: 2 | EK24: 2 | EL24: 0 | EM24: 20 | EN24: 0 | EO24: 0 | EP24: 5 | EQ24: 10 | ES24: OUI | ET24: Très insuffisant. Risque l'exclusion | EU24: Blâme | EY24: - | FA24: - | FB24: 2 | FC24: - | FD24: - | FG24: - | FI24: - | FJ24: 1 | FK24: - | FL24: - | FO24: - | FQ24: - | FR24: 1 | FS24: - | FT24: - | FW24: - | FY24: - | GA24: - | GB24: - | GE24: - | GG24: - | GH24: 2 | GI24: - | GJ24: - | GM24: - | GO24: - | GP24: 2 | GQ24: - | GR24: - | GU24: - | GW24: - | GX24: 2 | GY24: - | GZ24: - | HC24: - | HE24: - | HF24: 1 | HG24: - | HH24: - | HK24: - | HM24: - | HN24: 3 | HO24: - | HP24: - | HS24: - | HU24: - | HV24: 2 | HW24: - | HX24: - | IA24: - | IC24: - | ID24: 2 | IE24: - | IF24: - | II24: - | IK24: - | IL24: 2 | IM24: - | IN24: - | IQ24: - | IS24: - | IU24: - | IV24: - | IW24: - | IX24: - | IY24: - | IZ24: - | JA24: - | JB24: - | JC24: - | JD24: - | JE24: - | JF24: - | JG24: - | JH24: - | JI24: - | JJ24: 2 | JK24: 1 | JL24: 1 | JM24: 0 | JN24: 2 | JO24: 2 | JP24: 2 | JQ24: 1 | JR24: 3 | JS24: 2 | JT24: 2 | JU24: 2 | JV24: 0 | JW24: 20 | JX24: 0 | JY24: 0 | JZ24: 0 | KA24: - | KB24: 0 | KF24: OUI | KG24: Peut mieux faire | KH24: Blâme
G25: 119 | O25: - | Q25: - | R25: 2 | S25: - | T25: - | W25: - | Y25: - | Z25: 1 | AA25: - | AB25: - | AE25: - | AG25: - | AH25: 1 | AI25: - | AJ25: - | AM25: - | AO25: - | AQ25: - | AR25: - | AU25: - | AW25: - | AX25: 2 | AY25: - | AZ25: - | BC25: - | BE25: - | BF25: 2 | BG25: - | BH25: - | BK25: - | BM25: - | BN25: 2 | BO25: - | BP25: - | BS25: - | BU25: - | BV25: 1 | BW25: - | BX25: - | CA25: - | CC25: - | CD25: 3 | CE25: - | CF25: - | CI25: - | CK25: - | CL25: 2 | CM25: - | CN25: - | CQ25: - | CS25: - | CT25: 2 | CU25: - | CV25: - | CY25: - | DA25: - | DB25: 2 | DC25: - | DD25: - | DG25: - | DI25: - | DK25: - | DL25: - | DM25: - | DN25: - | DO25: - | DP25: - | DQ25: - | DR25: - | DS25: - | DT25: - | DU25: - | DV25: - | DW25: - | DX25: - | DY25: - | DZ25: 2 | EA25: 1 | EB25: 1 | EC25: 0 | ED25: 2 | EE25: 2 | EF25: 2 | EG25: 1 | EH25: 3 | EI25: 2 | EJ25: 2 | EK25: 2 | EL25: 0 | EM25: 20 | EN25: 0 | EO25: 0 | EP25: 5 | EQ25: 10 | ES25: OUI | ET25: Très insuffisant. Risque l'exclusion | EU25: Blâme | EY25: - | FA25: - | FB25: 2 | FC25: - | FD25: - | FG25: - | FI25: - | FJ25: 1 | FK25: - | FL25: - | FO25: - | FQ25: - | FR25: 1 | FS25: - | FT25: - | FW25: - | FY25: - | GA25: - | GB25: - | GE25: - | GG25: - | GH25: 2 | GI25: - | GJ25: - | GM25: - | GO25: - | GP25: 2 | GQ25: - | GR25: - | GU25: - | GW25: - | GX25: 2 | GY25: - | GZ25: - | HC25: - | HE25: - | HF25: 1 | HG25: - | HH25: - | HK25: - | HM25: - | HN25: 3 | HO25: - | HP25: - | HS25: - | HU25: - | HV25: 2 | HW25: - | HX25: - | IA25: - | IC25: - | ID25: 2 | IE25: - | IF25: - | II25: - | IK25: - | IL25: 2 | IM25: - | IN25: - | IQ25: - | IS25: - | IU25: - | IV25: - | IW25: - | IX25: - | IY25: - | IZ25: - | JA25: - | JB25: - | JC25: - | JD25: - | JE25: - | JF25: - | JG25: - | JH25: - | JI25: - | JJ25: 2 | JK25: 1 | JL25: 1 | JM25: 0 | JN25: 2 | JO25: 2 | JP25: 2 | JQ25: 1 | JR25: 3 | JS25: 2 | JT25: 2 | JU25: 2 | JV25: 0 | JW25: 20 | JX25: 0 | JY25: 0 | JZ25: 0 | KA25: - | KB25: 0 | KF25: OUI | KG25: Peut mieux faire | KH25: Blâme
G26: 119 | O26: - | Q26: - | R26: 2 | S26: - | T26: - | W26: - | Y26: - | Z26: 1 | AA26: - | AB26: - | AE26: - | AG26: - | AH26: 1 | AI26: - | AJ26: - | AM26: - | AO26: - | AQ26: - | AR26: - | AU26: - | AW26: - | AX26: 2 | AY26: - | AZ26: - | BC26: - | BE26: - | BF26: 2 | BG26: - | BH26: - | BK26: - | BM26: - | BN26: 2 | BO26: - | BP26: - | BS26: - | BU26: - | BV26: 1 | BW26: - | BX26: - | CA26: - | CC26: - | CD26: 3 | CE26: - | CF26: - | CI26: - | CK26: - | CL26: 2 | CM26: - | CN26: - | CQ26: - | CS26: - | CT26: 2 | CU26: - | CV26: - | CY26: - | DA26: - | DB26: 2 | DC26: - | DD26: - | DG26: - | DI26: - | DK26: - | DL26: - | DM26: - | DN26: - | DO26: - | DP26: - | DQ26: - | DR26: - | DS26: - | DT26: - | DU26: - | DV26: - | DW26: - | DX26: - | DY26: - | DZ26: 2 | EA26: 1 | EB26: 1 | EC26: 0 | ED26: 2 | EE26: 2 | EF26: 2 | EG26: 1 | EH26: 3 | EI26: 2 | EJ26: 2 | EK26: 2 | EL26: 0 | EM26: 20 | EN26: 0 | EO26: 0 | EP26: 5 | EQ26: 10 | ES26: OUI | ET26: Très insuffisant. Risque l'exclusion | EU26: Blâme | EY26: - | FA26: - | FB26: 2 | FC26: - | FD26: - | FG26: - | FI26: - | FJ26: 1 | FK26: - | FL26: - | FO26: - | FQ26: - | FR26: 1 | FS26: - | FT26: - | FW26: - | FY26: - | GA26: - | GB26: - | GE26: - | GG26: - | GH26: 2 | GI26: - | GJ26: - | GM26: - | GO26: - | GP26: 2 | GQ26: - | GR26: - | GU26: - | GW26: - | GX26: 2 | GY26: - | GZ26: - | HC26: - | HE26: - | HF26: 1 | HG26: - | HH26: - | HK26: - | HM26: - | HN26: 3 | HO26: - | HP26: - | HS26: - | HU26: - | HV26: 2 | HW26: - | HX26: - | IA26: - | IC26: - | ID26: 2 | IE26: - | IF26: - | II26: - | IK26: - | IL26: 2 | IM26: - | IN26: - | IQ26: - | IS26: - | IU26: - | IV26: - | IW26: - | IX26: - | IY26: - | IZ26: - | JA26: - | JB26: - | JC26: - | JD26: - | JE26: - | JF26: - | JG26: - | JH26: - | JI26: - | JJ26: 2 | JK26: 1 | JL26: 1 | JM26: 0 | JN26: 2 | JO26: 2 | JP26: 2 | JQ26: 1 | JR26: 3 | JS26: 2 | JT26: 2 | JU26: 2 | JV26: 0 | JW26: 20 | JX26: 0 | JY26: 0 | JZ26: 0 | KA26: - | KB26: 0 | KF26: OUI | KG26: Peut mieux faire | KH26: Blâme
G27: 119 | O27: - | Q27: - | R27: 2 | S27: - | T27: - | W27: - | Y27: - | Z27: 1 | AA27: - | AB27: - | AE27: - | AG27: - | AH27: 1 | AI27: - | AJ27: - | AM27: - | AO27: - | AQ27: - | AR27: - | AU27: - | AW27: - | AX27: 2 | AY27: - | AZ27: - | BC27: - | BE27: - | BF27: 2 | BG27: - | BH27: - | BK27: - | BM27: - | BN27: 2 | BO27: - | BP27: - | BS27: - | BU27: - | BV27: 1 | BW27: - | BX27: - | CA27: - | CC27: - | CD27: 3 | CE27: - | CF27: - | CI27: - | CK27: - | CL27: 2 | CM27: - | CN27: - | CQ27: - | CS27: - | CT27: 2 | CU27: - | CV27: - | CY27: - | DA27: - | DB27: 2 | DC27: - | DD27: - | DG27: - | DI27: - | DK27: - | DL27: - | DM27: - | DN27: - | DO27: - | DP27: - | DQ27: - | DR27: - | DS27: - | DT27: - | DU27: - | DV27: - | DW27: - | DX27: - | DY27: - | DZ27: 2 | EA27: 1 | EB27: 1 | EC27: 0 | ED27: 2 | EE27: 2 | EF27: 2 | EG27: 1 | EH27: 3 | EI27: 2 | EJ27: 2 | EK27: 2 | EL27: 0 | EM27: 20 | EN27: 0 | EO27: 0 | EP27: 5 | EQ27: 10 | ES27: OUI | ET27: Très insuffisant. Risque l'exclusion | EU27: Blâme | EY27: - | FA27: - | FB27: 2 | FC27: - | FD27: - | FG27: - | FI27: - | FJ27: 1 | FK27: - | FL27: - | FO27: - | FQ27: - | FR27: 1 | FS27: - | FT27: - | FW27: - | FY27: - | GA27: - | GB27: - | GE27: - | GG27: - | GH27: 2 | GI27: - | GJ27: - | GM27: - | GO27: - | GP27: 2 | GQ27: - | GR27: - | GU27: - | GW27: - | GX27: 2 | GY27: - | GZ27: - | HC27: - | HE27: - | HF27: 1 | HG27: - | HH27: - | HK27: - | HM27: - | HN27: 3 | HO27: - | HP27: - | HS27: - | HU27: - | HV27: 2 | HW27: - | HX27: - | IA27: - | IC27: - | ID27: 2 | IE27: - | IF27: - | II27: - | IK27: - | IL27: 2 | IM27: - | IN27: - | IQ27: - | IS27: - | IU27: - | IV27: - | IW27: - | IX27: - | IY27: - | IZ27: - | JA27: - | JB27: - | JC27: - | JD27: - | JE27: - | JF27: - | JG27: - | JH27: - | JI27: - | JJ27: 2 | JK27: 1 | JL27: 1 | JM27: 0 | JN27: 2 | JO27: 2 | JP27: 2 | JQ27: 1 | JR27: 3 | JS27: 2 | JT27: 2 | JU27: 2 | JV27: 0 | JW27: 20 | JX27: 0 | JY27: 0 | JZ27: 0 | KA27: - | KB27: 0 | KF27: OUI | KG27: Peut mieux faire | KH27: Blâme
G28: 119 | O28: - | Q28: - | R28: 2 | S28: - | T28: - | W28: - | Y28: - | Z28: 1 | AA28: - | AB28: - | AE28: - | AG28: - | AH28: 1 | AI28: - | AJ28: - | AM28: - | AO28: - | AQ28: - | AR28: - | AU28: - | AW28: - | AX28: 2 | AY28: - | AZ28: - | BC28: - | BE28: - | BF28: 2 | BG28: - | BH28: - | BK28: - | BM28: - | BN28: 2 | BO28: - | BP28: - | BS28: - | BU28: - | BV28: 1 | BW28: - | BX28: - | CA28: - | CC28: - | CD28: 3 | CE28: - | CF28: - | CI28: - | CK28: - | CL28: 2 | CM28: - | CN28: - | CQ28: - | CS28: - | CT28: 2 | CU28: - | CV28: - | CY28: - | DA28: - | DB28: 2 | DC28: - | DD28: - | DG28: - | DI28: - | DK28: - | DL28: - | DM28: - | DN28: - | DO28: - | DP28: - | DQ28: - | DR28: - | DS28: - | DT28: - | DU28: - | DV28: - | DW28: - | DX28: - | DY28: - | DZ28: 2 | EA28: 1 | EB28: 1 | EC28: 0 | ED28: 2 | EE28: 2 | EF28: 2 | EG28: 1 | EH28: 3 | EI28: 2 | EJ28: 2 | EK28: 2 | EL28: 0 | EM28: 20 | EN28: 0 | EO28: 0 | EP28: 5 | EQ28: 10 | ES28: OUI | ET28: Très insuffisant. Risque l'exclusion | EU28: Blâme | EY28: - | FA28: - | FB28: 2 | FC28: - | FD28: - | FG28: - | FI28: - | FJ28: 1 | FK28: - | FL28: - | FO28: - | FQ28: - | FR28: 1 | FS28: - | FT28: - | FW28: - | FY28: - | GA28: - | GB28: - | GE28: - | GG28: - | GH28: 2 | GI28: - | GJ28: - | GM28: - | GO28: - | GP28: 2 | GQ28: - | GR28: - | GU28: - | GW28: - | GX28: 2 | GY28: - | GZ28: - | HC28: - | HE28: - | HF28: 1 | HG28: - | HH28: - | HK28: - | HM28: - | HN28: 3 | HO28: - | HP28: - | HS28: - | HU28: - | HV28: 2 | HW28: - | HX28: - | IA28: - | IC28: - | ID28: 2 | IE28: - | IF28: - | II28: - | IK28: - | IL28: 2 | IM28: - | IN28: - | IQ28: - | IS28: - | IU28: - | IV28: - | IW28: - | IX28: - | IY28: - | IZ28: - | JA28: - | JB28: - | JC28: - | JD28: - | JE28: - | JF28: - | JG28: - | JH28: - | JI28: - | JJ28: 2 | JK28: 1 | JL28: 1 | JM28: 0 | JN28: 2 | JO28: 2 | JP28: 2 | JQ28: 1 | JR28: 3 | JS28: 2 | JT28: 2 | JU28: 2 | JV28: 0 | JW28: 20 | JX28: 0 | JY28: 0 | JZ28: 0 | KA28: - | KB28: 0 | KF28: OUI | KG28: Peut mieux faire | KH28: Blâme
G29: 119 | O29: - | Q29: - | R29: 2 | S29: - | T29: - | W29: - | Y29: - | Z29: 1 | AA29: - | AB29: - | AE29: - | AG29: - | AH29: 1 | AI29: - | AJ29: - | AM29: - | AO29: - | AQ29: - | AR29: - | AU29: - | AW29: - | AX29: 2 | AY29: - | AZ29: - | BC29: - | BE29: - | BF29: 2 | BG29: - | BH29: - | BK29: - | BM29: - | BN29: 2 | BO29: - | BP29: - | BS29: - | BU29: - | BV29: 1 | BW29: - | BX29: - | CA29: - | CC29: - | CD29: 3 | CE29: - | CF29: - | CI29: - | CK29: - | CL29: 2 | CM29: - | CN29: - | CQ29: - | CS29: - | CT29: 2 | CU29: - | CV29: - | CY29: - | DA29: - | DB29: 2 | DC29: - | DD29: - | DG29: - | DI29: - | DK29: - | DL29: - | DM29: - | DN29: - | DO29: - | DP29: - | DQ29: - | DR29: - | DS29: - | DT29: - | DU29: - | DV29: - | DW29: - | DX29: - | DY29: - | DZ29: 2 | EA29: 1 | EB29: 1 | EC29: 0 | ED29: 2 | EE29: 2 | EF29: 2 | EG29: 1 | EH29: 3 | EI29: 2 | EJ29: 2 | EK29: 2 | EL29: 0 | EM29: 20 | EN29: 0 | EO29: 0 | EP29: 5 | EQ29: 10 | ES29: OUI | ET29: Très insuffisant. Risque l'exclusion | EU29: Blâme | EY29: - | FA29: - | FB29: 2 | FC29: - | FD29: - | FG29: - | FI29: - | FJ29: 1 | FK29: - | FL29: - | FO29: - | FQ29: - | FR29: 1 | FS29: - | FT29: - | FW29: - | FY29: - | GA29: - | GB29: - | GE29: - | GG29: - | GH29: 2 | GI29: - | GJ29: - | GM29: - | GO29: - | GP29: 2 | GQ29: - | GR29: - | GU29: - | GW29: - | GX29: 2 | GY29: - | GZ29: - | HC29: - | HE29: - | HF29: 1 | HG29: - | HH29: - | HK29: - | HM29: - | HN29: 3 | HO29: - | HP29: - | HS29: - | HU29: - | HV29: 2 | HW29: - | HX29: - | IA29: - | IC29: - | ID29: 2 | IE29: - | IF29: - | II29: - | IK29: - | IL29: 2 | IM29: - | IN29: - | IQ29: - | IS29: - | IU29: - | IV29: - | IW29: - | IX29: - | IY29: - | IZ29: - | JA29: - | JB29: - | JC29: - | JD29: - | JE29: - | JF29: - | JG29: - | JH29: - | JI29: - | JJ29: 2 | JK29: 1 | JL29: 1 | JM29: 0 | JN29: 2 | JO29: 2 | JP29: 2 | JQ29: 1 | JR29: 3 | JS29: 2 | JT29: 2 | JU29: 2 | JV29: 0 | JW29: 20 | JX29: 0 | JY29: 0 | JZ29: 0 | KA29: - | KB29: 0 | KF29: OUI | KG29: Peut mieux faire | KH29: Blâme
G30: 119 | O30: - | Q30: - | R30: 2 | S30: - | T30: - | W30: - | Y30: - | Z30: 1 | AA30: - | AB30: - | AE30: - | AG30: - | AH30: 1 | AI30: - | AJ30: - | AM30: - | AO30: - | AQ30: - | AR30: - | AU30: - | AW30: - | AX30: 2 | AY30: - | AZ30: - | BC30: - | BE30: - | BF30: 2 | BG30: - | BH30: - | BK30: - | BM30: - | BN30: 2 | BO30: - | BP30: - | BS30: - | BU30: - | BV30: 1 | BW30: - | BX30: - | CA30: - | CC30: - | CD30: 3 | CE30: - | CF30: - | CI30: - | CK30: - | CL30: 2 | CM30: - | CN30: - | CQ30: - | CS30: - | CT30: 2 | CU30: - | CV30: - | CY30: - | DA30: - | DB30: 2 | DC30: - | DD30: - | DG30: - | DI30: - | DK30: - | DL30: - | DM30: - | DN30: - | DO30: - | DP30: - | DQ30: - | DR30: - | DS30: - | DT30: - | DU30: - | DV30: - | DW30: - | DX30: - | DY30: - | DZ30: 2 | EA30: 1 | EB30: 1 | EC30: 0 | ED30: 2 | EE30: 2 | EF30: 2 | EG30: 1 | EH30: 3 | EI30: 2 | EJ30: 2 | EK30: 2 | EL30: 0 | EM30: 20 | EN30: 0 | EO30: 0 | EP30: 5 | EQ30: 10 | ES30: OUI | ET30: Très insuffisant. Risque l'exclusion | EU30: Blâme | EY30: - | FA30: - | FB30: 2 | FC30: - | FD30: - | FG30: - | FI30: - | FJ30: 1 | FK30: - | FL30: - | FO30: - | FQ30: - | FR30: 1 | FS30: - | FT30: - | FW30: - | FY30: - | GA30: - | GB30: - | GE30: - | GG30: - | GH30: 2 | GI30: - | GJ30: - | GM30: - | GO30: - | GP30: 2 | GQ30: - | GR30: - | GU30: - | GW30: - | GX30: 2 | GY30: - | GZ30: - | HC30: - | HE30: - | HF30: 1 | HG30: - | HH30: - | HK30: - | HM30: - | HN30: 3 | HO30: - | HP30: - | HS30: - | HU30: - | HV30: 2 | HW30: - | HX30: - | IA30: - | IC30: - | ID30: 2 | IE30: - | IF30: - | II30: - | IK30: - | IL30: 2 | IM30: - | IN30: - | IQ30: - | IS30: - | IU30: - | IV30: - | IW30: - | IX30: - | IY30: - | IZ30: - | JA30: - | JB30: - | JC30: - | JD30: - | JE30: - | JF30: - | JG30: - | JH30: - | JI30: - | JJ30: 2 | JK30: 1 | JL30: 1 | JM30: 0 | JN30: 2 | JO30: 2 | JP30: 2 | JQ30: 1 | JR30: 3 | JS30: 2 | JT30: 2 | JU30: 2 | JV30: 0 | JW30: 20 | JX30: 0 | JY30: 0 | JZ30: 0 | KA30: - | KB30: 0 | KF30: OUI | KG30: Peut mieux faire | KH30: Blâme
G31: 119 | O31: - | Q31: - | R31: 2 | S31: - | T31: - | W31: - | Y31: - | Z31: 1 | AA31: - | AB31: - | AE31: - | AG31: - | AH31: 1 | AI31: - | AJ31: - | AM31: - | AO31: - | AQ31: - | AR31: - | AU31: - | AW31: - | AX31: 2 | AY31: - | AZ31: - | BC31: - | BE31: - | BF31: 2 | BG31: - | BH31: - | BK31: - | BM31: - | BN31: 2 | BO31: - | BP31: - | BS31: - | BU31: - | BV31: 1 | BW31: - | BX31: - | CA31: - | CC31: - | CD31: 3 | CE31: - | CF31: - | CI31: - | CK31: - | CL31: 2 | CM31: - | CN31: - | CQ31: - | CS31: - | CT31: 2 | CU31: - | CV31: - | CY31: - | DA31: - | DB31: 2 | DC31: - | DD31: - | DG31: - | DI31: - | DK31: - | DL31: - | DM31: - | DN31: - | DO31: - | DP31: - | DQ31: - | DR31: - | DS31: - | DT31: - | DU31: - | DV31: - | DW31: - | DX31: - | DY31: - | DZ31: 2 | EA31: 1 | EB31: 1 | EC31: 0 | ED31: 2 | EE31: 2 | EF31: 2 | EG31: 1 | EH31: 3 | EI31: 2 | EJ31: 2 | EK31: 2 | EL31: 0 | EM31: 20 | EN31: 0 | EO31: 0 | EP31: 5 | EQ31: 10 | ES31: OUI | ET31: Très insuffisant. Risque l'exclusion | EU31: Blâme | EY31: - | FA31: - | FB31: 2 | FC31: - | FD31: - | FG31: - | FI31: - | FJ31: 1 | FK31: - | FL31: - | FO31: - | FQ31: - | FR31: 1 | FS31: - | FT31: - | FW31: - | FY31: - | GA31: - | GB31: - | GE31: - | GG31: - | GH31: 2 | GI31: - | GJ31: - | GM31: - | GO31: - | GP31: 2 | GQ31: - | GR31: - | GU31: - | GW31: - | GX31: 2 | GY31: - | GZ31: - | HC31: - | HE31: - | HF31: 1 | HG31: - | HH31: - | HK31: - | HM31: - | HN31: 3 | HO31: - | HP31: - | HS31: - | HU31: - | HV31: 2 | HW31: - | HX31: - | IA31: - | IC31: - | ID31: 2 | IE31: - | IF31: - | II31: - | IK31: - | IL31: 2 | IM31: - | IN31: - | IQ31: - | IS31: - | IU31: - | IV31: - | IW31: - | IX31: - | IY31: - | IZ31: - | JA31: - | JB31: - | JC31: - | JD31: - | JE31: - | JF31: - | JG31: - | JH31: - | JI31: - | JJ31: 2 | JK31: 1 | JL31: 1 | JM31: 0 | JN31: 2 | JO31: 2 | JP31: 2 | JQ31: 1 | JR31: 3 | JS31: 2 | JT31: 2 | JU31: 2 | JV31: 0 | JW31: 20 | JX31: 0 | JY31: 0 | JZ31: 0 | KA31: - | KB31: 0 | KF31: OUI | KG31: Peut mieux faire | KH31: Blâme
